Workbook

Sheet Cover
A10: NEWFOUNDLAND AND LABRADOR HYDRO
A11: LONG TERM SUPPLY COST
A12: VARIANCE DEFERRAL ACCOUNT
A13: =+'inputs activity'!C1 -> 2027-12-31

Sheet >>> Inputs

Sheet Assumptions
A1: Component demand / energy classification
B2: LTSCVDA Component | C2: Demand % | D2: Energy % | E2: Illustrative treatment / required support
B3: Muskrat Falls Project Cost Variance | C3: =1-D3 -> 0.4971 | D3: 0.5029 | E3: TY System Load Factor
B4: Rate Mitigation Fund Variance | C4: =1-D4 -> 0.4971 | D4: 0.5029 | E4: TY System Load Factor
B5: Holyrood TGS Fuel Cost Variance | C5: 0 | D5: 1 | E5: 100% Energy
B6: Other IIS Supply Cost Variance | C6: 0.4971 | D6: 0.5029 | E6: TY System Load Factor
B7: Net Revenue from Exports Variance | C7: 0.4971 | D7: 0.5029 | E7: TY System Load Factor
B8: Transmission Tariff Revenue Variance | C8: 0.4971 | D8: 0.5029 | E8: TY System Load Factor
B9: Greenhouse Gas Credit Revenue Variance | C9: 0.4971 | D9: 0.5029 | E9: TY System Load Factor
B11: Check | C11: =SUMPRODUCT(C3:C9+D3:D9)/ROWS(C3:C9) -> 1 | E11: Average of Demand % + Energy %; must equal 100.0%

Sheet inputs COS
A1: COS Inputs
C5: January | D5: February | E5: March | F5: April | G5: May | H5: June | I5: July | J5: August | K5: September | L5: October | M5: November | N5: December | O5: Total
A8: Interest rate | C8: =B11/12 -> 0.00397844755 | D8: =+C8 -> 0.00397844755 | E8: 0.00397844755 | F8: 0.00397844755 | G8: 0.00397844755 | H8: 0.00397844755 | I8: 0.00397844755 | J8: 0.00397844755 | K8: 0.00397844755 | L8: 0.00397844755 | M8: 0.00397844755 | N8: 0.00397844755
A9: WACC 4.88% annually or 4.774% monthly
B11: =NOMINAL(0.0488,12) -> 0.0477413706
A12: Holyrood operating efficiency | C12: 583 | D12: =+C12 -> 583 | E12: 583 | F12: 583 | G12: 583 | H12: 583 | I12: 583 | J12: 583 | K12: 583 | L12: 583 | M12: 583 | N12: 583
A13: (kWh/barrel)
B16: ALLOCATION OF DEFICIT:
A18: 1 | B18: Island Interconnected | C18: 62778787.67
A19: 2 | B19: Labrador Interconnected | C19: 2191540.52
A21: 3 | B21: Allocated Totals | C21: =SUM(C18:C19) -> 64970328.19
B23: CUSTOMER DEFICIT ALLOCATION:
C24: Amount | D24: Percent
B25: Island Interconnected:
A26: 4 | B26: Newfoundland Power | C26: 62778787.67 | D26: =C26/C32 -> 0.966268594
A27: 5 | B27: Sub-Total Island Interconnected | C27: =C26 -> 62778787.67
B29: Labrador Interconnected:
A30: 6 | B30: Rural Labrador Interconnected | C30: 2191540.52 | D30: =C30/C32 -> 0.03373140603
A31: 7 | B31: Subtotal Labrador Interconnected | C31: =C30 -> 2191540.52
A32: 8 | B32: Total | C32: =C27+C31 -> 64970328.19 | D32: =D26+D30 -> 1

Sheet Test Year
A1: SUMMARY OF POWER GENERATION AND DISTRIBUTION
A2: MONTHLY POWER REPORT (kWhrs)
A3: Island Interconnected System
B4: January | C4: February | D4: March | E4: April | F4: May | G4: June | H4: July | I4: August | J4: September | K4: October | L4: November | M4: December | N4: Calendar YTD
A5: GENERATION
A6: Bay D'Espoir | B6: 316500000 | C6: 302439712.1 | D6: 245500080.2 | E6: 246992757.1 | F6: 179523752.2 | G6: 127745203.9 | H6: 168029688.3 | I6: 176387430.5 | J6: 179585755.9 | K6: 218800000 | L6: 178135780.5 | M6: 314400000 | N6: =SUM(B6:M6) -> 2654040161
A7: Hinds Lake | B7: 45390000 | C7: 34319289.98 | D7: 33917568.89 | E7: 25980000 | F7: 19920000 | G7: 23090000 | H7: 32225003.97 | I7: 34081291.88 | J7: 28165132.36 | K7: 13315466.36 | L7: 24451508.11 | M7: 39140000 | N7: =SUM(B7:M7) -> 353995261.6
A8: Upper Salmon | B8: 58320000 | C8: 45540000 | D8: 56350000 | E8: 53126416.38 | F8: 41720490.89 | G8: 40283325.08 | H8: 38788858.01 | I8: 20999059.45 | J8: 48979164.88 | K8: 51000000 | L8: 48599114.99 | M8: 52250000 | N8: 555956429.7
A9: Cat Arm | B9: 87511970.48 | C9: 75010000 | D9: 72774918.43 | E9: 75131205.63 | F9: 62730000 | G9: 59790000 | H9: 51620000 | I9: 43984694.05 | J9: 43812724.7 | K9: 41527624.18 | L9: 55120000 | M9: 85992557.4 | N9: 755005694.9
A10: Paradise River | B10: 2976000 | C10: 2688000 | D10: 2976000 | E10: 2880000 | F10: 2976000 | G10: 2880000 | H10: 2976000 | I10: 2976000 | J10: 2880000 | K10: 2976000 | L10: 2880000 | M10: 2976000 | N10: 35040000
A11: Granite Canal | B11: 24390000 | C11: 20796639.89 | D11: 22599819.94 | E11: 22862335.26 | F11: 19570000 | G11: 17953586.02 | H11: 17017338.87 | I11: 21968725.6 | J11: 16748968.61 | K11: 16000000 | L11: 21206692.14 | M11: 24848346.82 | N11: 245962453.1
A12: Mini Hydro Sites | B12: 0 | C12: 0 | D12: 0 | E12: 0 | F12: 0 | G12: 0 | H12: 0 | I12: 0 | J12: 0 | K12: 0 | L12: 0 | M12: 0 | N12: 0
A13: SUB TOTAL HYDRO GENERATION | B13: =SUM(B6:B12) -> 535087970.5 | C13: =SUM(C6:C12) -> 480793642 | D13: 434118387.5 | E13: 426972714.3 | F13: 326440243.1 | G13: 271742115 | H13: 310656889.1 | I13: 300397201.4 | J13: 320171746.4 | K13: 343619090.5 | L13: 330393095.8 | M13: 519606904.2 | N13: 4600000000
A14: Holyrood Thermal | B14: 112701462.3 | C14: 102611346.9 | D14: 47669813.19 | E14: 0 | F14: 0 | G14: 0 | H14: 0 | I14: 0 | J14: 0 | K14: 28415163.73 | L14: 52602052.87 | M14: 111225818.6 | N14: =SUM(B14:M14) -> 455225657.6
A15: GNP Diesel & Other Mobile | B15: 217599.18 | C15: 231849.6 | D15: 149861.34 | E15: 242467.12 | F15: 347356.39 | G15: 293256.64 | H15: 250409.97 | I15: 174097.49 | J15: 167350.96 | K15: 303925 | L15: 76955.48 | M15: 73259.98 | N15: =SUM(B15:M15) -> 2528389.15
A16: Hardwoods GT | B16: 194853.26 | C16: 624620.27 | D16: 461130.02 | E16: 795357.42 | F16: 845285.83 | G16: 48389.06 | H16: 570775.85 | I16: 110893.26 | J16: 60997.63 | K16: 467591.88 | L16: 268852.11 | M16: 210830.14 | N16: 4659576.73
A17: Holyrood GT | B17: 5195977.037 | C17: 3543787.997 | D17: 3091331.117 | E17: 3744717.587 | F17: 4514649.357 | G17: 3876835.027 | H17: 782340.2567 | I17: 1065608.737 | J17: 377566.3467 | K17: 4109414.417 | L17: 1906991.747 | M17: 1706799.847 | N17: 33916019.47
A18: Holyrood blackstart | B18: 8333.333333 | C18: 8333.333333 | D18: 8333.333333 | E18: 8333.333333 | F18: 8333.333333 | G18: 8333.333333 | H18: 8333.333333 | I18: 8333.333333 | J18: 8333.333333 | K18: 8333.333333 | L18: 8333.333333 | M18: 8333.333333 | N18: 100000
A19: Stephenville GT | B19: 171532.29 | C19: 100000 | D19: 411105.25 | E19: 610000 | F19: 731309.24 | G19: 214173.77 | H19: 479958.48 | I19: 205000 | J19: 30000 | K19: 30000 | L19: 73379.64 | M19: 30000 | N19: 3086458.67
A20: SUB TOTAL THERMAL GENERATION | B20: =SUM(B14:B19) -> 118489757.4 | C20: =SUM(C14:C19) -> 107119938.1 | D20: 51791574.25 | E20: 5400875.46 | F20: 6446934.15 | G20: 4440987.83 | H20: 2091817.89 | I20: 1563932.82 | J20: 644248.27 | K20: 33334428.36 | L20: 54936565.18 | M20: 113255041.9 | N20: 499516101.6
A21: SYSTEM GROSS GENERATION | B21: =B13+B20 -> 653577727.9 | C21: =C13+C20 -> 587913580.1 | D21: 485909961.8 | E21: 432373589.8 | F21: 332887177.3 | G21: 276183102.8 | H21: 312748707 | I21: 301961134.3 | J21: 320815994.7 | K21: 376953518.9 | L21: 385329661 | M21: 632861946.1 | N21: 5099516102
A22: STATION SERVICES
A23: Bay D'Espoir | N23: =SUM(B23:M23) -> 0
A24: Hinds Lake | N24: =SUM(B24:M24) -> 0
A25: Upper Salmon | N25: =SUM(B25:M25) -> 0
A26: Cat Arm | N26: 0
A27: Paradise River | N27: 0
A28: Granite Canal | N28: 0
A29: Holyrood Thermal | N29: 0
A30: Stephenville GT | N30: 0
A31: Hardwoods GT | N31: 0
A32: Mini Hydro Sites | N32: 0
A33: GNP Diesel | N33: 0
A34: TOTAL STATION SERVICES | B34: =SUM(B23:B33) -> 0 | C34: =SUM(C23:C33) -> 0 | D34: 0 | E34: 0 | F34: 0 | G34: 0 | H34: 0 | I34: 0 | J34: 0 | K34: 0 | L34: 0 | M34: 0 | N34: 0
A35: SYNCHRONOUS CONDENSOR CONSUMPTION
A36: Bay D'Espoir | N36: =SUM(B36:M36) -> 0
A37: Cat Arm | N37: =SUM(B37:M37) -> 0
A38: Hardwoods GT | N38: 0
A39: Stephenville GT | N39: 0
A40: TOTAL SYNC. CONDENSOR USE | B40: =SUM(B36:B39) -> 0 | C40: =SUM(C36:C39) -> 0 | D40: 0 | E40: 0 | F40: 0 | G40: 0 | H40: 0 | I40: 0 | J40: 0 | K40: 0 | L40: 0 | M40: 0 | N40: 0
A41: SYSTEM NET GENERATION | B41: =B21-B34-B40 -> 653577727.9 | C41: =C21-C34-C40 -> 587913580.1 | D41: =D21-D34-D40 -> 485909961.8 | E41: =E21-E34-E40 -> 432373589.8 | F41: 332887177.3 | G41: 276183102.8 | H41: 312748707 | I41: 301961134.3 | J41: 320815994.7 | K41: 376953518.9 | L41: 385329661 | M41: 632861946.1 | N41: 5099516102
A42: Hydro Request "Nfld Power" | N42: =SUM(B42:M42) -> 0
A43: Hydro Request "Vale"
A44: CBPP Secondary | N44: =SUM(B44:M44) -> 0
A45: CBPP Exchanged/Transferred Energy (to NLH) | N45: 0
A46: Nalcor - Grand Falls and Bishop's Falls | B46: 53999520 | C46: 48699840 | D46: 53694480 | E46: 55699200 | F46: 58999200 | G46: 48297600 | H46: 52794240 | I46: 54795600 | J46: 49996800 | K46: 39498960 | L46: 45396000 | M46: 52995120 | N46: 614866560
A47: Nalcor - Star Lake | B47: 12500000 | C47: 11300000 | D47: 12500000 | E47: 11664000 | F47: 12528000 | G47: 12000000 | H47: 13000000 | I47: 13000000 | J47: 6500000 | K47: 12900000 | L47: 11500000 | M47: 11700000 | N47: 141092000
A48: Rattle Brook | B48: 610200 | C48: 501200 | D48: 601400 | E48: 1545700 | F48: 2433100 | G48: 1385800 | H48: 748200 | I48: 722400 | J48: 1120000 | K48: 1599600 | L48: 1500000 | M48: 994000 | N48: 13761600
A49: CBPP CoGen | B49: 6320000 | C49: 4980000 | D49: 5840000 | E49: 5550000 | F49: 5740000 | G49: 6070000 | H49: 5580000 | I49: 4230000 | J49: 6240000 | K49: 5440000 | L49: 4290000 | M49: 6250000 | N49: 66530000
A50: Nalcor - Buchans | N50: 0
A51: St. Lawrence Wind | B51: 11399354.88 | C51: 9387457.67 | D51: 9444583.27 | E51: 8289309.64 | F51: 8854882.77 | G51: 6522586.48 | H51: 5545518.49 | I51: 5932207.57 | J51: 5681989.16 | K51: 9225565.01 | L51: 9869382.97 | M51: 9271381.16 | N51: 99424219.07
A52: Fermeuse Wind | B52: 9333293.05 | C52: 8869064.9 | D52: 8985639.06 | E52: 7332588.94 | F52: 9341417.05 | G52: 5058685.96 | H52: 7165654.77 | I52: 6052427.56 | J52: 5365599.81 | K52: 9046419.38 | L52: 9752898.91 | M52: 10023301.76 | N52: 96326991.15
A53: Maritime Link Imports for NLH | N53: 0
A54: Maritime Link Imports (Other)
A55: LIL Imports (recall & Pre-comm) | N55: 0
A56: LIL Imports (Muskrat PPA) | B56: 148144430.1 | C56: 145252124.6 | D56: 234052514.1 | E56: 115797042.4 | F56: 94476210.31 | G56: 98762384.24 | H56: 25654099.26 | I56: 24783245.39 | J56: 21586191.46 | K56: 50370471.69 | L56: 164074689.2 | M56: 92775775.52 | N56: 1215729178
A57: New World Dairy | B57: 237782.4 | C57: 214771.2 | D57: 237782.4 | E57: 230112 | F57: 237782.4 | G57: 230112 | H57: 237782.4 | I57: 237782.4 | J57: 230112 | K57: 237782.4 | L57: 230112 | M57: 237782.4 | N57: 2799696
A58: TOTAL OTHER SOURCES | B58: =SUM(B42:B57) -> 242544580.5 | C58: 229204458.3 | D58: 325356398.9 | E58: 206107953 | F58: 192610592.5 | G58: 178327168.7 | H58: 110725494.9 | I58: 109753662.9 | J58: 96720692.43 | K58: 128318798.5 | L58: 246613083.1 | M58: 184247360.8 | N58: 2250530245
A59: TOTAL NET GENERATION | B59: =B41+B58 -> 896122308.4 | C59: 817118038.4 | D59: 811266360.6 | E59: 638481542.8 | F59: 525497769.8 | G59: 454510271.5 | H59: 423474201.9 | I59: 411714797.2 | J59: 417536687.1 | K59: 505272317.4 | L59: 631942744.1 | M59: 817109307 | N59: 7350046346
N60: YTD
A61: ENERGY DISTRIBUTION (FIRM ENERGY ONLY) | B61: THIS YEAR | C61: THIS YEAR | D61: THIS YEAR | E61: THIS YEAR | F61: THIS YEAR | G61: THIS YEAR | H61: THIS YEAR | I61: THIS YEAR | J61: THIS YEAR | K61: THIS YEAR | N61: THIS YEAR
A62: TOTAL INDUSTRY | B62: 50688440 | C62: 43178100 | D62: 55050850 | E62: 46693790 | F62: 54172620 | G62: 53283910 | H62: 55984270 | I62: 54689540 | J62: 52271700 | K62: 33042600 | L62: 55106520 | M62: 59209000 | N62: =SUM(B62:M62) -> 613371340
A63: Newfoundland Power Firm | B63: 766305914.8 | C63: 700798705.5 | D63: 689119433.2 | E63: 531348942.2 | F63: 415832403 | G63: 347124508.4 | H63: 313450423.4 | I63: 312212799.8 | J63: 318656728 | K63: 417449389.1 | L63: 521880578.9 | M63: 680402173.7 | N63: =SUM(B63:M63) -> 6014582000
A64: Newfoundland Power Secondary | N64: =SUM(B64:M64) -> 0
A65: Rural Bulk Deliveries | B65: 51464737.26 | C65: 47776011.75 | D65: 47742571.64 | E65: 40285559.8 | F65: 36905050.54 | G65: 30720291.32 | H65: 28775726.46 | I65: 28203140.26 | J65: 27600991.63 | K65: 33327733.97 | L65: 39819954.93 | M65: 49003330.46 | N65: 461625100
A66: TOTAL UTILITY | B66: 817770652 | C66: 748574717.3 | D66: 736862004.9 | E66: 571634502 | F66: 452737453.5 | G66: 377844799.7 | H66: 342226149.9 | I66: 340415940 | J66: 346257719.6 | K66: 450777123.1 | L66: 561700533.8 | M66: 729405504.2 | N66: =SUM(N63:N65) -> 6476207100
A69: Maritime Link Exports | B69: 0 | C69: 0 | D69: 0 | E69: 0 | F69: 0 | G69: 0 | H69: 0 | I69: 0 | J69: 0 | K69: 0 | L69: 0 | M69: 0 | N69: =SUM(B69:M69) -> 0
A71: TOTAL OTHER | B71: =SUM(B69:B70) -> 0 | C71: =SUM(C69:C70) -> 0 | D71: 0 | E71: 0 | F71: 0 | G71: 0 | H71: 0 | I71: 0 | J71: 0 | K71: 0 | L71: 0 | M71: 0 | N71: 0
A73: CBP&P Exchanged/Transferred Energy Credit (from NLH) | B73: 0 | C73: 0 | D73: 0 | E73: 0 | F73: 0 | G73: 0 | H73: 0 | I73: 0 | J73: 0 | K73: 0 | N73: 0
A74: TOTAL ENERGY DISTRIBUTED | B74: =B62+B66+B71+B73 -> 868459092 | C74: =C62+C66+C71+C73 -> 791752817.3 | D74: 791912854.9 | E74: 618328292 | F74: 506910073.5 | G74: 431128709.7 | H74: 398210419.9 | I74: 395105480 | J74: 398529419.6 | K74: 483819723.1 | L74: 616807053.8 | M74: 788614504.2 | N74: 7089578440
A75: TRANSMISSION, TRANSFORMER LOSSES | B75: 39875377.62 | C75: 36439068.82 | D75: 31714167.09 | E75: 32331887.6 | F75: 30788867.67 | G75: 35227378.62 | H75: 37028283.39 | I75: 28135698.54 | J75: 28625814.32 | K75: 32557595.65 | L75: 27529917.08 | M75: 41382314.12 | N75: =SUM(B75:M75) -> 401636370.5
A76: Loss Factor | B76: =B75/B59 -> 0.04449769552 | C76: 0.0445946205 | D76: 0.03909217567 | E76: 0.05063871926 | F76: 0.0585899112 | G76: 0.07750623215 | H76: 0.08743928963 | I76: 0.06833783661 | J76: 0.06855880022 | K76: 0.06443573996 | L76: 0.04356394205 | M76: 0.05064477148 | N76: 0.05464405959
A77: TOTAL ENERGY RECEIVED AT NO COST
A78: CBPP Secondary | N78: 0
A79: Sales +Losses | B79: =B74+B75 -> 908334469.7 | C79: =C74+C75 -> 828191886.1 | D79: 823627022 | E79: 650660179.6 | F79: 537698941.2 | G79: 466356088.3 | H79: 435238703.2 | I79: 423241178.6 | J79: 427155233.9 | K79: 516377318.7 | L79: 644336970.9 | M79: 829996818.3 | N79: 7491214811
A80: Net Generation | B80: =B59 -> 896122308.4 | C80: 817118038.4 | D80: 811266360.6 | E80: 638481542.8 | F80: 525497769.8 | G80: 454510271.5 | H80: 423474201.9 | I80: 411714797.2 | J80: 417536687.1 | K80: 505272317.4 | L80: 631942744.1 | M80: 817109307 | N80: 7350046346
A81: Difference | B81: =B79-B80 -> 12212161.3 | C81: =C79-C80 -> 11073847.67 | D81: 12360661.33 | E81: 12178636.78 | F81: 12201171.39 | G81: =G79-G80 -> 11845816.8 | H81: 11764501.31 | I81: 11526381.38 | J81: 9618546.798 | K81: 11105001.34 | L81: 12394226.83 | M81: 12887511.36 | N81: 141168464.3
A83: Fuel
A84: Bunker C
A85: Barrels | B85: 200180 | C85: 182258 | D85: 84671 | E85: 0 | F85: 0 | G85: 0 | H85: 0 | I85: 0 | J85: 0 | K85: 50471 | L85: 93432 | M85: 197559 | N85: =SUM(B85:M85) -> 808571
A86: Price/Barrel | B86: =IFERROR(B87/B85,0) -> 77.71438022 | C86: =IFERROR(C87/C85,0) -> 79.54631656 | D86: 79.54631656 | E86: 0 | F86: 0 | G86: 0 | H86: 0 | I86: 0 | J86: 0 | K86: 79.54631656 | L86: 81.14764371 | M86: 82.1053447 | N86: 105.9 | O86: ignition | P86: env handling | Q86: indirect
A87: Fuel expense | B87: 15556864.63 | C87: 14497952.56 | D87: 6735266.169 | E87: 0 | F87: 0 | G87: 0 | H87: 0 | I87: 0 | J87: 0 | K87: 4014782.143 | L87: 7581786.647 | M87: 16220649.79 | N87: 64607301.95 | O87: 325596 | P87: 33912 | Q87: 43200 | R87: =SUM(N87:Q87) -> 65010009.95
A88: Operating Efficiency (Annual) | B88: 562.9589866 | C88: 562.9547924 | D88: 562.9020756 | E88: 0 | F88: 0 | G88: 0 | H88: 0 | I88: 0 | J88: 0 | K88: 562.8347601 | L88: 562.9090806 | M88: 562.9583375 | N88: =IFERROR((N13-N28)/N84,0) -> 0 | Q88: =SUM(O87:Q87) -> 402708
A89: Operating Efficiency (Monthly) | B89: 562.9589866 | C89: 562.9569878 | D89: 562.9470333 | E89: 562.9291977 | F89: 562.9113632 | G89: 562.8935299 | H89: 562.8756977 | I89: 562.8578667 | J89: 562.8400367 | K89: 562.8395222 | L89: 562.8501575 | M89: 562.8765854 | N89: =IFERROR((N14-N29)/N85,0) -> 563.0002283
A91: Turbine Fuel Costs
A92: Holyrood | B92: 2025800.26 | C92: 1417217.73 | D92: 1259363.834 | E92: 1545512.794 | F92: 1881525.228 | G92: 1628278.415 | H92: 330439.8089 | I92: 451475.5929 | J92: 160060.0105 | K92: 1745177.498 | L92: 810799.0683 | M92: 726155.0497 | N92: =SUM(B92:M92) -> 13981805.29
A93: Hardwoods | B93: 111321.4502 | C93: 369985.0578 | D93: 276145.3242 | E93: 482392.5206 | F93: 516251.6825 | G93: 29629.39153 | H93: 349960.5378 | I93: 67991.18807 | J93: 37446.15748 | K93: 287242.063 | L93: 165155.4324 | M93: 129598.7197 | N93: 2823119.525
A94: Stephenville | B94: 103422.0453 | C94: 60293.63188 | D94: 257434.0129 | E94: 385656.9197 | F94: 468359.8531 | G94: 137772.0428 | H94: 309594.8331 | I94: 132236.6834 | J94: 19349.67707 | K94: 19401.0442 | L94: 47458.09012 | M94: 19401.0442 | N94: 1960379.878
A95: St. Anthony | B95: 114585.0989 | C95: 103465.4608 | D95: 71823.38386 | E95: 120517.7022 | F95: 183211.1338 | G95: 143824.5867 | H95: 150371.4746 | I95: 71915.9038 | J95: 72518.20272 | K95: 158019.9943 | L95: 16881.14546 | M95: 24743.93179 | N95: 1231878.019
A96: Hawkes Bay | B96: 53338.34032 | C96: 78804.22465 | D96: 46708.66018 | E96: 72837.90756 | F96: 95068.1553 | G96: 91503.0591 | H96: 50753.32402 | I96: 67953.21628 | J96: 62022.5814 | K96: 86410.03894 | L96: 44991.86545 | M96: 34160.82982 | N96: 784552.203
A97: Holyrood Blackstart | B97: 5335.730625 | C97: 5335.730625 | D97: 5335.730625 | E97: 5335.730625 | F97: 5335.730625 | G97: 5335.730625 | H97: 5335.730625 | I97: 5335.730625 | J97: 5335.730625 | K97: 5335.730625 | L97: 5335.730625 | M97: 5335.730625 | N97: 64028.7675
A98: HV North Plant | B98: 6321.091173 | C98: 6321.091173 | D98: 6649.23763 | E98: 11078.69431 | F98: 11078.69431 | G98: 11078.69431 | H98: 6649.23763 | I98: 6649.23763 | J98: 6649.23763 | K98: 6649.23763 | L98: 11078.69431 | M98: 77112.91797 | N98: 167316.0657
A100: Isolated Systems
A101: Isolated Diesel Plants (Net kWh) | B101: 5406014 | C101: 4982811 | D101: 5066424 | E101: 4446881 | F101: 4210204 | G101: 4139850 | H101: 4036979 | I101: 4206509 | J101: 3837237 | K101: 4229121 | L101: 4532210 | M101: 5561484 | N101: =SUM(B101:M101) -> 54655724
A102: Isolated Diesel Plants Fuel ($) | B102: 1682711 | C102: 1526189 | D102: 1532908 | E102: 1362781 | F102: 1296580 | G102: 1303787 | H102: 1313847 | I102: 1390279 | J102: 1289738 | K102: 1482612 | L102: 1765502 | M102: 2253241 | N102: 18200175
A103: Hydro Quebec Purchases (Net kWh) | B103: 2938000 | C103: 2521400 | D103: 2420400 | E103: 2159800 | F103: 1965100 | G103: 1837800 | H103: 1815600 | I103: 1438400 | J103: 1675500 | K103: 1854900 | L103: 2189800 | M103: 2685100 | N103: 25501800
A104: Hydro Quebec Purchases ($) | B104: 372283 | C104: 309183 | D104: 287283 | E104: 254383 | F104: 228083 | G104: 217383 | H104: 223183 | I104: 178483 | J104: 218783 | K104: 255583 | L104: 353383 | M104: 450783 | N104: 3348796
A105: Ramea - Frontier Power (Net kWh) | B105: 115600 | C105: 91500 | D105: 57800 | E105: 42500 | F105: 24200 | G105: 14800 | H105: 7100 | I105: 8300 | J105: 12400 | K105: 37800 | L105: 77900 | M105: 99700 | N105: 589600
A106: Ramea - Frontier Power ($) | B106: 24900 | C106: 19000 | D106: 11800 | E106: 8800 | F106: 5100 | G106: 3200 | H106: 1600 | I106: 1900 | J106: 3000 | K106: 9700 | L106: 22400 | M106: 28900 | N106: 140300
A107: Ramea - Nalcor Energy (Net kWh) | B107: 19600 | C107: 15500 | D107: 9800 | E107: 7200 | F107: 4100 | G107: 2500 | H107: 1200 | I107: 1400 | J107: 2100 | K107: 6400 | L107: 13200 | M107: 16900 | N107: 99900
A108: Ramea - Nalcor Energy ($) | B108: 4200 | C108: 3200 | D108: 2000 | E108: 1500 | F108: 900 | G108: 500 | H108: 300 | I108: 300 | J108: 500 | K108: 1600 | L108: 3800 | M108: 4900 | N108: 23700
A110: Power Purchase Costs
A111: Nalcor Exploits | B111: 2159980.8 | C111: 1947993.6 | D111: 2147779.2 | E111: 2227968 | F111: 2359968 | G111: 1931904 | H111: 2111769.6 | I111: 2191824 | J111: 1999872 | K111: 1579958.4 | L111: 1815840 | M111: 2119804.8 | N111: =SUM(B111:M111) -> 24594662.4
A112: Star Lake | B112: 500000 | C112: 452000 | D112: 500000 | E112: 466560 | F112: 501120 | G112: 480000 | H112: 520000 | I112: 520000 | J112: 260000 | K112: 516000 | L112: 460000 | M112: 468000 | N112: 5643680
A113: Rattle Brook | B113: 72705.33 | C113: 59717.98 | D113: 71656.81 | E113: 145249.429 | F113: 228638.407 | G113: 130223.626 | H113: 70308.354 | I113: 67883.928 | J113: 105246.4 | K113: 150314.412 | L113: 178725 | M113: 118435.1 | N113: 1399104.776
A114: CBPP Cogen | B114: 822369.3987 | C114: 651192.375 | D114: 692494.3019 | E114: 178534.5583 | F114: 174826.9758 | G114: 221884.8033 | H114: 317024.4 | I114: 212197.6089 | J114: 232245.52 | K114: 186637.6258 | L114: 170254.6083 | M114: 735112.9183 | N114: 4594775.094
A115: St. Lawrence Wind | B115: 878890.2612 | C115: 723772.9864 | D115: 728177.3701 | E115: 639105.7732 | F115: 682711.4616 | G115: 502891.4176 | H115: 427559.4756 | I115: 457373.2036 | J115: 438081.3642 | K115: 711291.0623 | L115: 760929.427 | M115: 714823.4874 | N115: 7665607.29
A116: St. Lawrence Wind Eco credits | N116: 0
A117: Fermeuse Wind | B117: 776823.9805 | C117: 738185.5752 | D117: 747888.2174 | E117: 610302.3764 | F117: 777500.1532 | G117: 421042.0205 | H117: 596408.195 | I117: 503752.6245 | J117: 446586.9206 | K117: 752947.0546 | L117: 811748.4056 | M117: 834254.4404 | N117: 8017439.964
A118: Fermeuse Wind Eco credits | B118: 0 | C118: 0 | D118: 0 | E118: 0 | F118: 0 | G118: 0 | H118: 0 | I118: 0 | J118: 0 | K118: 0 | L118: 0 | M118: 0 | N118: 0
A119: CBPP Curtailable Load | B119: 641723.004 | C119: 641723.004 | D119: 641723.004 | E119: 641723.004 | F119: 641723.004 | G119: 641723.004 | H119: 641723.004 | I119: 641723.004 | J119: 641723.004 | K119: 641723.004 | L119: 641723.004 | M119: 641723.004 | N119: 7700676.048
A120: CBPP Firm Energy | B120: 0 | C120: 0 | D120: 0 | E120: 0 | F120: 0 | G120: 0 | H120: 0 | I120: 0 | J120: 0 | K120: 0 | L120: 0 | M120: 0 | N120: 0
A121: CBPP Capacity Assistance Adjustment
A122: Vale Capacity Assistance | B122: 47600 | C122: 47600 | D122: 47600 | E122: 0 | F122: 0 | G122: 0 | H122: 0 | I122: 0 | J122: 0 | K122: 0 | L122: 0 | M122: 47600 | N122: 190400
A123: Vale Curtailable Load | B123: 0 | C123: 0 | D123: 0 | E123: 0 | F123: 0 | G123: 0 | H123: 0 | I123: 0 | J123: 0 | K123: 0 | L123: 0 | M123: 0 | N123: 0
A124: Island Wheeling | B124: 80000 | C124: 80000 | D124: 80000 | E124: 80000 | F124: 80000 | G124: 80000 | H124: 80000 | I124: 80000 | J124: 80000 | K124: 80000 | L124: 80000 | M124: 80000 | N124: 960000
A125: Praxair Curtailable Load | N125: 0
A126: Deer Lake Power Secondary | N126: 0
A127: CFLco | B127: 5468.9952 | C127: 4939.7376 | D127: 5468.9952 | E127: 5292.576 | F127: 5468.9952 | G127: 5292.576 | H127: 5468.9952 | I127: 5468.9952 | J127: 5292.576 | K127: 5468.9952 | L127: 5292.576 | M127: 5468.9952 | N127: 64393.008
A128: New World Dairies | N128: =SUM(B128:M128) -> 0
A130: Off-Island Power Purchases
A131: Maritme Link | N131: 0
A132: LIL - Recall | N132: 0
A133: Lil - OPG | N133: 0
A134: LIL Opex | N134: 0
A136: Muskrat Falls Power Purchase Costs | B136: 26273436.72 | C136: 26273436.58 | D136: 26273436.58 | E136: 26273436.58 | F136: 26273436.58 | G136: 26273436.58 | H136: 26273436.58 | I136: 26273436.58 | J136: 26273436.58 | K136: 26273436.58 | L136: 26273436.58 | M136: 26273436.58 | N136: =SUM(B136:M136) -> 315281239.1
A138: Transmission Funding Agreement Costs | B138: 38756867.17 | C138: 38756867.17 | D138: 38756867.17 | E138: 38756867.17 | F138: 38756867.17 | G138: 38756867.17 | H138: 38756867.17 | I138: 38756867.17 | J138: 38756867.17 | K138: 38756867.17 | L138: 38756867.17 | M138: 38756867.17 | N138: 465082406
A140: Export Sales Variances
A141: Export Revenues | B141: 8298245.782 | C141: 7260433.441 | D141: 904004.3267 | E141: 1294761.047 | F141: 1017142.922 | G141: 478105.4767 | H141: 572876.7964 | I141: 569207.734 | J141: 380020.4108 | K141: 922259.0716 | L141: 993364.0038 | M141: 42127743.97 | N141: =SUM(B141:M141) -> 64818164.98
A142: Export Costs | B142: 7921370.983 | C142: 6876802.057 | D142: 805213.3761 | E142: 1075496.121 | F142: 848267.5866 | G142: 415515.1753 | H142: 529594.3463 | I142: 521494.6223 | J142: 331788.2159 | K142: 777495.078 | L142: 849100.5377 | M142: 3687433.102 | N142: 24639571.2
A144: Tariff Revenue | B144: 1528133.177 | C144: 1528133.177 | D144: 1528133.177 | E144: 1528133.177 | F144: 1528133.177 | G144: 1528133.177 | H144: 1528133.177 | I144: 1528133.177 | J144: 1528133.177 | K144: 1528133.177 | L144: 1528133.177 | M144: 1528133.177 | N144: 18337598.13
A146: Greenhouse Gas Credits | M146: 1250000 | N146: 1250000
A148: Rate Mitigation Fund | B148: 41830331.92 | C148: 41830331.92 | D148: 41830331.92 | E148: 41830331.92 | F148: 41830331.92 | G148: 41830331.92 | H148: 41830331.92 | I148: 41830331.92 | J148: 41830331.92 | K148: 41830331.92 | L148: 41830331.92 | M148: 41830331.92 | N148: =SUM(B148:M148) -> 501963983
A150: Energy Sales - Island Interconnected
A151: Newfoundland Power
A152: Load
A153: Demand | B153: 1263689 | C153: 1263689 | D153: 1263689 | E153: 1263689 | F153: 1263689 | G153: 1263689 | H153: 1263689 | I153: 1263689 | J153: 1263689 | K153: 1263689 | L153: 1263689 | M153: 1263689 | N153: =SUM(B153:M153) -> 15164268
A154: FB Energy | B154: 410000000 | C154: 410000000 | D154: 410000000 | E154: 410000000 | F154: 250000000 | G154: 250000000 | H154: 250000000 | I154: 250000000 | J154: 250000000 | K154: 250000000 | L154: 410000000 | M154: 410000000 | N154: =SUM(B154:M154) -> 3960000000
A155: SB Energy | B155: =B156-B154 -> 305400000 | C155: =C156-C154 -> 238500000 | D155: 236000000 | E155: 117700000 | F155: 171700000 | G155: 95200000 | H155: 57900000 | I155: 50500000 | J155: 64500000 | K155: 163700000 | L155: 85500000 | M155: 254100000 | N155: 1840700000
B156: 715400000 | C156: 648500000 | D156: 646000000 | E156: 527700000 | F156: 421700000 | G156: 345200000 | H156: 307900000 | I156: 300500000 | J156: 314500000 | K156: 413700000 | L156: 495500000 | M156: 664100000 | N156: 5800700000
A157: Secondary Energy
A159: Final Rates
A160: Newfoundland Power
A161: Demand | B161: 5 | C161: 5 | D161: 5 | E161: 5 | F161: 5 | G161: 5 | H161: 5 | I161: 5 | J161: 5 | K161: 5 | L161: 5 | M161: 5
A162: FB Energy | B162: 2.444 | C162: 2.444 | D162: 2.444 | E162: 2.444 | F162: 2.444 | G162: 2.444 | H162: 2.444 | I162: 2.444 | J162: 2.444 | K162: 2.444 | L162: 2.444 | M162: 2.444
A163: SB Energy | B163: 18.165 | C163: 18.165 | D163: 18.165 | E163: 18.165 | F163: 18.165 | G163: 18.165 | H163: 18.165 | I163: 18.165 | J163: 18.165 | K163: 18.165 | L163: 18.165 | M163: 18.165
A164: Secondary Energy | B164: 6.91 | C164: 6.91 | D164: 6.91 | E164: 6.91 | F164: 6.91 | G164: 6.91 | H164: 6.91 | I164: 6.91 | J164: 6.91 | K164: 6.91 | L164: 6.91 | M164: 6.91
A166: NP Revenue
A167: Demand | B167: =B153*B161 -> 6318445 | C167: =C153*C161 -> 6318445 | D167: 6318445 | E167: 6318445 | F167: 6318445 | G167: 6318445 | H167: 6318445 | I167: 6318445 | J167: 6318445 | K167: 6318445 | L167: 6318445 | M167: 6318445 | N167: =SUM(B167:M167) -> 75821340
A168: FB Energy | B168: =B154*B162/100 -> 10020400 | C168: 10020400 | D168: 10020400 | E168: 10020400 | F168: 6110000 | G168: 6110000 | H168: 6110000 | I168: 6110000 | J168: 6110000 | K168: 6110000 | L168: 10020400 | M168: 10020400 | N168: =SUM(B168:M168) -> 96782400
A169: SB Energy | B169: =B155*B163/100 -> 55475910 | C169: 43323525 | D169: 42869400 | E169: 21380205 | F169: 31189305 | G169: 17293080 | H169: 10517535 | I169: 9173325 | J169: 11716425 | K169: 29736105 | L169: 15531075 | M169: 46157265 | N169: =SUM(B169:M169) -> 334363155
A170: Total | B170: =SUM(B167:B169) -> 71814755 | C170: =SUM(C167:C169) -> 59662370 | D170: 59208245 | E170: 37719050 | F170: 43617750 | G170: 29721525 | H170: 22945980 | I170: 21601770 | J170: 24144870 | K170: 42164550 | L170: 31869920 | M170: 62496110 | N170: 506966895
A172: Secondary Energy | B172: =B157*B164/100 -> 0 | C172: =C157*C164/100 -> 0 | D172: 0 | E172: 0 | F172: 0 | G172: 0 | H172: 0 | I172: 0 | J172: 0 | K172: 0 | L172: 0 | M172: 0
A174: Island Industrial
A175: Demand
A176: GRA Demand | B176: 96500 | C176: 96500 | D176: 96500 | E176: 96500 | F176: 96500 | G176: 96500 | H176: 96500 | I176: 96500 | J176: 96500 | K176: 96500 | L176: 96500 | M176: 96500 | N176: =SUM(B176:M176) -> 1158000
A177: Demand | B177: 10.73 | C177: 10.73 | D177: 10.73 | E177: 10.73 | F177: 10.73 | G177: 10.73 | H177: 10.73 | I177: 10.73 | J177: 10.73 | K177: 10.73 | L177: 10.73 | M177: 10.73
A178: Revenue | B178: =B176*B177 -> 1035445 | C178: =C176*C177 -> 1035445 | D178: 1035445 | E178: 1035445 | F178: 1035445 | G178: 1035445 | H178: 1035445 | I178: 1035445 | J178: 1035445 | K178: 1035445 | L178: 1035445 | M178: 1035445 | N178: =SUM(B178:M178) -> 12425340
A180: Energy
A181: Energy | B181: 63000000 | C181: 58100000 | D181: 63300000 | E181: 61500000 | F181: 63000000 | G181: 60900000 | H181: 62400000 | I181: 62600000 | J181: 61000000 | K181: 63000000 | L181: 60700000 | M181: 63800000 | N181: =SUM(B181:M181) -> 743300000
A182: Energy Rate | B182: 4.428 | C182: 4.428 | D182: 4.428 | E182: 4.428 | F182: 4.428 | G182: 4.428 | H182: 4.428 | I182: 4.428 | J182: 4.428 | K182: 4.428 | L182: 4.428 | M182: 4.428
A183: Revenue | B183: =B181*B182/100 -> 2789640 | C183: =C181*C182/100 -> 2572668 | D183: 2802924 | E183: 2723220 | F183: 2789640 | G183: 2696652 | H183: 2763072 | I183: 2771928 | J183: 2701080 | K183: 2789640 | L183: 2687796 | M183: 2825064 | N183: =SUM(B183:M183) -> 32913324
A185: Specifically Assigned | B185: 26510.8162 | C185: 26510.8162 | D185: 26510.8162 | E185: 26510.8162 | F185: 26510.8162 | G185: 26510.8162 | H185: 26510.8162 | I185: 26510.8162 | J185: 26510.8162 | K185: 26510.8162 | L185: 26510.8162 | M185: 26510.8162 | N185: =SUM(B185:M185) -> 318129.7944
A186: Rate | B186: 1 | C186: 1 | D186: 1 | E186: 1 | F186: 1 | G186: 1 | H186: 1 | I186: 1 | J186: 1 | K186: 1 | L186: 1 | M186: =L186 -> 1
A187: Revenue | B187: =B185*B186 -> 26510.8162 | C187: =C185*C186 -> 26510.8162 | D187: 26510.8162 | E187: 26510.8162 | F187: 26510.8162 | G187: 26510.8162 | H187: 26510.8162 | I187: 26510.8162 | J187: 26510.8162 | K187: 26510.8162 | L187: 26510.8162 | M187: 26510.8162 | N187: =SUM(B187:M187) -> 318129.7944
A189: Total Revenue | B189: =B187+B183+B178 -> 3851595.816 | C189: =C187+C183+C178 -> 3634623.816 | D189: 3864879.816 | E189: 3785175.816 | F189: 3851595.816 | G189: 3758607.816 | H189: 3825027.816 | I189: 3833883.816 | J189: 3763035.816 | K189: =K187+K183+K178 -> 3851595.816 | L189: 3749751.816 | M189: 3887019.816 | N189: =SUM(B189:M189) -> 45656793.79
A191: Island Rural
A192: Load | B192: 44677264 | C192: 40113976 | D192: 41111233 | E192: 34824476 | F192: 32774441 | G192: 28911941 | H192: 28329381 | I192: 27265291 | J192: 25879119 | K192: 30697419 | L192: 35251664 | M192: 43568394 | N192: =SUM(B192:M192) -> 413404599
A193: Revenue | B193: 5419638.866 | C193: 4919457.407 | D193: 5015070.025 | E193: 4286911.843 | F193: 4036174.258 | G193: 3602598.536 | H193: 3507216.713 | I193: 3415345.74 | J193: 3311423.986 | K193: 3848346.374 | L193: 4334144.67 | M193: 5333974.135 | N193: =SUM(B193:M193) -> 51030302.55
A194: Avg Rate | B194: =B193/B192 -> 0.1213064181 | C194: =C193/C192 -> 0.1226369933 | D194: 0.1219878281 | E194: 0.1231005412 | F194: 0.1231500564 | G194: 0.1246059037 | H194: 0.1238013889 | I194: 0.1252634986 | J194: 0.1279573693 | K194: 0.1253638416 | L194: 0.1229486549 | M194: 0.1224276051

Sheet inputs activity
B1: Actuals | C1: =VLOOKUP(C3,$A$43:$C$55,2,FALSE) -> 2027-12-31
B2: Month | C2: =VLOOKUP(C3,$A$43:$C$55,3,FALSE) -> December
B3: Period # | C3: 12
C5: January | D5: February | E5: March | F5: April | G5: May | H5: June | I5: July | J5: August | K5: September | L5: October | M5: November | N5: December | O5: Total
A9: RRA | B9: Island interconnected (1001) | C9: -725102
A10: RRA | B10: Island Diesel (1003) | C10: -7543
A11: RRA | B11: Labrador Diesel (1004) | C11: -56865
A12: RRA | B12: Lanse au Loup (1007) | C12: -30483
A13: RRA | B13: Labrador interconnected (1174) | M13: 0
A14: Rural Rate Alteration | C14: =SUM(C9:C13) -> -819993 | D14: =SUM(D9:D13) -> 0 | E14: 0 | F14: 0 | G14: 0 | H14: 0 | I14: 0 | J14: 0 | K14: 0 | L14: 0 | M14: 0 | N14: 0 | O14: =SUM(C14:N14) -> -819993
A17: Interest rate | C17: =+'inputs COS'!C8 -> 0.00397844755 | D17: =+'inputs COS'!D8 -> 0.00397844755 | E17: =+'inputs COS'!E8 -> 0.00397844755 | F17: =+'inputs COS'!F8 -> 0.00397844755 | G17: =+'inputs COS'!G8 -> 0.00397844755 | H17: =+'inputs COS'!H8 -> 0.00397844755 | I17: =+'inputs COS'!I8 -> 0.00397844755 | J17: =+'inputs COS'!J8 -> 0.00397844755 | K17: =+'inputs COS'!K8 -> 0.00397844755 | L17: =+'inputs COS'!L8 -> 0.00397844755 | M17: =+'inputs COS'!M8 -> 0.00397844755 | N17: =+'inputs COS'!N8 -> 0.00397844755
A18: =+'inputs COS'!A9 -> WACC 4.88% annually or 4.774% monthly
A19: =+'inputs COS'!A10 -> 
A21: Holyrood operating efficiency | C21: ='inputs COS'!C12 -> 583 | D21: ='inputs COS'!D12 -> 583 | E21: ='inputs COS'!E12 -> 583 | F21: ='inputs COS'!F12 -> 583 | G21: ='inputs COS'!G12 -> 583 | H21: ='inputs COS'!H12 -> 583 | I21: ='inputs COS'!I12 -> 583 | J21: ='inputs COS'!J12 -> 583 | K21: ='inputs COS'!K12 -> 583 | L21: ='inputs COS'!L12 -> 583 | M21: ='inputs COS'!M12 -> 583 | N21: ='inputs COS'!N12 -> 583
A22: (kWh/barrel)
Q23: Project cost recovery rider | S23: Jan-Jun | T23: Jul-Dec
A24: Recovery rates | Q24: Utility | S24: 3.52 | T24: 3.52
A25: 03 | B25: Utility | C25: 0 | D25: 0 | E25: 0 | F25: 0 | G25: 0 | H25: 0 | I25: 0 | J25: =+I25 -> 0 | K25: =+J25 -> 0 | L25: =+K25 -> 0 | M25: =+L25 -> 0 | N25: =+M25 -> 0 | Q25: Utility | S25: =-S24/100 -> -0.0352 | T25: =-T24/100 -> -0.0352
B26: Industrial
A27: new | B27: Utility | C27: 0 | D27: 0 | E27: 0 | F27: 0 | G27: 0 | H27: 0 | I27: 0 | J27: 0 | K27: 0 | L27: 0 | M27: 0 | N27: 0 | Q27: Industrial | S27: 2.3 | T27: 2.3
B28: MF Rider | C28: 0 | D28: 0 | E28: 0 | F28: 0 | G28: 0 | H28: 0 | I28: 0 | J28: 0 | K28: 0 | L28: 0 | M28: 0 | N28: 0 | Q28: Industrial | S28: =-S27/100 -> -0.023 | T28: =-T27/100 -> -0.023
B29: Industrial | C29: 0 | D29: 0 | E29: 0 | F29: 0 | G29: 0 | H29: 0 | I29: 0 | J29: 0 | K29: 0 | L29: 0 | M29: 0 | N29: 0
B30: AUR - Industrial
B31: Project cost recovery rider - Utility | C31: =$S$25 -> -0.0352 | D31: -0.0352 | E31: -0.0352 | F31: -0.0352 | G31: -0.0352 | H31: -0.0352 | I31: =$T$25 -> -0.0352 | J31: -0.0352 | K31: -0.0352 | L31: -0.0352 | M31: -0.0352 | N31: -0.0352 | O31: updated for 2027 TY. Not Updated in 2027B SCVDA file
B32: Project cost recovery rider - Industrial | C32: -0.023 | D32: -0.023 | E32: -0.023 | F32: -0.023 | G32: -0.023 | H32: -0.023 | I32: -0.023 | J32: -0.023 | K32: -0.023 | L32: -0.023 | M32: -0.023 | N32: -0.023 | O32: updated for 2027 TY. Not Updated in 2027B SCVDA file
A34: Utility split | C34: ='inputs COS'!D26 -> 0.966268594 | D34: =+C34 -> 0.966268594 | E34: =+D34 -> 0.966268594 | F34: 0.966268594 | G34: 0.966268594 | H34: 0.966268594 | I34: 0.966268594 | J34: 0.966268594 | K34: 0.966268594 | L34: 0.966268594 | M34: =+L34 -> 0.966268594 | N34: 0.966268594 | O34: updated for 2027 TY. Not Updated in 2027B SCVDA file
A36: Firm Energy Rate
B37: Utility | C37: 0.08958 | D37: 0.08958 | E37: 0.08958 | F37: 0.0348 | G37: 0.0348 | H37: 0.0348 | I37: 0.0348 | J37: 0.0348 | K37: 0.0348 | L37: 0.0348 | M37: 0.0348 | N37: 0.08958 | O37: updated for 2027 TY. Not Updated in 2027B SCVDA file
B38: Industrial | C38: 0.08889 | D38: 0.08889 | E38: 0.08889 | F38: 0.03285 | G38: 0.03285 | H38: 0.03285 | I38: 0.03285 | J38: 0.03285 | K38: 0.03285 | L38: 0.03285 | M38: 0.03285 | N38: 0.08889 | O38: updated for 2027 TY. Not Updated in 2027B SCVDA file
B39: Secondary | C39: 0 | D39: 0 | E39: 0 | F39: 0 | G39: 0 | H39: 0 | I39: 0 | J39: 0 | K39: 0 | L39: 0 | M39: 0 | N39: 0
B43: Actual | C43: Month
A44: 1 | B44: 2027-01-31 | C44: January
A45: =+A44+1 -> 2 | B45: 2027-02-28 | C45: February
A46: =+A45+1 -> 3 | B46: 2027-03-31 | C46: March
A47: 4 | B47: 2027-04-30 | C47: April
A48: 5 | B48: 2027-05-31 | C48: May
A49: 6 | B49: 2027-06-30 | C49: June
A50: 7 | B50: 2027-07-31 | C50: July
A51: 8 | B51: 2027-08-31 | C51: August
A52: 9 | B52: 2027-09-30 | C52: September
A53: 10 | B53: 2027-10-31 | C53: October
A54: 11 | B54: 2027-11-30 | C54: November
A55: 12 | B55: 2027-12-31 | C55: December

Sheet Actual $
A1: SUMMARY OF POWER GENERATION AND DISTRIBUTION | O1: Actual
A2: MONTHLY POWER REPORT (kWhrs)
A3: Island Interconnected System
B4: January | C4: February | D4: March | E4: April | F4: May | G4: June | H4: July | I4: August | J4: September | K4: October | L4: November | M4: December | N4: Calendar YTD | O4: sum of months
O5: =SUM(B5:M5) -> 0
A6: Fuel
A7: Bunker C | B7: =IFERROR((B8*B9)-B10,0) -> 0 | C7: =IFERROR((C8*C9)-C10,0) -> 0 | D7: 0 | E7: 0 | F7: =IFERROR((F8*F9)-F10,0) -> 0 | G7: =IFERROR((G8*G9)-G10,0) -> 0 | H7: =IFERROR((H8*H9)-H10,0) -> 0 | I7: =IFERROR((I8*I9)-I10,0) -> 0 | J7: =IFERROR((J8*J9)-J10,0) -> 0 | K7: =IFERROR((K8*K9)-K10,0) -> 0 | L7: =IFERROR((L8*L9)-L10,0) -> 0 | M7: =IFERROR((M8*M9)-M10,0) -> 0
A8: Barrels | B8: 200180 | C8: 182258 | D8: 84671 | E8: 0 | F8: 0 | G8: 0 | H8: 0 | I8: 0 | J8: 0 | K8: 50471 | L8: 93432 | M8: 197559 | N8: =SUM(B8:M8) -> 808571
A9: Price/Barrel | B9: =IFERROR(B10/B8,0) -> 77.71438022 | C9: =IFERROR(C10/C8,0) -> 79.54631656 | D9: 79.54631656 | E9: 0 | F9: 0 | G9: 0 | H9: 0 | I9: 0 | J9: 0 | K9: 79.54631656 | L9: 81.14764371 | M9: =M10/M8 -> 82.1053447
A10: Fuel expense - Bunker C (SS) | B10: 15556864.63 | C10: 14497952.56 | D10: 6735266.169 | E10: 0 | F10: 0 | G10: 0 | H10: 0 | I10: 0 | J10: 0 | K10: 4014782.143 | L10: 7581786.647 | M10: 16220649.79 | N10: =SUM(B10:M10) -> 64607301.95
A11: Operating efficiency | B11: =('Actual kWh'!B14-'Actual kWh'!B29-'Actual kWh'!B84)/'Actual $'!B8 -> 563.0006111 | C11: =('Actual kWh'!C14-'Actual kWh'!C29-'Actual kWh'!C84)/'Actual $'!C8 -> 563.0005097 | D11: =('Actual kWh'!D14-'Actual kWh'!D29-'Actual kWh'!D84)/'Actual $'!D8 -> 563.0004747 | E11: =('Actual kWh'!E14-'Actual kWh'!E29-'Actual kWh'!E84)/'Actual $'!E8 ->  | F11: =('Actual kWh'!F14-'Actual kWh'!F29-'Actual kWh'!F84)/'Actual $'!F8 ->  | G11: =('Actual kWh'!G14-'Actual kWh'!G29-'Actual kWh'!G84)/'Actual $'!G8 ->  | H11: =('Actual kWh'!H14-'Actual kWh'!H29-'Actual kWh'!H84)/'Actual $'!H8 ->  | I11: =('Actual kWh'!I14-'Actual kWh'!I29-'Actual kWh'!I84)/'Actual $'!I8 ->  | J11: =('Actual kWh'!J14-'Actual kWh'!J29-'Actual kWh'!J84)/'Actual $'!J8 ->  | K11: =('Actual kWh'!K14-'Actual kWh'!K29-'Actual kWh'!K84)/'Actual $'!K8 -> 562.9998163 | L11: =('Actual kWh'!L14-'Actual kWh'!L29-'Actual kWh'!L84)/'Actual $'!L8 -> 562.998254 | M11: =('Actual kWh'!M14-'Actual kWh'!M29-'Actual kWh'!M84)/'Actual $'!M8 -> 563.0005142
A12: Operating efficiency YTD | B12: =(SUM('Actual kWh'!$B$14:'Actual kWh'!B14)-SUM('Actual kWh'!$B$29:B29)-SUM('Actual kWh'!$B$80:B80)-SUM('Actual kWh'!$B$82:B82)-SUM('Actual kWh'!$B$83:B83))/SUM('Actual $'!$B$8:B8) -> 563.0006111 | C12: =(SUM('Actual kWh'!$B$14:'Actual kWh'!C14)-SUM('Actual kWh'!$B$29:C29)-SUM('Actual kWh'!$B$80:C80)-SUM('Actual kWh'!$B$82:C82)-SUM('Actual kWh'!$B$83:C83))/SUM('Actual $'!$B$8:C8) -> 563.0005628 | D12: =(SUM('Actual kWh'!$B$14:'Actual kWh'!D14)-SUM('Actual kWh'!$B$29:D29)-SUM('Actual kWh'!$B$80:D80)-SUM('Actual kWh'!$B$82:D82)-SUM('Actual kWh'!$B$83:D83))/SUM('Actual $'!$B$8:D8) -> 563.0005468 | E12: =(SUM('Actual kWh'!$B$14:'Actual kWh'!E14)-SUM('Actual kWh'!$B$29:E29)-SUM('Actual kWh'!$B$80:E80)-SUM('Actual kWh'!$B$82:E82)-SUM('Actual kWh'!$B$83:E83))/SUM('Actual $'!$B$8:E8) -> 563.0005468 | F12: =(SUM('Actual kWh'!$B$14:'Actual kWh'!F14)-SUM('Actual kWh'!$B$29:F29)-SUM('Actual kWh'!$B$80:F80)-SUM('Actual kWh'!$B$82:F82)-SUM('Actual kWh'!$B$83:F83))/SUM('Actual $'!$B$8:F8) -> 563.0005468 | G12: =(SUM('Actual kWh'!$B$14:'Actual kWh'!G14)-SUM('Actual kWh'!$B$29:G29)-SUM('Actual kWh'!$B$80:G80)-SUM('Actual kWh'!$B$82:G82)-SUM('Actual kWh'!$B$83:G83))/SUM('Actual $'!$B$8:G8) -> 563.0005468 | H12: =(SUM('Actual kWh'!$B$14:'Actual kWh'!H14)-SUM('Actual kWh'!$B$29:H29)-SUM('Actual kWh'!$B$80:H80)-SUM('Actual kWh'!$B$82:H82)-SUM('Actual kWh'!$B$83:H83))/SUM('Actual $'!$B$8:H8) -> 563.0005468 | I12: =(SUM('Actual kWh'!$B$14:'Actual kWh'!I14)-SUM('Actual kWh'!$B$29:I29)-SUM('Actual kWh'!$B$80:I80)-SUM('Actual kWh'!$B$82:I82)-SUM('Actual kWh'!$B$83:I83))/SUM('Actual $'!$B$8:I8) -> 563.0005468 | J12: =(SUM('Actual kWh'!$B$14:'Actual kWh'!J14)-SUM('Actual kWh'!$B$29:J29)-SUM('Actual kWh'!$B$80:J80)-SUM('Actual kWh'!$B$82:J82)-SUM('Actual kWh'!$B$83:J83))/SUM('Actual $'!$B$8:J8) -> 563.0005468 | K12: =(SUM('Actual kWh'!$B$14:'Actual kWh'!K14)-SUM('Actual kWh'!$B$29:K29)-SUM('Actual kWh'!$B$80:K80)-SUM('Actual kWh'!$B$82:K82)-SUM('Actual kWh'!$B$83:K83))/SUM('Actual $'!$B$8:K8) -> 563.0004756 | L12: =(SUM('Actual kWh'!$B$14:'Actual kWh'!L14)-SUM('Actual kWh'!$B$29:L29)-SUM('Actual kWh'!$B$80:L80)-SUM('Actual kWh'!$B$82:L82)-SUM('Actual kWh'!$B$83:L83))/SUM('Actual $'!$B$8:L8) -> 563.0001359 | M12: =(SUM('Actual kWh'!$B$14:'Actual kWh'!M14)-SUM('Actual kWh'!$B$29:M29)-SUM('Actual kWh'!$B$80:M80)-SUM('Actual kWh'!$B$82:M82)-SUM('Actual kWh'!$B$83:M83))/SUM('Actual $'!$B$8:M8) -> 563.0002283
A13: Total No. 6 Barrels used for Non firm | N13: =SUM(B13:M13) -> 0
A14: Timing/correcting entry (Hardcode) | N14: 0
A15: Non-Firm Energy (HRD) - Emergency Energy (input as negative) | N15: 0
A16: Non-Firm Energy (HRD) - Industrial customers (input as negative) | N16: 0
A17: NS block (input as negative) | N17: 0
A18: Total | B18: =SUM(B14:B17,B10) -> 15556864.63 | C18: =SUM(C14:C17,C10) -> 14497952.56 | D18: 6735266.169 | E18: 0 | F18: 0 | G18: 0 | H18: =SUM(H14:H17,H10) -> 0 | I18: 0 | J18: 0 | K18: 4014782.143 | L18: 7581786.647 | M18: 16220649.79 | N18: 64607301.95
A19: Turbine Fuel Costs
A20: Holyrood Gas Turbine (SS) | B20: 2025800.26 | C20: 1417217.73 | D20: 1259363.834 | E20: 1545512.794 | F20: 1881525.228 | G20: 1628278.415 | H20: 330439.8089 | I20: 451475.5929 | J20: 160060.0105 | K20: 1745177.498 | L20: 810799.0683 | M20: 726155.0497 | N20: =SUM(B20:M20) -> 13981805.29
A21: Holyrood Gas Turbine (NS Block$) (Hardcode as negative)
A22: Holyrood Gas Turbine (Emergency energy $)
A23: Holyrood Gas Turbine (Non-Firm Energy $)
A24: Holyrood Gas Turbine - Timing/Correcting entries (hardcode) | N24: =SUM(B24:M24) -> 0
A25: Holyrood Gas Turbine - Total | B25: =SUM(B20:B24) -> 2025800.26 | C25: =SUM(C20:C24) -> 1417217.73 | D25: 1259363.834 | E25: 1545512.794 | F25: 1881525.228 | G25: 1628278.415 | H25: 330439.8089 | I25: =SUM(I20:I24) -> 451475.5929 | J25: 160060.0105 | K25: =SUM(K20:K24) -> 1745177.498 | L25: 810799.0683 | M25: 726155.0497 | N25: =SUM(N20:N24) -> 13981805.29
A26: Hardwoods | B26: 111321.4502 | C26: 369985.0578 | D26: 276145.3242 | E26: 482392.5206 | F26: 516251.6825 | G26: 29629.39153 | H26: 349960.5378 | I26: 67991.18807 | J26: 37446.15748 | K26: 287242.063 | L26: 165155.4324 | M26: 129598.7197 | N26: =SUM(B26:M26) -> 2823119.525
A27: Stephenville | B27: 103422.0453 | C27: 60293.63188 | D27: 257434.0129 | E27: 385656.9197 | F27: 468359.8531 | G27: 137772.0428 | H27: 309594.8331 | I27: 132236.6834 | J27: 19349.67707 | K27: 19401.0442 | L27: 47458.09012 | M27: 19401.0442 | N27: 1960379.878
A28: St. Anthony | B28: 114585.0989 | C28: 103465.4608 | D28: 71823.38386 | E28: 120517.7022 | F28: 183211.1338 | G28: 143824.5867 | H28: 150371.4746 | I28: 71915.9038 | J28: 72518.20272 | K28: 158019.9943 | L28: 16881.14546 | M28: 24743.93179 | N28: 1231878.019
A29: Hawkes Bay | B29: 53338.34032 | C29: 78804.22465 | D29: 46708.66018 | E29: 72837.90756 | F29: 95068.1553 | G29: 91503.0591 | H29: 50753.32402 | I29: 67953.21628 | J29: 62022.5814 | K29: 86410.03894 | L29: 44991.86545 | M29: 34160.82982 | N29: 784552.203
A30: Holyrood Blackstart | B30: 5335.730625 | C30: 5335.730625 | D30: 5335.730625 | E30: 5335.730625 | F30: 5335.730625 | G30: 5335.730625 | H30: 5335.730625 | I30: 5335.730625 | J30: 5335.730625 | K30: 5335.730625 | L30: 5335.730625 | M30: 5335.730625 | N30: 64028.7675
A31: HV North Plant | B31: 6321.091173 | C31: 6321.091173 | D31: 6649.23763 | E31: 11078.69431 | F31: 11078.69431 | G31: 11078.69431 | H31: 6649.23763 | I31: 6649.23763 | J31: 6649.23763 | K31: 6649.23763 | L31: 11078.69431 | M31: 77112.91797 | N31: 167316.0657
A32: Power Purchase Costs
A33: Nalcor Exploits | B33: 2159980.8 | C33: 1947993.6 | D33: 2147779.2 | E33: 2227968 | F33: 2359968 | G33: 1931904 | H33: 2111769.6 | I33: 2191824 | J33: 1999872 | K33: 1579958.4 | L33: 1815840 | M33: 2119804.8 | N33: =SUM(B33:M33) -> 24594662.4
A34: Star Lake | B34: 500000 | C34: 452000 | D34: 500000 | E34: 466560 | F34: 501120 | G34: 480000 | H34: 520000 | I34: 520000 | J34: 260000 | K34: 516000 | L34: 460000 | M34: 468000 | N34: 5643680
A35: Rattle Brook | B35: 72705.33 | C35: 59717.98 | D35: 71656.81 | E35: 145249.429 | F35: 228638.407 | G35: 130223.626 | H35: 70308.354 | I35: 67883.928 | J35: 105246.4 | K35: 150314.412 | L35: 178725 | M35: 118435.1 | N35: 1399104.776
A36: CBPP Cogen | B36: 822369 | C36: 651192 | D36: 692494 | E36: 178535 | F36: 174827 | G36: 221885 | H36: 317024 | I36: 212198 | J36: 232246 | K36: 186638 | L36: 170255 | M36: 735113 | N36: 4594776
A37: St. Lawrence Wind | B37: 878890.2612 | C37: 723772.9864 | D37: 728177.3701 | E37: 639105.7732 | F37: 682711.4616 | G37: 502891.4176 | H37: 427559.4756 | I37: 457373.2036 | J37: 438081.3642 | K37: 711291.0623 | L37: 760929.427 | M37: 714823.4874 | N37: 7665607.29
A38: Fermeuse Wind | B38: 776823.9805 | C38: 738185.5752 | D38: 747888.2174 | E38: 610302.3764 | F38: 777500.1532 | G38: 421042.0205 | H38: 596408.195 | I38: 503752.6245 | J38: 446586.9206 | K38: 752947.0546 | L38: 811748.4056 | M38: 834254.4404 | N38: 8017439.964
A39: CBPP Firm Energy | B39: 0 | C39: 0 | D39: 0 | E39: 0 | F39: 0 | G39: 0 | H39: 0 | I39: 0 | J39: 0 | K39: 0 | L39: 0 | M39: 0 | N39: 0
A40: CBPP Capacity Assistance Adjustment | B40: 0 | C40: 0 | D40: 0 | E40: 0 | F40: 0 | G40: 0 | H40: 0 | I40: 0 | J40: 0 | K40: 0 | L40: 0 | M40: 0 | N40: =SUM(B40:M40) -> 0
A41: Maritme Link (SS) | B41: 0 | C41: 0 | D41: 0 | E41: 0 | F41: 0 | G41: 0 | H41: 0 | I41: 0 | J41: 0 | K41: 0 | L41: 0 | M41: 0 | N41: =SUM(B41:M41) -> 0
A42: Timing/Correcting Entries (hardcode)
A43: Total Maritime link | B43: =B41+B42 -> 0 | C43: =C41+C42 -> 0 | D43: 0 | E43: 0 | F43: 0 | G43: 0 | H43: =H41+H42 -> 0 | I43: 0 | J43: =J41+J42 -> 0 | K43: 0 | L43: =L41+L42 -> 0 | M43: 0
A44: LIL - Recall | B44: 0 | C44: 0 | D44: 0 | E44: 0 | F44: 0 | G44: 0 | H44: 0 | I44: 0 | J44: 0 | K44: 0 | L44: 0 | M44: 0
A45: Power purchase costs not included in calculation of deferral:
A46: CBPP Curtailable Load | B46: 641723.004 | C46: 641723.004 | D46: 641723.004 | E46: 641723.004 | F46: 641723.004 | G46: 641723.004 | H46: 641723.004 | I46: 641723.004 | J46: 641723.004 | K46: 641723.004 | L46: 641723.004 | M46: 641723.004 | N46: =SUM(B46:M46) -> 7700676.048
A47: Vale Capacity Assistance | B47: 47600 | C47: 47600 | D47: 47600 | E47: 0 | F47: 0 | G47: 0 | H47: 0 | I47: 0 | J47: 0 | K47: 0 | L47: 0 | M47: 47600 | N47: 190400
A48: Vale Curtailable Load | B48: 0 | C48: 0 | D48: 0 | E48: 0 | F48: 0 | G48: 0 | H48: 0 | I48: 0 | J48: 0 | K48: 0 | L48: 0 | M48: 0 | N48: 0
A49: Island Wheeling | B49: 80000 | C49: 80000 | D49: 80000 | E49: 80000 | F49: 80000 | G49: 80000 | H49: 80000 | I49: 80000 | J49: 80000 | K49: 80000 | L49: 80000 | M49: 80000 | N49: 960000
A50: New World Dairies | B50: 5468.9952 | C50: 4939.7376 | D50: 5468.9952 | E50: 5292.576 | F50: 5468.9952 | G50: 5292.576 | H50: 5468.9952 | I50: 5468.9952 | J50: 5292.576 | K50: 5468.9952 | L50: 5292.576 | M50: 5468.9952 | N50: 64393.008
A52: Muskrat Falls Power Purchase Costs (SS) | B52: 26273436.72 | C52: 26273436.58 | D52: 26273436.58 | E52: 26273436.58 | F52: 26273436.58 | G52: 26273436.58 | H52: 26273436.58 | I52: 26273436.58 | J52: 26273436.58 | K52: 26273436.58 | L52: 26273436.58 | M52: 26273436.58 | N52: =SUM(B52:M52) -> 315281239.1
A53: Timing/correcting entry (hardcode) | B53: 0
A54: Total MF PP costs | B54: =B52+B53 -> 26273436.72 | C54: =C52+C53 -> 26273436.58 | D54: 26273436.58 | E54: =E52+E53 -> 26273436.58 | F54: =F52+F53 -> 26273436.58 | G54: 26273436.58 | H54: =H52+H53 -> 26273436.58 | I54: 26273436.58 | J54: =J52+J53 -> 26273436.58 | K54: 26273436.58 | L54: =L52+L53 -> 26273436.58 | M54: 26273436.58 | N54: 315281239.1
A56: Transmission Funding Agreement Costs | B56: 38756867.17 | C56: 38756867.17 | D56: 38756867.17 | E56: 38756867.17 | F56: 38756867.17 | G56: 38756867.17 | H56: 38756867.17 | I56: 38756867.17 | J56: 38756867.17 | K56: 38756867.17 | L56: 38756867.17 | M56: 38756867.17 | N56: 465082406
A58: Export Sales Variances
A59: Export Revenues - Labrador | B59: 8298245.782 | C59: 7260433.441 | D59: 904004.3267 | E59: 1294761.047 | F59: 1017142.922 | G59: 478105.4767 | H59: 572876.7964 | I59: 569207.734 | J59: 380020.4108 | K59: 922259.0716 | L59: 993364.0038 | M59: 4002645.801 | N59: =SUM(B59:M59) -> 26693066.81
A60: Export revenues - ML | B60: 0 | C60: 0 | D60: 0 | E60: 0 | F60: 0 | G60: 0 | H60: 0 | I60: 0 | J60: 0 | K60: 0 | L60: 0 | M60: 0
A61: Export revenue - Accounting deviation | B61: 0 | C61: 0 | D61: 0 | E61: 0 | F61: 0 | G61: 0 | H61: 0 | I61: 0 | J61: 0 | K61: 0 | L61: 0 | M61: 38125098.17 | N61: =SUM(B61:M61) -> 38125098.17
A62: Export revenue - Accounting deviation reversal of estimate | B62: 0 | C62: 0 | D62: 0 | E62: 0 | F62: 0 | G62: 0 | H62: 0 | I62: 0 | J62: 0 | K62: 0 | L62: 0 | M62: 0
A63: Export Revenue total | B63: =SUM(B59:B61) -> 8298245.782 | C63: =SUM(C59:C61) -> 7260433.441 | D63: =SUM(D59:D61) -> 904004.3267 | E63: 1294761.047 | F63: 1017142.922 | G63: =SUM(G59:G61) -> 478105.4767 | H63: 572876.7964 | I63: =SUM(I59:I61) -> 569207.734 | J63: 380020.4108 | K63: =SUM(K59:K61) -> 922259.0716 | L63: 993364.0038 | M63: =SUM(M59:M61) -> 42127743.97
A64: Export costs - Demand energy CFLco Export (residual block PP for Lab export) | B64: 192178.1422 | C64: 195623.4316 | D64: 50376.03139 | E64: 111808.7915 | F64: 86113.83322 | G64: 31916.48086 | H64: 22070.85386 | I64: 24330.24364 | J64: 24594.86587 | K64: 73818.80049 | L64: 73563.57905 | M64: 160735.1011
A65: Export costs - MF PP Energy Exports for lab | B65: 7729192.841 | C65: 6681178.626 | D65: 754837.3447 | E65: 963687.3293 | F65: 762153.7534 | G65: 383598.6945 | H65: 507523.4925 | I65: 497164.3787 | J65: 307193.35 | K65: 703676.2775 | L65: 775536.9587 | M65: 3526698.001
A66: Export costs - Transmission costs for lab export
A67: Export costs - Market Fees Exports
A68: Export costs - Trans. Fees Exports
A69: Export costs - ML Tx costs Accounting Deviation | B69: 0 | C69: 0 | D69: 0 | E69: 0 | F69: 0 | G69: 0 | H69: 0 | I69: 0 | J69: 0 | K69: 0 | L69: 0 | M69: 0
A70: Export Costs Total | B70: =SUM(B64:B69) -> 7921370.983 | C70: 6876802.057 | D70: 805213.3761 | E70: 1075496.121 | F70: 848267.5866 | G70: 415515.1753 | H70: =SUM(H64:H69) -> 529594.3463 | I70: 521494.6223 | J70: 331788.2159 | K70: 777495.078 | L70: 849100.5377 | M70: 3687433.102 | N70: =SUM(B70:M70) -> 24639571.2
A72: Tariff Revenue (SS) | B72: 1528133.177 | C72: 1528133.177 | D72: 1528133.177 | E72: 1528133.177 | F72: 1528133.177 | G72: 1528133.177 | H72: 1528133.177 | I72: 1528133.177 | J72: 1528133.177 | K72: 1528133.177 | L72: 1528133.177 | M72: 1528133.177 | N72: =SUM(B72:M72) -> 18337598.13
A74: Greenhouse Gas Credits (SS) | B74: 0 | C74: 0 | D74: 0 | E74: 0 | F74: 0 | G74: 0 | H74: 0 | I74: 0 | J74: 0 | K74: 0 | L74: 0 | M74: 1250000 | N74: =SUM(B74:M74) -> 1250000
A76: Rate Mitigation Fund | B76: 41830331.92 | C76: 41830331.92 | D76: 41830331.92 | E76: 41830331.92 | F76: 41830331.92 | G76: 41830331.92 | H76: 41830331.92 | I76: 41830331.92 | J76: 41830331.92 | K76: 41830331.92 | L76: 41830331.92 | M76: 41830331.92 | N76: =SUM(B76:M76) -> 501963983
A78: Island interconnected (1001) - Volume | N78: =SUM(B78:M78) -> 0
A79: Island interconnected (1001) - Price | N79: =SUM(B79:M79) -> 0
A80: Island Diesel (1003) - Price | N80: =SUM(B80:M80) -> 0
A81: Labrador Diesel (1004) - Price | N81: 0
A82: Lanse au Loup (1007) - Price | N82: 0
A83: Labrador interconnected (1174) - Price | M83: 0 | N83: 0
A84: Rural Rate Alteration | B84: =SUM(B78:B83) -> 0 | C84: =SUM(C78:C83) -> 0 | D84: 0 | E84: 0 | F84: 0 | G84: 0 | H84: =SUM(H78:H83) -> 0 | I84: 0 | J84: 0 | K84: =SUM(K78:K83) -> 0 | L84: 0 | M84: =SUM(M78:M83) -> 0 | N84: =SUM(N78:N83) -> 0
A86: Export sales - Non-Firm Sales @ Market Price | B86: 0 | C86: 0 | D86: 0 | E86: 0 | F86: 0 | G86: 0 | H86: 0 | I86: 0 | J86: 0 | K86: 0 | L86: 0 | M86: 0
A87: Export sales - Non-Firm Sales @ Market Price IIC Customers

Sheet Actual kWh
A1: SUMMARY OF POWER GENERATION AND DISTRIBUTION
A2: MONTHLY POWER REPORT (kWhrs) | P2: 12
A3: Island Interconnected System
B4: January | C4: February | D4: March | E4: April | F4: May | G4: June | H4: July | I4: August | J4: September | K4: October | L4: November | M4: December | N4: Calendar YTD
A5: GENERATION | B5: 1 | C5: 2 | D5: 3 | E5: 4 | F5: 5 | G5: 6 | H5: 7 | I5: 8 | J5: 9 | K5: 10 | L5: 11 | M5: 12
A6: Bay D'Espoir | B6: 316500000 | C6: 302439712.1 | D6: 245500080.2 | E6: 246992757.1 | F6: 179523752.2 | G6: 127745203.9 | H6: 168029688.3 | I6: 176387430.5 | J6: 179585755.9 | K6: 218800000 | L6: 178135780.5 | M6: 314400000 | N6: =SUMIF($B$5:$M$5,"<="&TEXT($P$2,"0"),B6:M6) -> 2654040161
A7: Hinds Lake | B7: 45390000 | C7: 34319289.98 | D7: 33917568.89 | E7: 25980000 | F7: 19920000 | G7: 23090000 | H7: 32225003.97 | I7: 34081291.88 | J7: 28165132.36 | K7: 13315466.36 | L7: 24451508.11 | M7: 39140000 | N7: =SUMIF($B$5:$M$5,"<="&TEXT($P$2,"0"),B7:M7) -> 353995261.6
A8: Upper Salmon | B8: 58320000 | C8: 45540000 | D8: 56350000 | E8: 53126416.38 | F8: 41720490.89 | G8: 40283325.08 | H8: 38788858.01 | I8: 20999059.45 | J8: 48979164.88 | K8: 51000000 | L8: 48599114.99 | M8: 52250000 | N8: 555956429.7
A9: Cat Arm | B9: 87511970.48 | C9: 75010000 | D9: 72774918.43 | E9: 75131205.63 | F9: 62730000 | G9: 59790000 | H9: 51620000 | I9: 43984694.05 | J9: 43812724.7 | K9: 41527624.18 | L9: 55120000 | M9: 85992557.4 | N9: 755005694.9
A10: Paradise River | B10: 2976000 | C10: 2688000 | D10: 2976000 | E10: 2880000 | F10: 2976000 | G10: 2880000 | H10: 2976000 | I10: 2976000 | J10: 2880000 | K10: 2976000 | L10: 2880000 | M10: 2976000 | N10: 35040000
A11: Granite Canal | B11: 24390000 | C11: 20796639.89 | D11: 22599819.94 | E11: 22862335.26 | F11: 19570000 | G11: 17953586.02 | H11: 17017338.87 | I11: 21968725.6 | J11: 16748968.61 | K11: 16000000 | L11: 21206692.14 | M11: 24848346.82 | N11: 245962453.1
A12: Mini Hydro Sites | B12: 0 | C12: 0 | D12: 0 | E12: 0 | F12: 0 | G12: 0 | H12: 0 | I12: 0 | J12: 0 | K12: 0 | L12: 0 | M12: 0 | N12: 0
A13: SUB TOTAL HYDRO GENERATION | B13: =SUM(B6:B12) -> 535087970.5 | C13: =SUM(C6:C12) -> 480793642 | D13: 434118387.5 | E13: 426972714.3 | F13: 326440243.1 | G13: =SUM(G6:G12) -> 271742115 | H13: 310656889.1 | I13: 300397201.4 | J13: 320171746.4 | K13: 343619090.5 | L13: 330393095.8 | M13: 519606904.2 | N13: =SUMIF($B$5:$M$5,"<="&TEXT($P$2,"0"),B13:M13) -> 4600000000
A14: Holyrood Thermal | B14: 112701462.3 | C14: 102611346.9 | D14: 47669813.19 | E14: 0 | F14: 0 | G14: 0 | H14: 0 | I14: 0 | J14: 0 | K14: 28415163.73 | L14: 52602052.87 | M14: 111225818.6 | N14: 455225657.6
A15: GNP Diesel & Other Mobile | B15: 217599.18 | C15: 231849.6 | D15: 149861.34 | E15: 242467.12 | F15: 347356.39 | G15: 293256.64 | H15: 250409.97 | I15: 174097.49 | J15: 167350.96 | K15: 303925 | L15: 76955.48 | M15: 73259.98 | N15: 2528389.15
A16: Hardwoods GT | B16: 194853.26 | C16: 624620.27 | D16: 461130.02 | E16: 795357.42 | F16: 845285.83 | G16: 48389.06 | H16: 570775.85 | I16: 110893.26 | J16: 60997.63 | K16: 467591.88 | L16: 268852.11 | M16: 210830.14 | N16: 4659576.73
A17: Holyrood GT | B17: 5195977.037 | C17: 3543787.997 | D17: 3091331.117 | E17: 3744717.587 | F17: 4514649.357 | G17: 3876835.027 | H17: 782340.2567 | I17: 1065608.737 | J17: 377566.3467 | K17: 4109414.417 | L17: 1906991.747 | M17: 1706799.847 | N17: 33916019.47
A18: Holyrood blackstart | B18: 8333.333333 | C18: 8333.333333 | D18: 8333.333333 | E18: 8333.333333 | F18: 8333.333333 | G18: 8333.333333 | H18: 8333.333333 | I18: 8333.333333 | J18: 8333.333333 | K18: 8333.333333 | L18: 8333.333333 | M18: 8333.333333 | N18: 100000
A19: Stephenville GT | B19: 171532.29 | C19: 100000 | D19: 411105.25 | E19: 610000 | F19: 731309.24 | G19: 214173.77 | H19: 479958.48 | I19: 205000 | J19: 30000 | K19: 30000 | L19: 73379.64 | M19: 30000 | N19: 3086458.67
A20: SUB TOTAL THERMAL GENERATION | B20: =SUM(B14:B19) -> 118489757.4 | C20: =SUM(C14:C19) -> 107119938.1 | D20: 51791574.25 | E20: 5400875.46 | F20: 6446934.15 | G20: 4440987.83 | H20: 2091817.89 | I20: 1563932.82 | J20: 644248.27 | K20: 33334428.36 | L20: 54936565.18 | M20: =SUM(M14:M19) -> 113255041.9 | N20: 499516101.6
A21: SYSTEM GROSS GENERATION | B21: =B13+B20 -> 653577727.9 | C21: =C13+C20 -> 587913580.1 | D21: 485909961.8 | E21: 432373589.8 | F21: 332887177.3 | G21: 276183102.8 | H21: 312748707 | I21: 301961134.3 | J21: 320815994.7 | K21: 376953518.9 | L21: 385329661 | M21: 632861946.1 | N21: 5099516102
A22: STATION SERVICES
A23: Bay D'Espoir | N23: 0
A24: Hinds Lake | N24: 0
A25: Upper Salmon | N25: 0
A26: Cat Arm | N26: 0
A27: Paradise River | N27: 0
A28: Granite Canal | N28: 0
A29: Holyrood Thermal | N29: 0
A30: Stephenville GT | N30: 0
A31: Hardwoods GT | N31: 0
A32: Mini Hydro Sites | N32: 0
A33: GNP Diesel | N33: 0
A34: TOTAL STATION SERVICES | B34: =SUM(B23:B33) -> 0 | C34: =SUM(C23:C33) -> 0 | D34: 0 | E34: 0 | F34: 0 | G34: =SUM(G23:G33) -> 0 | H34: 0 | I34: 0 | J34: 0 | K34: 0 | L34: 0 | M34: 0 | N34: 0
A35: SYNCHRONOUS CONDENSOR CONSUMPTION
A36: Bay D'Espoir | N36: 0
A37: Cat Arm | N37: 0
A38: Hardwoods GT | N38: 0
A39: Stephenville GT | N39: 0
A40: TOTAL SYNC. CONDENSOR USE | N40: 0
A41: SYSTEM NET GENERATION | B41: =B21-B34-B40 -> 653577727.9 | C41: =C21-C34-C40 -> 587913580.1 | D41: 485909961.8 | E41: 432373589.8 | F41: 332887177.3 | G41: 276183102.8 | H41: 312748707 | I41: 301961134.3 | J41: 320815994.7 | K41: 376953518.9 | L41: 385329661 | M41: 632861946.1 | N41: 5099516102
A42: Hydro Request "Nfld Power" | N42: 0
A43: Hydro Request "Vale" | N43: 0
A44: CBPP Secondary | B44: 0 | C44: 0 | D44: 0 | E44: 0 | F44: 0 | G44: 0 | H44: 0 | I44: 0 | J44: 0 | K44: 0 | L44: 0 | M44: 0 | N44: 0
A45: CBPP Exchanged/Transferred Energy (to NLH)/cap Assistance | B45: 0 | C45: 0 | D45: 0 | E45: 0 | F45: 0 | G45: 0 | H45: 0 | I45: 0 | J45: 0 | K45: 0 | L45: 0 | M45: 0 | N45: 0
A46: Nalcor - Grand Falls and Bishop's Falls | B46: 53999520 | C46: 48699840 | D46: 53694480 | E46: 55699200 | F46: 58999200 | G46: 48297600 | H46: 52794240 | I46: 54795600 | J46: 49996800 | K46: 39498960 | L46: 45396000 | M46: 52995120 | N46: 614866560
A47: Nalcor - Star Lake | B47: 12500000 | C47: 11300000 | D47: 12500000 | E47: 11664000 | F47: 12528000 | G47: 12000000 | H47: 13000000 | I47: 13000000 | J47: 6500000 | K47: 12900000 | L47: 11500000 | M47: 11700000 | N47: 141092000
A48: Rattle Brook | B48: 610200 | C48: 501200 | D48: 601400 | E48: 1545700 | F48: 2433100 | G48: 1385800 | H48: 748200 | I48: 722400 | J48: 1120000 | K48: 1599600 | L48: 1500000 | M48: 994000 | N48: 13761600
A49: CBPP CoGen | B49: 6320000 | C49: 4980000 | D49: 5840000 | E49: 5550000 | F49: 5740000 | G49: 6070000 | H49: 5580000 | I49: 4230000 | J49: 6240000 | K49: 5440000 | L49: 4290000 | M49: 6250000 | N49: 66530000
A50: Nalcor - Buchans | B50: 0 | C50: 0 | D50: 0 | E50: 0 | F50: 0 | G50: 0 | H50: 0 | I50: 0 | J50: 0 | K50: 0 | L50: 0 | M50: 0 | N50: 0
A51: St. Lawrence Wind | B51: 11399354.88 | C51: 9387457.67 | D51: 9444583.27 | E51: 8289309.64 | F51: 8854882.77 | G51: 6522586.48 | H51: 5545518.49 | I51: 5932207.57 | J51: 5681989.16 | K51: 9225565.01 | L51: 9869382.97 | M51: 9271381.16 | N51: 99424219.07
A52: Fermeuse Wind | B52: 9333293.05 | C52: 8869064.9 | D52: 8985639.06 | E52: 7332588.94 | F52: 9341417.05 | G52: 5058685.96 | H52: 7165654.77 | I52: 6052427.56 | J52: 5365599.81 | K52: 9046419.38 | L52: 9752898.91 | M52: 10023301.76 | N52: 96326991.15
A53: Maritime Link Imports for NLH | B53: 0 | C53: 0 | D53: 0 | E53: 0 | F53: 0 | G53: 0 | H53: 0 | I53: 0 | J53: 0 | K53: 0 | L53: 0 | M53: 0 | N53: 0
A54: Maritme Link Imports (Other) | B54: 0 | C54: 0 | D54: 0 | E54: 0 | F54: 0 | G54: 0 | H54: 0 | I54: 0 | J54: 0 | K54: 0 | L54: 0 | M54: 0 | N54: 0
A55: LIL Imports recall & Pre-comm | B55: 0 | C55: 0 | D55: 0 | E55: 0 | F55: 0 | G55: 0 | H55: 0 | I55: 0 | J55: 0 | K55: 0 | L55: 0 | M55: 0 | N55: 0
A56: LIL - Muskrat (PPA) | B56: 148144430.1 | C56: 145252124.6 | D56: 234052514.1 | E56: 115797042.4 | F56: 94476210.31 | G56: 98762384.24 | H56: 25654099.26 | I56: 24783245.39 | J56: 21586191.46 | K56: 50370471.69 | L56: 164074689.2 | M56: 92775775.52 | N56: 1215729178
A57: New World Dairy | B57: 237782.4 | C57: 214771.2 | D57: 237782.4 | E57: 230112 | F57: 237782.4 | G57: 230112 | H57: 237782.4 | I57: 237782.4 | J57: 230112 | K57: 237782.4 | L57: 230112 | M57: 237782.4 | N57: 2799696
A58: TOTAL OTHER SOURCES | B58: =SUM(B42:B57) -> 242544580.5 | C58: 229204458.3 | D58: 325356398.9 | E58: 206107953 | F58: =SUM(F42:F57) -> 192610592.5 | G58: =SUM(G42:G57) -> 178327168.7 | H58: 110725494.9 | I58: 109753662.9 | J58: 96720692.43 | K58: 128318798.5 | L58: 246613083.1 | M58: 184247360.8 | N58: 2250530245
A59: TOTAL NET GENERATION | B59: =B41+B58 -> 896122308.4 | C59: 817118038.4 | D59: 811266360.6 | E59: =E41+E58 -> 638481542.8 | F59: 525497769.8 | G59: 454510271.5 | H59: 423474201.9 | I59: 411714797.2 | J59: 417536687.1 | K59: 505272317.4 | L59: 631942744.1 | M59: 817109307 | N59: 7350046346
N60: =SUM(B60:F60) -> 0
A61: ENERGY DISTRIBUTION (FIRM ENERGY ONLY) | B61: THIS YEAR | C61: THIS YEAR | D61: THIS YEAR | E61: THIS YEAR | F61: THIS YEAR | G61: THIS YEAR | H61: THIS YEAR | I61: THIS YEAR | J61: THIS YEAR | K61: THIS YEAR | N61: 0
A62: TOTAL INDUSTRY | B62: 50688440 | C62: 43178100 | D62: 55050850 | E62: 46693790 | F62: 54172620 | G62: 53283910 | H62: 55984270 | I62: 54689540 | J62: 52271700 | K62: 33042600 | L62: 55106520 | M62: 59209000 | N62: =SUMIF($B$5:$M$5,"<="&TEXT($P$2,"0"),B62:M62) -> 613371340
A63: Newfoundland Power Firm | B63: 766305914.8 | C63: 700798705.5 | D63: 689119433.2 | E63: 531348942.2 | F63: 415832403 | G63: 347124508.4 | H63: 313450423.4 | I63: 312212799.8 | J63: 318656728 | K63: 417449389.1 | L63: 521880578.9 | M63: 680402173.7 | N63: 6014582000
A64: Newfoundland Power Secondary | N64: 0
A65: Rural Bulk Deliveries | B65: 51464737.26 | C65: 47776011.75 | D65: 47742571.64 | E65: 40285559.8 | F65: 36905050.54 | G65: 30720291.32 | H65: 28775726.46 | I65: 28203140.26 | J65: 27600991.63 | K65: 33327733.97 | L65: 39819954.93 | M65: 49003330.46 | N65: 461625100
A66: TOTAL UTILITY | B66: =SUM(B63:B65) -> 817770652 | C66: =SUM(C63:C65) -> 748574717.3 | D66: 736862004.9 | E66: 571634502 | F66: 452737453.5 | G66: 377844799.7 | H66: 342226149.9 | I66: 340415940 | J66: 346257719.6 | K66: 450777123.1 | L66: 561700533.8 | M66: 729405504.2 | N66: 6476207100
N67: 0
N68: 0
A69: Maritime Link Exports | B69: 0 | C69: 0 | D69: 0 | E69: 0 | F69: 0 | G69: 0 | H69: 0 | I69: 0 | J69: 0 | K69: 0 | L69: 0 | M69: 0 | N69: 0
N70: 0
A71: TOTAL OTHER | B71: =SUM(B69:B70) -> 0 | C71: =SUM(C69:C70) -> 0 | D71: 0 | E71: 0 | F71: 0 | G71: 0 | H71: 0 | I71: 0 | J71: 0 | K71: 0 | L71: 0 | M71: 0 | N71: 0
N72: 0
A73: CBP&P Exchanged/Transferred Energy Credit (from NLH) | B73: 0 | C73: 0 | D73: 0 | E73: 0 | F73: 0 | G73: 0 | H73: 0 | I73: 0 | J73: 0 | K73: 0 | L73: 0 | M73: 0 | N73: 0
A74: TOTAL ENERGY DISTRIBUTED | B74: =B62+B66+B71+B73 -> 868459092 | C74: =C62+C66+C71+C73 -> 791752817.3 | D74: 791912854.9 | E74: =E62+E66+E71+E73 -> 618328292 | F74: 506910073.5 | G74: 431128709.7 | H74: 398210419.9 | I74: 395105480 | J74: 398529419.6 | K74: 483819723.1 | L74: 616807053.8 | M74: 788614504.2 | N74: 7089578440
A75: TRANSMISSION, TRANSFORMER LOSSES | B75: 39875377.62 | C75: 36439068.82 | D75: 31714167.09 | E75: 32331887.6 | F75: 30788867.67 | G75: 35227378.62 | H75: 37028283.39 | I75: 28135698.54 | J75: 28625814.32 | K75: 32557595.65 | L75: 27529917.08 | M75: 41382314.12 | N75: 401636370.5
N76: =SUM(B76:F76) -> 0
A77: TOTAL ENERGY RECEIVED AT NO COST | N77: 0
A78: TOTAL | B78: =B74+B75 -> 908334469.7 | C78: =C74+C75 -> 828191886.1 | D78: 823627022 | E78: =E74+E75 -> 650660179.6 | F78: 537698941.2 | G78: =G74+G75 -> 466356088.3 | H78: =H74+H75 -> 435238703.2 | I78: 423241178.6 | J78: 427155233.9 | K78: 516377318.7 | L78: 644336970.9 | M78: 829996818.3 | N78: =SUMIF($B$5:$M$5,"<="&TEXT($P$2,"0"),B78:M78) -> 7491214811
A79: Check | B79: =B59-B78 -> -12212161.3 | C79: -11073847.67 | D79: -12360661.33 | E79: -12178636.78 | F79: -12201171.39 | G79: -11845816.8 | H79: -11764501.31 | I79: -11526381.38 | J79: -9618546.798 | K79: -11105001.34 | L79: -12394226.83 | M79: -12887511.36 | N79: -141168464.3
A80: No. 6 Fuel used for NS Block recoveries
A81: NS Block recoveries converted to BBLs
A82: No. 6 Fuel used for Emergency energy
A83: No. 6 Fuel used for Non Firm Energy
A84: Total Non firm Energy (no 6) | B84: =SUM(B80:B83) -> 0 | C84: 0 | D84: 0 | E84: 0 | F84: 0 | G84: 0 | H84: 0 | I84: 0 | J84: 0 | K84: 0 | L84: 0 | M84: 0
A85: Converted to BBls | B85: =B84/583 -> 0 | C85: =C84/583 -> 0 | D85: 0 | E85: 0 | F85: 0 | G85: 0 | H85: 0 | I85: 0 | J85: 0 | K85: 0 | L85: 0 | M85: 0
A86: GT Fuel for NS Block Rec. (Idemnity agreement) kWh
A87: PY Actuals (energy sales kWh)
A88: Utility | B88: 768642873.4 | C88: 702978662.1 | D88: 691200305 | E88: 532794324.6 | F88: 416644457.3 | G88: 348333208.5 | H88: 314152973.4 | I88: 312894924.2 | J88: 319461046.1 | K88: 418547151.1 | L88: 523495167.5 | M88: 683153907
A89: Industrial | B89: 38474910 | C89: 31938500 | D89: 42688820 | E89: 34558990 | F89: 41970080 | G89: 41481930 | H89: 44218400 | I89: 43161790 | J89: 42696990 | K89: 21936230 | L89: 42756130 | M89: 46320120
A90: Rural | B90: 51736551.29 | C90: 48028343.56 | D90: 47994726.83 | E90: 40498330.34 | F90: 37099966.72 | G90: 30882542.33 | H90: 28927707.14 | I90: 28352096.79 | J90: 27746767.88 | K90: 33503756.35 | L90: 40030266.35 | M90: 49262144.42
A92: Twelve month to date
A93: Utility | B93: =SUM(C88:M88)+B63 -> 6029962041 | C93: =SUM(D88:M88)+SUM(B63:C63) -> 6027782085 | D93: =SUM(E88:M88)+SUM(B63:D63) -> 6025701213 | E93: =SUM(F88:M88)+SUM(B63:E63) -> 6024255831 | F93: =SUM(G88:M88)+SUM(B63:F63) -> 6023443776 | G93: =SUM(H88:M88)+SUM(B63:G63) -> 6022235076 | H93: =SUM(I88:M88)+SUM(B63:H63) -> 6021532526 | I93: =SUM(J88:M88)+SUM(B63:I63) -> 6020850402 | J93: =SUM(K88:M88)+SUM(B63:J63) -> 6020046084 | K93: =SUM(L88:M88)+SUM(B63:K63) -> 6018948322 | L93: =SUM(M88:M88)+SUM(B63:L63) -> 6017333733 | M93: =SUM(B63:M63) -> 6014582000
A94: Industrial | B94: =SUM(C89:M89)+B62 -> 484416420 | C94: =SUM(D89:M89)+SUM($B$62:C62) -> 495656020 | D94: =SUM(E$89:$N89)+SUM($B$62:D62) -> 508018050 | E94: =SUM(F$89:$N89)+SUM($B$62:E62) -> 520152850 | F94: =SUM(G$89:$N89)+SUM($B$62:F62) -> 532355390 | G94: =SUM(H$89:$N89)+SUM($B$62:G62) -> 544157370 | H94: =SUM(I$89:$N89)+SUM($B$62:H62) -> 555923240 | I94: =SUM(J$89:$N89)+SUM($B$62:I62) -> 567450990 | J94: =SUM(K$89:$N89)+SUM($B$62:J62) -> 577025700 | K94: =SUM(L$89:$N89)+SUM($B$62:K62) -> 588132070 | L94: =SUM(M$89:$N89)+SUM($B$62:L62) -> 600482460 | M94: =SUM($B$62:M62) -> 613371340
A95: Rural | B95: =B65+SUM(C90:M90) -> 463791386 | C95: =SUM(B65:C65)+SUM(D90:M90) -> 463539054.2 | D95: =SUM(B65:D65)+SUM(E90:M90) -> 463286899 | E95: =SUM(B65:E65)+SUM(F90:M90) -> 463074128.4 | F95: =SUM(B65:F65,G90:M90) -> 462879212.3 | G95: =SUM(B65:G65,H90:M90) -> 462716961.2 | H95: =SUM(B65:H65,I90:M90) -> 462564980.6 | I95: =SUM(B65:I65,J90:M90) -> 462416024 | J95: =SUM(B65:I65,K90:M90) -> 434669256.1 | K95: =SUM(B65:K65,L90:M90) -> 462094225.4 | L95: =SUM(B65:L65,M90) -> 461883914 | M95: =SUM(B65:M65) -> 461625100
A97: Generation+Purchased Power
A98: PP | B98: =B58-B101 -> 242544580.5 | C98: 229204458.3 | D98: 325356398.9 | E98: 206107953 | F98: 192610592.5 | G98: 178327168.7 | H98: 110725494.9 | I98: 109753662.9 | J98: 96720692.43 | K98: 128318798.5 | L98: 246613083.1 | M98: 184247360.8
A99: Hydraulic | B99: =B13-B23-B24-B25-B26-B27-B28-B32-B36-B37 -> 535087970.5 | C99: 480793642 | D99: 434118387.5 | E99: 426972714.3 | F99: 326440243.1 | G99: 271742115 | H99: 310656889.1 | I99: 300397201.4 | J99: 320171746.4 | K99: 343619090.5 | L99: 330393095.8 | M99: 519606904.2
A100: Thermal | B100: =B14-B29 -> 112701462.3 | C100: 102611346.9 | D100: 47669813.19 | E100: 0 | F100: 0 | G100: 0 | H100: 0 | I100: 0 | J100: 0 | K100: 28415163.73 | L100: 52602052.87 | M100: 111225818.6
A101: ML Imports | B101: =B53 -> 0 | C101: 0 | D101: 0 | E101: 0 | F101: 0 | G101: 0 | H101: 0 | I101: 0 | J101: 0 | K101: 0 | L101: 0 | M101: 0
A102: GT/Diesel | B102: =B15+B16+B17+B18+B19-B30-B31-B33-B38-B39 -> 5788295.1 | C102: 4508591.2 | D102: 4121761.06 | E102: 5400875.46 | F102: 6446934.15 | G102: 4440987.83 | H102: 2091817.89 | I102: 1563932.82 | J102: 644248.27 | K102: 4919264.63 | L102: 2334512.31 | M102: 2029223.3
A103: Total | B103: =SUM(B97:B102) -> 896122308.4 | C103: =SUM(C97:C102) -> 817118038.4 | D103: 811266360.6 | E103: 638481542.8 | F103: 525497769.8 | G103: 454510271.5 | H103: 423474201.9 | I103: 411714797.2 | J103: 417536687.1 | K103: 505272317.4 | L103: 631942744.1 | M103: 817109307
A104: Losses | B104: =B75 -> 39875377.62 | C104: =C75 -> 36439068.82 | D104: 31714167.09 | E104: 32331887.6 | F104: 30788867.67 | G104: 35227378.62 | H104: 37028283.39 | I104: 28135698.54 | J104: 28625814.32 | K104: 32557595.65 | L104: 27529917.08 | M104: 41382314.12
A105: Rural load | B105: =B65 -> 51464737.26 | C105: =C65 -> 47776011.75 | D105: 47742571.64 | E105: 40285559.8 | F105: 36905050.54 | G105: 30720291.32 | H105: 28775726.46 | I105: 28203140.26 | J105: 27600991.63 | K105: 33327733.97 | L105: 39819954.93 | M105: 49003330.46
A106: Load utility | B106: =B63 -> 766305914.8 | C106: 700798705.5 | D106: 689119433.2 | E106: 531348942.2 | F106: 415832403 | G106: 347124508.4 | H106: 313450423.4 | I106: 312212799.8 | J106: 318656728 | K106: 417449389.1 | L106: 521880578.9 | M106: 680402173.7
A107: Load utility - secondary | B107: =B64 -> 0 | C107: 0 | D107: 0 | E107: 0 | F107: 0 | G107: 0 | H107: 0 | I107: 0 | J107: 0 | K107: 0 | L107: 0 | M107: 0
A108: ML Exports | B108: =B69 -> 0 | C108: =C69 -> 0 | D108: 0 | E108: 0 | F108: 0 | G108: 0 | H108: 0 | I108: 0 | J108: 0 | K108: 0 | L108: 0 | M108: 0
A109: Load Industrial | B109: =B62 -> 50688440 | C109: =C62 -> 43178100 | D109: 55050850 | E109: 46693790 | F109: 54172620 | G109: 53283910 | H109: 55984270 | I109: 54689540 | J109: 52271700 | K109: 33042600 | L109: 55106520 | M109: 59209000
A110: Total | B110: =SUM(B104:B109) -> 908334469.7 | C110: =SUM(C104:C109) -> 828191886.1 | D110: 823627022 | E110: 650660179.6 | F110: 537698941.2 | G110: 466356088.3 | H110: 435238703.2 | I110: 423241178.6 | J110: 427155233.9 | K110: 516377318.7 | L110: 644336970.9 | M110: 829996818.3
B111: =B103-B110 -> -12212161.3 | C111: =C103-C110 -> -11073847.67 | D111: -12360661.33 | E111: -12178636.78 | F111: -12201171.39 | G111: -11845816.8 | H111: -11764501.31 | I111: -11526381.38 | J111: -9618546.798 | K111: -11105001.34 | L111: -12394226.83 | M111: -12887511.36
A115: Demand Allocator (MW)
A116: Utility Firm monthly billing demand (kW) | B116: 1405001.197 | C116: 1405001.197 | D116: 1405001.197 | E116: 1405001.197 | F116: 1405001.197 | G116: 1405001.197 | H116: 1405001.197 | I116: 1405001.197 | J116: 1405001.197 | K116: 1405001.197 | L116: 1405001.197 | M116: 1405001.197
A117: Industrial Firm invoiced demand (kW) | B117: 91300 | C117: 91300 | D117: 91300 | E117: 91300 | F117: 91300 | G117: 91300 | H117: 91300 | I117: 91300 | J117: 91300 | K117: 91300 | L117: 91300 | M117: 91300
A118: Rural Island monthly peak demand (kW) | B118: 94900 | C118: 92600 | D118: 87500 | E118: 73800 | F118: 67800 | G118: 62200 | H118: 52400 | I118: 51300 | J118: 53300 | K118: 61200 | L118: 75200 | M118: 89100
A121: Derived YTD demand quantities
A122: Utility YTD sum of monthly billing demand | B122: =SUM($B$116:B$116) -> 1405001.197 | C122: =SUM($B$116:C$116) -> 2810002.393 | D122: =SUM($B$116:D$116) -> 4215003.59 | E122: =SUM($B$116:E$116) -> 5620004.787 | F122: =SUM($B$116:F$116) -> 7025005.983 | G122: =SUM($B$116:G$116) -> 8430007.18 | H122: =SUM($B$116:H$116) -> 9835008.376 | I122: =SUM($B$116:I$116) -> 11240009.57 | J122: =SUM($B$116:J$116) -> 12645010.77 | K122: =SUM($B$116:K$116) -> 14050011.97 | L122: =SUM($B$116:L$116) -> 15455013.16 | M122: =SUM($B$116:M$116) -> 16860014.36
A124: Industrial YTD maximum invoiced demand | B124: =MAX($B$117:B$117) -> 91300 | C124: =MAX($B$117:C$117) -> 91300 | D124: =MAX($B$117:D$117) -> 91300 | E124: =MAX($B$117:E$117) -> 91300 | F124: =MAX($B$117:F$117) -> 91300 | G124: =MAX($B$117:G$117) -> 91300 | H124: =MAX($B$117:H$117) -> 91300 | I124: =MAX($B$117:I$117) -> 91300 | J124: =MAX($B$117:J$117) -> 91300 | K124: =MAX($B$117:K$117) -> 91300 | L124: =MAX($B$117:L$117) -> 91300 | M124: =MAX($B$117:M$117) -> 91300
A125: Industrial maximum × YTD months | B125: =B124*1 -> 91300 | C125: =C124*2 -> 182600 | D125: =D124*3 -> 273900 | E125: =E124*4 -> 365200 | F125: =F124*5 -> 456500 | G125: =G124*6 -> 547800 | H125: =H124*7 -> 639100 | I125: =I124*8 -> 730400 | J125: =J124*9 -> 821700 | K125: =K124*10 -> 913000 | L125: =L124*11 -> 1004300 | M125: =M124*12 -> 1095600
A127: Rural YTD maximum peak demand | B127: =MAX($B$118:B$118) -> 94900 | C127: =MAX($B$118:C$118) -> 94900 | D127: =MAX($B$118:D$118) -> 94900 | E127: =MAX($B$118:E$118) -> 94900 | F127: =MAX($B$118:F$118) -> 94900 | G127: =MAX($B$118:G$118) -> 94900 | H127: =MAX($B$118:H$118) -> 94900 | I127: =MAX($B$118:I$118) -> 94900 | J127: =MAX($B$118:J$118) -> 94900 | K127: =MAX($B$118:K$118) -> 94900 | L127: =MAX($B$118:L$118) -> 94900 | M127: =MAX($B$118:M$118) -> 94900
A128: Rural maximum × YTD months | B128: =B127*1 -> 94900 | C128: =C127*2 -> 189800 | D128: =D127*3 -> 284700 | E128: =E127*4 -> 379600 | F128: =F127*5 -> 474500 | G128: =G127*6 -> 569400 | H128: =H127*7 -> 664300 | I128: =I127*8 -> 759200 | J128: =J127*9 -> 854100 | K128: =K127*10 -> 949000 | L128: =L127*11 -> 1043900 | M128: =M127*12 -> 1138800
A130: Total demand allocator | B130: =SUM(B122,B125,B128) -> 1591201.197 | C130: 3182402.393 | D130: 4773603.59 | E130: 6364804.787 | F130: 7956005.983 | G130: 9547207.18 | H130: 11138408.38 | I130: 12729609.57 | J130: 14320810.77 | K130: 15912011.97 | L130: 17503213.16 | M130: 19094414.36
A133: Utility Firm monthly billing demand (kW) | B133: =B122 -> 1405001.197 | C133: =C122 -> 2810002.393 | D133: 4215003.59 | E133: 5620004.787 | F133: 7025005.983 | G133: 8430007.18 | H133: 9835008.376 | I133: 11240009.57 | J133: 12645010.77 | K133: 14050011.97 | L133: 15455013.16 | M133: 16860014.36
A134: Industrial Firm invoiced demand (kW) | B134: =B125 -> 91300 | C134: =C125 -> 182600 | D134: 273900 | E134: 365200 | F134: 456500 | G134: 547800 | H134: 639100 | I134: 730400 | J134: 821700 | K134: 913000 | L134: 1004300 | M134: 1095600
A135: Rural Island monthly peak demand (kW) | B135: =B128 -> 94900 | C135: =C128 -> 189800 | D135: 284700 | E135: 379600 | F135: 474500 | G135: 569400 | H135: 664300 | I135: 759200 | J135: 854100 | K135: 949000 | L135: 1043900 | M135: 1138800
B136: =SUM(B133:B135) -> 1591201.197 | C136: =SUM(C133:C135) -> 3182402.393 | D136: 4773603.59 | E136: 6364804.787 | F136: 7956005.983 | G136: 9547207.18 | H136: 11138408.38 | I136: 12729609.57 | J136: 14320810.77 | K136: 15912011.97 | L136: 17503213.16 | M136: 19094414.36
A138: Utility initial factor | B138: =B133/B$136 -> 0.8829814857 | C138: =C133/C$136 -> 0.8829814857 | D138: 0.8829814857 | E138: 0.8829814857 | F138: 0.8829814857 | G138: 0.8829814857 | H138: 0.8829814857 | I138: 0.8829814857 | J138: 0.8829814857 | K138: 0.8829814857 | L138: 0.8829814857 | M138: 0.8829814857
A139: Industrial initial factor | B139: =B134/B$136 -> 0.05737803629 | C139: 0.05737803629 | D139: 0.05737803629 | E139: 0.05737803629 | F139: 0.05737803629 | G139: 0.05737803629 | H139: 0.05737803629 | I139: 0.05737803629 | J139: 0.05737803629 | K139: 0.05737803629 | L139: 0.05737803629 | M139: 0.05737803629
A140: Rural Island initial factor | B140: =B135/B$136 -> 0.05964047802 | C140: 0.05964047802 | D140: 0.05964047802 | E140: 0.05964047802 | F140: 0.05964047802 | G140: 0.05964047802 | H140: 0.05964047802 | I140: 0.05964047802 | J140: 0.05964047802 | K140: 0.05964047802 | L140: 0.05964047802 | M140: 0.05964047802
A141: Control Check | B141: =SUM(B138:B140) -> 1 | C141: =SUM(C138:C140) -> 1 | D141: 1 | E141: 1 | F141: 1 | G141: 1 | H141: 1 | I141: 1 | J141: 1 | K141: 1 | L141: 1 | M141: 1

Sheet Control Checks
B2: Control Checks
F4: From Page 6-15 | N4: Demand | T4: Energy | Z4: Specific | AC4: Check
D5: From Page 3 | F5: Demand | G5: Energy | H5: Total | J5: Variance | N5: Utility | O5: Industrial | P5: Rural - Util | Q5: Rural - Lab | R5: Total | T5: Utility | U5: Industrial | V5: Rural - Util | W5: Rural - Lab | X5: Total | Z5: Utility | AA5: Industrial | AC5: Demand | AD5: Energy | AE5: Spec - Util | AF5: Spec - Ind
B7: MF Supply Costs | D7: ='Summary - Supply Cost Deferral'!$D$33 -> 0 | F7: ='MF Supply Variances'!$I$31 -> 0 | G7: ='MF Supply Variances'!$J$31 -> 0 | H7: =SUM(F7:G7) -> 0 | J7: =D7-H7 -> 0 | N7: ='MF Variance Demand'!$L$29 -> 0 | O7: ='MF Variance Demand'!$N$29 -> 0 | P7: ='MF Variance Demand'!$T$29 -> 0 | Q7: ='MF Variance Demand'!$V$29 -> 0 | R7: =SUM(N7:Q7) -> 0 | T7: ='MF Variance Energy'!$L$29 -> 0 | U7: ='MF Variance Energy'!$N$29 -> 0 | V7: ='MF Variance Energy'!$T$29 -> 0 | W7: ='MF Variance Energy'!$V$29 -> 0 | X7: =SUM(T7:W7) -> 0 | AC7: =F7-R7 -> 0 | AD7: =G7-X7 -> 0
B9: Fuel | D9: ='Summary - Supply Cost Deferral'!$K$33 -> 0 | F9: ='Fuel Variance'!$R$31 -> 0 | G9: ='Fuel Variance'!$S$31 -> 0 | H9: =SUM(F9:G9) -> 0 | J9: =D9-H9 -> 0 | N9: ='Fuel Variance Demand'!$L$29 -> 0 | O9: ='Fuel Variance Demand'!$N$29 -> 0 | P9: ='Fuel Variance Demand'!$T$29 -> 0 | Q9: ='Fuel Variance Demand'!$V$29 -> 0 | R9: =SUM(N9:Q9) -> 0 | T9: ='Fuel Variance Energy'!$L$29 -> 0 | U9: ='Fuel Variance Energy'!$N$29 -> 0 | V9: ='Fuel Variance Energy'!$T$29 -> 0 | W9: ='Fuel Variance Energy'!$V$29 -> 0 | X9: =SUM(T9:W9) -> 0 | AC9: =F9-R9 -> 0 | AD9: =G9-X9 -> 0
B11: Other IIS | D11: ='Summary - Supply Cost Deferral'!$L$33 -> 0 | F11: ='Other IIS Variance'!$P$31 -> 0 | G11: ='Other IIS Variance'!$Q$31 -> 0 | H11: =SUM(F11:G11) -> 0 | J11: =D11-H11 -> 0 | N11: ='Other IIS Variance Demand'!$L$29 -> 0 | O11: ='Other IIS Variance Demand'!$N$29 -> 0 | P11: ='Other IIS Variance Demand'!$T$29 -> 0 | Q11: ='Other IIS Variance Demand'!$V$29 -> 0 | R11: =SUM(N11:Q11) -> 0 | T11: ='Other IIS Variance Energy'!$L$29 -> 0 | U11: ='Other IIS Variance Energy'!$N$29 -> 0 | V11: ='Other IIS Variance Energy'!$T$29 -> 0 | W11: ='Other IIS Variance Energy'!$V$29 -> 0 | X11: =SUM(T11:W11) -> 0 | AC11: =F11-R11 -> 0 | AD11: =G11-X11 -> 0
B13: Exports | D13: ='Summary - Supply Cost Deferral'!$E$33 -> 0 | F13: ='Exports Variance'!$N$31 -> 0 | G13: ='Exports Variance'!$O$31 -> 0 | H13: =SUM(F13:G13) -> 0 | J13: =D13-H13 -> 0 | N13: ='Exports Variance Demand'!$L$29 -> 0 | O13: ='Exports Variance Demand'!$N$29 -> 0 | P13: ='Exports Variance Demand'!$T$29 -> 0 | Q13: ='Exports Variance Demand'!$V$29 -> 0 | R13: =SUM(N13:Q13) -> 0 | T13: ='Exports Variance Energy'!$L$29 -> 0 | U13: ='Exports Variance Energy'!$N$29 -> 0 | V13: ='Exports Variance Energy'!$T$29 -> 0 | W13: ='Exports Variance Energy'!$V$29 -> 0 | X13: =SUM(T13:W13) -> 0 | AC13: =F13-R13 -> 0 | AD13: =G13-X13 -> 0
B15: Tariff | D15: ='Summary - Supply Cost Deferral'!$F$33 -> 0 | F15: ='Tariff Variance'!$H$31 -> 0 | G15: ='Tariff Variance'!$I$31 -> 0 | H15: =SUM(F15:G15) -> 0 | J15: =D15-H15 -> 0 | N15: ='Tariff Variance Demand'!$L$29 -> 0 | O15: ='Tariff Variance Demand'!$N$29 -> 0 | P15: ='Tariff Variance Demand'!$T$29 -> 0 | Q15: ='Tariff Variance Demand'!$V$29 -> 0 | R15: =SUM(N15:Q15) -> 0 | T15: ='Tariff Variance Energy'!$L$29 -> 0 | U15: ='Tariff Variance Energy'!$N$29 -> 0 | V15: ='Tariff Variance Energy'!$T$29 -> 0 | W15: ='Tariff Variance Energy'!$V$29 -> 0 | X15: =SUM(T15:W15) -> 0 | AC15: =F15-R15 -> 0 | AD15: =G15-X15 -> 0
B17: Load Utility | D17: ='Summary - Supply Cost Deferral'!$M$33 -> 0 | H17: ='Load NFP'!H31 -> 0 | J17: =D17-H17 -> 0 | Z17: =SummaryNFpower!K33 -> 0 | AE17: =H17-Z17 -> 0
B19: Load Industrial | D19: ='Summary - Supply Cost Deferral'!$N$33 -> 0 | H19: ='Load IND'!H31 -> 0 | J19: =D19-H19 -> 0 | AA19: =SummaryIndustrials!K33 -> 0 | AF19: =H19-AA19 -> 0
B21: RRA | D21: ='Summary - Supply Cost Deferral'!$P$33 -> 0 | H21: =RRA!I29 -> 0 | J21: =D21-H21 -> 0
B23: GHG | D23: ='Summary - Supply Cost Deferral'!$O$33 -> 0 | F23: ='GHG Variance'!$H$31 -> 0 | G23: ='GHG Variance'!$I$31 -> 0 | H23: =SUM(F23:G23) -> 0 | J23: =D23-H23 -> 0 | N23: ='GHG Variance Demand'!$L$29 -> 0 | O23: ='GHG Variance Demand'!$N$29 -> 0 | P23: ='GHG Variance Demand'!$T$29 -> 0 | Q23: ='GHG Variance Demand'!$V$29 -> 0 | R23: =SUM(N23:Q23) -> 0 | T23: ='GHG Variance Energy'!$L$29 -> 0 | U23: ='GHG Variance Energy'!$N$29 -> 0 | V23: ='GHG Variance Energy'!$T$29 -> 0 | W23: ='GHG Variance Energy'!$V$29 -> 0 | X23: =SUM(T23:W23) -> 0 | AC23: =F23-R23 -> 0 | AD23: =G23-X23 -> 0
B25: Rate Mitigation | D25: ='Summary - Supply Cost Deferral'!$H$33 -> 0 | F25: ='Rate Mitigation Variance'!$H$31 -> 0 | G25: ='Rate Mitigation Variance'!$I$31 -> 0 | H25: =SUM(F25:G25) -> 0 | J25: =D25-H25 -> 0 | N25: ='Rate Mitigation Variance Demand'!$L$29 -> 0 | O25: ='Rate Mitigation Variance Demand'!$N$29 -> 0 | P25: ='Rate Mitigation Variance Demand'!$T$29 -> 0 | Q25: ='Rate Mitigation Variance Demand'!$V$29 -> 0 | R25: =SUM(N25:Q25) -> 0 | T25: ='Rate Mitigation Variance Energy'!$L$29 -> 0 | U25: ='Rate Mitigation Variance Energy'!$N$29 -> 0 | V25: ='Rate Mitigation Variance Energy'!$T$29 -> 0 | W25: ='Rate Mitigation Variance Energy'!$V$29 -> 0 | X25: =SUM(T25:W25) -> 0 | AC25: =F25-R25 -> 0 | AD25: =G25-X25 -> 0
D27: =SUM(D7:D25) -> 0 | F27: =SUM(F7:F25) -> 0 | G27: 0 | H27: 0 | J27: 0 | N27: =SUM(N7:N25) -> 0 | O27: 0 | P27: 0 | Q27: 0 | R27: 0 | T27: 0 | U27: 0 | V27: 0 | W27: 0 | X27: 0 | Z27: 0 | AA27: 0 | AC27: 0 | AD27: =SUM(AD7:AD25) -> 0 | AE27: =SUM(AE7:AE25) -> 0 | AF27: 0
J30: =IF(AND(MAX(J7:J25)<0.01,MIN(J7:J25)>-0.01),"GOOD","CHECK") -> GOOD | AC30: =IF(AND(MAX(AC7:AC25)<0.01,MIN(AC7:AC25)>-0.01),"GOOD","CHECK") -> GOOD | AD30: GOOD | AE30: GOOD | AF30: GOOD

Sheet Summary>>>

Sheet Summary current
B1: Newfoundland and Labrador Hydro | N1: Pg 2
B4: Long Term Supply Cost Deferral Account
B5: Overall Summary
B6: =+'inputs activity'!C1 -> 2027-12-31
D9: A | F9: B | H9: C | J9: D
D11: Supply Cost
D12: Deferral Account | F12: Utility | H12: Industrial | J12: Total
D13: Balance (1) | F13: Balance | H13: Balance | J13: To Date
D14: ($) | F14: ($) | H14: ($) | J14: ($)
J15: (B+C)
D16: (from page 3) | F16: (from page 4) | H16: (from page 5)
B17: Opening Balance | D17: ='Summary - Supply Cost Deferral'!U17 -> 0 | F17: =SummaryNFpower!$S$17 -> 0 | H17: =SummaryIndustrials!$R$19 -> 0 | J17: =+H17+F17+D17 -> 0
B18: Adjustment | D18: ='Summary - Supply Cost Deferral'!U18 -> 0 | F18: =SummaryNFpower!S18 -> 0 | J18: =+H18+F18+D18 -> 0
B19: Adjusted Opening Balance | D19: =SUM(D17:D18) -> 0 | E19: =SUM(E17:E18) -> 0 | F19: 0 | G19: 0 | H19: 0 | I19: 0 | J19: 0
B20: January | D20: =IF(+'inputs activity'!$C$3>0,'Summary - Supply Cost Deferral'!U20," ") -> -28139802 | F20: =IF(+'inputs activity'!$C$3>0,+SummaryNFpower!S20," ") -> -26973968 | H20: =IF(+'inputs activity'!$C$3>0,+SummaryIndustrials!R20," ") -> -1165834 | J20: =SUM(F20,H20) -> -28139802
B21: February | D21: =IF(+'inputs activity'!$C$3>1,+'Summary - Supply Cost Deferral'!U21," ") -> -53912965 | F21: =IF(+'inputs activity'!$C$3>1,+SummaryNFpower!S21," ") -> -51749397 | H21: =IF(+'inputs activity'!$C$3>0,+SummaryIndustrials!R21," ") -> -2163568 | J21: =SUM(F21,H21) -> -53912965
B22: March | D22: =IF(+'inputs activity'!$C$3>2,+'Summary - Supply Cost Deferral'!U22," ") -> -79650629 | F22: =IF(+'inputs activity'!$C$3>2,+SummaryNFpower!S22," ") -> -76212283 | H22: =IF(+'inputs activity'!$C$3>0,+SummaryIndustrials!R22," ") -> -3438346 | J22: -79650629
B23: April | D23: =IF(+'inputs activity'!$C$3>3,+'Summary - Supply Cost Deferral'!U23," ") -> -99744955 | F23: =IF(+'inputs activity'!$C$3>3,+SummaryNFpower!S23," ") -> -95218973 | H23: =IF(+'inputs activity'!$C$3>0,+SummaryIndustrials!R23," ") -> -4525982 | J23: -99744955
B24: May | D24: =IF(+'inputs activity'!$C$3>4,+'Summary - Supply Cost Deferral'!U24," ") -> -116025056 | F24: =IF(+'inputs activity'!$C$3>4,+SummaryNFpower!S24," ") -> -110235098 | H24: =IF(+'inputs activity'!$C$3>0,+SummaryIndustrials!R24," ") -> -5789958 | J24: -116025056
B25: June | D25: =IF(+'inputs activity'!$C$3>5,+'Summary - Supply Cost Deferral'!U25," ") -> -129930969 | F25: =IF(+'inputs activity'!$C$3>5,+SummaryNFpower!S25," ") -> -122892446 | H25: =IF(+'inputs activity'!$C$3>0,+SummaryIndustrials!R25," ") -> -7038523 | J25: -129930969
B26: July | D26: =IF(+'inputs activity'!$C$3>6,+'Summary - Supply Cost Deferral'!U26," ") -> -142768985 | F26: =IF(+'inputs activity'!$C$3>6,+SummaryNFpower!S26," ") -> -134414822 | H26: =IF(+'inputs activity'!$C$3>0,+SummaryIndustrials!R26," ") -> -8354163 | J26: -142768985
B27: August | D27: =IF(+'inputs activity'!$C$3>7,+'Summary - Supply Cost Deferral'!U27," ") -> -155584734 | F27: =IF(+'inputs activity'!$C$3>7,+SummaryNFpower!S27," ") -> -145939475 | H27: =IF(+'inputs activity'!$C$3>0,+SummaryIndustrials!R27," ") -> -9645259 | J27: -155584734
B28: September | D28: =IF(+'inputs activity'!$C$3>8,+'Summary - Supply Cost Deferral'!U28," ") -> -168622686 | F28: =IF(+'inputs activity'!$C$3>8,+SummaryNFpower!S28," ") -> -157736805 | H28: =IF(+'inputs activity'!$C$3>0,+SummaryIndustrials!R28," ") -> -10885881 | J28: -168622686
B29: October | D29: =IF(+'inputs activity'!$C$3>9,+'Summary - Supply Cost Deferral'!U29," ") -> -184747741 | F29: =IF(+'inputs activity'!$C$3>9,+SummaryNFpower!S29," ") -> -173058571 | H29: =IF(+'inputs activity'!$C$3>0,+SummaryIndustrials!R29," ") -> -11689170 | J29: -184747741
B30: November | D30: =IF(+'inputs activity'!$C$3>10,+'Summary - Supply Cost Deferral'!U30," ") -> -205120396 | F30: =IF(+'inputs activity'!$C$3>10,+SummaryNFpower!S30," ") -> -192117271 | H30: =IF(+'inputs activity'!$C$3>0,+SummaryIndustrials!R30," ") -> -13003125 | J30: -205120396
B31: December | D31: =IF(+'inputs activity'!$C$3>11,+'Summary - Supply Cost Deferral'!U31," ") -> -231248420 | F31: =IF(+'inputs activity'!$C$3>11,+SummaryNFpower!S35," ") -> -216831756 | H31: =IF(+'inputs activity'!$C$3>0,+SummaryIndustrials!R31," ") -> -14416664 | J31: -231248420
B33: (1) Variance between column A and D represents the portion of rural costs allocated to Labrador Interconnected

Sheet Summary - Supply Cost Deferral
B1: Newfoundland and Labrador Hydro | W1: Pg 3
B4: Long Term Supply Cost Deferral Account
B5: Summary
B6: =+'inputs activity'!C1 -> 2027-12-31
D9: A | E9: B | F9: C | G9: D | H9: E | I9: F | J9: G | K9: H | L9: I | M9: J | N9: K | O9: L | P9: M | Q9: N | R9: P | S9: Q | T9: R | U9: S
D11: Muskrat Falls | E11: Net Revenue | F11: Transmission | G11: Subtotal | H11: Rate | I11: Project Cost Recovery | K11: Holyrood TGS | L11: Other IIS | M11: Load Variation | O11: Greenhouse | P11: Allocation | Q11: Subtotal | R11: Financing Charges | U11: Cumulative
D12: Supply Cost | E12: From Exports | F12: Tariff Revenue | G12: Muskrat Falls | H12: Mitigation | I12: Utility | J12: Industrial | K12: Fuel Cost | L12: Supply Cost | M12: Utility | N12: Industrial | O12: Gas Credit | P12: Rural Rate | Q12: Monthly | U12: Net
D13: Variance | E13: Variance | F13: Variance | G13: Project Costs | H13: Fund | K13: Variance | L13: Variance | O13: Variance | P13: Alteration | Q13: Variances | R13: Utility | S13: Other | T13: Transfers | U13: Balance
D14: ($) | E14: ($) | F14: ($) | G14: ($) | H14: ($) | I14: ($) | J14: ($) | K14: ($) | L14: ($) | M14: ($) | N14: ($) | O14: ($) | P14: ($) | Q14: ($) | R14: ($) | S14: ($) | T14: ($) | U14: ($)
G15: (Sum A to C) | Q15: (Sum D to M)
U16: (to page 2)
B17: Opening Balance | D17: 0 | E17: 0 | F17: 0 | G17: 0 | H17: 0 | I17: 0 | J17: 0 | K17: 0 | L17: 0 | M17: 0 | N17: 0 | O17: 0 | P17: 0 | Q17: 0 | R17: 0 | S17: 0 | T17: 0 | U17: =Q17+S17+T17 -> 0
B18: Adjustment
B19: Adjusted opening balance | D19: =D17+D18 -> 0 | E19: =E17+E18 -> 0 | F19: =F17+F18 -> 0 | G19: =SUM(D19:F19) -> 0 | H19: =H17+H18 -> 0 | I19: 0 | J19: 0 | K19: 0 | L19: 0 | M19: 0 | N19: 0 | O19: 0 | P19: =P17+P18 -> 0 | Q19: =Q17+Q18 -> 0 | T19: 0 | U19: =U17+U18 -> 0
B20: January | D20: =IF(+'inputs activity'!$C$3>0,+'MF Supply Variances'!G18," ") -> 0 | E20: =IF(+'inputs activity'!$C$3>0,+'Exports Variance'!L18," ") -> 0 | F20: =IF(+'inputs activity'!$C$3>0,+'Tariff Variance'!F18," ") -> 0 | G20: =SUM(D20:F20) -> 0 | H20: =IF(+'inputs activity'!$C$3>0,+'Rate Mitigation Variance'!F18," ") -> 0 | I20: =IF(+'inputs activity'!$C$3>0,ROUND((+'Load NFP'!$D18)*'inputs activity'!$C$31,0)," ") -> -26973968 | J20: =IF(+'inputs activity'!$C$3>0,ROUND((+'Load IND'!$D18)*'inputs activity'!$C$32,0)," ") -> -1165834 | K20: =IF(+'inputs activity'!$C$3>0,+'Fuel Variance'!P18," ") -> 0 | L20: =IF(+'inputs activity'!$C$3>0,+'Other IIS Variance'!S18," ") -> 0 | M20: =IF(+'inputs activity'!$C$3>0,+'Load NFP'!H18," ") -> 0 | N20: =IF(+'inputs activity'!$C$3>0,+'Load IND'!H18," ") -> 0 | O20: =IF(+'inputs activity'!$C$3>0,+'GHG Variance'!F18," ") -> 0 | Q20: =IF(+'inputs activity'!$C$3>0,SUM(G20:P20)," ") -> -28139802 | R20: =IF(+'inputs activity'!$C$3>0,SummaryNFpower!Q20," ") -> 0 | S20: =IF(+'inputs activity'!$C$3>0,SummaryIndustrials!P20," ") -> 0 | U20: =IF(+'inputs activity'!C$3>11,+S20+Q20+U19+T20+R20," ") -> -28139802
B21: February | D21: =IF(+'inputs activity'!$C$3>1,+'MF Supply Variances'!G19," ") -> 0 | E21: =IF(+'inputs activity'!$C$3>1,+'Exports Variance'!L19," ") -> 0 | F21: =IF(+'inputs activity'!$C$3>1,+'Tariff Variance'!F19," ") -> 0 | G21: 0 | H21: =IF(+'inputs activity'!$C$3>1,+'Rate Mitigation Variance'!F19," ") -> 0 | I21: =IF(+'inputs activity'!$C$3>0,ROUND((+'Load NFP'!$D19)*'inputs activity'!$C$31,0)," ") -> -24668114 | J21: =IF(+'inputs activity'!$C$3>0,ROUND((+'Load IND'!$D19)*'inputs activity'!$C$32,0)," ") -> -993096 | K21: =IF(+'inputs activity'!$C$3>1,+'Fuel Variance'!P19," ") -> 0 | L21: =IF(+'inputs activity'!$C$3>0,+'Other IIS Variance'!S19," ") -> 0 | M21: =IF(+'inputs activity'!$C$3>1,+'Load NFP'!H19," ") -> 0 | N21: =IF(+'inputs activity'!$C$3>1,+'Load IND'!H19," ") -> 0 | O21: =IF(+'inputs activity'!$C$3>1,+'GHG Variance'!F19," ") -> 0 | Q21: =IF(+'inputs activity'!$C$3>0,SUM(G21:P21)," ") -> -25661210 | R21: =IF(+'inputs activity'!$C$3>0,SummaryNFpower!Q21," ") -> -107315 | S21: =IF(+'inputs activity'!$C$3>0,SummaryIndustrials!P21," ") -> -4638 | U21: =IF(+'inputs activity'!C$3>11,+S21+Q21+U20+T21+R21," ") -> -53912965
B22: March | D22: =IF(+'inputs activity'!$C$3>2,+'MF Supply Variances'!G20," ") -> 0 | E22: =IF(+'inputs activity'!$C$3>2,+'Exports Variance'!L20," ") -> 0 | F22: =IF(+'inputs activity'!$C$3>2,+'Tariff Variance'!F20," ") -> 0 | G22: 0 | H22: =IF(+'inputs activity'!$C$3>2,+'Rate Mitigation Variance'!F20," ") -> 0 | I22: =IF(+'inputs activity'!$C$3>0,ROUND((+'Load NFP'!$D20)*'inputs activity'!$C$31,0)," ") -> -24257004 | J22: =IF(+'inputs activity'!$C$3>0,ROUND((+'Load IND'!$D20)*'inputs activity'!$C$32,0)," ") -> -1266170 | K22: =IF(+'inputs activity'!$C$3>2,+'Fuel Variance'!P20," ") -> 0 | L22: =IF(+'inputs activity'!$C$3>0,+'Other IIS Variance'!S20," ") -> 0 | M22: =IF(+'inputs activity'!$C$3>2,+'Load NFP'!H20," ") -> 0 | N22: =IF(+'inputs activity'!$C$3>2,+'Load IND'!H20," ") -> 0 | O22: =IF(+'inputs activity'!$C$3>2,+'GHG Variance'!F20," ") -> 0 | Q22: =IF(+'inputs activity'!$C$3>0,SUM(G22:P22)," ") -> -25523174 | R22: =IF(+'inputs activity'!$C$3>0,SummaryNFpower!Q22," ") -> -205882 | S22: =IF(+'inputs activity'!$C$3>0,SummaryIndustrials!P22," ") -> -8608 | U22: =IF(+'inputs activity'!C$3>11,+S22+Q22+U21+T22+R22," ") -> -79650629
B23: April | D23: =IF(+'inputs activity'!$C$3>3,+'MF Supply Variances'!G21," ") -> 0 | E23: =IF(+'inputs activity'!$C$3>3,+'Exports Variance'!L21," ") -> 0 | F23: =IF(+'inputs activity'!$C$3>3,+'Tariff Variance'!F21," ") -> 0 | G23: 0 | H23: =IF(+'inputs activity'!$C$3>3,+'Rate Mitigation Variance'!F21," ") -> 0 | I23: =IF(+'inputs activity'!$C$3>0,ROUND((+'Load NFP'!$D21)*'inputs activity'!$C$31,0)," ") -> -18703483 | J23: =IF(+'inputs activity'!$C$3>0,ROUND((+'Load IND'!$D21)*'inputs activity'!$C$32,0)," ") -> -1073957 | K23: =IF(+'inputs activity'!$C$3>3,+'Fuel Variance'!P21," ") -> 0 | L23: =IF(+'inputs activity'!$C$3>0,+'Other IIS Variance'!S21," ") -> 0 | M23: =IF(+'inputs activity'!$C$3>3,+'Load NFP'!H21," ") -> 0 | N23: =IF(+'inputs activity'!$C$3>3,+'Load IND'!H21," ") -> 0 | O23: =IF(+'inputs activity'!$C$3>3,+'GHG Variance'!F21," ") -> 0 | Q23: =IF(+'inputs activity'!$C$3>0,SUM(G23:P23)," ") -> -19777440 | R23: =IF(+'inputs activity'!$C$3>0,SummaryNFpower!Q23," ") -> -303207 | S23: =IF(+'inputs activity'!$C$3>0,SummaryIndustrials!P23," ") -> -13679 | U23: =IF(+'inputs activity'!C$3>11,+S23+Q23+U22+T23+R23," ") -> -99744955
B24: May | D24: =IF(+'inputs activity'!$C$3>4,+'MF Supply Variances'!G22," ") -> 0 | E24: =IF(+'inputs activity'!$C$3>4,+'Exports Variance'!L22," ") -> 0 | F24: =IF(+'inputs activity'!$C$3>4,+'Tariff Variance'!F22," ") -> 0 | G24: 0 | H24: =IF(+'inputs activity'!$C$3>4,+'Rate Mitigation Variance'!F22," ") -> 0 | I24: =IF(+'inputs activity'!$C$3>0,ROUND((+'Load NFP'!$D22)*'inputs activity'!$C$31,0)," ") -> -14637301 | J24: =IF(+'inputs activity'!$C$3>0,ROUND((+'Load IND'!$D22)*'inputs activity'!$C$32,0)," ") -> -1245970 | K24: =IF(+'inputs activity'!$C$3>4,+'Fuel Variance'!P22," ") -> 0 | L24: =IF(+'inputs activity'!$C$3>0,+'Other IIS Variance'!S22," ") -> 0 | M24: =IF(+'inputs activity'!$C$3>4,+'Load NFP'!H22," ") -> 0 | N24: =IF(+'inputs activity'!$C$3>4,+'Load IND'!H22," ") -> 0 | O24: =IF(+'inputs activity'!$C$3>4,+'GHG Variance'!F22," ") -> 0 | Q24: =IF(+'inputs activity'!$C$3>0,SUM(G24:P24)," ") -> -15883271 | R24: =IF(+'inputs activity'!$C$3>0,SummaryNFpower!Q24," ") -> -378824 | S24: =IF(+'inputs activity'!$C$3>0,SummaryIndustrials!P24," ") -> -18006 | U24: =IF(+'inputs activity'!C$3>11,+S24+Q24+U23+T24+R24," ") -> -116025056
B25: June | D25: =IF(+'inputs activity'!$C$3>5,+'MF Supply Variances'!G23," ") -> 0 | E25: =IF(+'inputs activity'!$C$3>5,+'Exports Variance'!L23," ") -> 0 | F25: =IF(+'inputs activity'!$C$3>5,+'Tariff Variance'!F23," ") -> 0 | G25: 0 | H25: =IF(+'inputs activity'!$C$3>5,+'Rate Mitigation Variance'!F23," ") -> 0 | I25: =IF(+'inputs activity'!$C$3>0,ROUND((+'Load NFP'!$D23)*'inputs activity'!$C$31,0)," ") -> -12218783 | J25: =IF(+'inputs activity'!$C$3>0,ROUND((+'Load IND'!$D23)*'inputs activity'!$C$32,0)," ") -> -1225530 | K25: =IF(+'inputs activity'!$C$3>5,+'Fuel Variance'!P23," ") -> 0 | L25: =IF(+'inputs activity'!$C$3>0,+'Other IIS Variance'!S23," ") -> 0 | M25: =IF(+'inputs activity'!$C$3>5,+'Load NFP'!H23," ") -> 0 | N25: =IF(+'inputs activity'!$C$3>5,+'Load IND'!H23," ") -> 0 | O25: =IF(+'inputs activity'!$C$3>5,+'GHG Variance'!F23," ") -> 0 | Q25: =IF(+'inputs activity'!$C$3>0,SUM(G25:P25)," ") -> -13444313 | R25: =IF(+'inputs activity'!$C$3>0,SummaryNFpower!Q25," ") -> -438565 | S25: =IF(+'inputs activity'!$C$3>0,SummaryIndustrials!P25," ") -> -23035 | U25: =IF(+'inputs activity'!C$3>11,+S25+Q25+U24+T25+R25," ") -> -129930969
B26: July | D26: =IF(+'inputs activity'!$C$3>6,+'MF Supply Variances'!G24," ") -> 0 | E26: =IF(+'inputs activity'!$C$3>6,+'Exports Variance'!L24," ") -> 0 | F26: =IF(+'inputs activity'!$C$3>6,+'Tariff Variance'!F24," ") -> 0 | G26: 0 | H26: =IF(+'inputs activity'!$C$3>6,+'Rate Mitigation Variance'!F24," ") -> 0 | I26: =IF(+'inputs activity'!$C$3>0,ROUND((+'Load NFP'!$D24)*'inputs activity'!$C$31,0)," ") -> -11033455 | J26: =IF(+'inputs activity'!$C$3>0,ROUND((+'Load IND'!$D24)*'inputs activity'!$C$32,0)," ") -> -1287638 | K26: =IF(+'inputs activity'!$C$3>6,+'Fuel Variance'!P24," ") -> 0 | L26: =IF(+'inputs activity'!$C$3>0,+'Other IIS Variance'!S24," ") -> 0 | M26: =IF(+'inputs activity'!$C$3>6,+'Load NFP'!H24," ") -> 0 | N26: =IF(+'inputs activity'!$C$3>6,+'Load IND'!H24," ") -> 0 | O26: =IF(+'inputs activity'!$C$3>6,+'GHG Variance'!F24," ") -> 0 | Q26: =IF(+'inputs activity'!$C$3>0,SUM(G26:P26)," ") -> -12321093 | R26: =IF(+'inputs activity'!$C$3>0,SummaryNFpower!Q26," ") -> -488921 | S26: =IF(+'inputs activity'!$C$3>0,SummaryIndustrials!P26," ") -> -28002 | U26: =IF(+'inputs activity'!C$3>11,+S26+Q26+U25+T26+R26," ") -> -142768985
B27: August | D27: =IF(+'inputs activity'!$C$3>7,+'MF Supply Variances'!G25," ") -> 0 | E27: =IF(+'inputs activity'!$C$3>7,+'Exports Variance'!L25," ") -> 0 | F27: =IF(+'inputs activity'!$C$3>7,+'Tariff Variance'!F25," ") -> 0 | G27: 0 | H27: =IF(+'inputs activity'!$C$3>7,+'Rate Mitigation Variance'!F25," ") -> 0 | I27: =IF(+'inputs activity'!$C$3>0,ROUND((+'Load NFP'!$D25)*'inputs activity'!$C$31,0)," ") -> -10989891 | J27: =IF(+'inputs activity'!$C$3>0,ROUND((+'Load IND'!$D25)*'inputs activity'!$C$32,0)," ") -> -1257859 | K27: =IF(+'inputs activity'!$C$3>7,+'Fuel Variance'!P25," ") -> 0 | L27: =IF(+'inputs activity'!$C$3>0,+'Other IIS Variance'!S25," ") -> 0 | M27: =IF(+'inputs activity'!$C$3>7,+'Load NFP'!H25," ") -> 0 | N27: =IF(+'inputs activity'!$C$3>7,+'Load IND'!H25," ") -> 0 | O27: =IF(+'inputs activity'!$C$3>7,+'GHG Variance'!F25," ") -> 0 | Q27: =IF(+'inputs activity'!$C$3>0,SUM(G27:P27)," ") -> -12247750 | R27: =IF(+'inputs activity'!$C$3>0,SummaryNFpower!Q27," ") -> -534762 | S27: =IF(+'inputs activity'!$C$3>0,SummaryIndustrials!P27," ") -> -33237 | U27: =IF(+'inputs activity'!C$3>11,+S27+Q27+U26+T27+R27," ") -> -155584734
B28: September | D28: =IF(+'inputs activity'!$C$3>8,+'MF Supply Variances'!G26," ") -> 0 | E28: =IF(+'inputs activity'!$C$3>8,+'Exports Variance'!L26," ") -> 0 | F28: =IF(+'inputs activity'!$C$3>8,+'Tariff Variance'!F26," ") -> 0 | G28: 0 | H28: =IF(+'inputs activity'!$C$3>8,+'Rate Mitigation Variance'!F26," ") -> 0 | I28: =IF(+'inputs activity'!$C$3>0,ROUND((+'Load NFP'!$D26)*'inputs activity'!$C$31,0)," ") -> -11216717 | J28: =IF(+'inputs activity'!$C$3>0,ROUND((+'Load IND'!$D26)*'inputs activity'!$C$32,0)," ") -> -1202249 | K28: =IF(+'inputs activity'!$C$3>8,+'Fuel Variance'!P26," ") -> 0 | L28: =IF(+'inputs activity'!$C$3>0,+'Other IIS Variance'!S26," ") -> 0 | M28: =IF(+'inputs activity'!$C$3>8,+'Load NFP'!H26," ") -> 0 | N28: =IF(+'inputs activity'!$C$3>8,+'Load IND'!H26," ") -> 0 | O28: =IF(+'inputs activity'!$C$3>8,+'GHG Variance'!F26," ") -> 0 | Q28: =IF(+'inputs activity'!$C$3>0,SUM(G28:P28)," ") -> -12418966 | R28: =IF(+'inputs activity'!$C$3>0,SummaryNFpower!Q28," ") -> -580613 | S28: =IF(+'inputs activity'!$C$3>0,SummaryIndustrials!P28," ") -> -38373 | U28: =IF(+'inputs activity'!C$3>11,+S28+Q28+U27+T28+R28," ") -> -168622686
B29: October | D29: =IF(+'inputs activity'!$C$3>9,+'MF Supply Variances'!G27," ") -> 0 | E29: =IF(+'inputs activity'!$C$3>9,+'Exports Variance'!L27," ") -> 0 | F29: =IF(+'inputs activity'!$C$3>9,+'Tariff Variance'!F27," ") -> 0 | G29: 0 | H29: =IF(+'inputs activity'!$C$3>9,+'Rate Mitigation Variance'!F27," ") -> 0 | I29: =IF(+'inputs activity'!$C$3>0,ROUND((+'Load NFP'!$D27)*'inputs activity'!$C$31,0)," ") -> -14694218 | J29: =IF(+'inputs activity'!$C$3>0,ROUND((+'Load IND'!$D27)*'inputs activity'!$C$32,0)," ") -> -759980 | K29: =IF(+'inputs activity'!$C$3>9,+'Fuel Variance'!P27," ") -> 0 | L29: =IF(+'inputs activity'!$C$3>0,+'Other IIS Variance'!S27," ") -> 0 | M29: =IF(+'inputs activity'!$C$3>9,+'Load NFP'!H27," ") -> 0 | N29: =IF(+'inputs activity'!$C$3>9,+'Load IND'!H27," ") -> 0 | O29: =IF(+'inputs activity'!$C$3>9,+'GHG Variance'!F27," ") -> 0 | Q29: =IF(+'inputs activity'!$C$3>0,SUM(G29:P29)," ") -> -15454198 | R29: =IF(+'inputs activity'!$C$3>0,SummaryNFpower!Q29," ") -> -627548 | S29: =IF(+'inputs activity'!$C$3>0,SummaryIndustrials!P29," ") -> -43309 | U29: =IF(+'inputs activity'!C$3>11,+S29+Q29+U28+T29+R29," ") -> -184747741
B30: November | D30: =IF(+'inputs activity'!$C$3>10,+'MF Supply Variances'!G28," ") -> 0 | E30: =IF(+'inputs activity'!$C$3>10,+'Exports Variance'!L28," ") -> 0 | F30: =IF(+'inputs activity'!$C$3>10,+'Tariff Variance'!F28," ") -> 0 | G30: 0 | H30: =IF(+'inputs activity'!$C$3>10,+'Rate Mitigation Variance'!F28," ") -> 0 | I30: =IF(+'inputs activity'!$C$3>0,ROUND((+'Load NFP'!$D28)*'inputs activity'!$C$31,0)," ") -> -18370196 | J30: =IF(+'inputs activity'!$C$3>0,ROUND((+'Load IND'!$D28)*'inputs activity'!$C$32,0)," ") -> -1267450 | K30: =IF(+'inputs activity'!$C$3>10,+'Fuel Variance'!P28," ") -> 0 | L30: =IF(+'inputs activity'!$C$3>0,+'Other IIS Variance'!S28," ") -> 0 | M30: =IF(+'inputs activity'!$C$3>10,+'Load NFP'!H28," ") -> 0 | N30: =IF(+'inputs activity'!$C$3>10,+'Load IND'!H28," ") -> 0 | O30: =IF(+'inputs activity'!$C$3>10,+'GHG Variance'!F28," ") -> 0 | Q30: =IF(+'inputs activity'!$C$3>0,SUM(G30:P30)," ") -> -19637646 | R30: =IF(+'inputs activity'!$C$3>0,SummaryNFpower!Q30," ") -> -688504 | S30: =IF(+'inputs activity'!$C$3>0,SummaryIndustrials!P30," ") -> -46505 | U30: =IF(+'inputs activity'!C$3>11,+S30+Q30+U29+T30+R30," ") -> -205120396
B31: December | D31: =IF(+'inputs activity'!$C$3>11,+'MF Supply Variances'!G29," ") -> 0 | E31: =IF(+'inputs activity'!$C$3>11,+'Exports Variance'!L29," ") -> 0 | F31: =IF(+'inputs activity'!$C$3>11,+'Tariff Variance'!F29," ") -> 0 | G31: 0 | H31: =IF(+'inputs activity'!$C$3>11,+'Rate Mitigation Variance'!F29," ") -> 0 | I31: =IF(+'inputs activity'!$C$3>0,ROUND((+'Load NFP'!$D29)*'inputs activity'!$C$31,0)," ") -> -23950157 | J31: =IF(+'inputs activity'!$C$3>0,ROUND((+'Load IND'!$D29)*'inputs activity'!$C$32,0)," ") -> -1361807 | K31: =IF(+'inputs activity'!$C$3>11,+'Fuel Variance'!P29," ") -> 0 | L31: =IF(+'inputs activity'!$C$3>0,+'Other IIS Variance'!S29," ") -> 0 | M31: =IF(+'inputs activity'!$C$3>11,+'Load NFP'!H29," ") -> 0 | N31: =IF(+'inputs activity'!$C$3>11,+'Load IND'!H29," ") -> 0 | O31: =IF(+'inputs activity'!$C$3>11,+'GHG Variance'!F29," ") -> 0 | Q31: =IF(+'inputs activity'!$C$3>0,SUM(G31:P31)," ") -> -25311964 | R31: =IF(+'inputs activity'!$C$3>0,SummaryNFpower!Q31," ") -> -764328 | S31: =IF(+'inputs activity'!$C$3>0,SummaryIndustrials!P31," ") -> -51732 | U31: =IF(+'inputs activity'!C$3>11,+S31+Q31+U30+T31+R31," ") -> -231248420
B33: Year to date | D33: =SUM(D20:D32) -> 0 | E33: =SUM(E20:E32) -> 0 | F33: =SUM(F20:F32) -> 0 | G33: =SUM(G20:G32) -> 0 | H33: 0 | I33: =SUM(I20:I32) -> -211713287 | J33: -14107540 | K33: =SUM(K20:K32) -> 0 | L33: =SUM(L20:L32) -> 0 | M33: 0 | N33: 0 | O33: 0 | P33: =SUM(P20:P32) -> 0 | Q33: =SUM(Q20:Q32) -> -225820827 | R33: =SUM(R20:R32) -> -5118469 | S33: =SUM(S20:S32) -> -309124 | T33: =SUM(T20:T32) -> 0 | U33: =+Q33+S33+T33+R33 -> -231248420
U34: 0
B35: Total | D35: =+D33+D19 -> 0 | E35: =+E33+E19 -> 0 | F35: =+F33+F19 -> 0 | G35: =+G33+G19 -> 0 | H35: =+H33+H19 -> 0 | I35: -211713287 | J35: -14107540 | K35: =+K33+K19 -> 0 | L35: 0 | M35: =+M33+M19 -> 0 | N35: 0 | O35: =+O33+O19 -> 0 | P35: =+P33+P19 -> 0 | Q35: -225820827 | R35: -5118469 | S35: -309124 | T35: 0 | U35: =+U19+U33+U34 -> -231248420

Sheet SummaryNFpower
B1: Newfoundland and Labrador Hydro | U1: Pg 4
B4: Long Term Supply Cost Deferral Account
B5: Utility Customer - Balance and Activity
B6: =+'inputs activity'!C1 -> 2027-12-31
D9: A | E9: B | F9: C | G9: D | H9: E | I9: F | J9: G | K9: H | L9: I | M9: J | N9: K | O9: L | P9: M | Q9: N | R9: O | S9: P
D11: Muskrat Falls | E11: Net Revenue | F11: Transmission | G11: Subtotal | H11: Rate | I11: Holyrood TGS | J11: Other IIS | L11: Greenhouse | M11: Allocation | N11: Subtotal | O11: Project Cost | S11: Cumulative
D12: Supply Cost | E12: From Exports | F12: Tariff Revenue | G12: Muskrat Falls | H12: Mitigation | I12: Fuel Cost | J12: Supply Cost | K12: Load | L12: Gas Credit | M12: Rural Rate | N12: Monthly | O12: Recovery | Q12: Financing | S12: Net
D13: Variance | E13: Variance | F13: Variance | G13: Project Costs | H13: Fund | I13: Variance | J13: Variance | K13: Variation | L13: Variance | M13: Alteration | N13: Variances | O13: Rider | P13: Adjustment | Q13: Charges | R13: Transfers | S13: Balance
D14: ($) | E14: ($) | F14: ($) | G14: ($) | H14: ($) | I14: ($) | J14: ($) | K14: ($) | L14: ($) | M14: ($) | N14: ($) | O14: ($) | P14: ($) | Q14: ($) | S14: ($)
G15: (Sum A to C) | N15: (Sum D to J)
S16: (to page 2)
B17: Opening Balance
B18: Adjustments
B19: Adjusted opening balance | D19: =D17+D18 -> 0 | E19: =E17+E18 -> 0 | F19: =F17+F18 -> 0 | G19: =SUM(D19:F19) -> 0 | H19: =H17+H18 -> 0 | I19: 0 | J19: 0 | K19: 0 | L19: 0 | M19: 0 | N19: 0 | O19: =O17+O18 -> 0 | P19: =P17+P18 -> 0 | Q19: =Q17+Q18 -> 0 | R19: =R17+R18 -> 0 | S19: =S17+S18 -> 0
B20: January | D20: =IF(+'inputs activity'!$C$3>0,+'monthly MF Alloc'!$L18," ") -> 0 | E20: =IF(+'inputs activity'!$C$3>0,+'monthly Exports Alloc'!$L18," ") -> 0 | F20: =IF(+'inputs activity'!$C$3>0,+'monthly Tariff Alloc'!$L18," ") -> 0 | G20: =SUM(D20:F20) -> 0 | H20: =IF(+'inputs activity'!$C$3>0,+'monthly Mitigation Alloc'!$L18," ") -> 0 | I20: =IF(+'inputs activity'!$C$3>0,+'monthly Fuel Alloc'!$L18," ") -> 0 | J20: =IF(+'inputs activity'!$C$3>0,+'monthly Other IIS Alloc'!$L18," ") -> 0 | K20: =IF(+'inputs activity'!$C$3>0,+'Load NFP'!H18," ") -> 0 | L20: =IF(+'inputs activity'!$C$3>0,+'monthly GHG Alloc'!$L18," ") -> 0 | M20: =IF(+'inputs activity'!$C$3>0,ROUND(+'Actual $'!B$84*'inputs activity'!C$34,0)," ") -> 0 | N20: =IF(+'inputs activity'!$C$3>0,SUM(G20:M20)," ") -> 0 | O20: =IF(+'inputs activity'!$C$3>0,ROUND((+'Load NFP'!D18)*'inputs activity'!$C$31,0)," ") -> -26973968 | Q20: =IF('inputs activity'!$C$3>0,ROUND(S19*'inputs activity'!$C$17,0),0) -> 0 | S20: =IF(+'inputs activity'!C$3>0,S19+SUM(N20:R20)," ") -> -26973968
B21: February | D21: =IF(+'inputs activity'!$C$3>0,+'monthly MF Alloc'!$L19," ") -> 0 | E21: =IF(+'inputs activity'!$C$3>0,+'monthly Exports Alloc'!$L19," ") -> 0 | F21: =IF(+'inputs activity'!$C$3>0,+'monthly Tariff Alloc'!$L19," ") -> 0 | G21: =SUM(D21:F21) -> 0 | H21: =IF(+'inputs activity'!$C$3>0,+'monthly Mitigation Alloc'!$L19," ") -> 0 | I21: =IF(+'inputs activity'!$C$3>0,+'monthly Fuel Alloc'!$L19," ") -> 0 | J21: =IF(+'inputs activity'!$C$3>0,+'monthly Other IIS Alloc'!$L19," ") -> 0 | K21: =IF(+'inputs activity'!$C$3>0,+'Load NFP'!H19," ") -> 0 | L21: =IF(+'inputs activity'!$C$3>0,+'monthly GHG Alloc'!$L19," ") -> 0 | M21: =IF(+'inputs activity'!$C$3>1,ROUND(+'Actual $'!C$84*'inputs activity'!C$34,0)," ") -> 0 | N21: =IF(+'inputs activity'!$C$3>0,SUM(G21:M21)," ") -> 0 | O21: =IF(+'inputs activity'!$C$3>0,ROUND((+'Load NFP'!D19)*'inputs activity'!$D$31,0)," ") -> -24668114 | Q21: =IF('inputs activity'!$C$3>1,ROUND(S20*'inputs activity'!$D$17,0),0) -> -107315 | S21: =IF(+'inputs activity'!C$3>0,S20+SUM(N21:R21)," ") -> -51749397
B22: March | D22: =IF(+'inputs activity'!$C$3>0,+'monthly MF Alloc'!$L20," ") -> 0 | E22: =IF(+'inputs activity'!$C$3>0,+'monthly Exports Alloc'!$L20," ") -> 0 | F22: =IF(+'inputs activity'!$C$3>0,+'monthly Tariff Alloc'!$L20," ") -> 0 | G22: 0 | H22: =IF(+'inputs activity'!$C$3>0,+'monthly Mitigation Alloc'!$L20," ") -> 0 | I22: =IF(+'inputs activity'!$C$3>0,+'monthly Fuel Alloc'!$L20," ") -> 0 | J22: =IF(+'inputs activity'!$C$3>0,+'monthly Other IIS Alloc'!$L20," ") -> 0 | K22: =IF(+'inputs activity'!$C$3>0,+'Load NFP'!H20," ") -> 0 | L22: =IF(+'inputs activity'!$C$3>0,+'monthly GHG Alloc'!$L20," ") -> 0 | M22: =IF(+'inputs activity'!$C$3>2,ROUND(+'Actual $'!D$84*'inputs activity'!C$34,0)," ") -> 0 | N22: =IF(+'inputs activity'!$C$3>0,SUM(G22:M22)," ") -> 0 | O22: =IF(+'inputs activity'!$C$3>0,ROUND((+'Load NFP'!D20)*'inputs activity'!$E$31,0)," ") -> -24257004 | Q22: =IF('inputs activity'!$C$3>1,ROUND(S21*'inputs activity'!$D$17,0),0) -> -205882 | S22: =IF(+'inputs activity'!C$3>0,S21+SUM(N22:R22)," ") -> -76212283
B23: April | D23: =IF(+'inputs activity'!$C$3>0,+'monthly MF Alloc'!$L21," ") -> 0 | E23: =IF(+'inputs activity'!$C$3>0,+'monthly Exports Alloc'!$L21," ") -> 0 | F23: =IF(+'inputs activity'!$C$3>0,+'monthly Tariff Alloc'!$L21," ") -> 0 | G23: 0 | H23: =IF(+'inputs activity'!$C$3>0,+'monthly Mitigation Alloc'!$L21," ") -> 0 | I23: =IF(+'inputs activity'!$C$3>0,+'monthly Fuel Alloc'!$L21," ") -> 0 | J23: =IF(+'inputs activity'!$C$3>0,+'monthly Other IIS Alloc'!$L21," ") -> 0 | K23: =IF(+'inputs activity'!$C$3>0,+'Load NFP'!H21," ") -> 0 | L23: =IF(+'inputs activity'!$C$3>0,+'monthly GHG Alloc'!$L21," ") -> 0 | M23: =IF(+'inputs activity'!$C$3>3,ROUND(+'Actual $'!E$84*'inputs activity'!C$34,0)," ") -> 0 | N23: =IF(+'inputs activity'!$C$3>0,SUM(G23:M23)," ") -> 0 | O23: =IF(+'inputs activity'!$C$3>0,ROUND((+'Load NFP'!D21)*'inputs activity'!$F$31,0)," ") -> -18703483 | Q23: =IF('inputs activity'!$C$3>1,ROUND(S22*'inputs activity'!$D$17,0),0) -> -303207 | S23: =IF(+'inputs activity'!C$3>0,S22+SUM(N23:R23)," ") -> -95218973
B24: May | D24: =IF(+'inputs activity'!$C$3>0,+'monthly MF Alloc'!$L22," ") -> 0 | E24: =IF(+'inputs activity'!$C$3>0,+'monthly Exports Alloc'!$L22," ") -> 0 | F24: =IF(+'inputs activity'!$C$3>0,+'monthly Tariff Alloc'!$L22," ") -> 0 | G24: 0 | H24: =IF(+'inputs activity'!$C$3>0,+'monthly Mitigation Alloc'!$L22," ") -> 0 | I24: =IF(+'inputs activity'!$C$3>0,+'monthly Fuel Alloc'!$L22," ") -> 0 | J24: =IF(+'inputs activity'!$C$3>0,+'monthly Other IIS Alloc'!$L22," ") -> 0 | K24: =IF(+'inputs activity'!$C$3>0,+'Load NFP'!H22," ") -> 0 | L24: =IF(+'inputs activity'!$C$3>0,+'monthly GHG Alloc'!$L22," ") -> 0 | M24: =IF(+'inputs activity'!$C$3>4,ROUND(+'Actual $'!F$84*'inputs activity'!C$34,0)," ") -> 0 | N24: =IF(+'inputs activity'!$C$3>0,SUM(G24:M24)," ") -> 0 | O24: =IF(+'inputs activity'!$C$3>0,ROUND((+'Load NFP'!D22)*'inputs activity'!$G$31,0)," ") -> -14637301 | Q24: =IF('inputs activity'!$C$3>1,ROUND(S23*'inputs activity'!$D$17,0),0) -> -378824 | S24: =IF(+'inputs activity'!C$3>0,S23+SUM(N24:R24)," ") -> -110235098
B25: June | D25: =IF(+'inputs activity'!$C$3>0,+'monthly MF Alloc'!$L23," ") -> 0 | E25: =IF(+'inputs activity'!$C$3>0,+'monthly Exports Alloc'!$L23," ") -> 0 | F25: =IF(+'inputs activity'!$C$3>0,+'monthly Tariff Alloc'!$L23," ") -> 0 | G25: 0 | H25: =IF(+'inputs activity'!$C$3>0,+'monthly Mitigation Alloc'!$L23," ") -> 0 | I25: =IF(+'inputs activity'!$C$3>0,+'monthly Fuel Alloc'!$L23," ") -> 0 | J25: =IF(+'inputs activity'!$C$3>0,+'monthly Other IIS Alloc'!$L23," ") -> 0 | K25: =IF(+'inputs activity'!$C$3>0,+'Load NFP'!H23," ") -> 0 | L25: =IF(+'inputs activity'!$C$3>0,+'monthly GHG Alloc'!$L23," ") -> 0 | M25: =IF(+'inputs activity'!$C$3>5,ROUND(+'Actual $'!G$84*'inputs activity'!C$34,0)," ") -> 0 | N25: =IF(+'inputs activity'!$C$3>0,SUM(G25:M25)," ") -> 0 | O25: =IF(+'inputs activity'!$C$3>0,ROUND((+'Load NFP'!D23)*'inputs activity'!$H$31,0)," ") -> -12218783 | Q25: =IF('inputs activity'!$C$3>1,ROUND(S24*'inputs activity'!$D$17,0),0) -> -438565 | S25: =IF(+'inputs activity'!C$3>0,S24+SUM(N25:R25)," ") -> -122892446
B26: July | D26: =IF(+'inputs activity'!$C$3>0,+'monthly MF Alloc'!$L24," ") -> 0 | E26: =IF(+'inputs activity'!$C$3>0,+'monthly Exports Alloc'!$L24," ") -> 0 | F26: =IF(+'inputs activity'!$C$3>0,+'monthly Tariff Alloc'!$L24," ") -> 0 | G26: 0 | H26: =IF(+'inputs activity'!$C$3>0,+'monthly Mitigation Alloc'!$L24," ") -> 0 | I26: =IF(+'inputs activity'!$C$3>0,+'monthly Fuel Alloc'!$L24," ") -> 0 | J26: =IF(+'inputs activity'!$C$3>0,+'monthly Other IIS Alloc'!$L24," ") -> 0 | K26: =IF(+'inputs activity'!$C$3>0,+'Load NFP'!H24," ") -> 0 | L26: =IF(+'inputs activity'!$C$3>0,+'monthly GHG Alloc'!$L24," ") -> 0 | M26: =IF(+'inputs activity'!$C$3>6,ROUND(+'Actual $'!H$84*'inputs activity'!C$34,0)," ") -> 0 | N26: =IF(+'inputs activity'!$C$3>0,SUM(G26:M26)," ") -> 0 | O26: =IF(+'inputs activity'!$C$3>0,ROUND((+'Load NFP'!D24)*'inputs activity'!$I$31,0)," ") -> -11033455 | Q26: =IF('inputs activity'!$C$3>1,ROUND(S25*'inputs activity'!$D$17,0),0) -> -488921 | S26: =IF(+'inputs activity'!C$3>0,S25+SUM(N26:R26)," ") -> -134414822
B27: August | D27: =IF(+'inputs activity'!$C$3>0,+'monthly MF Alloc'!$L25," ") -> 0 | E27: =IF(+'inputs activity'!$C$3>0,+'monthly Exports Alloc'!$L25," ") -> 0 | F27: =IF(+'inputs activity'!$C$3>0,+'monthly Tariff Alloc'!$L25," ") -> 0 | G27: 0 | H27: =IF(+'inputs activity'!$C$3>0,+'monthly Mitigation Alloc'!$L25," ") -> 0 | I27: =IF(+'inputs activity'!$C$3>0,+'monthly Fuel Alloc'!$L25," ") -> 0 | J27: =IF(+'inputs activity'!$C$3>0,+'monthly Other IIS Alloc'!$L25," ") -> 0 | K27: =IF(+'inputs activity'!$C$3>0,+'Load NFP'!H25," ") -> 0 | L27: =IF(+'inputs activity'!$C$3>0,+'monthly GHG Alloc'!$L25," ") -> 0 | M27: =IF(+'inputs activity'!$C$3>7,ROUND(+'Actual $'!I$84*'inputs activity'!C$34,0)," ") -> 0 | N27: =IF(+'inputs activity'!$C$3>0,SUM(G27:M27)," ") -> 0 | O27: =IF(+'inputs activity'!$C$3>0,ROUND((+'Load NFP'!D25)*'inputs activity'!$J$31,0)," ") -> -10989891 | Q27: =IF('inputs activity'!$C$3>1,ROUND(S26*'inputs activity'!$D$17,0),0) -> -534762 | S27: =IF(+'inputs activity'!C$3>0,S26+SUM(N27:R27)," ") -> -145939475
B28: September | D28: =IF(+'inputs activity'!$C$3>0,+'monthly MF Alloc'!$L26," ") -> 0 | E28: =IF(+'inputs activity'!$C$3>0,+'monthly Exports Alloc'!$L26," ") -> 0 | F28: =IF(+'inputs activity'!$C$3>0,+'monthly Tariff Alloc'!$L26," ") -> 0 | G28: 0 | H28: =IF(+'inputs activity'!$C$3>0,+'monthly Mitigation Alloc'!$L26," ") -> 0 | I28: =IF(+'inputs activity'!$C$3>0,+'monthly Fuel Alloc'!$L26," ") -> 0 | J28: =IF(+'inputs activity'!$C$3>0,+'monthly Other IIS Alloc'!$L26," ") -> 0 | K28: =IF(+'inputs activity'!$C$3>0,+'Load NFP'!H26," ") -> 0 | L28: =IF(+'inputs activity'!$C$3>0,+'monthly GHG Alloc'!$L26," ") -> 0 | M28: =IF(+'inputs activity'!$C$3>8,ROUND(+'Actual $'!J$84*'inputs activity'!C$34,0)," ") -> 0 | N28: =IF(+'inputs activity'!$C$3>0,SUM(G28:M28)," ") -> 0 | O28: =IF(+'inputs activity'!$C$3>0,ROUND((+'Load NFP'!D26)*'inputs activity'!$K$31,0)," ") -> -11216717 | Q28: =IF('inputs activity'!$C$3>1,ROUND(S27*'inputs activity'!$D$17,0),0) -> -580613 | S28: =IF(+'inputs activity'!C$3>0,S27+SUM(N28:R28)," ") -> -157736805
B29: October | D29: =IF(+'inputs activity'!$C$3>0,+'monthly MF Alloc'!$L27," ") -> 0 | E29: =IF(+'inputs activity'!$C$3>0,+'monthly Exports Alloc'!$L27," ") -> 0 | F29: =IF(+'inputs activity'!$C$3>0,+'monthly Tariff Alloc'!$L27," ") -> 0 | G29: 0 | H29: =IF(+'inputs activity'!$C$3>0,+'monthly Mitigation Alloc'!$L27," ") -> 0 | I29: =IF(+'inputs activity'!$C$3>0,+'monthly Fuel Alloc'!$L27," ") -> 0 | J29: =IF(+'inputs activity'!$C$3>0,+'monthly Other IIS Alloc'!$L27," ") -> 0 | K29: =IF(+'inputs activity'!$C$3>0,+'Load NFP'!H27," ") -> 0 | L29: =IF(+'inputs activity'!$C$3>0,+'monthly GHG Alloc'!$L27," ") -> 0 | M29: =IF(+'inputs activity'!$C$3>9,ROUND(+'Actual $'!K$84*'inputs activity'!C$34,0)," ") -> 0 | N29: =IF(+'inputs activity'!$C$3>0,SUM(G29:M29)," ") -> 0 | O29: =IF(+'inputs activity'!$C$3>0,ROUND((+'Load NFP'!D27)*'inputs activity'!$L$31,0)," ") -> -14694218 | Q29: =IF('inputs activity'!$C$3>1,ROUND(S28*'inputs activity'!$D$17,0),0) -> -627548 | S29: =IF(+'inputs activity'!C$3>0,S28+SUM(N29:R29)," ") -> -173058571
B30: November | D30: =IF(+'inputs activity'!$C$3>0,+'monthly MF Alloc'!$L28," ") -> 0 | E30: =IF(+'inputs activity'!$C$3>0,+'monthly Exports Alloc'!$L28," ") -> 0 | F30: =IF(+'inputs activity'!$C$3>0,+'monthly Tariff Alloc'!$L28," ") -> 0 | G30: 0 | H30: =IF(+'inputs activity'!$C$3>0,+'monthly Mitigation Alloc'!$L28," ") -> 0 | I30: =IF(+'inputs activity'!$C$3>0,+'monthly Fuel Alloc'!$L28," ") -> 0 | J30: =IF(+'inputs activity'!$C$3>0,+'monthly Other IIS Alloc'!$L28," ") -> 0 | K30: =IF(+'inputs activity'!$C$3>0,+'Load NFP'!H28," ") -> 0 | L30: =IF(+'inputs activity'!$C$3>0,+'monthly GHG Alloc'!$L28," ") -> 0 | M30: =IF(+'inputs activity'!$C$3>10,ROUND(+'Actual $'!L$84*'inputs activity'!C$34,0)," ") -> 0 | N30: =IF(+'inputs activity'!$C$3>0,SUM(G30:M30)," ") -> 0 | O30: =IF(+'inputs activity'!$C$3>0,ROUND((+'Load NFP'!D28)*'inputs activity'!$M$31,0)," ") -> -18370196 | Q30: =IF('inputs activity'!$C$3>1,ROUND(S29*'inputs activity'!$D$17,0),0) -> -688504 | S30: =IF(+'inputs activity'!C$3>0,S29+SUM(N30:R30)," ") -> -192117271
B31: December | D31: =IF(+'inputs activity'!$C$3>0,+'monthly MF Alloc'!$L29," ") -> 0 | E31: =IF(+'inputs activity'!$C$3>0,+'monthly Exports Alloc'!$L29," ") -> 0 | F31: =IF(+'inputs activity'!$C$3>0,+'monthly Tariff Alloc'!$L29," ") -> 0 | G31: 0 | H31: =IF(+'inputs activity'!$C$3>0,+'monthly Mitigation Alloc'!$L29," ") -> 0 | I31: =IF(+'inputs activity'!$C$3>0,+'monthly Fuel Alloc'!$L29," ") -> 0 | J31: =IF(+'inputs activity'!$C$3>0,+'monthly Other IIS Alloc'!$L29," ") -> 0 | K31: =IF(+'inputs activity'!$C$3>0,+'Load NFP'!H29," ") -> 0 | L31: =IF(+'inputs activity'!$C$3>0,+'monthly GHG Alloc'!$L29," ") -> 0 | M31: =IF(+'inputs activity'!$C$3>11,ROUND(+'Actual $'!M$84*'inputs activity'!C$34,0)," ") -> 0 | N31: =IF(+'inputs activity'!$C$3>0,SUM(G31:M31)," ") -> 0 | O31: =IF(+'inputs activity'!$C$3>0,ROUND((+'Load NFP'!D29)*'inputs activity'!$N$31,0)," ") -> -23950157 | Q31: =IF('inputs activity'!$C$3>1,ROUND(S30*'inputs activity'!$D$17,0),0) -> -764328 | S31: =IF(+'inputs activity'!C$3>0,S30+SUM(N31:R31)," ") -> -216831756
B33: Year to date | D33: =SUM(D20:D32) -> 0 | E33: =SUM(E20:E32) -> 0 | F33: 0 | G33: 0 | I33: =SUM(I20:I32) -> 0 | J33: 0 | K33: =SUM(K20:K32) -> 0 | L33: =SUM(L20:L32) -> 0 | M33: 0 | N33: =SUM(N20:N32) -> 0 | O33: =SUM(O20:O32) -> -211713287 | P33: =SUM(P20:P32) -> 0 | Q33: =SUM(Q20:Q32) -> -5118469 | R33: =SUM(R20:R32) -> 0 | S33: =+N33+Q33+O33+R33 -> -216831756
B35: Total | D35: =+D33+D19 -> 0 | E35: =+E33+E19 -> 0 | F35: 0 | G35: 0 | I35: =+I33+I19 -> 0 | J35: 0 | K35: 0 | L35: =+L33+L19 -> 0 | M35: 0 | N35: 0 | O35: -211713287 | P35: 0 | Q35: -5118469 | R35: =+R33+R19 -> 0 | S35: =+S19+S33 -> -216831756

Sheet SummaryIndustrials
B1: =SummaryNFpower!B1:S1 -> Newfoundland and Labrador Hydro | T1: Pg 5
B4: Long Term Supply Cost Deferral Account
B5: Industrial Customer - Balance and Activity
B6: =+'inputs activity'!C1 -> 2027-12-31
D9: A | E9: B | F9: C | G9: D | H9: E | I9: F | J9: G | K9: H | L9: I | M9: J | N9: K | O9: L | P9: M | Q9: N | R9: O
D11: Muskrat Falls | E11: Net Revenue | F11: Transmission | G11: Subtotal | H11: Rate | I11: Holyrood TGS | J11: Other IIS | L11: Greenhouse | M11: Subtotal | N11: Project Cost | R11: Cumulative
D12: Supply Cost | E12: From Exports | F12: Tariff Revenue | G12: Muskrat Falls | H12: Mitigation | I12: Fuel Cost | J12: Supply Cost | K12: Load | L12: Gas Credit | M12: Monthly | N12: Recovery | P12: Financing | R12: Net
D13: Variance | E13: Variance | F13: Variance | G13: Project Costs | H13: Fund | I13: Variance | J13: Variance | K13: Variation | L13: Variance | M13: Variances | N13: Rider | O13: Adjustment | P13: Charges | Q13: Transfers | R13: Balance
D14: ($) | E14: ($) | F14: ($) | G14: ($) | H14: ($) | I14: ($) | J14: ($) | K14: ($) | L14: ($) | M14: ($) | N14: ($) | O14: ($) | P14: ($) | Q14: ($) | R14: ($)
G15: (Sum A to C) | M15: (Sum D to I)
R16: (to page 2)
B17: Opening Balance
B18: Adjustments
B19: Adjusted opening balance | D19: =D17+D18 -> 0 | E19: 0 | F19: 0 | G19: 0 | H19: 0 | I19: 0 | J19: 0 | K19: =K17+K18 -> 0 | L19: 0 | M19: 0 | N19: 0 | O19: 0 | P19: 0 | Q19: =Q17+Q18 -> 0 | R19: =R17+R18 -> 0
B20: January | D20: =IF(+'inputs activity'!$C$3>0,'monthly MF Alloc'!$P18," ") -> 0 | E20: =IF(+'inputs activity'!$C$3>0,'monthly Exports Alloc'!$P18," ") -> 0 | F20: =IF(+'inputs activity'!$C$3>0,'monthly Tariff Alloc'!$P18," ") -> 0 | G20: =SUM(D20:F20) -> 0 | H20: =IF(+'inputs activity'!$C$3>0,'monthly Mitigation Alloc'!$P18," ") -> 0 | I20: =IF(+'inputs activity'!$C$3>0,'monthly Fuel Alloc'!$P18," ") -> 0 | J20: =IF(+'inputs activity'!$C$3>0,+'monthly Other IIS Alloc'!$P18," ") -> 0 | K20: =IF(+'inputs activity'!$C$3>0,+'Load IND'!H18," ") -> 0 | L20: =IF(+'inputs activity'!$C$3>0,+'monthly GHG Alloc'!$P18," ") -> 0 | M20: =SUM(D20:L20) -> 0 | N20: =IF(+'inputs activity'!$C$3>0,ROUND((+'Load IND'!$D18)*'inputs activity'!$C$32,0)," ") -> -1165834 | P20: =IF('inputs activity'!$C$3>0,ROUND(R19*'inputs activity'!$C$17,0),0) -> 0 | R20: =IF(+'inputs activity'!C$3>0,R19+SUM(M20:Q20)," ") -> -1165834
B21: February | D21: =IF(+'inputs activity'!$C$3>0,'monthly MF Alloc'!$P19," ") -> 0 | E21: =IF(+'inputs activity'!$C$3>0,'monthly Exports Alloc'!$P19," ") -> 0 | F21: =IF(+'inputs activity'!$C$3>0,'monthly Tariff Alloc'!$P19," ") -> 0 | G21: =SUM(D21:F21) -> 0 | H21: =IF(+'inputs activity'!$C$3>0,'monthly Mitigation Alloc'!$P19," ") -> 0 | I21: =IF(+'inputs activity'!$C$3>0,'monthly Fuel Alloc'!$P19," ") -> 0 | J21: =IF(+'inputs activity'!$C$3>0,+'monthly Other IIS Alloc'!$P19," ") -> 0 | K21: =IF(+'inputs activity'!$C$3>0,+'Load IND'!H19," ") -> 0 | L21: =IF(+'inputs activity'!$C$3>0,+'monthly GHG Alloc'!$P19," ") -> 0 | M21: 0 | N21: =IF(+'inputs activity'!$C$3>0,ROUND((+'Load IND'!$D19)*'inputs activity'!$C$32,0)," ") -> -993096 | P21: =IF('inputs activity'!$C$3>0,ROUND(R20*'inputs activity'!$C$17,0),0) -> -4638 | R21: =IF(+'inputs activity'!C$3>0,R20+SUM(M21:Q21)," ") -> -2163568
B22: March | D22: =IF(+'inputs activity'!$C$3>0,'monthly MF Alloc'!$P20," ") -> 0 | E22: =IF(+'inputs activity'!$C$3>0,'monthly Exports Alloc'!$P20," ") -> 0 | F22: =IF(+'inputs activity'!$C$3>0,'monthly Tariff Alloc'!$P20," ") -> 0 | G22: 0 | H22: =IF(+'inputs activity'!$C$3>0,'monthly Mitigation Alloc'!$P20," ") -> 0 | I22: =IF(+'inputs activity'!$C$3>0,'monthly Fuel Alloc'!$P20," ") -> 0 | J22: =IF(+'inputs activity'!$C$3>0,+'monthly Other IIS Alloc'!$P20," ") -> 0 | K22: =IF(+'inputs activity'!$C$3>0,+'Load IND'!H20," ") -> 0 | L22: =IF(+'inputs activity'!$C$3>0,+'monthly GHG Alloc'!$P20," ") -> 0 | M22: 0 | N22: =IF(+'inputs activity'!$C$3>0,ROUND((+'Load IND'!$D20)*'inputs activity'!$C$32,0)," ") -> -1266170 | P22: =IF('inputs activity'!$C$3>0,ROUND(R21*'inputs activity'!$C$17,0),0) -> -8608 | R22: =IF(+'inputs activity'!C$3>0,R21+SUM(M22:Q22)," ") -> -3438346
B23: April | D23: =IF(+'inputs activity'!$C$3>0,'monthly MF Alloc'!$P21," ") -> 0 | E23: =IF(+'inputs activity'!$C$3>0,'monthly Exports Alloc'!$P21," ") -> 0 | F23: =IF(+'inputs activity'!$C$3>0,'monthly Tariff Alloc'!$P21," ") -> 0 | G23: 0 | H23: =IF(+'inputs activity'!$C$3>0,'monthly Mitigation Alloc'!$P21," ") -> 0 | I23: =IF(+'inputs activity'!$C$3>0,'monthly Fuel Alloc'!$P21," ") -> 0 | J23: =IF(+'inputs activity'!$C$3>0,+'monthly Other IIS Alloc'!$P21," ") -> 0 | K23: =IF(+'inputs activity'!$C$3>0,+'Load IND'!H21," ") -> 0 | L23: =IF(+'inputs activity'!$C$3>0,+'monthly GHG Alloc'!$P21," ") -> 0 | M23: 0 | N23: =IF(+'inputs activity'!$C$3>0,ROUND((+'Load IND'!$D21)*'inputs activity'!$C$32,0)," ") -> -1073957 | P23: =IF('inputs activity'!$C$3>0,ROUND(R22*'inputs activity'!$C$17,0),0) -> -13679 | R23: =IF(+'inputs activity'!C$3>0,R22+SUM(M23:Q23)," ") -> -4525982
B24: May | D24: =IF(+'inputs activity'!$C$3>0,'monthly MF Alloc'!$P22," ") -> 0 | E24: =IF(+'inputs activity'!$C$3>0,'monthly Exports Alloc'!$P22," ") -> 0 | F24: =IF(+'inputs activity'!$C$3>0,'monthly Tariff Alloc'!$P22," ") -> 0 | G24: 0 | H24: =IF(+'inputs activity'!$C$3>0,'monthly Mitigation Alloc'!$P22," ") -> 0 | I24: =IF(+'inputs activity'!$C$3>0,'monthly Fuel Alloc'!$P22," ") -> 0 | J24: =IF(+'inputs activity'!$C$3>0,+'monthly Other IIS Alloc'!$P22," ") -> 0 | K24: =IF(+'inputs activity'!$C$3>0,+'Load IND'!H22," ") -> 0 | L24: =IF(+'inputs activity'!$C$3>0,+'monthly GHG Alloc'!$P22," ") -> 0 | M24: 0 | N24: =IF(+'inputs activity'!$C$3>0,ROUND((+'Load IND'!$D22)*'inputs activity'!$C$32,0)," ") -> -1245970 | P24: =IF('inputs activity'!$C$3>0,ROUND(R23*'inputs activity'!$C$17,0),0) -> -18006 | R24: =IF(+'inputs activity'!C$3>0,R23+SUM(M24:Q24)," ") -> -5789958
B25: June | D25: =IF(+'inputs activity'!$C$3>0,'monthly MF Alloc'!$P23," ") -> 0 | E25: =IF(+'inputs activity'!$C$3>0,'monthly Exports Alloc'!$P23," ") -> 0 | F25: =IF(+'inputs activity'!$C$3>0,'monthly Tariff Alloc'!$P23," ") -> 0 | G25: 0 | H25: =IF(+'inputs activity'!$C$3>0,'monthly Mitigation Alloc'!$P23," ") -> 0 | I25: =IF(+'inputs activity'!$C$3>0,'monthly Fuel Alloc'!$P23," ") -> 0 | J25: =IF(+'inputs activity'!$C$3>0,+'monthly Other IIS Alloc'!$P23," ") -> 0 | K25: =IF(+'inputs activity'!$C$3>0,+'Load IND'!H23," ") -> 0 | L25: =IF(+'inputs activity'!$C$3>0,+'monthly GHG Alloc'!$P23," ") -> 0 | M25: 0 | N25: =IF(+'inputs activity'!$C$3>0,ROUND((+'Load IND'!$D23)*'inputs activity'!$C$32,0)," ") -> -1225530 | P25: =IF('inputs activity'!$C$3>0,ROUND(R24*'inputs activity'!$C$17,0),0) -> -23035 | R25: =IF(+'inputs activity'!C$3>0,R24+SUM(M25:Q25)," ") -> -7038523
B26: July | D26: =IF(+'inputs activity'!$C$3>0,'monthly MF Alloc'!$P24," ") -> 0 | E26: =IF(+'inputs activity'!$C$3>0,'monthly Exports Alloc'!$P24," ") -> 0 | F26: =IF(+'inputs activity'!$C$3>0,'monthly Tariff Alloc'!$P24," ") -> 0 | G26: 0 | H26: =IF(+'inputs activity'!$C$3>0,'monthly Mitigation Alloc'!$P24," ") -> 0 | I26: =IF(+'inputs activity'!$C$3>0,'monthly Fuel Alloc'!$P24," ") -> 0 | J26: =IF(+'inputs activity'!$C$3>0,+'monthly Other IIS Alloc'!$P24," ") -> 0 | K26: =IF(+'inputs activity'!$C$3>0,+'Load IND'!H24," ") -> 0 | L26: =IF(+'inputs activity'!$C$3>0,+'monthly GHG Alloc'!$P24," ") -> 0 | M26: 0 | N26: =IF(+'inputs activity'!$C$3>0,ROUND((+'Load IND'!$D24)*'inputs activity'!$C$32,0)," ") -> -1287638 | P26: =IF('inputs activity'!$C$3>0,ROUND(R25*'inputs activity'!$C$17,0),0) -> -28002 | R26: =IF(+'inputs activity'!C$3>0,R25+SUM(M26:Q26)," ") -> -8354163
B27: August | D27: =IF(+'inputs activity'!$C$3>0,'monthly MF Alloc'!$P25," ") -> 0 | E27: =IF(+'inputs activity'!$C$3>0,'monthly Exports Alloc'!$P25," ") -> 0 | F27: =IF(+'inputs activity'!$C$3>0,'monthly Tariff Alloc'!$P25," ") -> 0 | G27: 0 | H27: =IF(+'inputs activity'!$C$3>0,'monthly Mitigation Alloc'!$P25," ") -> 0 | I27: =IF(+'inputs activity'!$C$3>0,'monthly Fuel Alloc'!$P25," ") -> 0 | J27: =IF(+'inputs activity'!$C$3>0,+'monthly Other IIS Alloc'!$P25," ") -> 0 | K27: =IF(+'inputs activity'!$C$3>0,+'Load IND'!H25," ") -> 0 | L27: =IF(+'inputs activity'!$C$3>0,+'monthly GHG Alloc'!$P25," ") -> 0 | M27: 0 | N27: =IF(+'inputs activity'!$C$3>0,ROUND((+'Load IND'!$D25)*'inputs activity'!$C$32,0)," ") -> -1257859 | P27: =IF('inputs activity'!$C$3>0,ROUND(R26*'inputs activity'!$C$17,0),0) -> -33237 | R27: =IF(+'inputs activity'!C$3>0,R26+SUM(M27:Q27)," ") -> -9645259
B28: September | D28: =IF(+'inputs activity'!$C$3>0,'monthly MF Alloc'!$P26," ") -> 0 | E28: =IF(+'inputs activity'!$C$3>0,'monthly Exports Alloc'!$P26," ") -> 0 | F28: =IF(+'inputs activity'!$C$3>0,'monthly Tariff Alloc'!$P26," ") -> 0 | G28: 0 | H28: =IF(+'inputs activity'!$C$3>0,'monthly Mitigation Alloc'!$P26," ") -> 0 | I28: =IF(+'inputs activity'!$C$3>0,'monthly Fuel Alloc'!$P26," ") -> 0 | J28: =IF(+'inputs activity'!$C$3>0,+'monthly Other IIS Alloc'!$P26," ") -> 0 | K28: =IF(+'inputs activity'!$C$3>0,+'Load IND'!H26," ") -> 0 | L28: =IF(+'inputs activity'!$C$3>0,+'monthly GHG Alloc'!$P26," ") -> 0 | M28: 0 | N28: =IF(+'inputs activity'!$C$3>0,ROUND((+'Load IND'!$D26)*'inputs activity'!$C$32,0)," ") -> -1202249 | P28: =IF('inputs activity'!$C$3>0,ROUND(R27*'inputs activity'!$C$17,0),0) -> -38373 | R28: =IF(+'inputs activity'!C$3>0,R27+SUM(M28:Q28)," ") -> -10885881
B29: October | D29: =IF(+'inputs activity'!$C$3>0,'monthly MF Alloc'!$P27," ") -> 0 | E29: =IF(+'inputs activity'!$C$3>0,'monthly Exports Alloc'!$P27," ") -> 0 | F29: =IF(+'inputs activity'!$C$3>0,'monthly Tariff Alloc'!$P27," ") -> 0 | G29: 0 | H29: =IF(+'inputs activity'!$C$3>0,'monthly Mitigation Alloc'!$P27," ") -> 0 | I29: =IF(+'inputs activity'!$C$3>0,'monthly Fuel Alloc'!$P27," ") -> 0 | J29: =IF(+'inputs activity'!$C$3>0,+'monthly Other IIS Alloc'!$P27," ") -> 0 | K29: =IF(+'inputs activity'!$C$3>0,+'Load IND'!H27," ") -> 0 | L29: =IF(+'inputs activity'!$C$3>0,+'monthly GHG Alloc'!$P27," ") -> 0 | M29: 0 | N29: =IF(+'inputs activity'!$C$3>0,ROUND((+'Load IND'!$D27)*'inputs activity'!$C$32,0)," ") -> -759980 | P29: =IF('inputs activity'!$C$3>0,ROUND(R28*'inputs activity'!$C$17,0),0) -> -43309 | R29: =IF(+'inputs activity'!C$3>0,R28+SUM(M29:Q29)," ") -> -11689170
B30: November | D30: =IF(+'inputs activity'!$C$3>0,'monthly MF Alloc'!$P28," ") -> 0 | E30: =IF(+'inputs activity'!$C$3>0,'monthly Exports Alloc'!$P28," ") -> 0 | F30: =IF(+'inputs activity'!$C$3>0,'monthly Tariff Alloc'!$P28," ") -> 0 | G30: 0 | H30: =IF(+'inputs activity'!$C$3>0,'monthly Mitigation Alloc'!$P28," ") -> 0 | I30: =IF(+'inputs activity'!$C$3>0,'monthly Fuel Alloc'!$P28," ") -> 0 | J30: =IF(+'inputs activity'!$C$3>0,+'monthly Other IIS Alloc'!$P28," ") -> 0 | K30: =IF(+'inputs activity'!$C$3>0,+'Load IND'!H28," ") -> 0 | L30: =IF(+'inputs activity'!$C$3>0,+'monthly GHG Alloc'!$P28," ") -> 0 | M30: 0 | N30: =IF(+'inputs activity'!$C$3>0,ROUND((+'Load IND'!$D28)*'inputs activity'!$C$32,0)," ") -> -1267450 | P30: =IF('inputs activity'!$C$3>0,ROUND(R29*'inputs activity'!$C$17,0),0) -> -46505 | R30: =IF(+'inputs activity'!C$3>0,R29+SUM(M30:Q30)," ") -> -13003125
B31: December | D31: =IF(+'inputs activity'!$C$3>0,'monthly MF Alloc'!$P29," ") -> 0 | E31: =IF(+'inputs activity'!$C$3>0,'monthly Exports Alloc'!$P29," ") -> 0 | F31: =IF(+'inputs activity'!$C$3>0,'monthly Tariff Alloc'!$P29," ") -> 0 | G31: 0 | H31: =IF(+'inputs activity'!$C$3>0,'monthly Mitigation Alloc'!$P29," ") -> 0 | I31: =IF(+'inputs activity'!$C$3>0,'monthly Fuel Alloc'!$P29," ") -> 0 | J31: =IF(+'inputs activity'!$C$3>0,+'monthly Other IIS Alloc'!$P29," ") -> 0 | K31: =IF(+'inputs activity'!$C$3>0,+'Load IND'!H29," ") -> 0 | L31: =IF(+'inputs activity'!$C$3>0,+'monthly GHG Alloc'!$P29," ") -> 0 | M31: 0 | N31: =IF(+'inputs activity'!$C$3>0,ROUND((+'Load IND'!$D29)*'inputs activity'!$C$32,0)," ") -> -1361807 | P31: =IF('inputs activity'!$C$3>0,ROUND(R30*'inputs activity'!$C$17,0),0) -> -51732 | R31: =IF(+'inputs activity'!C$3>0,R30+SUM(M31:Q31)," ") -> -14416664
B33: Year to date | D33: =SUM(D20:D32) -> 0 | E33: 0 | F33: 0 | G33: 0 | I33: =SUM(I20:I32) -> 0 | J33: 0 | K33: 0 | L33: 0 | M33: 0 | N33: =SUM(N20:N32) -> -14107540 | O33: =SUM(O20:O32) -> 0 | P33: -309124 | Q33: =SUM(Q20:Q32) -> 0 | R33: =M33+P33 -> -309124
B35: Total | D35: =+D33 -> 0 | E35: 0 | F35: 0 | G35: 0 | H35: 0 | I35: 0 | J35: 0 | K35: 0 | L35: 0 | M35: 0 | N35: =+N33 -> -14107540 | O35: =+O33 -> 0 | P35: =+P33 -> -309124 | Q35: =+Q33 -> 0 | R35: =+R19+R33 -> -309124

Sheet Calculations>>>

Sheet MF Supply Variances
B1: Newfoundland and Labrador Hydro | L1: Pg 6
B4: Long Term Supply Cost Deferral Account
B5: Muskrat Falls Project Cost Variances
B6: =+'inputs activity'!C1 -> 2027-12-31
C9: A | D9: B | E9: C | F9: D | G9: E | I9: =Assumptions!$C$3 -> 0.4971 | J9: =Assumptions!$D$3 -> 0.5029
C11: MFLTA | D11: MFLTA | E11: TFA | F11: TFA
C12: Power Purchase | D12: Power Purchase | E12: Power Purchase | F12: Power Purchase | G12: Total | I12: Demand | J12: Energy
C13: Actual | D13: Test Year | E13: Actual | F13: Test Year | G13: Variation | I13: Allocator | J13: Allocator
C14: $ | D14: $ | E14: $ | F14: $ | G14: $ | I14: $ | J14: $
G15: (to page 3) | I15: (to page 6b) | J15: (to page 6c)
G16: (A-B+C-D)
B17: Muskrat Falls Project Cost
B18: January | C18: =IF(+'inputs activity'!$C$3>0,+'Actual $'!B54," ") -> 26273436.72 | D18: =IF(+'inputs activity'!$C$3>0,+'Test Year'!B136," ") -> 26273436.72 | E18: =IF(+'inputs activity'!$C$3>0,+'Actual $'!B56," ") -> 38756867.17 | F18: =IF(+'inputs activity'!$C$3>0,+'Test Year'!B138," ") -> 38756867.17 | G18: =IF(+'inputs activity'!$C$3>0,ROUND(+C18-D18+E18-F18,0)," ") -> 0 | I18: =$G18*I$9 -> 0 | J18: =$G18*J$9 -> 0
B19: February | C19: =IF(+'inputs activity'!$C$3>1,+'Actual $'!C54," ") -> 26273436.58 | D19: =IF(+'inputs activity'!$C$3>1,+'Test Year'!C136," ") -> 26273436.58 | E19: =IF(+'inputs activity'!$C$3>1,+'Actual $'!C56," ") -> 38756867.17 | F19: =IF(+'inputs activity'!$C$3>1,+'Test Year'!C138," ") -> 38756867.17 | G19: =IF(+'inputs activity'!$C$3>1,ROUND(+C19-D19+E19-F19,0)," ") -> 0 | I19: =$G19*I$9 -> 0 | J19: 0
B20: March | C20: =IF(+'inputs activity'!$C$3>2,+'Actual $'!D54," ") -> 26273436.58 | D20: =IF(+'inputs activity'!$C$3>2,+'Test Year'!D136," ") -> 26273436.58 | E20: =IF(+'inputs activity'!$C$3>2,+'Actual $'!D56," ") -> 38756867.17 | F20: =IF(+'inputs activity'!$C$3>2,+'Test Year'!D138," ") -> 38756867.17 | G20: =IF(+'inputs activity'!$C$3>2,ROUND(+C20-D20+E20-F20,0)," ") -> 0 | I20: 0 | J20: 0
B21: April | C21: =IF(+'inputs activity'!$C$3>3,+'Actual $'!E54," ") -> 26273436.58 | D21: =IF(+'inputs activity'!$C$3>3,+'Test Year'!E136," ") -> 26273436.58 | E21: =IF(+'inputs activity'!$C$3>3,+'Actual $'!E56," ") -> 38756867.17 | F21: =IF(+'inputs activity'!$C$3>3,+'Test Year'!E138," ") -> 38756867.17 | G21: =IF(+'inputs activity'!$C$3>3,ROUND(+C21-D21+E21-F21,0)," ") -> 0 | I21: 0 | J21: 0
B22: May | C22: =IF(+'inputs activity'!$C$3>4,+'Actual $'!F54," ") -> 26273436.58 | D22: =IF(+'inputs activity'!$C$3>4,+'Test Year'!F136," ") -> 26273436.58 | E22: =IF(+'inputs activity'!$C$3>4,+'Actual $'!F56," ") -> 38756867.17 | F22: =IF(+'inputs activity'!$C$3>4,+'Test Year'!F138," ") -> 38756867.17 | G22: =IF(+'inputs activity'!$C$3>4,ROUND(+C22-D22+E22-F22,0)," ") -> 0 | I22: 0 | J22: 0
B23: June | C23: =IF(+'inputs activity'!$C$3>5,+'Actual $'!G54," ") -> 26273436.58 | D23: =IF(+'inputs activity'!$C$3>5,+'Test Year'!G136," ") -> 26273436.58 | E23: =IF(+'inputs activity'!$C$3>5,+'Actual $'!G56," ") -> 38756867.17 | F23: =IF(+'inputs activity'!$C$3>5,+'Test Year'!G138," ") -> 38756867.17 | G23: =IF(+'inputs activity'!$C$3>5,ROUND(+C23-D23+E23-F23,0)," ") -> 0 | I23: 0 | J23: 0
B24: July | C24: =IF(+'inputs activity'!$C$3>6,+'Actual $'!H54," ") -> 26273436.58 | D24: =IF(+'inputs activity'!$C$3>6,+'Test Year'!H136," ") -> 26273436.58 | E24: =IF(+'inputs activity'!$C$3>6,+'Actual $'!H56," ") -> 38756867.17 | F24: =IF(+'inputs activity'!$C$3>6,+'Test Year'!H138," ") -> 38756867.17 | G24: =IF(+'inputs activity'!$C$3>6,ROUND(+C24-D24+E24-F24,0)," ") -> 0 | I24: 0 | J24: 0
B25: August | C25: =IF(+'inputs activity'!$C$3>7,+'Actual $'!I54," ") -> 26273436.58 | D25: =IF(+'inputs activity'!$C$3>7,+'Test Year'!I136," ") -> 26273436.58 | E25: =IF(+'inputs activity'!$C$3>7,+'Actual $'!I56," ") -> 38756867.17 | F25: =IF(+'inputs activity'!$C$3>7,+'Test Year'!I138," ") -> 38756867.17 | G25: =IF(+'inputs activity'!$C$3>7,ROUND(+C25-D25+E25-F25,0)," ") -> 0 | I25: 0 | J25: 0
B26: September | C26: =IF(+'inputs activity'!$C$3>8,+'Actual $'!J54," ") -> 26273436.58 | D26: =IF(+'inputs activity'!$C$3>8,+'Test Year'!J136," ") -> 26273436.58 | E26: =IF(+'inputs activity'!$C$3>8,+'Actual $'!J56," ") -> 38756867.17 | F26: =IF(+'inputs activity'!$C$3>8,+'Test Year'!J138," ") -> 38756867.17 | G26: =IF(+'inputs activity'!$C$3>8,ROUND(+C26-D26+E26-F26,0)," ") -> 0 | I26: 0 | J26: 0
B27: October | C27: =IF(+'inputs activity'!$C$3>9,+'Actual $'!K54," ") -> 26273436.58 | D27: =IF(+'inputs activity'!$C$3>9,+'Test Year'!K136," ") -> 26273436.58 | E27: =IF(+'inputs activity'!$C$3>9,+'Actual $'!K56," ") -> 38756867.17 | F27: =IF(+'inputs activity'!$C$3>9,+'Test Year'!K138," ") -> 38756867.17 | G27: =IF(+'inputs activity'!$C$3>9,ROUND(+C27-D27+E27-F27,0)," ") -> 0 | I27: 0 | J27: 0
B28: November | C28: =IF(+'inputs activity'!$C$3>10,+'Actual $'!L54," ") -> 26273436.58 | D28: =IF(+'inputs activity'!$C$3>10,+'Test Year'!L136," ") -> 26273436.58 | E28: =IF(+'inputs activity'!$C$3>10,+'Actual $'!L56," ") -> 38756867.17 | F28: =IF(+'inputs activity'!$C$3>10,+'Test Year'!L138," ") -> 38756867.17 | G28: =IF(+'inputs activity'!$C$3>10,ROUND(+C28-D28+E28-F28,0)," ") -> 0 | I28: 0 | J28: 0
B29: December | C29: =IF(+'inputs activity'!$C$3>11,+'Actual $'!M54," ") -> 26273436.58 | D29: =IF(+'inputs activity'!$C$3>11,+'Test Year'!M136," ") -> 26273436.58 | E29: =IF(+'inputs activity'!$C$3>11,+'Actual $'!M56," ") -> 38756867.17 | F29: =IF(+'inputs activity'!$C$3>11,+'Test Year'!M138," ") -> 38756867.17 | G29: =IF(+'inputs activity'!$C$3>11,ROUND(+C29-D29+E29-F29,0)," ") -> 0 | I29: 0 | J29: 0
C31: =SUM(C18:C30) -> 315281239.1 | D31: =SUM(D18:D30) -> 315281239.1 | E31: 465082406 | F31: =SUM(F18:F30) -> 465082406 | G31: =SUM(G18:G30) -> 0 | I31: =SUM(I18:I30) -> 0 | J31: 0
E33: =SUM(C31+E31) -> 780363645.1 | F33: =SUM(D31+F31) -> 780363645.1

Sheet Fuel Variance
B1: Newfoundland and Labrador Hydro | U1: Pg 7
B4: Long Term Supply Cost Deferral Account
B5: Holyrood TGS Fuel Cost Variances
B6: =+'inputs activity'!C1 -> 2027-12-31
D9: A | E9: B | F9: C | G9: D | H9: E | J9: F | K9: G | L9: H | N9: I | O9: J | P9: K | R9: =Assumptions!$C$5 -> 0 | S9: =Assumptions!$D$5 -> 1
D11: Actual | E11: Actual Quantity | F11: Net | G11: Actual | H11: Actual | J11: Test Year | K11: Test Year | L11: Test Year
D12: Quantity | E12: No. 6 Fuel for | F12: Quantity | G12: No. 6 Fuel | H12: No. 6 Fuel | J12: Quantity | K12: No. 6 Fuel | L12: No. 6 Fuel | N12: Total | P12: Current Month | R12: Demand | S12: Energy
D13: No. 6 Fuel | E13: Non-Firm Sales | F13: No. 6 Fuel | G13: Cost | H13: Cost | J13: No. 6 Fuel | K13: Cost | L13: Cost (1) | N13: Variation | O13: Transfers | P13: Activity | R13: Allocator | S13: Allocator
D14: (bbl.) | E14: (bbl.) | F14: (bbl.) | G14: ($Can/bbl.) | H14: $ | J14: (bbl.) | K14: ($Can/bbl.) | L14: $ | N14: ($) | O14: ($) | P14: ($) | R14: $ | S14: $
P15: (to page 3) | R15: (to page 7b) | S15: (to page 7c)
F16: (A+B) | H16: (CxD) | L16: (FxG) | N16: (E-H) | P16: (I-J)
B17: Holyrood TGS Fuel
B18: January | D18: =IF(+'inputs activity'!$C$3>0,+'Actual $'!$B$8," ") -> 200180 | E18: =IF(+'inputs activity'!$C$3>0,+'Actual $'!$B$13," ") -> 0 | F18: =IF(+'inputs activity'!$C$3>0,+D18-E18," ") -> 200180 | G18: =IF(+'inputs activity'!$C$3>0,+'Actual $'!$B$9," ") -> 77.71438022 | H18: =IF(+'inputs activity'!$C$3>0,+'Actual $'!$B$18," ") -> 15556864.63 | J18: =IF(+'inputs activity'!$C$3>0,+'Test Year'!$B$85," ") -> 200180 | K18: =IF(+'inputs activity'!$C$3>0,+'Test Year'!$B$86," ") -> 77.71438022 | L18: =IF(+'inputs activity'!$C$3>0,+'Test Year'!B$87," ") -> 15556864.63 | N18: =IF(+'inputs activity'!$C$3>0,ROUND(+H18-L18,0)," ") -> 0 | P18: =IF(+'inputs activity'!$C$3>0,ROUND(+N18+O18,0)," ") -> 0 | R18: =$P18*R$9 -> 0 | S18: =$P18*S$9 -> 0
B19: February | D19: =IF(+'inputs activity'!$C$3>1,+'Actual $'!$C$8," ") -> 182258 | E19: =IF(+'inputs activity'!$C$3>1,+'Actual $'!$C$13," ") -> 0 | F19: =IF(+'inputs activity'!$C$3>0,+D19-E19," ") -> 182258 | G19: =IF(+'inputs activity'!$C$3>1,+'Actual $'!$C$9," ") -> 79.54631656 | H19: =IF(+'inputs activity'!$C$3>1,+'Actual $'!$C$18," ") -> 14497952.56 | J19: =IF(+'inputs activity'!$C$3>1,+'Test Year'!$C$85," ") -> 182258 | K19: =IF(+'inputs activity'!$C$3>1,+'Test Year'!$C$86," ") -> 79.54631656 | L19: =IF(+'inputs activity'!$C$3>1,+'Test Year'!C$87," ") -> 14497952.56 | N19: =IF(+'inputs activity'!$C$3>1,ROUND(+H19-L19,0)," ") -> 0 | P19: =IF(+'inputs activity'!$C$3>1,ROUND(+N19+O19,0)," ") -> 0 | R19: =$P19*R$9 -> 0 | S19: 0
B20: March | D20: =IF(+'inputs activity'!$C$3>2,+'Actual $'!$D$8," ") -> 84671 | E20: =IF(+'inputs activity'!$C$3>2,+'Actual $'!$D$13," ") -> 0 | F20: =IF(+'inputs activity'!$C$3>0,+D20-E20," ") -> 84671 | G20: =IF(+'inputs activity'!$C$3>2,+'Actual $'!$D$9," ") -> 79.54631656 | H20: =IF(+'inputs activity'!$C$3>2,+'Actual $'!$D$18," ") -> 6735266.169 | J20: =IF(+'inputs activity'!$C$3>2,+'Test Year'!$D$85," ") -> 84671 | K20: =IF(+'inputs activity'!$C$3>2,+'Test Year'!$D$86," ") -> 79.54631656 | L20: =IF(+'inputs activity'!$C$3>2,+'Test Year'!D$87," ") -> 6735266.169 | N20: =IF(+'inputs activity'!$C$3>2,ROUND(+H20-L20,0)," ") -> 0 | P20: =IF(+'inputs activity'!$C$3>2,ROUND(+N20+O20,0)," ") -> 0 | R20: 0 | S20: 0
B21: April | D21: =IF(+'inputs activity'!$C$3>3,+'Actual $'!$E$8," ") -> 0 | E21: =IF(+'inputs activity'!$C$3>3,+'Actual $'!$E$13," ") -> 0 | F21: =IF(+'inputs activity'!$C$3>0,+D21-E21," ") -> 0 | G21: =IF(+'inputs activity'!$C$3>3,+'Actual $'!$E$9," ") -> 0 | H21: =IF(+'inputs activity'!$C$3>3,+'Actual $'!$E$18," ") -> 0 | J21: =IF(+'inputs activity'!$C$3>3,+'Test Year'!$E$85," ") -> 0 | K21: =IF(+'inputs activity'!$C$3>3,+'Test Year'!$E$86," ") -> 0 | L21: =IF(+'inputs activity'!$C$3>3,+'Test Year'!E$87," ") -> 0 | N21: =IF(+'inputs activity'!$C$3>3,ROUND(+H21-L21,0)," ") -> 0 | P21: =IF(+'inputs activity'!$C$3>3,ROUND(+N21+O21,0)," ") -> 0 | R21: 0 | S21: 0
B22: May | D22: =IF(+'inputs activity'!$C$3>0,+'Actual $'!$F$8," ") -> 0 | E22: =IF(+'inputs activity'!$C$3>0,+'Actual $'!$F$13," ") -> 0 | F22: =IF(+'inputs activity'!$C$3>0,+D22-E22," ") -> 0 | G22: =IF(+'inputs activity'!$C$3>0,+'Actual $'!$F$9," ") -> 0 | H22: =IF(+'inputs activity'!$C$3>4,+'Actual $'!$F$18," ") -> 0 | J22: =IF(+'inputs activity'!$C$3>0,+'Test Year'!$F$85," ") -> 0 | K22: =IF(+'inputs activity'!$C$3>0,+'Test Year'!$F$86," ") -> 0 | L22: =IF(+'inputs activity'!$C$3>4,+'Test Year'!F$87," ") -> 0 | N22: =IF(+'inputs activity'!$C$3>4,ROUND(+H22-L22,0)," ") -> 0 | P22: =IF(+'inputs activity'!$C$3>4,ROUND(+N22+O22,0)," ") -> 0 | R22: 0 | S22: 0
B23: June | D23: =IF(+'inputs activity'!$C$3>0,+'Actual $'!$G$8," ") -> 0 | E23: =IF(+'inputs activity'!$C$3>0,+'Actual $'!$G$13," ") -> 0 | F23: =IF(+'inputs activity'!$C$3>0,+D23-E23," ") -> 0 | G23: =IF(+'inputs activity'!$C$3>0,+'Actual $'!$G$9," ") -> 0 | H23: =IF(+'inputs activity'!$C$3>5,+'Actual $'!$G$18," ") -> 0 | J23: =IF(+'inputs activity'!$C$3>0,+'Test Year'!$G$85," ") -> 0 | K23: =IF(+'inputs activity'!$C$3>0,+'Test Year'!$G$86," ") -> 0 | L23: =IF(+'inputs activity'!$C$3>5,+'Test Year'!G$87," ") -> 0 | N23: =IF(+'inputs activity'!$C$3>5,ROUND(+H23-L23,0)," ") -> 0 | P23: =IF(+'inputs activity'!$C$3>5,ROUND(+N23+O23,0)," ") -> 0 | R23: 0 | S23: 0
B24: July | D24: =IF(+'inputs activity'!$C$3>0,+'Actual $'!$H$8," ") -> 0 | E24: =IF(+'inputs activity'!$C$3>0,+'Actual $'!$H$13," ") -> 0 | F24: =IF(+'inputs activity'!$C$3>0,+D24-E24," ") -> 0 | G24: =IF(+'inputs activity'!$C$3>0,+'Actual $'!$H$9," ") -> 0 | H24: =IF(+'inputs activity'!$C$3>6,+'Actual $'!$H$18," ") -> 0 | J24: =IF(+'inputs activity'!$C$3>0,+'Test Year'!$H$85," ") -> 0 | K24: =IF(+'inputs activity'!$C$3>0,+'Test Year'!$H$86," ") -> 0 | L24: =IF(+'inputs activity'!$C$3>6,+'Test Year'!H$87," ") -> 0 | N24: =IF(+'inputs activity'!$C$3>6,ROUND(+H24-L24,0)," ") -> 0 | P24: =IF(+'inputs activity'!$C$3>6,ROUND(+N24+O24,0)," ") -> 0 | R24: 0 | S24: 0
B25: August | D25: =IF(+'inputs activity'!$C$3>0,+'Actual $'!$I$8," ") -> 0 | E25: =IF(+'inputs activity'!$C$3>0,+'Actual $'!$I$13," ") -> 0 | F25: =IF(+'inputs activity'!$C$3>0,+D25-E25," ") -> 0 | G25: =IF(+'inputs activity'!$C$3>0,+'Actual $'!$I$9," ") -> 0 | H25: =IF(+'inputs activity'!$C$3>7,+'Actual $'!$I$18," ") -> 0 | J25: =IF(+'inputs activity'!$C$3>0,+'Test Year'!$I$85," ") -> 0 | K25: =IF(+'inputs activity'!$C$3>0,+'Test Year'!$I$86," ") -> 0 | L25: =IF(+'inputs activity'!$C$3>7,+'Test Year'!I$87," ") -> 0 | N25: =IF(+'inputs activity'!$C$3>7,ROUND(+H25-L25,0)," ") -> 0 | P25: =IF(+'inputs activity'!$C$3>7,ROUND(+N25+O25,0)," ") -> 0 | R25: 0 | S25: 0
B26: September | D26: =IF(+'inputs activity'!$C$3>0,+'Actual $'!$J$8," ") -> 0 | E26: =IF(+'inputs activity'!$C$3>0,+'Actual $'!$J$13," ") -> 0 | F26: =IF(+'inputs activity'!$C$3>0,+D26-E26," ") -> 0 | G26: =IF(+'inputs activity'!$C$3>0,+'Actual $'!$J$9," ") -> 0 | H26: =IF(+'inputs activity'!$C$3>8,+'Actual $'!$J$18," ") -> 0 | J26: =IF(+'inputs activity'!$C$3>0,+'Test Year'!$J$85," ") -> 0 | K26: =IF(+'inputs activity'!$C$3>0,+'Test Year'!$J$86," ") -> 0 | L26: =IF(+'inputs activity'!$C$3>8,+'Test Year'!J$87," ") -> 0 | N26: =IF(+'inputs activity'!$C$3>8,ROUND(+H26-L26,0)," ") -> 0 | P26: =IF(+'inputs activity'!$C$3>8,ROUND(+N26+O26,0)," ") -> 0 | R26: 0 | S26: 0
B27: October | D27: =IF(+'inputs activity'!$C$3>0,+'Actual $'!$K$8," ") -> 50471 | E27: =IF(+'inputs activity'!$C$3>0,+'Actual $'!$K$13," ") -> 0 | F27: =IF(+'inputs activity'!$C$3>0,+D27-E27," ") -> 50471 | G27: =IF(+'inputs activity'!$C$3>0,+'Actual $'!$K$9," ") -> 79.54631656 | H27: =IF(+'inputs activity'!$C$3>9,+'Actual $'!$K$18," ") -> 4014782.143 | J27: =IF(+'inputs activity'!$C$3>0,+'Test Year'!$K$85," ") -> 50471 | K27: =IF(+'inputs activity'!$C$3>0,+'Test Year'!$K$86," ") -> 79.54631656 | L27: =IF(+'inputs activity'!$C$3>9,+'Test Year'!K$87," ") -> 4014782.143 | N27: =IF(+'inputs activity'!$C$3>9,ROUND(+H27-L27,0)," ") -> 0 | P27: =IF(+'inputs activity'!$C$3>9,ROUND(+N27+O27,0)," ") -> 0 | R27: 0 | S27: 0
B28: November | D28: =IF(+'inputs activity'!$C$3>0,+'Actual $'!$L$8," ") -> 93432 | E28: =IF(+'inputs activity'!$C$3>0,+'Actual $'!$L$13," ") -> 0 | F28: =IF(+'inputs activity'!$C$3>0,+D28-E28," ") -> 93432 | G28: =IF(+'inputs activity'!$C$3>0,+'Actual $'!$L$9," ") -> 81.14764371 | H28: =IF(+'inputs activity'!$C$3>10,+'Actual $'!$L$18," ") -> 7581786.647 | J28: =IF(+'inputs activity'!$C$3>0,+'Test Year'!$L$85," ") -> 93432 | K28: =IF(+'inputs activity'!$C$3>0,+'Test Year'!$L$86," ") -> 81.14764371 | L28: =IF(+'inputs activity'!$C$3>10,+'Test Year'!L$87," ") -> 7581786.647 | N28: =IF(+'inputs activity'!$C$3>10,ROUND(+H28-L28,0)," ") -> 0 | P28: =IF(+'inputs activity'!$C$3>10,ROUND(+N28+O28,0)," ") -> 0 | R28: 0 | S28: 0
B29: December | D29: =IF(+'inputs activity'!$C$3>0,+'Actual $'!$M$8," ") -> 197559 | E29: =IF(+'inputs activity'!$C$3>0,+'Actual $'!$M$13," ") -> 0 | F29: =IF(+'inputs activity'!$C$3>0,+D29-E29," ") -> 197559 | G29: =IF(+'inputs activity'!$C$3>0,+'Actual $'!$M$9," ") -> 82.1053447 | H29: =IF(+'inputs activity'!$C$3>11,+'Actual $'!$M$18," ") -> 16220649.79 | J29: =IF(+'inputs activity'!$C$3>0,+'Test Year'!$M$85," ") -> 197559 | K29: =IF(+'inputs activity'!$C$3>0,+'Test Year'!$M$86," ") -> 82.1053447 | L29: =IF(+'inputs activity'!$C$3>11,+'Test Year'!M$87," ") -> 16220649.79 | N29: =IF(+'inputs activity'!$C$3>11,ROUND(+H29-L29,0)," ") -> 0 | P29: =IF(+'inputs activity'!$C$3>11,ROUND(+N29+O29,0)," ") -> 0 | R29: 0 | S29: 0
D31: =SUM(D18:D30) -> 808571 | E31: 0 | F31: =SUM(F18:F30) -> 808571 | G31: =SUM(G18:G30) -> 479.6063183 | H31: =SUM(H18:H30) -> 64607301.95 | J31: =SUM(J18:J30) -> 808571 | L31: =SUM(L18:L30) -> 64607301.95 | N31: =SUM(N18:N30) -> 0 | O31: =SUM(O18:O30) -> 0 | P31: 0 | R31: =SUM(R18:R30) -> 0 | S31: 0
B34: (1) The Test Year values do not include the following costs, totalling $0.40 million, which will bring the TY total to $65.01 million. These costs include (i) ignition costs ($0.33 million), (ii) environmental handling costs ($0.03 million), and (iii) indirect costs ($0.04 million)

Sheet Other IIS Variance
B1: Newfoundland and Labrador Hydro | U1: Pg 8
B4: Long Term Supply Cost Deferral Account
B5: Other IIS Supply Cost Variance Summary
B6: =+'inputs activity'!C1 -> 2027-12-31
C9: A | D9: B | E9: C | F9: D | G9: E | H9: F | I9: G | J9: H | K9: I | M9: =Assumptions!$C$6 -> 0.4971 | N9: =Assumptions!$D$6 -> 0.5029
J11: Cost | K11: Other IIS | M11: YTD | N11: YTD
C12: Thermal | D12: On-Island PP | E12: Off-Island PP | F12: CBPP Firm Energy | H12: Current Month | I12: Year-to-Date | J12: Variance | K12: Supply Cost | M12: Demand | N12: Energy | P12: Demand | Q12: Energy | S12: Current Month
C13: Variation | D13: Variation | E13: Variation | F13: Variation | G13: Transfers | H13: Variation | I13: Variation | J13: Threshold | K13: Variance | M13: Allocator | N13: Allocator | P13: Allocator | Q13: Allocator | S13: Variation
C14: $ | D14: $ | E14: $ | F14: $ | G14: $ | H14: $ | I14: $ | M14: $ | N14: $ | P14: $ | Q14: $ | S14: $
P15: (to page 8b) | Q15: (to page 8c) | S15: (to page 3)
H16: (sum A:E) | K16: (G-H)
B17: Other IIS Supply Cost
B18: January | C18: =IF(+'inputs activity'!$C$3>0,+'Island Thermal Summ'!H15," ") -> 0 | D18: =IF(+'inputs activity'!$C$3>0,+'On-Island PP Summ'!I15," ") -> 0 | E18: =IF(+'inputs activity'!$C$3>0,+'Off-Island PP Summ'!E15," ") -> 0 | F18: =IF(+'inputs activity'!$C$3>0,+'CBPP Firm Energy'!F15," ") -> 0 | H18: =IF(+'inputs activity'!$C$3>0,ROUND(+C18+D18+E18+F18+G18,0)," ") -> 0 | I18: =IF(+'inputs activity'!$C$3>0,I16+H18," ") -> 0 | J18: =IF(I18=" "," ",IF(I18>0,500000,-500000)) -> -500000 | K18: =IF(I18=" "," ",IF(ABS(J18)>ABS(I18),0,I18-J18)) -> 0 | M18: =$K18*M$9 -> 0 | N18: =$K18*N$9 -> 0 | P18: =M18 -> 0 | Q18: =N18 -> 0 | S18: =SUM(P18:Q18) -> 0
B19: February | C19: =IF(+'inputs activity'!$C$3>1,+'Island Thermal Summ'!H16," ") -> 0 | D19: =IF(+'inputs activity'!$C$3>1,+'On-Island PP Summ'!I16," ") -> 0 | E19: =IF(+'inputs activity'!$C$3>1,+'Off-Island PP Summ'!E16," ") -> 0 | F19: =IF(+'inputs activity'!$C$3>1,+'CBPP Firm Energy'!F16," ") -> 0 | H19: =IF(+'inputs activity'!$C$3>0,ROUND(+C19+D19+E19+F19+G19,0)," ") -> 0 | I19: =IF(+'inputs activity'!$C$3>1,I16+H18+H19," ") -> 0 | J19: =IF(I19=" "," ",IF(I19>0,500000,-500000)) -> -500000 | K19: =IF(I19=" "," ",IF(ABS(J19)>ABS(I19),0,I19-J19)) -> 0 | M19: =$K19*M$9 -> 0 | N19: 0 | P19: =M19-M18 -> 0 | Q19: =N19-N18 -> 0 | S19: =SUM(P19:Q19) -> 0
B20: March | C20: =IF(+'inputs activity'!$C$3>2,+'Island Thermal Summ'!H17," ") -> 0 | D20: =IF(+'inputs activity'!$C$3>2,+'On-Island PP Summ'!I17," ") -> 0 | E20: =IF(+'inputs activity'!$C$3>2,+'Off-Island PP Summ'!E17," ") -> 0 | F20: =IF(+'inputs activity'!$C$3>2,+'CBPP Firm Energy'!F17," ") -> 0 | H20: =IF(+'inputs activity'!$C$3>0,ROUND(+C20+D20+E20+F20+G20,0)," ") -> 0 | I20: =IF(+'inputs activity'!$C$3>2,I16+H18+H19+H20," ") -> 0 | J20: -500000 | K20: 0 | M20: 0 | N20: 0 | P20: =M20-M19 -> 0 | Q20: 0 | S20: 0
B21: April | C21: =IF(+'inputs activity'!$C$3>3,+'Island Thermal Summ'!H18," ") -> 0 | D21: =IF(+'inputs activity'!$C$3>3,+'On-Island PP Summ'!I18," ") -> 0 | E21: =IF(+'inputs activity'!$C$3>3,+'Off-Island PP Summ'!E18," ") -> 0 | F21: =IF(+'inputs activity'!$C$3>3,+'CBPP Firm Energy'!F18," ") -> 0 | H21: =IF(+'inputs activity'!$C$3>0,ROUND(+C21+D21+E21+F21+G21,0)," ") -> 0 | I21: =IF(+'inputs activity'!$C$3>3,I16+H18+H19+H20+H21," ") -> 0 | J21: -500000 | K21: 0 | M21: 0 | N21: 0 | P21: 0 | Q21: 0 | S21: 0
B22: May | C22: =IF(+'inputs activity'!$C$3>4,+'Island Thermal Summ'!H19," ") -> 0 | D22: =IF(+'inputs activity'!$C$3>4,+'On-Island PP Summ'!I19," ") -> 0 | E22: =IF(+'inputs activity'!$C$3>4,+'Off-Island PP Summ'!E19," ") -> 0 | F22: =IF(+'inputs activity'!$C$3>4,+'CBPP Firm Energy'!F19," ") -> 0 | H22: =IF(+'inputs activity'!$C$3>0,ROUND(+C22+D22+E22+F22+G22,0)," ") -> 0 | I22: =IF(+'inputs activity'!$C$3>4,I16+H18+H19+H20+H21+H22," ") -> 0 | J22: -500000 | K22: 0 | M22: 0 | N22: 0 | P22: 0 | Q22: 0 | S22: 0
B23: June | C23: =IF(+'inputs activity'!$C$3>5,+'Island Thermal Summ'!H20," ") -> 0 | D23: =IF(+'inputs activity'!$C$3>5,+'On-Island PP Summ'!I20," ") -> 0 | E23: =IF(+'inputs activity'!$C$3>5,+'Off-Island PP Summ'!E20," ") -> 0 | F23: =IF(+'inputs activity'!$C$3>5,+'CBPP Firm Energy'!F20," ") -> 0 | H23: =IF(+'inputs activity'!$C$3>0,ROUND(+C23+D23+E23+F23+G23,0)," ") -> 0 | I23: =IF(+'inputs activity'!$C$3>5,I16+H18+H19+H20+H21+H22+H23," ") -> 0 | J23: -500000 | K23: 0 | M23: 0 | N23: 0 | P23: 0 | Q23: 0 | S23: 0
B24: July | C24: =IF(+'inputs activity'!$C$3>6,+'Island Thermal Summ'!H21," ") -> 0 | D24: =IF(+'inputs activity'!$C$3>6,+'On-Island PP Summ'!I21," ") -> 0 | E24: =IF(+'inputs activity'!$C$3>6,+'Off-Island PP Summ'!E21," ") -> 0 | F24: =IF(+'inputs activity'!$C$3>6,+'CBPP Firm Energy'!F21," ") -> 0 | H24: =IF(+'inputs activity'!$C$3>0,ROUND(+C24+D24+E24+F24+G24,0)," ") -> 0 | I24: =IF(+'inputs activity'!$C$3>6,I16+H18+H19+H20+H21+H22+H23+H24," ") -> 0 | J24: -500000 | K24: 0 | M24: 0 | N24: 0 | P24: 0 | Q24: 0 | S24: 0
B25: August | C25: =IF(+'inputs activity'!$C$3>7,+'Island Thermal Summ'!H22," ") -> 0 | D25: =IF(+'inputs activity'!$C$3>7,+'On-Island PP Summ'!I22," ") -> 0 | E25: =IF(+'inputs activity'!$C$3>7,+'Off-Island PP Summ'!E22," ") -> 0 | F25: =IF(+'inputs activity'!$C$3>7,+'CBPP Firm Energy'!F22," ") -> 0 | H25: =IF(+'inputs activity'!$C$3>0,ROUND(+C25+D25+E25+F25+G25,0)," ") -> 0 | I25: =IF(+'inputs activity'!$C$3>7,I16+H18+H19+H20+H21+H22+H23+H24+H25," ") -> 0 | J25: -500000 | K25: 0 | M25: 0 | N25: 0 | P25: 0 | Q25: 0 | S25: 0
B26: September | C26: =IF(+'inputs activity'!$C$3>8,+'Island Thermal Summ'!H23," ") -> 0 | D26: =IF(+'inputs activity'!$C$3>8,+'On-Island PP Summ'!I23," ") -> 0 | E26: =IF(+'inputs activity'!$C$3>8,+'Off-Island PP Summ'!E23," ") -> 0 | F26: =IF(+'inputs activity'!$C$3>8,+'CBPP Firm Energy'!F23," ") -> 0 | H26: =IF(+'inputs activity'!$C$3>0,ROUND(+C26+D26+E26+F26+G26,0)," ") -> 0 | I26: =IF(+'inputs activity'!$C$3>8,I16+H18+H19+H20+H21+H22+H23+H24+H25+H26," ") -> 0 | J26: -500000 | K26: =IF(I26=" "," ",IF(ABS(J26)>ABS(I26),0,I26-J26)) -> 0 | M26: 0 | N26: 0 | P26: 0 | Q26: 0 | S26: 0
B27: October | C27: =IF(+'inputs activity'!$C$3>9,+'Island Thermal Summ'!H24," ") -> 0 | D27: =IF(+'inputs activity'!$C$3>9,+'On-Island PP Summ'!I24," ") -> 0 | E27: =IF(+'inputs activity'!$C$3>9,+'Off-Island PP Summ'!E24," ") -> 0 | F27: =IF(+'inputs activity'!$C$3>9,+'CBPP Firm Energy'!F24," ") -> 0 | H27: =IF(+'inputs activity'!$C$3>0,ROUND(+C27+D27+E27+F27+G27,0)," ") -> 0 | I27: =IF(+'inputs activity'!$C$3>9,I16+H18+H19+H20+H21+H22+H23+H24+H25+H26+H27," ") -> 0 | J27: -500000 | K27: 0 | M27: 0 | N27: 0 | P27: 0 | Q27: 0 | S27: 0
B28: November | C28: =IF(+'inputs activity'!$C$3>10,+'Island Thermal Summ'!H25," ") -> 0 | D28: =IF(+'inputs activity'!$C$3>10,+'On-Island PP Summ'!I25," ") -> 0 | E28: =IF(+'inputs activity'!$C$3>10,+'Off-Island PP Summ'!E25," ") -> 0 | F28: =IF(+'inputs activity'!$C$3>10,+'CBPP Firm Energy'!F25," ") -> 0 | H28: =IF(+'inputs activity'!$C$3>0,ROUND(+C28+D28+E28+F28+G28,0)," ") -> 0 | I28: =IF(+'inputs activity'!$C$3>10,I16+H18+H19+H20+H21+H22+H23+H24+H25+H26+H27+H28," ") -> 0 | J28: =IF(I28=" "," ",IF(I28>0,500000,-500000)) -> -500000 | K28: 0 | M28: 0 | N28: 0 | P28: 0 | Q28: 0 | S28: 0
B29: December | C29: =IF(+'inputs activity'!$C$3>11,+'Island Thermal Summ'!H26," ") -> 0 | D29: =IF(+'inputs activity'!$C$3>11,+'On-Island PP Summ'!I26," ") -> 0 | E29: =IF(+'inputs activity'!$C$3>11,+'Off-Island PP Summ'!E26," ") -> 0 | F29: =IF(+'inputs activity'!$C$3>11,+'CBPP Firm Energy'!F26," ") -> 0 | H29: =IF(+'inputs activity'!$C$3>0,ROUND(+C29+D29+E29+F29+G29,0)," ") -> 0 | I29: =IF(+'inputs activity'!$C$3>11,I16+H18+H19+H20+H21+H22+H23+H24+H25+H26+H27+H28+H29," ") -> 0 | J29: =IF(I29=" "," ",IF(I29>0,500000,-500000)) -> -500000 | K29: 0 | M29: 0 | N29: 0 | P29: 0 | Q29: 0 | S29: 0
C31: =SUM(C18:C30) -> 0 | D31: =SUM(D18:D30) -> 0 | E31: 0 | F31: =SUM(F18:F30) -> 0 | H31: =SUM(H18:H30) -> 0 | P31: =SUM(P18:P30) -> 0 | Q31: 0 | S31: 0

Sheet Exports Variance
B1: Newfoundland and Labrador Hydro | Q1: Pg 9
B4: Long Term Supply Cost Deferral Account
B5: Net Revenue from Exports Variance
B6: =+'inputs activity'!C1 -> 2027-12-31
C9: A | D9: B | E9: C | F9: D | H9: E | I9: F | J9: G | L9: H | N9: =Assumptions!$C$7 -> 0.4971 | O9: =Assumptions!$D$7 -> 0.5029
C11: Non-Firm | D11: Actual | E11: Actual | F11: Actual | H11: Test Year | I11: Test Year | J11: Test Year
C12: Sales | D12: Export | E12: Export | F12: Export | H12: Export | I12: Export | J12: Export | L12: Total | N12: Demand | O12: Energy
C13: Revenue | D13: Revenue | E13: Costs | F13: Net Revenue | H13: Revenue | I13: Costs | J13: Net Revenue | L13: Variation | N13: Allocator | O13: Allocator
C14: ($) | D14: ($) | E14: ($) | F14: ($) | H14: ($) | I14: ($) | J14: ($) | L14: ($) | N14: $ | O14: $
L15: (to page 3) | N15: (to page 9b) | O15: (to page 9c)
F16: (sum A:C) | J16: (sum E:F)
B17: Net Revenue from Exports
B18: January | C18: =IF(+'inputs activity'!$C$3>0,+'Actual $'!$B$86+'Actual $'!$B$87," ") -> 0 | D18: =IF(+'inputs activity'!$C$3>0,+'Actual $'!$B$63," ") -> 8298245.782 | E18: =IF(+'inputs activity'!$C$3>0,+'Actual $'!$B$70," ") -> 7921370.983 | F18: =IF(+'inputs activity'!$C$3>0,ROUND(+D18-E18+C18,0)," ") -> 376875 | H18: =IF(+'inputs activity'!$C$3>0,+'Test Year'!B$141," ") -> 8298245.782 | I18: =IF(+'inputs activity'!$C$3>0,+'Test Year'!B$142," ") -> 7921370.983 | J18: =IF(+'inputs activity'!$C$3>0,ROUND(+H18-I18,0)," ") -> 376875 | L18: =IF(+'inputs activity'!$C$3>0,ROUND(+J18-F18,0)," ") -> 0 | N18: =$L18*N$9 -> 0 | O18: =$L18*O$9 -> 0
B19: February | C19: =IF(+'inputs activity'!$C$3>0,+'Actual $'!$C$86+'Actual $'!$C$87," ") -> 0 | D19: =IF(+'inputs activity'!$C$3>1,+'Actual $'!$C$63," ") -> 7260433.441 | E19: =IF(+'inputs activity'!$C$3>1,+'Actual $'!$C$70," ") -> 6876802.057 | F19: =IF(+'inputs activity'!$C$3>0,ROUND(+D19-E19+C19,0)," ") -> 383631 | H19: =IF(+'inputs activity'!$C$3>1,+'Test Year'!C$141," ") -> 7260433.441 | I19: =IF(+'inputs activity'!$C$3>1,+'Test Year'!C$142," ") -> 6876802.057 | J19: =IF(+'inputs activity'!$C$3>1,ROUND(+H19-I19,0)," ") -> 383631 | L19: =IF(+'inputs activity'!$C$3>1,ROUND(+J19-F19,0)," ") -> 0 | N19: =$L19*N$9 -> 0 | O19: 0
B20: March | C20: =IF(+'inputs activity'!$C$3>0,+'Actual $'!$D$86+'Actual $'!$D$87," ") -> 0 | D20: =IF(+'inputs activity'!$C$3>2,+'Actual $'!$D$63," ") -> 904004.3267 | E20: =IF(+'inputs activity'!$C$3>2,+'Actual $'!$D$70," ") -> 805213.3761 | F20: =IF(+'inputs activity'!$C$3>0,ROUND(+D20-E20+C20,0)," ") -> 98791 | H20: =IF(+'inputs activity'!$C$3>2,+'Test Year'!D$141," ") -> 904004.3267 | I20: =IF(+'inputs activity'!$C$3>2,+'Test Year'!D$142," ") -> 805213.3761 | J20: =IF(+'inputs activity'!$C$3>2,ROUND(+H20-I20,0)," ") -> 98791 | L20: =IF(+'inputs activity'!$C$3>2,ROUND(+J20-F20,0)," ") -> 0 | N20: 0 | O20: 0
B21: April | C21: =IF(+'inputs activity'!$C$3>0,+'Actual $'!$E$86+'Actual $'!$E$87," ") -> 0 | D21: =IF(+'inputs activity'!$C$3>3,+'Actual $'!$E$63," ") -> 1294761.047 | E21: =IF(+'inputs activity'!$C$3>3,+'Actual $'!$E$70," ") -> 1075496.121 | F21: =IF(+'inputs activity'!$C$3>0,ROUND(+D21-E21+C21,0)," ") -> 219265 | H21: =IF(+'inputs activity'!$C$3>3,+'Test Year'!E$141," ") -> 1294761.047 | I21: =IF(+'inputs activity'!$C$3>3,+'Test Year'!E$142," ") -> 1075496.121 | J21: =IF(+'inputs activity'!$C$3>3,ROUND(+H21-I21,0)," ") -> 219265 | L21: =IF(+'inputs activity'!$C$3>3,ROUND(+J21-F21,0)," ") -> 0 | N21: 0 | O21: 0
B22: May | C22: =IF(+'inputs activity'!$C$3>0,+'Actual $'!$F$86+'Actual $'!$F$87," ") -> 0 | D22: =IF(+'inputs activity'!$C$3>4,+'Actual $'!$F$63," ") -> 1017142.922 | E22: =IF(+'inputs activity'!$C$3>4,+'Actual $'!$F$70," ") -> 848267.5866 | F22: =IF(+'inputs activity'!$C$3>0,ROUND(+D22-E22+C22,0)," ") -> 168875 | H22: =IF(+'inputs activity'!$C$3>4,+'Test Year'!F$141," ") -> 1017142.922 | I22: =IF(+'inputs activity'!$C$3>4,+'Test Year'!F$142," ") -> 848267.5866 | J22: =IF(+'inputs activity'!$C$3>4,ROUND(+H22-I22,0)," ") -> 168875 | L22: =IF(+'inputs activity'!$C$3>4,ROUND(+J22-F22,0)," ") -> 0 | N22: 0 | O22: 0
B23: June | C23: =IF(+'inputs activity'!$C$3>0,+'Actual $'!$G$86+'Actual $'!$G$87," ") -> 0 | D23: =IF(+'inputs activity'!$C$3>5,+'Actual $'!$G$63," ") -> 478105.4767 | E23: =IF(+'inputs activity'!$C$3>5,+'Actual $'!$G$70," ") -> 415515.1753 | F23: =IF(+'inputs activity'!$C$3>0,ROUND(+D23-E23+C23,0)," ") -> 62590 | H23: =IF(+'inputs activity'!$C$3>5,+'Test Year'!G$141," ") -> 478105.4767 | I23: =IF(+'inputs activity'!$C$3>5,+'Test Year'!G$142," ") -> 415515.1753 | J23: =IF(+'inputs activity'!$C$3>5,ROUND(+H23-I23,0)," ") -> 62590 | L23: =IF(+'inputs activity'!$C$3>5,ROUND(+J23-F23,0)," ") -> 0 | N23: 0 | O23: 0
B24: July | C24: =IF(+'inputs activity'!$C$3>0,+'Actual $'!$H$86+'Actual $'!$H$87," ") -> 0 | D24: =IF(+'inputs activity'!$C$3>6,+'Actual $'!$H$63," ") -> 572876.7964 | E24: =IF(+'inputs activity'!$C$3>6,+'Actual $'!$H$70," ") -> 529594.3463 | F24: =IF(+'inputs activity'!$C$3>0,ROUND(+D24-E24+C24,0)," ") -> 43282 | H24: =IF(+'inputs activity'!$C$3>6,+'Test Year'!H$141," ") -> 572876.7964 | I24: =IF(+'inputs activity'!$C$3>6,+'Test Year'!H$142," ") -> 529594.3463 | J24: =IF(+'inputs activity'!$C$3>6,ROUND(+H24-I24,0)," ") -> 43282 | L24: =IF(+'inputs activity'!$C$3>6,ROUND(+J24-F24,0)," ") -> 0 | N24: 0 | O24: 0
B25: August | C25: =IF(+'inputs activity'!$C$3>0,+'Actual $'!$I$86+'Actual $'!$I$87," ") -> 0 | D25: =IF(+'inputs activity'!$C$3>7,+'Actual $'!$I$63," ") -> 569207.734 | E25: =IF(+'inputs activity'!$C$3>7,+'Actual $'!$I$70," ") -> 521494.6223 | F25: =IF(+'inputs activity'!$C$3>0,ROUND(+D25-E25+C25,0)," ") -> 47713 | H25: =IF(+'inputs activity'!$C$3>7,+'Test Year'!I$141," ") -> 569207.734 | I25: =IF(+'inputs activity'!$C$3>7,+'Test Year'!I$142," ") -> 521494.6223 | J25: =IF(+'inputs activity'!$C$3>7,ROUND(+H25-I25,0)," ") -> 47713 | L25: =IF(+'inputs activity'!$C$3>7,ROUND(+J25-F25,0)," ") -> 0 | N25: 0 | O25: 0
B26: September | C26: =IF(+'inputs activity'!$C$3>0,+'Actual $'!$J$86+'Actual $'!$J$87," ") -> 0 | D26: =IF(+'inputs activity'!$C$3>8,+'Actual $'!$J$63," ") -> 380020.4108 | E26: =IF(+'inputs activity'!$C$3>8,+'Actual $'!$J$70," ") -> 331788.2159 | F26: =IF(+'inputs activity'!$C$3>0,ROUND(+D26-E26+C26,0)," ") -> 48232 | H26: =IF(+'inputs activity'!$C$3>8,+'Test Year'!J$141," ") -> 380020.4108 | I26: =IF(+'inputs activity'!$C$3>8,+'Test Year'!J$142," ") -> 331788.2159 | J26: =IF(+'inputs activity'!$C$3>8,ROUND(+H26-I26,0)," ") -> 48232 | L26: =IF(+'inputs activity'!$C$3>8,ROUND(+J26-F26,0)," ") -> 0 | N26: 0 | O26: 0
B27: October | C27: =IF(+'inputs activity'!$C$3>0,+'Actual $'!$K$86+'Actual $'!$K$87," ") -> 0 | D27: =IF(+'inputs activity'!$C$3>9,+'Actual $'!$K$63," ") -> 922259.0716 | E27: =IF(+'inputs activity'!$C$3>9,+'Actual $'!$K$70," ") -> 777495.078 | F27: =IF(+'inputs activity'!$C$3>0,ROUND(+D27-E27+C27,0)," ") -> 144764 | H27: =IF(+'inputs activity'!$C$3>9,+'Test Year'!K$141," ") -> 922259.0716 | I27: =IF(+'inputs activity'!$C$3>9,+'Test Year'!K$142," ") -> 777495.078 | J27: =IF(+'inputs activity'!$C$3>9,ROUND(+H27-I27,0)," ") -> 144764 | L27: =IF(+'inputs activity'!$C$3>9,ROUND(+J27-F27,0)," ") -> 0 | N27: 0 | O27: 0
B28: November | C28: =IF(+'inputs activity'!$C$3>0,+'Actual $'!$L$86+'Actual $'!$L$87," ") -> 0 | D28: =IF(+'inputs activity'!$C$3>10,+'Actual $'!$L$63," ") -> 993364.0038 | E28: =IF(+'inputs activity'!$C$3>10,+'Actual $'!$L$70," ") -> 849100.5377 | F28: =IF(+'inputs activity'!$C$3>0,ROUND(+D28-E28+C28,0)," ") -> 144263 | H28: =IF(+'inputs activity'!$C$3>10,+'Test Year'!L$141," ") -> 993364.0038 | I28: =IF(+'inputs activity'!$C$3>10,+'Test Year'!L$142," ") -> 849100.5377 | J28: =IF(+'inputs activity'!$C$3>10,ROUND(+H28-I28,0)," ") -> 144263 | L28: =IF(+'inputs activity'!$C$3>10,ROUND(+J28-F28,0)," ") -> 0 | N28: 0 | O28: 0
B29: December | C29: =IF(+'inputs activity'!$C$3>0,+'Actual $'!$M$86+'Actual $'!$M$87," ") -> 0 | D29: =IF(+'inputs activity'!$C$3>11,+'Actual $'!$M$63," ") -> 42127743.97 | E29: =IF(+'inputs activity'!$C$3>11,+'Actual $'!$M$70," ") -> 3687433.102 | F29: =IF(+'inputs activity'!$C$3>0,ROUND(+D29-E29+C29,0)," ") -> 38440311 | H29: =IF(+'inputs activity'!$C$3>11,+'Test Year'!M$141," ") -> 42127743.97 | I29: =IF(+'inputs activity'!$C$3>11,+'Test Year'!M$142," ") -> 3687433.102 | J29: =IF(+'inputs activity'!$C$3>11,ROUND(+H29-I29,0)," ") -> 38440311 | L29: =IF(+'inputs activity'!$C$3>11,ROUND(+J29-F29,0)," ") -> 0 | N29: 0 | O29: 0
C31: =SUM(C18:C30) -> 0 | D31: =SUM(D18:D30) -> 64818164.98 | E31: =SUM(E18:E30) -> 24639571.2 | F31: 40178592 | H31: =SUM(H18:H30) -> 64818164.98 | I31: =SUM(I18:I30) -> 24639571.2 | J31: =SUM(J18:J30) -> 40178592 | L31: =SUM(L18:L30) -> 0 | N31: =SUM(N18:N30) -> 0 | O31: 0

Sheet Tariff Variance
B1: Newfoundland and Labrador Hydro | K1: Pg 10
B4: Long Term Supply Cost Deferral Account
B5: Tariff Revenue Variance
B6: =+'inputs activity'!C1 -> 2027-12-31
C9: A | D9: B | F9: C | H9: =Assumptions!$C$8 -> 0.4971 | I9: =Assumptions!$D$8 -> 0.5029
F12: Total | H12: Demand | I12: Energy
C13: Actual | D13: Test Year | F13: Variation | H13: Allocator | I13: Allocator
C14: ($) | D14: ($) | F14: ($) | H14: $ | I14: $
F15: (to page 3) | H15: (to page 10b) | I15: (to page 10c)
F16: (A-B)
B17: Transmission Tariff Revenue
B18: January | C18: =IF(+'inputs activity'!$C$3>0,+'Actual $'!$B$72," ") -> 1528133.177 | D18: =IF(+'inputs activity'!$C$3>0,+'Test Year'!B$144," ") -> 1528133.177 | F18: =IF(+'inputs activity'!$C$3>0,ROUND(+D18-C18,0)," ") -> 0 | H18: =$F18*H$9 -> 0 | I18: 0
B19: February | C19: =IF(+'inputs activity'!$C$3>1,+'Actual $'!$C$72," ") -> 1528133.177 | D19: =IF(+'inputs activity'!$C$3>1,+'Test Year'!C$144," ") -> 1528133.177 | F19: =IF(+'inputs activity'!$C$3>1,ROUND(+D19-C19,0)," ") -> 0 | H19: 0 | I19: 0
B20: March | C20: =IF(+'inputs activity'!$C$3>2,+'Actual $'!$D$72," ") -> 1528133.177 | D20: =IF(+'inputs activity'!$C$3>2,+'Test Year'!D$144," ") -> 1528133.177 | F20: =IF(+'inputs activity'!$C$3>2,ROUND(+D20-C20,0)," ") -> 0 | H20: 0 | I20: 0
B21: April | C21: =IF(+'inputs activity'!$C$3>3,+'Actual $'!$E$72," ") -> 1528133.177 | D21: =IF(+'inputs activity'!$C$3>3,+'Test Year'!E$144," ") -> 1528133.177 | F21: =IF(+'inputs activity'!$C$3>3,ROUND(+D21-C21,0)," ") -> 0 | H21: 0 | I21: 0
B22: May | C22: =IF(+'inputs activity'!$C$3>4,+'Actual $'!$F$72," ") -> 1528133.177 | D22: =IF(+'inputs activity'!$C$3>4,+'Test Year'!F$144," ") -> 1528133.177 | F22: =IF(+'inputs activity'!$C$3>4,ROUND(+D22-C22,0)," ") -> 0 | H22: 0 | I22: 0
B23: June | C23: =IF(+'inputs activity'!$C$3>5,+'Actual $'!$G$72," ") -> 1528133.177 | D23: =IF(+'inputs activity'!$C$3>5,+'Test Year'!G$144," ") -> 1528133.177 | F23: =IF(+'inputs activity'!$C$3>5,ROUND(+D23-C23,0)," ") -> 0 | H23: 0 | I23: 0
B24: July | C24: =IF(+'inputs activity'!$C$3>6,+'Actual $'!$H$72," ") -> 1528133.177 | D24: =IF(+'inputs activity'!$C$3>6,+'Test Year'!H$144," ") -> 1528133.177 | F24: =IF(+'inputs activity'!$C$3>6,ROUND(+D24-C24,0)," ") -> 0 | H24: 0 | I24: 0
B25: August | C25: =IF(+'inputs activity'!$C$3>7,+'Actual $'!$I$72," ") -> 1528133.177 | D25: =IF(+'inputs activity'!$C$3>7,+'Test Year'!I$144," ") -> 1528133.177 | F25: =IF(+'inputs activity'!$C$3>7,ROUND(+D25-C25,0)," ") -> 0 | H25: 0 | I25: 0
B26: September | C26: =IF(+'inputs activity'!$C$3>8,+'Actual $'!$J$72," ") -> 1528133.177 | D26: =IF(+'inputs activity'!$C$3>8,+'Test Year'!J$144," ") -> 1528133.177 | F26: =IF(+'inputs activity'!$C$3>8,ROUND(+D26-C26,0)," ") -> 0 | H26: 0 | I26: 0
B27: October | C27: =IF(+'inputs activity'!$C$3>9,+'Actual $'!$K$72," ") -> 1528133.177 | D27: =IF(+'inputs activity'!$C$3>9,+'Test Year'!K$144," ") -> 1528133.177 | F27: =IF(+'inputs activity'!$C$3>9,ROUND(+D27-C27,0)," ") -> 0 | H27: 0 | I27: 0
B28: November | C28: =IF(+'inputs activity'!$C$3>10,+'Actual $'!$L$72," ") -> 1528133.177 | D28: =IF(+'inputs activity'!$C$3>10,+'Test Year'!L$144," ") -> 1528133.177 | F28: =IF(+'inputs activity'!$C$3>10,ROUND(+D28-C28,0)," ") -> 0 | H28: 0 | I28: 0
B29: December | C29: =IF(+'inputs activity'!$C$3>11,+'Actual $'!$M$72," ") -> 1528133.177 | D29: =IF(+'inputs activity'!$C$3>11,+'Test Year'!M$144," ") -> 1528133.177 | F29: =IF(+'inputs activity'!$C$3>11,ROUND(+D29-C29,0)," ") -> 0 | H29: 0 | I29: 0
C31: =SUM(C18:C30) -> 18337598.13 | D31: =SUM(D18:D30) -> 18337598.13 | F31: =SUM(F18:F30) -> 0 | H31: =SUM(H18:H30) -> 0 | I31: 0

Sheet Load NFP
B1: Newfoundland and Labrador Hydro | K1: Pg 11
B4: Long Term Supply Cost Deferral Account
B5: Load Variation - Utility
B6: =+'inputs activity'!C1 -> 2027-12-31
C9: A | D9: B | E9: C | F9: D | H9: E
C11: Cost of | F11: Firm
C12: Service | D12: Actual | E12: Sales | F12: Energy | H12: Load
C13: Sales | D13: Sales | E13: Variance | F13: Rate | H13: Variation
C14: (kWh) | D14: (kWh) | E14: (kWh) | F14: ($/kWh) | H14: ($)
H15: (to page 3)
E16: (A - B) | H16: (C x D)
B17: Load Variation - Utility
B18: January | C18: =IF(+'inputs activity'!$C$3>0,+'Test Year'!B$63," ") -> 766305914.8 | D18: =IF(+'inputs activity'!$C$3>0,+'Actual kWh'!B$63," ") -> 766305914.8 | E18: =IF(+'inputs activity'!$C$3>0,+C18-D18," ") -> 0 | F18: =IF(+'inputs activity'!$C$3>0,+'inputs activity'!C$37," ") -> 0.08958 | H18: =IF(+'inputs activity'!$C$3>0,ROUND(+E18*F18,0)," ") -> 0
B19: February | C19: =IF(+'inputs activity'!$C$3>1,+'Test Year'!C$63," ") -> 700798705.5 | D19: =IF(+'inputs activity'!$C$3>1,+'Actual kWh'!C$63," ") -> 700798705.5 | E19: =IF(+'inputs activity'!$C$3>1,+C19-D19," ") -> 0 | F19: =IF(+'inputs activity'!$C$3>1,+'inputs activity'!D$37," ") -> 0.08958 | H19: =IF(+'inputs activity'!$C$3>1,ROUND(+E19*F19,0)," ") -> 0
B20: March | C20: =IF(+'inputs activity'!$C$3>2,+'Test Year'!D$63," ") -> 689119433.2 | D20: =IF(+'inputs activity'!$C$3>2,+'Actual kWh'!D$63," ") -> 689119433.2 | E20: =IF(+'inputs activity'!$C$3>2,+C20-D20," ") -> 0 | F20: =IF(+'inputs activity'!$C$3>2,+'inputs activity'!E$37," ") -> 0.08958 | H20: =IF(+'inputs activity'!$C$3>2,ROUND(+E20*F20,0)," ") -> 0
B21: April | C21: =IF(+'inputs activity'!$C$3>3,+'Test Year'!E$63," ") -> 531348942.2 | D21: =IF(+'inputs activity'!$C$3>3,+'Actual kWh'!E$63," ") -> 531348942.2 | E21: =IF(+'inputs activity'!$C$3>3,+C21-D21," ") -> 0 | F21: =IF(+'inputs activity'!$C$3>3,+'inputs activity'!F$37," ") -> 0.0348 | H21: =IF(+'inputs activity'!$C$3>3,ROUND(+E21*F21,0)," ") -> 0
B22: May | C22: =IF(+'inputs activity'!$C$3>4,+'Test Year'!F$63," ") -> 415832403 | D22: =IF(+'inputs activity'!$C$3>4,+'Actual kWh'!F$63," ") -> 415832403 | E22: =IF(+'inputs activity'!$C$3>4,+C22-D22," ") -> 0 | F22: =IF(+'inputs activity'!$C$3>4,+'inputs activity'!G$37," ") -> 0.0348 | H22: =IF(+'inputs activity'!$C$3>4,ROUND(+E22*F22,0)," ") -> 0
B23: June | C23: =IF(+'inputs activity'!$C$3>5,+'Test Year'!G$63," ") -> 347124508.4 | D23: =IF(+'inputs activity'!$C$3>5,+'Actual kWh'!G$63," ") -> 347124508.4 | E23: =IF(+'inputs activity'!$C$3>5,+C23-D23," ") -> 0 | F23: =IF(+'inputs activity'!$C$3>5,+'inputs activity'!H$37," ") -> 0.0348 | H23: =IF(+'inputs activity'!$C$3>5,ROUND(+E23*F23,0)," ") -> 0
B24: July | C24: =IF(+'inputs activity'!$C$3>6,+'Test Year'!H$63," ") -> 313450423.4 | D24: =IF(+'inputs activity'!$C$3>6,+'Actual kWh'!H$63," ") -> 313450423.4 | E24: =IF(+'inputs activity'!$C$3>6,+C24-D24," ") -> 0 | F24: =IF(+'inputs activity'!$C$3>6,+'inputs activity'!I$37," ") -> 0.0348 | H24: =IF(+'inputs activity'!$C$3>6,ROUND(+E24*F24,0)," ") -> 0
B25: August | C25: =IF(+'inputs activity'!$C$3>7,+'Test Year'!I$63," ") -> 312212799.8 | D25: =IF(+'inputs activity'!$C$3>7,+'Actual kWh'!I$63," ") -> 312212799.8 | E25: =IF(+'inputs activity'!$C$3>7,+C25-D25," ") -> 0 | F25: =IF(+'inputs activity'!$C$3>7,+'inputs activity'!J$37," ") -> 0.0348 | H25: =IF(+'inputs activity'!$C$3>7,ROUND(+E25*F25,0)," ") -> 0
B26: September | C26: =IF(+'inputs activity'!$C$3>8,+'Test Year'!J$63," ") -> 318656728 | D26: =IF(+'inputs activity'!$C$3>8,+'Actual kWh'!J$63," ") -> 318656728 | E26: =IF(+'inputs activity'!$C$3>8,+C26-D26," ") -> 0 | F26: =IF(+'inputs activity'!$C$3>8,+'inputs activity'!K$37," ") -> 0.0348 | H26: =IF(+'inputs activity'!$C$3>8,ROUND(+E26*F26,0)," ") -> 0
B27: October | C27: =IF(+'inputs activity'!$C$3>9,+'Test Year'!K$63," ") -> 417449389.1 | D27: =IF(+'inputs activity'!$C$3>9,+'Actual kWh'!K$63," ") -> 417449389.1 | E27: =IF(+'inputs activity'!$C$3>9,+C27-D27," ") -> 0 | F27: =IF(+'inputs activity'!$C$3>9,+'inputs activity'!L$37," ") -> 0.0348 | H27: =IF(+'inputs activity'!$C$3>9,ROUND(+E27*F27,0)," ") -> 0
B28: November | C28: =IF(+'inputs activity'!$C$3>10,+'Test Year'!L$63," ") -> 521880578.9 | D28: =IF(+'inputs activity'!$C$3>10,+'Actual kWh'!L$63," ") -> 521880578.9 | E28: =IF(+'inputs activity'!$C$3>10,+C28-D28," ") -> 0 | F28: =IF(+'inputs activity'!$C$3>10,+'inputs activity'!M$37," ") -> 0.0348 | H28: =IF(+'inputs activity'!$C$3>10,ROUND(+E28*F28,0)," ") -> 0
B29: December | C29: =IF(+'inputs activity'!$C$3>11,+'Test Year'!M$63," ") -> 680402173.7 | D29: =IF(+'inputs activity'!$C$3>11,+'Actual kWh'!M$63," ") -> 680402173.7 | E29: =IF(+'inputs activity'!$C$3>11,+C29-D29," ") -> 0 | F29: =IF(+'inputs activity'!$C$3>11,+'inputs activity'!N$37," ") -> 0.08958 | H29: =IF(+'inputs activity'!$C$3>11,ROUND(+E29*F29,0)," ") -> 0
C31: =SUM(C18:C30) -> 6014582000 | D31: =SUM(D18:D30) -> 6014582000 | E31: =SUM(E18:E30) -> 0 | H31: =SUM(H18:H30) -> 0

Sheet Load IND
B1: Newfoundland and Labrador Hydro | K1: Pg 12
B4: Long Term Supply Cost Deferral Account
B5: Load Variation - Industrial
B6: =+'inputs activity'!C1 -> 2027-12-31
C9: A | D9: B | E9: C | F9: D | H9: E
C11: Cost of | F11: Firm
C12: Service | D12: Actual | E12: Sales | F12: Energy | H12: Load
C13: Sales | D13: Sales | E13: Variance | F13: Rate | H13: Variation
C14: (kWh) | D14: (kWh) | E14: (kWh) | F14: ($/kWh) | H14: ($)
H15: (to page 3)
E16: (A - B) | H16: (C x D)
B17: Load Variation - Industrial
B18: January | C18: =IF(+'inputs activity'!$C$3>0,+'Test Year'!B$62," ") -> 50688440 | D18: =IF(+'inputs activity'!$C$3>0,+'Actual kWh'!B$62," ") -> 50688440 | E18: =IF(+'inputs activity'!$C$3>0,+C18-D18," ") -> 0 | F18: =IF(+'inputs activity'!$C$3>0,+'inputs activity'!C$38," ") -> 0.08889 | H18: =IF(+'inputs activity'!$C$3>0,ROUND(+E18*F18,0)," ") -> 0
B19: February | C19: =IF(+'inputs activity'!$C$3>1,+'Test Year'!C$62," ") -> 43178100 | D19: =IF(+'inputs activity'!$C$3>1,+'Actual kWh'!C$62," ") -> 43178100 | E19: =IF(+'inputs activity'!$C$3>1,+C19-D19," ") -> 0 | F19: =IF(+'inputs activity'!$C$3>1,+'inputs activity'!D$38," ") -> 0.08889 | H19: =IF(+'inputs activity'!$C$3>1,ROUND(+E19*F19,0)," ") -> 0
B20: March | C20: =IF(+'inputs activity'!$C$3>2,+'Test Year'!D$62," ") -> 55050850 | D20: =IF(+'inputs activity'!$C$3>2,+'Actual kWh'!D$62," ") -> 55050850 | E20: =IF(+'inputs activity'!$C$3>2,+C20-D20," ") -> 0 | F20: =IF(+'inputs activity'!$C$3>2,+'inputs activity'!E$38," ") -> 0.08889 | H20: =IF(+'inputs activity'!$C$3>2,ROUND(+E20*F20,0)," ") -> 0
B21: April | C21: =IF(+'inputs activity'!$C$3>3,+'Test Year'!E$62," ") -> 46693790 | D21: =IF(+'inputs activity'!$C$3>3,+'Actual kWh'!E$62," ") -> 46693790 | E21: =IF(+'inputs activity'!$C$3>3,+C21-D21," ") -> 0 | F21: =IF(+'inputs activity'!$C$3>3,+'inputs activity'!F$38," ") -> 0.03285 | H21: =IF(+'inputs activity'!$C$3>3,ROUND(+E21*F21,0)," ") -> 0
B22: May | C22: =IF(+'inputs activity'!$C$3>4,+'Test Year'!F$62," ") -> 54172620 | D22: =IF(+'inputs activity'!$C$3>4,+'Actual kWh'!F$62," ") -> 54172620 | E22: =IF(+'inputs activity'!$C$3>4,+C22-D22," ") -> 0 | F22: =IF(+'inputs activity'!$C$3>4,+'inputs activity'!G$38," ") -> 0.03285 | H22: =IF(+'inputs activity'!$C$3>4,ROUND(+E22*F22,0)," ") -> 0
B23: June | C23: =IF(+'inputs activity'!$C$3>5,+'Test Year'!G$62," ") -> 53283910 | D23: =IF(+'inputs activity'!$C$3>5,+'Actual kWh'!G$62," ") -> 53283910 | E23: =IF(+'inputs activity'!$C$3>5,+C23-D23," ") -> 0 | F23: =IF(+'inputs activity'!$C$3>5,+'inputs activity'!H$38," ") -> 0.03285 | H23: =IF(+'inputs activity'!$C$3>5,ROUND(+E23*F23,0)," ") -> 0
B24: July | C24: =IF(+'inputs activity'!$C$3>6,+'Test Year'!H$62," ") -> 55984270 | D24: =IF(+'inputs activity'!$C$3>6,+'Actual kWh'!H$62," ") -> 55984270 | E24: =IF(+'inputs activity'!$C$3>6,+C24-D24," ") -> 0 | F24: =IF(+'inputs activity'!$C$3>6,+'inputs activity'!I$38," ") -> 0.03285 | H24: =IF(+'inputs activity'!$C$3>6,ROUND(+E24*F24,0)," ") -> 0
B25: August | C25: =IF(+'inputs activity'!$C$3>7,+'Test Year'!I$62," ") -> 54689540 | D25: =IF(+'inputs activity'!$C$3>7,+'Actual kWh'!I$62," ") -> 54689540 | E25: =IF(+'inputs activity'!$C$3>7,+C25-D25," ") -> 0 | F25: =IF(+'inputs activity'!$C$3>7,+'inputs activity'!J$38," ") -> 0.03285 | H25: =IF(+'inputs activity'!$C$3>7,ROUND(+E25*F25,0)," ") -> 0
B26: September | C26: =IF(+'inputs activity'!$C$3>8,+'Test Year'!J$62," ") -> 52271700 | D26: =IF(+'inputs activity'!$C$3>8,+'Actual kWh'!J$62," ") -> 52271700 | E26: =IF(+'inputs activity'!$C$3>8,+C26-D26," ") -> 0 | F26: =IF(+'inputs activity'!$C$3>8,+'inputs activity'!K$38," ") -> 0.03285 | H26: =IF(+'inputs activity'!$C$3>8,ROUND(+E26*F26,0)," ") -> 0
B27: October | C27: =IF(+'inputs activity'!$C$3>9,+'Test Year'!K$62," ") -> 33042600 | D27: =IF(+'inputs activity'!$C$3>9,+'Actual kWh'!K$62," ") -> 33042600 | E27: =IF(+'inputs activity'!$C$3>9,+C27-D27," ") -> 0 | F27: =IF(+'inputs activity'!$C$3>9,+'inputs activity'!L$38," ") -> 0.03285 | H27: =IF(+'inputs activity'!$C$3>9,ROUND(+E27*F27,0)," ") -> 0
B28: November | C28: =IF(+'inputs activity'!$C$3>10,+'Test Year'!L$62," ") -> 55106520 | D28: =IF(+'inputs activity'!$C$3>10,+'Actual kWh'!L$62," ") -> 55106520 | E28: =IF(+'inputs activity'!$C$3>10,+C28-D28," ") -> 0 | F28: =IF(+'inputs activity'!$C$3>10,+'inputs activity'!M$38," ") -> 0.03285 | H28: =IF(+'inputs activity'!$C$3>10,ROUND(+E28*F28,0)," ") -> 0
B29: December | C29: =IF(+'inputs activity'!$C$3>11,+'Test Year'!M$62," ") -> 59209000 | D29: =IF(+'inputs activity'!$C$3>11,+'Actual kWh'!M$62," ") -> 59209000 | E29: =IF(+'inputs activity'!$C$3>11,+C29-D29," ") -> 0 | F29: =IF(+'inputs activity'!$C$3>11,+'inputs activity'!N$38," ") -> 0.08889 | H29: =IF(+'inputs activity'!$C$3>11,ROUND(+E29*F29,0)," ") -> 0
C31: =SUM(C18:C30) -> 613371340 | D31: =SUM(D18:D30) -> 613371340 | E31: =SUM(E18:E30) -> 0 | H31: =SUM(H18:H30) -> 0

Sheet RRA
B1: Newfoundland and Labrador Hydro | L1: Pg 13
B4: Long Term Supply Cost Deferral Account
B5: Rural Rate Alteration
B6: =+'inputs activity'!C1 -> 2027-12-31
G11: Labrador Intc.
C12: Price | D12: Volume | E12: Total | F12: Utility Allocation | G12: Allocation | I12: Balance
E13: ($) | F13: ($) | G13: ($) | I13: ($)
I14: (to page 3)
B15: January opening adjustment
B16: January | C16: =IF(+'inputs activity'!$C$3>0,ROUND(+'Actual $'!B79+'Actual $'!B80+'Actual $'!B81+'Actual $'!B82+'Actual $'!B83,0)," ") -> 0 | D16: =IF(+'inputs activity'!$C$3>0,ROUND(+'Actual $'!B$78,0)," ") -> 0 | E16: =IF(+'inputs activity'!$C$3>0,ROUND(+'Actual $'!B$84,0)," ") -> 0 | F16: =IF(+'inputs activity'!$C$3>0,ROUND(+'Actual $'!B$84*'inputs activity'!C$34,0)," ") -> 0 | G16: =IF(+'inputs activity'!$C$3>0,ROUND(E16-F16,0)," ") -> 0 | I16: =IF(+'inputs activity'!$C$3>0,ROUND(E16-F16-G16,0)," ") -> 0
B17: February | C17: =IF(+'inputs activity'!$C$3>1,ROUND(+'Actual $'!C79+'Actual $'!C80+'Actual $'!C81+'Actual $'!C82+'Actual $'!C83,0)," ") -> 0 | D17: =IF(+'inputs activity'!$C$3>1,ROUND(+'Actual $'!C$78,0)," ") -> 0 | E17: =IF(+'inputs activity'!$C$3>1,ROUND(+'Actual $'!C$84,0)," ") -> 0 | F17: =IF(+'inputs activity'!$C$3>1,ROUND(+'Actual $'!C$84*'inputs activity'!D$34,0)," ") -> 0 | G17: =IF(+'inputs activity'!$C$3>1,ROUND(E17-F17,0)," ") -> 0 | I17: =IF(+'inputs activity'!$C$3>1,ROUND(+E17-F17-G17,0)," ") -> 0
B18: March | C18: =IF(+'inputs activity'!$C$3>2,ROUND(+'Actual $'!D79+'Actual $'!D80+'Actual $'!D81+'Actual $'!D82+'Actual $'!D83,0)," ") -> 0 | D18: =IF(+'inputs activity'!$C$3>2,ROUND(+'Actual $'!D$78,0)," ") -> 0 | E18: =IF(+'inputs activity'!$C$3>2,ROUND(+'Actual $'!D$84,0)," ") -> 0 | F18: =IF(+'inputs activity'!$C$3>2,ROUND(+'Actual $'!D$84*'inputs activity'!E$34,0)," ") -> 0 | G18: =IF(+'inputs activity'!$C$3>2,ROUND(E18-F18,0)," ") -> 0 | I18: =IF(+'inputs activity'!$C$3>2,ROUND(+E18-F18-G18,0)," ") -> 0
B19: April | C19: =IF(+'inputs activity'!$C$3>3,ROUND(+'Actual $'!E79+'Actual $'!E80+'Actual $'!E81+'Actual $'!E82+'Actual $'!E83,0)," ") -> 0 | D19: =IF(+'inputs activity'!$C$3>3,ROUND(+'Actual $'!E$78,0)," ") -> 0 | E19: =IF(+'inputs activity'!$C$3>3,ROUND(+'Actual $'!E$84,0)," ") -> 0 | F19: =IF(+'inputs activity'!$C$3>3,ROUND(+'Actual $'!E$84*'inputs activity'!F$34,0)," ") -> 0 | G19: =IF(+'inputs activity'!$C$3>3,ROUND(E19-F19,0)," ") -> 0 | I19: =IF(+'inputs activity'!$C$3>3,ROUND(+E19-F19-G19,0)," ") -> 0
B20: May | C20: =IF(+'inputs activity'!$C$3>4,ROUND(+'Actual $'!F79+'Actual $'!F80+'Actual $'!F81+'Actual $'!F82+'Actual $'!F83,0)," ") -> 0 | D20: =IF(+'inputs activity'!$C$3>4,ROUND(+'Actual $'!F$78,0)," ") -> 0 | E20: =IF(+'inputs activity'!$C$3>4,ROUND(+'Actual $'!F$84,0)," ") -> 0 | F20: =IF(+'inputs activity'!$C$3>4,ROUND(+'Actual $'!F$84*'inputs activity'!G$34,0)," ") -> 0 | G20: =IF(+'inputs activity'!$C$3>4,ROUND(E20-F20,0)," ") -> 0 | I20: =IF(+'inputs activity'!$C$3>4,ROUND(+E20-F20-G20,0)," ") -> 0
B21: June | C21: =IF(+'inputs activity'!$C$3>5,ROUND(+'Actual $'!G79+'Actual $'!G80+'Actual $'!G81+'Actual $'!G82+'Actual $'!G83,0)," ") -> 0 | D21: =IF(+'inputs activity'!$C$3>5,ROUND(+'Actual $'!G$78,0)," ") -> 0 | E21: =IF(+'inputs activity'!$C$3>5,ROUND(+'Actual $'!G$84,0)," ") -> 0 | F21: =IF(+'inputs activity'!$C$3>5,ROUND(+'Actual $'!G$84*'inputs activity'!H$34,0)," ") -> 0 | G21: =IF(+'inputs activity'!$C$3>5,ROUND(E21-F21,0)," ") -> 0 | I21: =IF(+'inputs activity'!$C$3>5,ROUND(+E21-F21-G21,0)," ") -> 0
B22: July | C22: =IF(+'inputs activity'!$C$3>6,ROUND(+'Actual $'!H79+'Actual $'!H80+'Actual $'!H81+'Actual $'!H82+'Actual $'!H83,0)," ") -> 0 | D22: =IF(+'inputs activity'!$C$3>6,ROUND(+'Actual $'!H$78,0)," ") -> 0 | E22: =IF(+'inputs activity'!$C$3>6,ROUND(+'Actual $'!H$84,0)," ") -> 0 | F22: =IF(+'inputs activity'!$C$3>6,ROUND(+'Actual $'!H$84*'inputs activity'!I$34,0)," ") -> 0 | G22: =IF(+'inputs activity'!$C$3>6,ROUND(E22-F22,0)," ") -> 0 | I22: =IF(+'inputs activity'!$C$3>6,ROUND(+E22-F22-G22,0)," ") -> 0
B23: August | C23: =IF(+'inputs activity'!$C$3>7,ROUND('Actual $'!I79+'Actual $'!I80+'Actual $'!I81+'Actual $'!I82+'Actual $'!I83,0)," ") -> 0 | D23: =IF(+'inputs activity'!$C$3>7,ROUND(+'Actual $'!I$78,0)," ") -> 0 | E23: =IF(+'inputs activity'!$C$3>7,ROUND(+'Actual $'!I$84,0)," ") -> 0 | F23: =IF(+'inputs activity'!$C$3>7,ROUND(+'Actual $'!I$84*'inputs activity'!J$34,0)," ") -> 0 | G23: =IF(+'inputs activity'!$C$3>7,ROUND(E23-F23,0)," ") -> 0 | I23: =IF(+'inputs activity'!$C$3>7,ROUND(+E23-F23-G23,0)," ") -> 0
B24: September | C24: =IF(+'inputs activity'!$C$3>8,ROUND(+'Actual $'!J79+'Actual $'!J80+'Actual $'!J81+'Actual $'!J82+'Actual $'!J83,0)," ") -> 0 | D24: =IF(+'inputs activity'!$C$3>8,ROUND(+'Actual $'!J$78,0)," ") -> 0 | E24: =IF(+'inputs activity'!$C$3>8,ROUND(+'Actual $'!J$84,0)," ") -> 0 | F24: =IF(+'inputs activity'!$C$3>8,ROUND(+'Actual $'!J$84*'inputs activity'!K$34,0)," ") -> 0 | G24: =IF(+'inputs activity'!$C$3>8,ROUND(E24-F24,0)," ") -> 0 | I24: =IF(+'inputs activity'!$C$3>8,ROUND(+E24-F24-G24,0)," ") -> 0
B25: October | C25: =IF(+'inputs activity'!$C$3>9,ROUND(+'Actual $'!K79+'Actual $'!K80+'Actual $'!K81+'Actual $'!K82+'Actual $'!K83,0)," ") -> 0 | D25: =IF(+'inputs activity'!$C$3>9,ROUND(+'Actual $'!K$78,0)," ") -> 0 | E25: =IF(+'inputs activity'!$C$3>9,ROUND(+'Actual $'!K$84,0)," ") -> 0 | F25: =IF(+'inputs activity'!$C$3>9,ROUND(+'Actual $'!K$84*'inputs activity'!L$34,0)," ") -> 0 | G25: =IF(+'inputs activity'!$C$3>9,ROUND(E25-F25,0)," ") -> 0 | I25: =IF(+'inputs activity'!$C$3>9,ROUND(+E25-F25-G25,0)," ") -> 0
B26: November | C26: =IF(+'inputs activity'!$C$3>10,ROUND(+'Actual $'!L79+'Actual $'!L80+'Actual $'!L81+'Actual $'!L82+'Actual $'!L83,0)," ") -> 0 | D26: =IF(+'inputs activity'!$C$3>10,ROUND(+'Actual $'!L$78,0)," ") -> 0 | E26: =IF(+'inputs activity'!$C$3>10,ROUND(+'Actual $'!L$84,0)," ") -> 0 | F26: =IF(+'inputs activity'!$C$3>10,ROUND(+'Actual $'!L$84*'inputs activity'!M$34,0)," ") -> 0 | G26: =IF(+'inputs activity'!$C$3>10,ROUND(E26-F26,0)," ") -> 0 | I26: =IF(+'inputs activity'!$C$3>10,ROUND(+E26-F26-G26,0)," ") -> 0
B27: December | C27: =IF(+'inputs activity'!$C$3>11,ROUND(+'Actual $'!M79+'Actual $'!M80+'Actual $'!M81+'Actual $'!M82+'Actual $'!M83,0)," ") -> 0 | D27: =IF(+'inputs activity'!$C$3>11,ROUND(+'Actual $'!M$78,0)," ") -> 0 | E27: =IF(+'inputs activity'!$C$3>11,ROUND(+'Actual $'!M$84,0)," ") -> 0 | F27: =IF(+'inputs activity'!$C$3>11,ROUND(+'Actual $'!M$84*'inputs activity'!N$34,0)," ") -> 0 | G27: =IF(+'inputs activity'!$C$3>11,ROUND(E27-F27,0)," ") -> 0 | I27: =IF(+'inputs activity'!$C$3>11,ROUND(+E27-F27-G27,0)," ") -> 0
C29: =SUM(C16:C28) -> 0 | D29: 0 | E29: =SUM(E16:E28) -> 0 | F29: =SUM(F16:F28) -> 0 | G29: =SUM(G16:G28) -> 0 | I29: =SUM(I16:I28) -> 0

Sheet GHG Variance
B1: Newfoundland and Labrador Hydro | K1: Pg 14
B4: Long Term Supply Cost Deferral Account
B5: Greenhouse Gas Credits Variance
B6: =+'inputs activity'!C1 -> 2027-12-31
C9: A | D9: B | F9: C | H9: =Assumptions!$C$9 -> 0.4971 | I9: =Assumptions!$D$9 -> 0.5029
F12: Total | H12: Demand | I12: Energy
C13: Actual | D13: Test Year | F13: Variation | H13: Allocator | I13: Allocator
C14: ($) | D14: ($) | F14: ($) | H14: $ | I14: $
F15: (to page 3) | H15: (to page 14b) | I15: (to page 14c)
F16: (A-B)
B17: Greenhouse Gas Credits
B18: January | C18: =IF(+'inputs activity'!$C$3>0,+'Actual $'!$B$74," ") -> 0 | D18: =IF(+'inputs activity'!$C$3>0,+'Test Year'!B$146," ") -> 0 | F18: =IF(+'inputs activity'!$C$3>0,ROUND(+D18-C18,0)," ") -> 0 | H18: =$F18*H$9 -> 0 | I18: =$F18*I$9 -> 0
B19: February | C19: =IF(+'inputs activity'!$C$3>1,+'Actual $'!$C$74," ") -> 0 | D19: =IF(+'inputs activity'!$C$3>1,+'Test Year'!C$146," ") -> 0 | F19: =IF(+'inputs activity'!$C$3>1,ROUND(+D19-C19,0)," ") -> 0 | H19: =$F19*H$9 -> 0 | I19: 0
B20: March | C20: =IF(+'inputs activity'!$C$3>2,+'Actual $'!$D$74," ") -> 0 | D20: =IF(+'inputs activity'!$C$3>2,+'Test Year'!D$146," ") -> 0 | F20: =IF(+'inputs activity'!$C$3>2,ROUND(+D20-C20,0)," ") -> 0 | H20: 0 | I20: 0
B21: April | C21: =IF(+'inputs activity'!$C$3>3,+'Actual $'!$E$74," ") -> 0 | D21: =IF(+'inputs activity'!$C$3>3,+'Test Year'!E$146," ") -> 0 | F21: =IF(+'inputs activity'!$C$3>3,ROUND(+D21-C21,0)," ") -> 0 | H21: 0 | I21: 0
B22: May | C22: =IF(+'inputs activity'!$C$3>4,+'Actual $'!$F$74," ") -> 0 | D22: =IF(+'inputs activity'!$C$3>4,+'Test Year'!F$146," ") -> 0 | F22: =IF(+'inputs activity'!$C$3>4,ROUND(+D22-C22,0)," ") -> 0 | H22: 0 | I22: 0
B23: June | C23: =IF(+'inputs activity'!$C$3>5,+'Actual $'!$G$74," ") -> 0 | D23: =IF(+'inputs activity'!$C$3>5,+'Test Year'!G$146," ") -> 0 | F23: =IF(+'inputs activity'!$C$3>5,ROUND(+D23-C23,0)," ") -> 0 | H23: 0 | I23: 0
B24: July | C24: =IF(+'inputs activity'!$C$3>6,+'Actual $'!$H$74," ") -> 0 | D24: =IF(+'inputs activity'!$C$3>6,+'Test Year'!H$146," ") -> 0 | F24: =IF(+'inputs activity'!$C$3>6,ROUND(+D24-C24,0)," ") -> 0 | H24: 0 | I24: 0
B25: August | C25: =IF(+'inputs activity'!$C$3>7,+'Actual $'!$I$74," ") -> 0 | D25: =IF(+'inputs activity'!$C$3>7,+'Test Year'!I$146," ") -> 0 | F25: =IF(+'inputs activity'!$C$3>7,ROUND(+D25-C25,0)," ") -> 0 | H25: 0 | I25: 0
B26: September | C26: =IF(+'inputs activity'!$C$3>8,+'Actual $'!$J$74," ") -> 0 | D26: =IF(+'inputs activity'!$C$3>8,+'Test Year'!J$146," ") -> 0 | F26: =IF(+'inputs activity'!$C$3>8,ROUND(+D26-C26,0)," ") -> 0 | H26: 0 | I26: 0
B27: October | C27: =IF(+'inputs activity'!$C$3>9,+'Actual $'!$K$74," ") -> 0 | D27: =IF(+'inputs activity'!$C$3>9,+'Test Year'!K$146," ") -> 0 | F27: =IF(+'inputs activity'!$C$3>9,ROUND(+D27-C27,0)," ") -> 0 | H27: 0 | I27: 0
B28: November | C28: =IF(+'inputs activity'!$C$3>10,+'Actual $'!$L$74," ") -> 0 | D28: =IF(+'inputs activity'!$C$3>10,+'Test Year'!L$146," ") -> 0 | F28: =IF(+'inputs activity'!$C$3>10,ROUND(+D28-C28,0)," ") -> 0 | H28: 0 | I28: 0
B29: December | C29: =IF(+'inputs activity'!$C$3>11,+'Actual $'!$M$74," ") -> 1250000 | D29: =IF(+'inputs activity'!$C$3>11,+'Test Year'!M$146," ") -> 1250000 | F29: =IF(+'inputs activity'!$C$3>11,ROUND(+D29-C29,0)," ") -> 0 | H29: 0 | I29: 0
C31: =SUM(C18:C30) -> 1250000 | D31: =SUM(D18:D30) -> 1250000 | F31: =SUM(F18:F30) -> 0 | H31: =SUM(H18:H30) -> 0 | I31: 0

Sheet Rate Mitigation Variance
B1: Newfoundland and Labrador Hydro | K1: Pg 15
B4: Long Term Supply Cost Deferral Account
B5: Rate Mitigation Variance
B6: =+'inputs activity'!C1 -> 2027-12-31
C9: A | D9: B | F9: C | H9: =Assumptions!$C$4 -> 0.4971 | I9: =Assumptions!$D$4 -> 0.5029
F12: Total | H12: Demand | I12: Energy
C13: Actual | D13: Test Year | F13: Variation | H13: Allocator | I13: Allocator
C14: ($) | D14: ($) | F14: ($) | H14: $ | I14: $
F15: (to page 3) | H15: (to page 15b) | I15: (to page 15c)
F16: (A-B)
B17: Rate Mitigation
B18: January | C18: =IF(+'inputs activity'!$C$3>0,+'Actual $'!$B$76," ") -> 41830331.92 | D18: =IF(+'inputs activity'!$C$3>0,+'Test Year'!B$148," ") -> 41830331.92 | F18: =IF(+'inputs activity'!$C$3>0,ROUND(+D18-C18,0)," ") -> 0 | H18: =$F18*H$9 -> 0 | I18: 0
B19: February | C19: =IF(+'inputs activity'!$C$3>1,+'Actual $'!$C$76," ") -> 41830331.92 | D19: =IF(+'inputs activity'!$C$3>1,+'Test Year'!C$148," ") -> 41830331.92 | F19: =IF(+'inputs activity'!$C$3>1,ROUND(+D19-C19,0)," ") -> 0 | H19: 0 | I19: 0
B20: March | C20: =IF(+'inputs activity'!$C$3>2,+'Actual $'!$D$76," ") -> 41830331.92 | D20: =IF(+'inputs activity'!$C$3>2,+'Test Year'!D$148," ") -> 41830331.92 | F20: =IF(+'inputs activity'!$C$3>2,ROUND(+D20-C20,0)," ") -> 0 | H20: 0 | I20: 0
B21: April | C21: =IF(+'inputs activity'!$C$3>3,+'Actual $'!$E$76," ") -> 41830331.92 | D21: =IF(+'inputs activity'!$C$3>3,+'Test Year'!E$148," ") -> 41830331.92 | F21: =IF(+'inputs activity'!$C$3>3,ROUND(+D21-C21,0)," ") -> 0 | H21: 0 | I21: 0
B22: May | C22: =IF(+'inputs activity'!$C$3>4,+'Actual $'!$F$76," ") -> 41830331.92 | D22: =IF(+'inputs activity'!$C$3>4,+'Test Year'!F$148," ") -> 41830331.92 | F22: =IF(+'inputs activity'!$C$3>4,ROUND(+D22-C22,0)," ") -> 0 | H22: 0 | I22: 0
B23: June | C23: =IF(+'inputs activity'!$C$3>5,+'Actual $'!$G$76," ") -> 41830331.92 | D23: =IF(+'inputs activity'!$C$3>5,+'Test Year'!G$148," ") -> 41830331.92 | F23: =IF(+'inputs activity'!$C$3>5,ROUND(+D23-C23,0)," ") -> 0 | H23: 0 | I23: 0
B24: July | C24: =IF(+'inputs activity'!$C$3>6,+'Actual $'!$H$76," ") -> 41830331.92 | D24: =IF(+'inputs activity'!$C$3>6,+'Test Year'!H$148," ") -> 41830331.92 | F24: =IF(+'inputs activity'!$C$3>6,ROUND(+D24-C24,0)," ") -> 0 | H24: 0 | I24: 0
B25: August | C25: =IF(+'inputs activity'!$C$3>7,+'Actual $'!$I$76," ") -> 41830331.92 | D25: =IF(+'inputs activity'!$C$3>7,+'Test Year'!I$148," ") -> 41830331.92 | F25: =IF(+'inputs activity'!$C$3>7,ROUND(+D25-C25,0)," ") -> 0 | H25: 0 | I25: 0
B26: September | C26: =IF(+'inputs activity'!$C$3>8,+'Actual $'!$J$76," ") -> 41830331.92 | D26: =IF(+'inputs activity'!$C$3>8,+'Test Year'!J$148," ") -> 41830331.92 | F26: =IF(+'inputs activity'!$C$3>8,ROUND(+D26-C26,0)," ") -> 0 | H26: 0 | I26: 0
B27: October | C27: =IF(+'inputs activity'!$C$3>9,+'Actual $'!$K$76," ") -> 41830331.92 | D27: =IF(+'inputs activity'!$C$3>9,+'Test Year'!K$148," ") -> 41830331.92 | F27: =IF(+'inputs activity'!$C$3>9,ROUND(+D27-C27,0)," ") -> 0 | H27: 0 | I27: 0
B28: November | C28: =IF(+'inputs activity'!$C$3>10,+'Actual $'!$L$76," ") -> 41830331.92 | D28: =IF(+'inputs activity'!$C$3>10,+'Test Year'!L$148," ") -> 41830331.92 | F28: =IF(+'inputs activity'!$C$3>10,ROUND(+D28-C28,0)," ") -> 0 | H28: 0 | I28: 0
B29: December | C29: =IF(+'inputs activity'!$C$3>11,+'Actual $'!$M$76," ") -> 41830331.92 | D29: =IF(+'inputs activity'!$C$3>11,+'Test Year'!M$148," ") -> 41830331.92 | F29: =IF(+'inputs activity'!$C$3>11,ROUND(+D29-C29,0)," ") -> 0 | H29: 0 | I29: 0
C31: =SUM(C18:C30) -> 501963983 | D31: =SUM(D18:D30) -> 501963983 | F31: =SUM(F18:F30) -> 0 | H31: =SUM(H18:H30) -> 0 | I31: 0

Sheet >>> Monthly Split

Sheet monthly MF Alloc
B1: =+'Load IND'!B1 -> Newfoundland and Labrador Hydro | S1: Pg 6a
B4: =+'Load IND'!B4 -> Long Term Supply Cost Deferral Account
B5: Allocation of MF Supply Variance - Monthly
B6: =+'inputs activity'!C1 -> 2027-12-31
D8: A | F8: B | H8: C | J8: D | L8: E | N8: F | P8: G
D10: Utility | N10: Industrial
L11: Total MF Supply
D12: MF Supply Variance | H12: Rural Allocation | L12: Variance | N12: MF Supply Variance
D13: Year-to-Date | F13: Current Month | H13: Year-to-Date | J13: Current Month | L13: Activity for | N13: Year-to-Date | P13: Current Month
D14: Activity | F14: Activity | H14: Activity | J14: Activity | L14: the month | N14: Activity | P14: Activity
D15: ($) | F15: ($) | H15: ($) | J15: ($) | L15: ($) | N15: ($) | P15: ($)
L16: (B + D)
D17: (from page 6b + 6c) | H17: (from page 6b + 6c) | L17: (to page 4) | N17: (from page 6b + 6c) | P17: (to page 5)
B18: January | D18: =IF(+'inputs activity'!$C$3>0,'MF Variance Energy'!$L18+'MF Variance Demand'!$L18," ") -> 0 | F18: =IF(+'inputs activity'!$C$3>0,D18-0," ") -> 0 | H18: =IF(+'inputs activity'!$C$3>0,'MF Variance Energy'!$T18+'MF Variance Demand'!$T18," ") -> 0 | J18: =IF(+'inputs activity'!$C$3>0,H18-0," ") -> 0 | L18: =IF(+'inputs activity'!$C$3>0,+F18+J18," ") -> 0 | N18: =IF(+'inputs activity'!$C$3>0,'MF Variance Energy'!$N18+'MF Variance Demand'!$N18," ") -> 0 | P18: =IF(+'inputs activity'!$C$3>0,N18-0," ") -> 0
B19: February | D19: =IF(+'inputs activity'!$C$3>0,'MF Variance Energy'!$L19+'MF Variance Demand'!$L19," ") -> 0 | F19: =IF(+'inputs activity'!$C$3>0,D19-D18," ") -> 0 | H19: =IF(+'inputs activity'!$C$3>0,'MF Variance Energy'!$T19+'MF Variance Demand'!$T19," ") -> 0 | J19: =IF(+'inputs activity'!$C$3>0,H19-H18," ") -> 0 | L19: =IF(+'inputs activity'!$C$3>1,+F19+J19," ") -> 0 | N19: =IF(+'inputs activity'!$C$3>0,'MF Variance Energy'!$N19+'MF Variance Demand'!$N19," ") -> 0 | P19: =IF(+'inputs activity'!$C$3>0,N19-N18," ") -> 0
B20: March | D20: =IF(+'inputs activity'!$C$3>0,'MF Variance Energy'!$L20+'MF Variance Demand'!$L20," ") -> 0 | F20: =IF(+'inputs activity'!$C$3>0,D20-D19," ") -> 0 | H20: =IF(+'inputs activity'!$C$3>0,'MF Variance Energy'!$T20+'MF Variance Demand'!$T20," ") -> 0 | J20: =IF(+'inputs activity'!$C$3>0,H20-H19," ") -> 0 | L20: =IF(+'inputs activity'!$C$3>2,+F20+J20," ") -> 0 | N20: =IF(+'inputs activity'!$C$3>0,'MF Variance Energy'!$N20+'MF Variance Demand'!$N20," ") -> 0 | P20: =IF(+'inputs activity'!$C$3>0,N20-N19," ") -> 0
B21: April | D21: =IF(+'inputs activity'!$C$3>0,'MF Variance Energy'!$L21+'MF Variance Demand'!$L21," ") -> 0 | F21: =IF(+'inputs activity'!$C$3>0,D21-D20," ") -> 0 | H21: =IF(+'inputs activity'!$C$3>0,'MF Variance Energy'!$T21+'MF Variance Demand'!$T21," ") -> 0 | J21: =IF(+'inputs activity'!$C$3>0,H21-H20," ") -> 0 | L21: =IF(+'inputs activity'!$C$3>3,+F21+J21," ") -> 0 | N21: =IF(+'inputs activity'!$C$3>0,'MF Variance Energy'!$N21+'MF Variance Demand'!$N21," ") -> 0 | P21: =IF(+'inputs activity'!$C$3>0,N21-N20," ") -> 0
B22: May | D22: =IF(+'inputs activity'!$C$3>0,'MF Variance Energy'!$L22+'MF Variance Demand'!$L22," ") -> 0 | F22: =IF(+'inputs activity'!$C$3>0,D22-D21," ") -> 0 | H22: =IF(+'inputs activity'!$C$3>0,'MF Variance Energy'!$T22+'MF Variance Demand'!$T22," ") -> 0 | J22: =IF(+'inputs activity'!$C$3>0,H22-H21," ") -> 0 | L22: =IF(+'inputs activity'!$C$3>4,+F22+J22," ") -> 0 | N22: =IF(+'inputs activity'!$C$3>0,'MF Variance Energy'!$N22+'MF Variance Demand'!$N22," ") -> 0 | P22: =IF(+'inputs activity'!$C$3>0,N22-N21," ") -> 0
B23: June | D23: =IF(+'inputs activity'!$C$3>0,'MF Variance Energy'!$L23+'MF Variance Demand'!$L23," ") -> 0 | F23: =IF(+'inputs activity'!$C$3>0,D23-D22," ") -> 0 | H23: =IF(+'inputs activity'!$C$3>0,'MF Variance Energy'!$T23+'MF Variance Demand'!$T23," ") -> 0 | J23: =IF(+'inputs activity'!$C$3>0,H23-H22," ") -> 0 | L23: =IF(+'inputs activity'!$C$3>5,+F23+J23," ") -> 0 | N23: =IF(+'inputs activity'!$C$3>0,'MF Variance Energy'!$N23+'MF Variance Demand'!$N23," ") -> 0 | P23: =IF(+'inputs activity'!$C$3>0,N23-N22," ") -> 0
B24: July | D24: =IF(+'inputs activity'!$C$3>0,'MF Variance Energy'!$L24+'MF Variance Demand'!$L24," ") -> 0 | F24: =IF(+'inputs activity'!$C$3>0,D24-D23," ") -> 0 | H24: =IF(+'inputs activity'!$C$3>0,'MF Variance Energy'!$T24+'MF Variance Demand'!$T24," ") -> 0 | J24: =IF(+'inputs activity'!$C$3>0,H24-H23," ") -> 0 | L24: =IF(+'inputs activity'!$C$3>6,+F24+J24," ") -> 0 | N24: =IF(+'inputs activity'!$C$3>0,'MF Variance Energy'!$N24+'MF Variance Demand'!$N24," ") -> 0 | P24: =IF(+'inputs activity'!$C$3>0,N24-N23," ") -> 0
B25: August | D25: =IF(+'inputs activity'!$C$3>0,'MF Variance Energy'!$L25+'MF Variance Demand'!$L25," ") -> 0 | F25: =IF(+'inputs activity'!$C$3>0,D25-D24," ") -> 0 | H25: =IF(+'inputs activity'!$C$3>0,'MF Variance Energy'!$T25+'MF Variance Demand'!$T25," ") -> 0 | J25: =IF(+'inputs activity'!$C$3>0,H25-H24," ") -> 0 | L25: =IF(+'inputs activity'!$C$3>7,+F25+J25," ") -> 0 | N25: =IF(+'inputs activity'!$C$3>0,'MF Variance Energy'!$N25+'MF Variance Demand'!$N25," ") -> 0 | P25: =IF(+'inputs activity'!$C$3>0,N25-N24," ") -> 0
B26: September | D26: =IF(+'inputs activity'!$C$3>0,'MF Variance Energy'!$L26+'MF Variance Demand'!$L26," ") -> 0 | F26: =IF(+'inputs activity'!$C$3>0,D26-D25," ") -> 0 | H26: =IF(+'inputs activity'!$C$3>0,'MF Variance Energy'!$T26+'MF Variance Demand'!$T26," ") -> 0 | J26: =IF(+'inputs activity'!$C$3>0,H26-H25," ") -> 0 | L26: =IF(+'inputs activity'!$C$3>8,+F26+J26," ") -> 0 | N26: =IF(+'inputs activity'!$C$3>0,'MF Variance Energy'!$N26+'MF Variance Demand'!$N26," ") -> 0 | P26: =IF(+'inputs activity'!$C$3>0,N26-N25," ") -> 0
B27: October | D27: =IF(+'inputs activity'!$C$3>0,'MF Variance Energy'!$L27+'MF Variance Demand'!$L27," ") -> 0 | F27: =IF(+'inputs activity'!$C$3>0,D27-D26," ") -> 0 | H27: =IF(+'inputs activity'!$C$3>0,'MF Variance Energy'!$T27+'MF Variance Demand'!$T27," ") -> 0 | J27: =IF(+'inputs activity'!$C$3>0,H27-H26," ") -> 0 | L27: =IF(+'inputs activity'!$C$3>9,+F27+J27," ") -> 0 | N27: =IF(+'inputs activity'!$C$3>0,'MF Variance Energy'!$N27+'MF Variance Demand'!$N27," ") -> 0 | P27: =IF(+'inputs activity'!$C$3>0,N27-N26," ") -> 0
B28: November | D28: =IF(+'inputs activity'!$C$3>0,'MF Variance Energy'!$L28+'MF Variance Demand'!$L28," ") -> 0 | F28: =IF(+'inputs activity'!$C$3>0,D28-D27," ") -> 0 | H28: =IF(+'inputs activity'!$C$3>0,'MF Variance Energy'!$T28+'MF Variance Demand'!$T28," ") -> 0 | J28: =IF(+'inputs activity'!$C$3>0,H28-H27," ") -> 0 | L28: =IF(+'inputs activity'!$C$3>10,+F28+J28," ") -> 0 | N28: =IF(+'inputs activity'!$C$3>0,'MF Variance Energy'!$N28+'MF Variance Demand'!$N28," ") -> 0 | P28: =IF(+'inputs activity'!$C$3>0,N28-N27," ") -> 0
B29: December | D29: =IF(+'inputs activity'!$C$3>0,'MF Variance Energy'!$L29+'MF Variance Demand'!$L29," ") -> 0 | F29: =IF(+'inputs activity'!$C$3>0,D29-D28," ") -> 0 | H29: =IF(+'inputs activity'!$C$3>0,'MF Variance Energy'!$T29+'MF Variance Demand'!$T29," ") -> 0 | J29: =IF(+'inputs activity'!$C$3>0,H29-H28," ") -> 0 | L29: =IF(+'inputs activity'!$C$3>11,+F29+J29," ") -> 0 | N29: =IF(+'inputs activity'!$C$3>0,'MF Variance Energy'!$N29+'MF Variance Demand'!$N29," ") -> 0 | P29: =IF(+'inputs activity'!$C$3>0,N29-N28," ") -> 0
F31: =SUM(F17:F29) -> 0 | J31: =SUM(J17:J29) -> 0 | L31: =SUM(L17:L29) -> 0 | P31: =SUM(P17:P29) -> 0

Sheet monthly Fuel Alloc
B1: =+'Load IND'!B1 -> Newfoundland and Labrador Hydro | S1: Pg 7a
B4: =+'Load IND'!B4 -> Long Term Supply Cost Deferral Account
B5: Allocation of Fuel - Monthly
B6: =+'inputs activity'!C1 -> 2027-12-31
D8: A | F8: B | H8: C | J8: D | L8: E | N8: F | P8: G
D10: Utility | N10: Industrial
L11: Total Fuel
D12: Fuel Variance | H12: Rural Allocation | L12: Variance | N12: Fuel Variance
D13: Year-to-Date | F13: Current Month | H13: Year-to-Date | J13: Current Month | L13: Activity for | N13: Year-to-Date | P13: Current Month
D14: Activity | F14: Activity | H14: Activity | J14: Activity | L14: the month | N14: Activity | P14: Activity
D15: ($) | F15: ($) | H15: ($) | J15: ($) | L15: ($) | N15: ($) | P15: ($)
L16: (B + D)
D17: (from page 7b + 7c) | H17: (from page 7b + 7c) | L17: (to page 4) | N17: (from page 7b + 7c) | P17: (to page 5)
B18: January | D18: =IF(+'inputs activity'!$C$3>0,'Fuel Variance Demand'!$L18+'Fuel Variance Energy'!$L18," ") -> 0 | F18: =IF(+'inputs activity'!$C$3>0,D18-0," ") -> 0 | H18: =IF(+'inputs activity'!$C$3>0,'Fuel Variance Demand'!$T18+'Fuel Variance Energy'!$T18," ") -> 0 | J18: =IF(+'inputs activity'!$C$3>0,H18-0," ") -> 0 | L18: =IF(+'inputs activity'!$C$3>0,+F18+J18," ") -> 0 | N18: =IF(+'inputs activity'!$C$3>0,'Fuel Variance Demand'!$N18+'Fuel Variance Energy'!$N18," ") -> 0 | P18: =IF(+'inputs activity'!$C$3>0,N18-0," ") -> 0
B19: February | D19: =IF(+'inputs activity'!$C$3>0,'Fuel Variance Demand'!$L19+'Fuel Variance Energy'!$L19," ") -> 0 | F19: =IF(+'inputs activity'!$C$3>0,D19-D18," ") -> 0 | H19: =IF(+'inputs activity'!$C$3>0,'Fuel Variance Demand'!$T19+'Fuel Variance Energy'!$T19," ") -> 0 | J19: =IF(+'inputs activity'!$C$3>0,H19-H18," ") -> 0 | L19: =IF(+'inputs activity'!$C$3>1,+F19+J19," ") -> 0 | N19: =IF(+'inputs activity'!$C$3>0,'Fuel Variance Demand'!$N19+'Fuel Variance Energy'!$N19," ") -> 0 | P19: =IF(+'inputs activity'!$C$3>0,N19-N18," ") -> 0
B20: March | D20: =IF(+'inputs activity'!$C$3>0,'Fuel Variance Demand'!$L20+'Fuel Variance Energy'!$L20," ") -> 0 | F20: =IF(+'inputs activity'!$C$3>0,D20-D19," ") -> 0 | H20: =IF(+'inputs activity'!$C$3>0,'Fuel Variance Demand'!$T20+'Fuel Variance Energy'!$T20," ") -> 0 | J20: =IF(+'inputs activity'!$C$3>0,H20-H19," ") -> 0 | L20: =IF(+'inputs activity'!$C$3>2,+F20+J20," ") -> 0 | N20: =IF(+'inputs activity'!$C$3>0,'Fuel Variance Demand'!$N20+'Fuel Variance Energy'!$N20," ") -> 0 | P20: =IF(+'inputs activity'!$C$3>0,N20-N19," ") -> 0
B21: April | D21: =IF(+'inputs activity'!$C$3>0,'Fuel Variance Demand'!$L21+'Fuel Variance Energy'!$L21," ") -> 0 | F21: =IF(+'inputs activity'!$C$3>0,D21-D20," ") -> 0 | H21: =IF(+'inputs activity'!$C$3>0,'Fuel Variance Demand'!$T21+'Fuel Variance Energy'!$T21," ") -> 0 | J21: =IF(+'inputs activity'!$C$3>0,H21-H20," ") -> 0 | L21: =IF(+'inputs activity'!$C$3>3,+F21+J21," ") -> 0 | N21: =IF(+'inputs activity'!$C$3>0,'Fuel Variance Demand'!$N21+'Fuel Variance Energy'!$N21," ") -> 0 | P21: =IF(+'inputs activity'!$C$3>0,N21-N20," ") -> 0
B22: May | D22: =IF(+'inputs activity'!$C$3>0,'Fuel Variance Demand'!$L22+'Fuel Variance Energy'!$L22," ") -> 0 | F22: =IF(+'inputs activity'!$C$3>0,D22-D21," ") -> 0 | H22: =IF(+'inputs activity'!$C$3>0,'Fuel Variance Demand'!$T22+'Fuel Variance Energy'!$T22," ") -> 0 | J22: =IF(+'inputs activity'!$C$3>0,H22-H21," ") -> 0 | L22: =IF(+'inputs activity'!$C$3>4,+F22+J22," ") -> 0 | N22: =IF(+'inputs activity'!$C$3>0,'Fuel Variance Demand'!$N22+'Fuel Variance Energy'!$N22," ") -> 0 | P22: =IF(+'inputs activity'!$C$3>0,N22-N21," ") -> 0
B23: June | D23: =IF(+'inputs activity'!$C$3>0,'Fuel Variance Demand'!$L23+'Fuel Variance Energy'!$L23," ") -> 0 | F23: =IF(+'inputs activity'!$C$3>0,D23-D22," ") -> 0 | H23: =IF(+'inputs activity'!$C$3>0,'Fuel Variance Demand'!$T23+'Fuel Variance Energy'!$T23," ") -> 0 | J23: =IF(+'inputs activity'!$C$3>0,H23-H22," ") -> 0 | L23: =IF(+'inputs activity'!$C$3>5,+F23+J23," ") -> 0 | N23: =IF(+'inputs activity'!$C$3>0,'Fuel Variance Demand'!$N23+'Fuel Variance Energy'!$N23," ") -> 0 | P23: =IF(+'inputs activity'!$C$3>0,N23-N22," ") -> 0
B24: July | D24: =IF(+'inputs activity'!$C$3>0,'Fuel Variance Demand'!$L24+'Fuel Variance Energy'!$L24," ") -> 0 | F24: =IF(+'inputs activity'!$C$3>0,D24-D23," ") -> 0 | H24: =IF(+'inputs activity'!$C$3>0,'Fuel Variance Demand'!$T24+'Fuel Variance Energy'!$T24," ") -> 0 | J24: =IF(+'inputs activity'!$C$3>0,H24-H23," ") -> 0 | L24: =IF(+'inputs activity'!$C$3>6,+F24+J24," ") -> 0 | N24: =IF(+'inputs activity'!$C$3>0,'Fuel Variance Demand'!$N24+'Fuel Variance Energy'!$N24," ") -> 0 | P24: =IF(+'inputs activity'!$C$3>0,N24-N23," ") -> 0
B25: August | D25: =IF(+'inputs activity'!$C$3>0,'Fuel Variance Demand'!$L25+'Fuel Variance Energy'!$L25," ") -> 0 | F25: =IF(+'inputs activity'!$C$3>0,D25-D24," ") -> 0 | H25: =IF(+'inputs activity'!$C$3>0,'Fuel Variance Demand'!$T25+'Fuel Variance Energy'!$T25," ") -> 0 | J25: =IF(+'inputs activity'!$C$3>0,H25-H24," ") -> 0 | L25: =IF(+'inputs activity'!$C$3>7,+F25+J25," ") -> 0 | N25: =IF(+'inputs activity'!$C$3>0,'Fuel Variance Demand'!$N25+'Fuel Variance Energy'!$N25," ") -> 0 | P25: =IF(+'inputs activity'!$C$3>0,N25-N24," ") -> 0
B26: September | D26: =IF(+'inputs activity'!$C$3>0,'Fuel Variance Demand'!$L26+'Fuel Variance Energy'!$L26," ") -> 0 | F26: =IF(+'inputs activity'!$C$3>0,D26-D25," ") -> 0 | H26: =IF(+'inputs activity'!$C$3>0,'Fuel Variance Demand'!$T26+'Fuel Variance Energy'!$T26," ") -> 0 | J26: =IF(+'inputs activity'!$C$3>0,H26-H25," ") -> 0 | L26: =IF(+'inputs activity'!$C$3>8,+F26+J26," ") -> 0 | N26: =IF(+'inputs activity'!$C$3>0,'Fuel Variance Demand'!$N26+'Fuel Variance Energy'!$N26," ") -> 0 | P26: =IF(+'inputs activity'!$C$3>0,N26-N25," ") -> 0
B27: October | D27: =IF(+'inputs activity'!$C$3>0,'Fuel Variance Demand'!$L27+'Fuel Variance Energy'!$L27," ") -> 0 | F27: =IF(+'inputs activity'!$C$3>0,D27-D26," ") -> 0 | H27: =IF(+'inputs activity'!$C$3>0,'Fuel Variance Demand'!$T27+'Fuel Variance Energy'!$T27," ") -> 0 | J27: =IF(+'inputs activity'!$C$3>0,H27-H26," ") -> 0 | L27: =IF(+'inputs activity'!$C$3>9,+F27+J27," ") -> 0 | N27: =IF(+'inputs activity'!$C$3>0,'Fuel Variance Demand'!$N27+'Fuel Variance Energy'!$N27," ") -> 0 | P27: =IF(+'inputs activity'!$C$3>0,N27-N26," ") -> 0
B28: November | D28: =IF(+'inputs activity'!$C$3>0,'Fuel Variance Demand'!$L28+'Fuel Variance Energy'!$L28," ") -> 0 | F28: =IF(+'inputs activity'!$C$3>0,D28-D27," ") -> 0 | H28: =IF(+'inputs activity'!$C$3>0,'Fuel Variance Demand'!$T28+'Fuel Variance Energy'!$T28," ") -> 0 | J28: =IF(+'inputs activity'!$C$3>0,H28-H27," ") -> 0 | L28: =IF(+'inputs activity'!$C$3>10,+F28+J28," ") -> 0 | N28: =IF(+'inputs activity'!$C$3>0,'Fuel Variance Demand'!$N28+'Fuel Variance Energy'!$N28," ") -> 0 | P28: =IF(+'inputs activity'!$C$3>0,N28-N27," ") -> 0
B29: December | D29: =IF(+'inputs activity'!$C$3>0,'Fuel Variance Demand'!$L29+'Fuel Variance Energy'!$L29," ") -> 0 | F29: =IF(+'inputs activity'!$C$3>0,D29-D28," ") -> 0 | H29: =IF(+'inputs activity'!$C$3>0,'Fuel Variance Demand'!$T29+'Fuel Variance Energy'!$T29," ") -> 0 | J29: =IF(+'inputs activity'!$C$3>0,H29-H28," ") -> 0 | L29: =IF(+'inputs activity'!$C$3>11,+F29+J29," ") -> 0 | N29: =IF(+'inputs activity'!$C$3>0,'Fuel Variance Demand'!$N29+'Fuel Variance Energy'!$N29," ") -> 0 | P29: =IF(+'inputs activity'!$C$3>0,N29-N28," ") -> 0
F31: =SUM(F17:F29) -> 0 | J31: =SUM(J17:J29) -> 0 | L31: =SUM(L17:L29) -> 0 | P31: =SUM(P17:P29) -> 0

Sheet monthly Other IIS Alloc
B1: =+'Load IND'!B1 -> Newfoundland and Labrador Hydro | S1: Pg 8a
B4: =+'Load IND'!B4 -> Long Term Supply Cost Deferral Account
B5: Allocation of Other IIS Supply Cost Variance - monthly
B6: =+'inputs activity'!C1 -> 2027-12-31
D8: A | F8: B | H8: C | J8: D | L8: E | N8: F | P8: G
D10: Utility | N10: Industrial
L11: Total IIS
D12: Other IIS Supply Variance | H12: Rural Allocation | L12: Variance | N12: Other IIS Supply Variance
D13: Year-to-Date | F13: Current Month | H13: Year-to-Date | J13: Current Month | L13: Activity for | N13: Year-to-Date | P13: Current Month
D14: Activity | F14: Activity | H14: Activity | J14: Activity | L14: the month | N14: Activity | P14: Activity
D15: ($) | F15: ($) | H15: ($) | J15: ($) | L15: ($) | N15: ($) | P15: ($)
L16: (B + D)
D17: (from page 8b + 8c) | H17: (from page 8b + 8c) | L17: (to page 4) | N17: (from page 8b + 8c) | P17: (to page 5)
B18: January | D18: =IF(+'inputs activity'!$C$3>0,'Other IIS Variance Demand'!$L18+'Other IIS Variance Energy'!$L18," ") -> 0 | F18: =IF(+'inputs activity'!$C$3>0,D18-0," ") -> 0 | H18: =IF(+'inputs activity'!$C$3>0,'Other IIS Variance Demand'!$T18+'Other IIS Variance Energy'!$T18," ") -> 0 | J18: =IF(+'inputs activity'!$C$3>0,H18-0," ") -> 0 | L18: =IF(+'inputs activity'!$C$3>0,+F18+J18," ") -> 0 | N18: =IF(+'inputs activity'!$C$3>0,'Other IIS Variance Demand'!$N18+'Other IIS Variance Energy'!$N18," ") -> 0 | P18: =IF(+'inputs activity'!$C$3>0,N18-0," ") -> 0
B19: February | D19: =IF(+'inputs activity'!$C$3>0,'Other IIS Variance Demand'!$L19+'Other IIS Variance Energy'!$L19," ") -> 0 | F19: =IF(+'inputs activity'!$C$3>0,D19-D18," ") -> 0 | H19: =IF(+'inputs activity'!$C$3>0,'Other IIS Variance Demand'!$T19+'Other IIS Variance Energy'!$T19," ") -> 0 | J19: =IF(+'inputs activity'!$C$3>0,H19-H18," ") -> 0 | L19: =IF(+'inputs activity'!$C$3>1,+F19+J19," ") -> 0 | N19: =IF(+'inputs activity'!$C$3>0,'Other IIS Variance Demand'!$N19+'Other IIS Variance Energy'!$N19," ") -> 0 | P19: =IF(+'inputs activity'!$C$3>0,N19-N18," ") -> 0
B20: March | D20: =IF(+'inputs activity'!$C$3>0,'Other IIS Variance Demand'!$L20+'Other IIS Variance Energy'!$L20," ") -> 0 | F20: =IF(+'inputs activity'!$C$3>0,D20-D19," ") -> 0 | H20: =IF(+'inputs activity'!$C$3>0,'Other IIS Variance Demand'!$T20+'Other IIS Variance Energy'!$T20," ") -> 0 | J20: =IF(+'inputs activity'!$C$3>0,H20-H19," ") -> 0 | L20: =IF(+'inputs activity'!$C$3>2,+F20+J20," ") -> 0 | N20: =IF(+'inputs activity'!$C$3>0,'Other IIS Variance Demand'!$N20+'Other IIS Variance Energy'!$N20," ") -> 0 | P20: =IF(+'inputs activity'!$C$3>0,N20-N19," ") -> 0
B21: April | D21: =IF(+'inputs activity'!$C$3>0,'Other IIS Variance Demand'!$L21+'Other IIS Variance Energy'!$L21," ") -> 0 | F21: =IF(+'inputs activity'!$C$3>0,D21-D20," ") -> 0 | H21: =IF(+'inputs activity'!$C$3>0,'Other IIS Variance Demand'!$T21+'Other IIS Variance Energy'!$T21," ") -> 0 | J21: =IF(+'inputs activity'!$C$3>0,H21-H20," ") -> 0 | L21: =IF(+'inputs activity'!$C$3>3,+F21+J21," ") -> 0 | N21: =IF(+'inputs activity'!$C$3>0,'Other IIS Variance Demand'!$N21+'Other IIS Variance Energy'!$N21," ") -> 0 | P21: =IF(+'inputs activity'!$C$3>0,N21-N20," ") -> 0
B22: May | D22: =IF(+'inputs activity'!$C$3>0,'Other IIS Variance Demand'!$L22+'Other IIS Variance Energy'!$L22," ") -> 0 | F22: =IF(+'inputs activity'!$C$3>0,D22-D21," ") -> 0 | H22: =IF(+'inputs activity'!$C$3>0,'Other IIS Variance Demand'!$T22+'Other IIS Variance Energy'!$T22," ") -> 0 | J22: =IF(+'inputs activity'!$C$3>0,H22-H21," ") -> 0 | L22: =IF(+'inputs activity'!$C$3>4,+F22+J22," ") -> 0 | N22: =IF(+'inputs activity'!$C$3>0,'Other IIS Variance Demand'!$N22+'Other IIS Variance Energy'!$N22," ") -> 0 | P22: =IF(+'inputs activity'!$C$3>0,N22-N21," ") -> 0
B23: June | D23: =IF(+'inputs activity'!$C$3>0,'Other IIS Variance Demand'!$L23+'Other IIS Variance Energy'!$L23," ") -> 0 | F23: =IF(+'inputs activity'!$C$3>0,D23-D22," ") -> 0 | H23: =IF(+'inputs activity'!$C$3>0,'Other IIS Variance Demand'!$T23+'Other IIS Variance Energy'!$T23," ") -> 0 | J23: =IF(+'inputs activity'!$C$3>0,H23-H22," ") -> 0 | L23: =IF(+'inputs activity'!$C$3>5,+F23+J23," ") -> 0 | N23: =IF(+'inputs activity'!$C$3>0,'Other IIS Variance Demand'!$N23+'Other IIS Variance Energy'!$N23," ") -> 0 | P23: =IF(+'inputs activity'!$C$3>0,N23-N22," ") -> 0
B24: July | D24: =IF(+'inputs activity'!$C$3>0,'Other IIS Variance Demand'!$L24+'Other IIS Variance Energy'!$L24," ") -> 0 | F24: =IF(+'inputs activity'!$C$3>0,D24-D23," ") -> 0 | H24: =IF(+'inputs activity'!$C$3>0,'Other IIS Variance Demand'!$T24+'Other IIS Variance Energy'!$T24," ") -> 0 | J24: =IF(+'inputs activity'!$C$3>0,H24-H23," ") -> 0 | L24: =IF(+'inputs activity'!$C$3>6,+F24+J24," ") -> 0 | N24: =IF(+'inputs activity'!$C$3>0,'Other IIS Variance Demand'!$N24+'Other IIS Variance Energy'!$N24," ") -> 0 | P24: =IF(+'inputs activity'!$C$3>0,N24-N23," ") -> 0
B25: August | D25: =IF(+'inputs activity'!$C$3>0,'Other IIS Variance Demand'!$L25+'Other IIS Variance Energy'!$L25," ") -> 0 | F25: =IF(+'inputs activity'!$C$3>0,D25-D24," ") -> 0 | H25: =IF(+'inputs activity'!$C$3>0,'Other IIS Variance Demand'!$T25+'Other IIS Variance Energy'!$T25," ") -> 0 | J25: =IF(+'inputs activity'!$C$3>0,H25-H24," ") -> 0 | L25: =IF(+'inputs activity'!$C$3>7,+F25+J25," ") -> 0 | N25: =IF(+'inputs activity'!$C$3>0,'Other IIS Variance Demand'!$N25+'Other IIS Variance Energy'!$N25," ") -> 0 | P25: =IF(+'inputs activity'!$C$3>0,N25-N24," ") -> 0
B26: September | D26: =IF(+'inputs activity'!$C$3>0,'Other IIS Variance Demand'!$L26+'Other IIS Variance Energy'!$L26," ") -> 0 | F26: =IF(+'inputs activity'!$C$3>0,D26-D25," ") -> 0 | H26: =IF(+'inputs activity'!$C$3>0,'Other IIS Variance Demand'!$T26+'Other IIS Variance Energy'!$T26," ") -> 0 | J26: =IF(+'inputs activity'!$C$3>0,H26-H25," ") -> 0 | L26: =IF(+'inputs activity'!$C$3>8,+F26+J26," ") -> 0 | N26: =IF(+'inputs activity'!$C$3>0,'Other IIS Variance Demand'!$N26+'Other IIS Variance Energy'!$N26," ") -> 0 | P26: =IF(+'inputs activity'!$C$3>0,N26-N25," ") -> 0
B27: October | D27: =IF(+'inputs activity'!$C$3>0,'Other IIS Variance Demand'!$L27+'Other IIS Variance Energy'!$L27," ") -> 0 | F27: =IF(+'inputs activity'!$C$3>0,D27-D26," ") -> 0 | H27: =IF(+'inputs activity'!$C$3>0,'Other IIS Variance Demand'!$T27+'Other IIS Variance Energy'!$T27," ") -> 0 | J27: =IF(+'inputs activity'!$C$3>0,H27-H26," ") -> 0 | L27: =IF(+'inputs activity'!$C$3>9,+F27+J27," ") -> 0 | N27: =IF(+'inputs activity'!$C$3>0,'Other IIS Variance Demand'!$N27+'Other IIS Variance Energy'!$N27," ") -> 0 | P27: =IF(+'inputs activity'!$C$3>0,N27-N26," ") -> 0
B28: November | D28: =IF(+'inputs activity'!$C$3>0,'Other IIS Variance Demand'!$L28+'Other IIS Variance Energy'!$L28," ") -> 0 | F28: =IF(+'inputs activity'!$C$3>0,D28-D27," ") -> 0 | H28: =IF(+'inputs activity'!$C$3>0,'Other IIS Variance Demand'!$T28+'Other IIS Variance Energy'!$T28," ") -> 0 | J28: =IF(+'inputs activity'!$C$3>0,H28-H27," ") -> 0 | L28: =IF(+'inputs activity'!$C$3>10,+F28+J28," ") -> 0 | N28: =IF(+'inputs activity'!$C$3>0,'Other IIS Variance Demand'!$N28+'Other IIS Variance Energy'!$N28," ") -> 0 | P28: =IF(+'inputs activity'!$C$3>0,N28-N27," ") -> 0
B29: December | D29: =IF(+'inputs activity'!$C$3>0,'Other IIS Variance Demand'!$L29+'Other IIS Variance Energy'!$L29," ") -> 0 | F29: =IF(+'inputs activity'!$C$3>0,D29-D28," ") -> 0 | H29: =IF(+'inputs activity'!$C$3>0,'Other IIS Variance Demand'!$T29+'Other IIS Variance Energy'!$T29," ") -> 0 | J29: =IF(+'inputs activity'!$C$3>0,H29-H28," ") -> 0 | L29: =IF(+'inputs activity'!$C$3>11,+F29+J29," ") -> 0 | N29: =IF(+'inputs activity'!$C$3>0,'Other IIS Variance Demand'!$N29+'Other IIS Variance Energy'!$N29," ") -> 0 | P29: =IF(+'inputs activity'!$C$3>0,N29-N28," ") -> 0
F31: =SUM(F17:F29) -> 0 | J31: =SUM(J17:J29) -> 0 | L31: =SUM(L17:L29) -> 0 | P31: =SUM(P17:P29) -> 0

Sheet monthly Exports Alloc
B1: =+'Load IND'!B1 -> Newfoundland and Labrador Hydro | S1: Pg 9a
B4: =+'Load IND'!B4 -> Long Term Supply Cost Deferral Account
B5: Allocation of New Revenue from Exports - Monthly
B6: =+'inputs activity'!C1 -> 2027-12-31
D8: A | F8: B | H8: C | J8: D | L8: E | N8: F | P8: G
D10: Utility | N10: Industrial
L11: Total Net Exports
D12: Net Exports Variance | H12: Rural Allocation | L12: Variance | N12: Net Exports Variance
D13: Year-to-Date | F13: Current Month | H13: Year-to-Date | J13: Current Month | L13: Activity for | N13: Year-to-Date | P13: Current Month
D14: Activity | F14: Activity | H14: Activity | J14: Activity | L14: the month | N14: Activity | P14: Activity
D15: ($) | F15: ($) | H15: ($) | J15: ($) | L15: ($) | N15: ($) | P15: ($)
L16: (B + D)
D17: (from page 9b + 9c) | H17: (from page 9b + 9c) | L17: (to page 4) | N17: (from page 9b + 9c) | P17: (to page 5)
B18: January | D18: =IF(+'inputs activity'!$C$3>0,'Exports Variance Demand'!$L18+'Exports Variance Energy'!$L18," ") -> 0 | F18: =IF(+'inputs activity'!$C$3>0,D18-0," ") -> 0 | H18: =IF(+'inputs activity'!$C$3>0,'Exports Variance Demand'!$T18+'Exports Variance Energy'!$T18," ") -> 0 | J18: =IF(+'inputs activity'!$C$3>0,H18-0," ") -> 0 | L18: =IF(+'inputs activity'!$C$3>0,+F18+J18," ") -> 0 | N18: =IF(+'inputs activity'!$C$3>0,'Exports Variance Demand'!$N18+'Exports Variance Energy'!$N18," ") -> 0 | P18: =IF(+'inputs activity'!$C$3>0,N18-0," ") -> 0
B19: February | D19: =IF(+'inputs activity'!$C$3>0,'Exports Variance Demand'!$L19+'Exports Variance Energy'!$L19," ") -> 0 | F19: =IF(+'inputs activity'!$C$3>0,D19-D18," ") -> 0 | H19: =IF(+'inputs activity'!$C$3>0,'Exports Variance Demand'!$T19+'Exports Variance Energy'!$T19," ") -> 0 | J19: =IF(+'inputs activity'!$C$3>0,H19-H18," ") -> 0 | L19: =IF(+'inputs activity'!$C$3>1,+F19+J19," ") -> 0 | N19: =IF(+'inputs activity'!$C$3>0,'Exports Variance Demand'!$N19+'Exports Variance Energy'!$N19," ") -> 0 | P19: =IF(+'inputs activity'!$C$3>0,N19-N18," ") -> 0
B20: March | D20: =IF(+'inputs activity'!$C$3>0,'Exports Variance Demand'!$L20+'Exports Variance Energy'!$L20," ") -> 0 | F20: =IF(+'inputs activity'!$C$3>0,D20-D19," ") -> 0 | H20: =IF(+'inputs activity'!$C$3>0,'Exports Variance Demand'!$T20+'Exports Variance Energy'!$T20," ") -> 0 | J20: =IF(+'inputs activity'!$C$3>0,H20-H19," ") -> 0 | L20: =IF(+'inputs activity'!$C$3>2,+F20+J20," ") -> 0 | N20: =IF(+'inputs activity'!$C$3>0,'Exports Variance Demand'!$N20+'Exports Variance Energy'!$N20," ") -> 0 | P20: =IF(+'inputs activity'!$C$3>0,N20-N19," ") -> 0
B21: April | D21: =IF(+'inputs activity'!$C$3>0,'Exports Variance Demand'!$L21+'Exports Variance Energy'!$L21," ") -> 0 | F21: =IF(+'inputs activity'!$C$3>0,D21-D20," ") -> 0 | H21: =IF(+'inputs activity'!$C$3>0,'Exports Variance Demand'!$T21+'Exports Variance Energy'!$T21," ") -> 0 | J21: =IF(+'inputs activity'!$C$3>0,H21-H20," ") -> 0 | L21: =IF(+'inputs activity'!$C$3>3,+F21+J21," ") -> 0 | N21: =IF(+'inputs activity'!$C$3>0,'Exports Variance Demand'!$N21+'Exports Variance Energy'!$N21," ") -> 0 | P21: =IF(+'inputs activity'!$C$3>0,N21-N20," ") -> 0
B22: May | D22: =IF(+'inputs activity'!$C$3>0,'Exports Variance Demand'!$L22+'Exports Variance Energy'!$L22," ") -> 0 | F22: =IF(+'inputs activity'!$C$3>0,D22-D21," ") -> 0 | H22: =IF(+'inputs activity'!$C$3>0,'Exports Variance Demand'!$T22+'Exports Variance Energy'!$T22," ") -> 0 | J22: =IF(+'inputs activity'!$C$3>0,H22-H21," ") -> 0 | L22: =IF(+'inputs activity'!$C$3>4,+F22+J22," ") -> 0 | N22: =IF(+'inputs activity'!$C$3>0,'Exports Variance Demand'!$N22+'Exports Variance Energy'!$N22," ") -> 0 | P22: =IF(+'inputs activity'!$C$3>0,N22-N21," ") -> 0
B23: June | D23: =IF(+'inputs activity'!$C$3>0,'Exports Variance Demand'!$L23+'Exports Variance Energy'!$L23," ") -> 0 | F23: =IF(+'inputs activity'!$C$3>0,D23-D22," ") -> 0 | H23: =IF(+'inputs activity'!$C$3>0,'Exports Variance Demand'!$T23+'Exports Variance Energy'!$T23," ") -> 0 | J23: =IF(+'inputs activity'!$C$3>0,H23-H22," ") -> 0 | L23: =IF(+'inputs activity'!$C$3>5,+F23+J23," ") -> 0 | N23: =IF(+'inputs activity'!$C$3>0,'Exports Variance Demand'!$N23+'Exports Variance Energy'!$N23," ") -> 0 | P23: =IF(+'inputs activity'!$C$3>0,N23-N22," ") -> 0
B24: July | D24: =IF(+'inputs activity'!$C$3>0,'Exports Variance Demand'!$L24+'Exports Variance Energy'!$L24," ") -> 0 | F24: =IF(+'inputs activity'!$C$3>0,D24-D23," ") -> 0 | H24: =IF(+'inputs activity'!$C$3>0,'Exports Variance Demand'!$T24+'Exports Variance Energy'!$T24," ") -> 0 | J24: =IF(+'inputs activity'!$C$3>0,H24-H23," ") -> 0 | L24: =IF(+'inputs activity'!$C$3>6,+F24+J24," ") -> 0 | N24: =IF(+'inputs activity'!$C$3>0,'Exports Variance Demand'!$N24+'Exports Variance Energy'!$N24," ") -> 0 | P24: =IF(+'inputs activity'!$C$3>0,N24-N23," ") -> 0
B25: August | D25: =IF(+'inputs activity'!$C$3>0,'Exports Variance Demand'!$L25+'Exports Variance Energy'!$L25," ") -> 0 | F25: =IF(+'inputs activity'!$C$3>0,D25-D24," ") -> 0 | H25: =IF(+'inputs activity'!$C$3>0,'Exports Variance Demand'!$T25+'Exports Variance Energy'!$T25," ") -> 0 | J25: =IF(+'inputs activity'!$C$3>0,H25-H24," ") -> 0 | L25: =IF(+'inputs activity'!$C$3>7,+F25+J25," ") -> 0 | N25: =IF(+'inputs activity'!$C$3>0,'Exports Variance Demand'!$N25+'Exports Variance Energy'!$N25," ") -> 0 | P25: =IF(+'inputs activity'!$C$3>0,N25-N24," ") -> 0
B26: September | D26: =IF(+'inputs activity'!$C$3>0,'Exports Variance Demand'!$L26+'Exports Variance Energy'!$L26," ") -> 0 | F26: =IF(+'inputs activity'!$C$3>0,D26-D25," ") -> 0 | H26: =IF(+'inputs activity'!$C$3>0,'Exports Variance Demand'!$T26+'Exports Variance Energy'!$T26," ") -> 0 | J26: =IF(+'inputs activity'!$C$3>0,H26-H25," ") -> 0 | L26: =IF(+'inputs activity'!$C$3>8,+F26+J26," ") -> 0 | N26: =IF(+'inputs activity'!$C$3>0,'Exports Variance Demand'!$N26+'Exports Variance Energy'!$N26," ") -> 0 | P26: =IF(+'inputs activity'!$C$3>0,N26-N25," ") -> 0
B27: October | D27: =IF(+'inputs activity'!$C$3>0,'Exports Variance Demand'!$L27+'Exports Variance Energy'!$L27," ") -> 0 | F27: =IF(+'inputs activity'!$C$3>0,D27-D26," ") -> 0 | H27: =IF(+'inputs activity'!$C$3>0,'Exports Variance Demand'!$T27+'Exports Variance Energy'!$T27," ") -> 0 | J27: =IF(+'inputs activity'!$C$3>0,H27-H26," ") -> 0 | L27: =IF(+'inputs activity'!$C$3>9,+F27+J27," ") -> 0 | N27: =IF(+'inputs activity'!$C$3>0,'Exports Variance Demand'!$N27+'Exports Variance Energy'!$N27," ") -> 0 | P27: =IF(+'inputs activity'!$C$3>0,N27-N26," ") -> 0
B28: November | D28: =IF(+'inputs activity'!$C$3>0,'Exports Variance Demand'!$L28+'Exports Variance Energy'!$L28," ") -> 0 | F28: =IF(+'inputs activity'!$C$3>0,D28-D27," ") -> 0 | H28: =IF(+'inputs activity'!$C$3>0,'Exports Variance Demand'!$T28+'Exports Variance Energy'!$T28," ") -> 0 | J28: =IF(+'inputs activity'!$C$3>0,H28-H27," ") -> 0 | L28: =IF(+'inputs activity'!$C$3>10,+F28+J28," ") -> 0 | N28: =IF(+'inputs activity'!$C$3>0,'Exports Variance Demand'!$N28+'Exports Variance Energy'!$N28," ") -> 0 | P28: =IF(+'inputs activity'!$C$3>0,N28-N27," ") -> 0
B29: December | D29: =IF(+'inputs activity'!$C$3>0,'Exports Variance Demand'!$L29+'Exports Variance Energy'!$L29," ") -> 0 | F29: =IF(+'inputs activity'!$C$3>0,D29-D28," ") -> 0 | H29: =IF(+'inputs activity'!$C$3>0,'Exports Variance Demand'!$T29+'Exports Variance Energy'!$T29," ") -> 0 | J29: =IF(+'inputs activity'!$C$3>0,H29-H28," ") -> 0 | L29: =IF(+'inputs activity'!$C$3>11,+F29+J29," ") -> 0 | N29: =IF(+'inputs activity'!$C$3>0,'Exports Variance Demand'!$N29+'Exports Variance Energy'!$N29," ") -> 0 | P29: =IF(+'inputs activity'!$C$3>0,N29-N28," ") -> 0
F31: =SUM(F17:F29) -> 0 | J31: =SUM(J17:J29) -> 0 | L31: =SUM(L17:L29) -> 0 | P31: =SUM(P17:P29) -> 0

Sheet monthly Tariff Alloc
B1: =+'Load IND'!B1 -> Newfoundland and Labrador Hydro | S1: Pg 10a
B4: =+'Load IND'!B4 -> Long Term Supply Cost Deferral Account
B5: Allocation of Transmission Tariff Revenue - Monthly
B6: =+'inputs activity'!C1 -> 2027-12-31
D8: A | F8: B | H8: C | J8: D | L8: E | N8: F | P8: G
D10: Utility | N10: Industrial
L11: Total Tariff
D12: Tariff Variance | H12: Rural Allocation | L12: Variance | N12: Tariff Variance
D13: Year-to-Date | F13: Current Month | H13: Year-to-Date | J13: Current Month | L13: Activity for | N13: Year-to-Date | P13: Current Month
D14: Activity | F14: Activity | H14: Activity | J14: Activity | L14: the month | N14: Activity | P14: Activity
D15: ($) | F15: ($) | H15: ($) | J15: ($) | L15: ($) | N15: ($) | P15: ($)
L16: (B + D)
D17: (from page 10b + 10c) | H17: (from page 10b + 10c) | L17: (to page 4) | N17: (from page 10b + 10c) | P17: (to page 5)
B18: January | D18: =IF(+'inputs activity'!$C$3>0,'Tariff Variance Demand'!$L18+'Tariff Variance Energy'!$L18," ") -> 0 | F18: =IF(+'inputs activity'!$C$3>0,D18-0," ") -> 0 | H18: =IF(+'inputs activity'!$C$3>0,'Tariff Variance Demand'!$T18+'Tariff Variance Energy'!$T18," ") -> 0 | J18: =IF(+'inputs activity'!$C$3>0,H18-0," ") -> 0 | L18: =IF(+'inputs activity'!$C$3>0,+F18+J18," ") -> 0 | N18: =IF(+'inputs activity'!$C$3>0,'Tariff Variance Demand'!$N18+'Tariff Variance Energy'!$N18," ") -> 0 | P18: =IF(+'inputs activity'!$C$3>0,N18-0," ") -> 0
B19: February | D19: =IF(+'inputs activity'!$C$3>0,'Tariff Variance Demand'!$L19+'Tariff Variance Energy'!$L19," ") -> 0 | F19: =IF(+'inputs activity'!$C$3>0,D19-D18," ") -> 0 | H19: =IF(+'inputs activity'!$C$3>0,'Tariff Variance Demand'!$T19+'Tariff Variance Energy'!$T19," ") -> 0 | J19: =IF(+'inputs activity'!$C$3>0,H19-H18," ") -> 0 | L19: =IF(+'inputs activity'!$C$3>1,+F19+J19," ") -> 0 | N19: =IF(+'inputs activity'!$C$3>0,'Tariff Variance Demand'!$N19+'Tariff Variance Energy'!$N19," ") -> 0 | P19: =IF(+'inputs activity'!$C$3>0,N19-N18," ") -> 0
B20: March | D20: =IF(+'inputs activity'!$C$3>0,'Tariff Variance Demand'!$L20+'Tariff Variance Energy'!$L20," ") -> 0 | F20: =IF(+'inputs activity'!$C$3>0,D20-D19," ") -> 0 | H20: =IF(+'inputs activity'!$C$3>0,'Tariff Variance Demand'!$T20+'Tariff Variance Energy'!$T20," ") -> 0 | J20: =IF(+'inputs activity'!$C$3>0,H20-H19," ") -> 0 | L20: =IF(+'inputs activity'!$C$3>2,+F20+J20," ") -> 0 | N20: =IF(+'inputs activity'!$C$3>0,'Tariff Variance Demand'!$N20+'Tariff Variance Energy'!$N20," ") -> 0 | P20: =IF(+'inputs activity'!$C$3>0,N20-N19," ") -> 0
B21: April | D21: =IF(+'inputs activity'!$C$3>0,'Tariff Variance Demand'!$L21+'Tariff Variance Energy'!$L21," ") -> 0 | F21: =IF(+'inputs activity'!$C$3>0,D21-D20," ") -> 0 | H21: =IF(+'inputs activity'!$C$3>0,'Tariff Variance Demand'!$T21+'Tariff Variance Energy'!$T21," ") -> 0 | J21: =IF(+'inputs activity'!$C$3>0,H21-H20," ") -> 0 | L21: =IF(+'inputs activity'!$C$3>3,+F21+J21," ") -> 0 | N21: =IF(+'inputs activity'!$C$3>0,'Tariff Variance Demand'!$N21+'Tariff Variance Energy'!$N21," ") -> 0 | P21: =IF(+'inputs activity'!$C$3>0,N21-N20," ") -> 0
B22: May | D22: =IF(+'inputs activity'!$C$3>0,'Tariff Variance Demand'!$L22+'Tariff Variance Energy'!$L22," ") -> 0 | F22: =IF(+'inputs activity'!$C$3>0,D22-D21," ") -> 0 | H22: =IF(+'inputs activity'!$C$3>0,'Tariff Variance Demand'!$T22+'Tariff Variance Energy'!$T22," ") -> 0 | J22: =IF(+'inputs activity'!$C$3>0,H22-H21," ") -> 0 | L22: =IF(+'inputs activity'!$C$3>4,+F22+J22," ") -> 0 | N22: =IF(+'inputs activity'!$C$3>0,'Tariff Variance Demand'!$N22+'Tariff Variance Energy'!$N22," ") -> 0 | P22: =IF(+'inputs activity'!$C$3>0,N22-N21," ") -> 0
B23: June | D23: =IF(+'inputs activity'!$C$3>0,'Tariff Variance Demand'!$L23+'Tariff Variance Energy'!$L23," ") -> 0 | F23: =IF(+'inputs activity'!$C$3>0,D23-D22," ") -> 0 | H23: =IF(+'inputs activity'!$C$3>0,'Tariff Variance Demand'!$T23+'Tariff Variance Energy'!$T23," ") -> 0 | J23: =IF(+'inputs activity'!$C$3>0,H23-H22," ") -> 0 | L23: =IF(+'inputs activity'!$C$3>5,+F23+J23," ") -> 0 | N23: =IF(+'inputs activity'!$C$3>0,'Tariff Variance Demand'!$N23+'Tariff Variance Energy'!$N23," ") -> 0 | P23: =IF(+'inputs activity'!$C$3>0,N23-N22," ") -> 0
B24: July | D24: =IF(+'inputs activity'!$C$3>0,'Tariff Variance Demand'!$L24+'Tariff Variance Energy'!$L24," ") -> 0 | F24: =IF(+'inputs activity'!$C$3>0,D24-D23," ") -> 0 | H24: =IF(+'inputs activity'!$C$3>0,'Tariff Variance Demand'!$T24+'Tariff Variance Energy'!$T24," ") -> 0 | J24: =IF(+'inputs activity'!$C$3>0,H24-H23," ") -> 0 | L24: =IF(+'inputs activity'!$C$3>6,+F24+J24," ") -> 0 | N24: =IF(+'inputs activity'!$C$3>0,'Tariff Variance Demand'!$N24+'Tariff Variance Energy'!$N24," ") -> 0 | P24: =IF(+'inputs activity'!$C$3>0,N24-N23," ") -> 0
B25: August | D25: =IF(+'inputs activity'!$C$3>0,'Tariff Variance Demand'!$L25+'Tariff Variance Energy'!$L25," ") -> 0 | F25: =IF(+'inputs activity'!$C$3>0,D25-D24," ") -> 0 | H25: =IF(+'inputs activity'!$C$3>0,'Tariff Variance Demand'!$T25+'Tariff Variance Energy'!$T25," ") -> 0 | J25: =IF(+'inputs activity'!$C$3>0,H25-H24," ") -> 0 | L25: =IF(+'inputs activity'!$C$3>7,+F25+J25," ") -> 0 | N25: =IF(+'inputs activity'!$C$3>0,'Tariff Variance Demand'!$N25+'Tariff Variance Energy'!$N25," ") -> 0 | P25: =IF(+'inputs activity'!$C$3>0,N25-N24," ") -> 0
B26: September | D26: =IF(+'inputs activity'!$C$3>0,'Tariff Variance Demand'!$L26+'Tariff Variance Energy'!$L26," ") -> 0 | F26: =IF(+'inputs activity'!$C$3>0,D26-D25," ") -> 0 | H26: =IF(+'inputs activity'!$C$3>0,'Tariff Variance Demand'!$T26+'Tariff Variance Energy'!$T26," ") -> 0 | J26: =IF(+'inputs activity'!$C$3>0,H26-H25," ") -> 0 | L26: =IF(+'inputs activity'!$C$3>8,+F26+J26," ") -> 0 | N26: =IF(+'inputs activity'!$C$3>0,'Tariff Variance Demand'!$N26+'Tariff Variance Energy'!$N26," ") -> 0 | P26: =IF(+'inputs activity'!$C$3>0,N26-N25," ") -> 0
B27: October | D27: =IF(+'inputs activity'!$C$3>0,'Tariff Variance Demand'!$L27+'Tariff Variance Energy'!$L27," ") -> 0 | F27: =IF(+'inputs activity'!$C$3>0,D27-D26," ") -> 0 | H27: =IF(+'inputs activity'!$C$3>0,'Tariff Variance Demand'!$T27+'Tariff Variance Energy'!$T27," ") -> 0 | J27: =IF(+'inputs activity'!$C$3>0,H27-H26," ") -> 0 | L27: =IF(+'inputs activity'!$C$3>9,+F27+J27," ") -> 0 | N27: =IF(+'inputs activity'!$C$3>0,'Tariff Variance Demand'!$N27+'Tariff Variance Energy'!$N27," ") -> 0 | P27: =IF(+'inputs activity'!$C$3>0,N27-N26," ") -> 0
B28: November | D28: =IF(+'inputs activity'!$C$3>0,'Tariff Variance Demand'!$L28+'Tariff Variance Energy'!$L28," ") -> 0 | F28: =IF(+'inputs activity'!$C$3>0,D28-D27," ") -> 0 | H28: =IF(+'inputs activity'!$C$3>0,'Tariff Variance Demand'!$T28+'Tariff Variance Energy'!$T28," ") -> 0 | J28: =IF(+'inputs activity'!$C$3>0,H28-H27," ") -> 0 | L28: =IF(+'inputs activity'!$C$3>10,+F28+J28," ") -> 0 | N28: =IF(+'inputs activity'!$C$3>0,'Tariff Variance Demand'!$N28+'Tariff Variance Energy'!$N28," ") -> 0 | P28: =IF(+'inputs activity'!$C$3>0,N28-N27," ") -> 0
B29: December | D29: =IF(+'inputs activity'!$C$3>0,'Tariff Variance Demand'!$L29+'Tariff Variance Energy'!$L29," ") -> 0 | F29: =IF(+'inputs activity'!$C$3>0,D29-D28," ") -> 0 | H29: =IF(+'inputs activity'!$C$3>0,'Tariff Variance Demand'!$T29+'Tariff Variance Energy'!$T29," ") -> 0 | J29: =IF(+'inputs activity'!$C$3>0,H29-H28," ") -> 0 | L29: =IF(+'inputs activity'!$C$3>11,+F29+J29," ") -> 0 | N29: =IF(+'inputs activity'!$C$3>0,'Tariff Variance Demand'!$N29+'Tariff Variance Energy'!$N29," ") -> 0 | P29: =IF(+'inputs activity'!$C$3>0,N29-N28," ") -> 0
F31: =SUM(F17:F29) -> 0 | J31: =SUM(J17:J29) -> 0 | L31: =SUM(L17:L29) -> 0 | P31: =SUM(P17:P29) -> 0

Sheet monthly GHG Alloc
B1: =+'Load IND'!B1 -> Newfoundland and Labrador Hydro | S1: Pg 14a
B4: =+'Load IND'!B4 -> Long Term Supply Cost Deferral Account
B5: Allocation of GHG Variance - monthly
B6: =+'inputs activity'!C1 -> 2027-12-31
D8: A | F8: B | H8: C | J8: D | L8: E | N8: F | P8: G
D10: Utility | N10: Industrial
L11: Total GHG
D12: GHG Variance | H12: Rural Allocation | L12: Variance | N12: GHG Variance
D13: Year-to-Date | F13: Current Month | H13: Year-to-Date | J13: Current Month | L13: Activity for | N13: Year-to-Date | P13: Current Month
D14: Activity | F14: Activity | H14: Activity | J14: Activity | L14: the month | N14: Activity | P14: Activity
D15: ($) | F15: ($) | H15: ($) | J15: ($) | L15: ($) | N15: ($) | P15: ($)
L16: (B + D)
D17: (from page 14b + 14c) | H17: (from page 14b + 14c) | L17: (to page 4) | N17: (from page 14b + 14c) | P17: (to page 5)
B18: January | D18: =IF(+'inputs activity'!$C$3>0,'GHG Variance Demand'!$L18+'GHG Variance Energy'!$L18," ") -> 0 | F18: =IF(+'inputs activity'!$C$3>0,D18-0," ") -> 0 | H18: =IF(+'inputs activity'!$C$3>0,'GHG Variance Demand'!$T18+'GHG Variance Energy'!$T18," ") -> 0 | J18: =IF(+'inputs activity'!$C$3>0,H18-0," ") -> 0 | L18: =IF(+'inputs activity'!$C$3>0,+F18+J18," ") -> 0 | N18: =IF(+'inputs activity'!$C$3>0,'GHG Variance Demand'!$N18+'GHG Variance Energy'!$N18," ") -> 0 | P18: =IF(+'inputs activity'!$C$3>0,N18-0," ") -> 0
B19: February | D19: =IF(+'inputs activity'!$C$3>0,'GHG Variance Demand'!$L19+'GHG Variance Energy'!$L19," ") -> 0 | F19: =IF(+'inputs activity'!$C$3>0,D19-D18," ") -> 0 | H19: =IF(+'inputs activity'!$C$3>0,'GHG Variance Demand'!$T19+'GHG Variance Energy'!$T19," ") -> 0 | J19: =IF(+'inputs activity'!$C$3>0,H19-H18," ") -> 0 | L19: =IF(+'inputs activity'!$C$3>1,+F19+J19," ") -> 0 | N19: =IF(+'inputs activity'!$C$3>0,'GHG Variance Demand'!$N19+'GHG Variance Energy'!$N19," ") -> 0 | P19: =IF(+'inputs activity'!$C$3>0,N19-N18," ") -> 0
B20: March | D20: =IF(+'inputs activity'!$C$3>0,'GHG Variance Demand'!$L20+'GHG Variance Energy'!$L20," ") -> 0 | F20: =IF(+'inputs activity'!$C$3>0,D20-D19," ") -> 0 | H20: =IF(+'inputs activity'!$C$3>0,'GHG Variance Demand'!$T20+'GHG Variance Energy'!$T20," ") -> 0 | J20: =IF(+'inputs activity'!$C$3>0,H20-H19," ") -> 0 | L20: =IF(+'inputs activity'!$C$3>2,+F20+J20," ") -> 0 | N20: =IF(+'inputs activity'!$C$3>0,'GHG Variance Demand'!$N20+'GHG Variance Energy'!$N20," ") -> 0 | P20: =IF(+'inputs activity'!$C$3>0,N20-N19," ") -> 0
B21: April | D21: =IF(+'inputs activity'!$C$3>0,'GHG Variance Demand'!$L21+'GHG Variance Energy'!$L21," ") -> 0 | F21: =IF(+'inputs activity'!$C$3>0,D21-D20," ") -> 0 | H21: =IF(+'inputs activity'!$C$3>0,'GHG Variance Demand'!$T21+'GHG Variance Energy'!$T21," ") -> 0 | J21: =IF(+'inputs activity'!$C$3>0,H21-H20," ") -> 0 | L21: =IF(+'inputs activity'!$C$3>3,+F21+J21," ") -> 0 | N21: =IF(+'inputs activity'!$C$3>0,'GHG Variance Demand'!$N21+'GHG Variance Energy'!$N21," ") -> 0 | P21: =IF(+'inputs activity'!$C$3>0,N21-N20," ") -> 0
B22: May | D22: =IF(+'inputs activity'!$C$3>0,'GHG Variance Demand'!$L22+'GHG Variance Energy'!$L22," ") -> 0 | F22: =IF(+'inputs activity'!$C$3>0,D22-D21," ") -> 0 | H22: =IF(+'inputs activity'!$C$3>0,'GHG Variance Demand'!$T22+'GHG Variance Energy'!$T22," ") -> 0 | J22: =IF(+'inputs activity'!$C$3>0,H22-H21," ") -> 0 | L22: =IF(+'inputs activity'!$C$3>4,+F22+J22," ") -> 0 | N22: =IF(+'inputs activity'!$C$3>0,'GHG Variance Demand'!$N22+'GHG Variance Energy'!$N22," ") -> 0 | P22: =IF(+'inputs activity'!$C$3>0,N22-N21," ") -> 0
B23: June | D23: =IF(+'inputs activity'!$C$3>0,'GHG Variance Demand'!$L23+'GHG Variance Energy'!$L23," ") -> 0 | F23: =IF(+'inputs activity'!$C$3>0,D23-D22," ") -> 0 | H23: =IF(+'inputs activity'!$C$3>0,'GHG Variance Demand'!$T23+'GHG Variance Energy'!$T23," ") -> 0 | J23: =IF(+'inputs activity'!$C$3>0,H23-H22," ") -> 0 | L23: =IF(+'inputs activity'!$C$3>5,+F23+J23," ") -> 0 | N23: =IF(+'inputs activity'!$C$3>0,'GHG Variance Demand'!$N23+'GHG Variance Energy'!$N23," ") -> 0 | P23: =IF(+'inputs activity'!$C$3>0,N23-N22," ") -> 0
B24: July | D24: =IF(+'inputs activity'!$C$3>0,'GHG Variance Demand'!$L24+'GHG Variance Energy'!$L24," ") -> 0 | F24: =IF(+'inputs activity'!$C$3>0,D24-D23," ") -> 0 | H24: =IF(+'inputs activity'!$C$3>0,'GHG Variance Demand'!$T24+'GHG Variance Energy'!$T24," ") -> 0 | J24: =IF(+'inputs activity'!$C$3>0,H24-H23," ") -> 0 | L24: =IF(+'inputs activity'!$C$3>6,+F24+J24," ") -> 0 | N24: =IF(+'inputs activity'!$C$3>0,'GHG Variance Demand'!$N24+'GHG Variance Energy'!$N24," ") -> 0 | P24: =IF(+'inputs activity'!$C$3>0,N24-N23," ") -> 0
B25: August | D25: =IF(+'inputs activity'!$C$3>0,'GHG Variance Demand'!$L25+'GHG Variance Energy'!$L25," ") -> 0 | F25: =IF(+'inputs activity'!$C$3>0,D25-D24," ") -> 0 | H25: =IF(+'inputs activity'!$C$3>0,'GHG Variance Demand'!$T25+'GHG Variance Energy'!$T25," ") -> 0 | J25: =IF(+'inputs activity'!$C$3>0,H25-H24," ") -> 0 | L25: =IF(+'inputs activity'!$C$3>7,+F25+J25," ") -> 0 | N25: =IF(+'inputs activity'!$C$3>0,'GHG Variance Demand'!$N25+'GHG Variance Energy'!$N25," ") -> 0 | P25: =IF(+'inputs activity'!$C$3>0,N25-N24," ") -> 0
B26: September | D26: =IF(+'inputs activity'!$C$3>0,'GHG Variance Demand'!$L26+'GHG Variance Energy'!$L26," ") -> 0 | F26: =IF(+'inputs activity'!$C$3>0,D26-D25," ") -> 0 | H26: =IF(+'inputs activity'!$C$3>0,'GHG Variance Demand'!$T26+'GHG Variance Energy'!$T26," ") -> 0 | J26: =IF(+'inputs activity'!$C$3>0,H26-H25," ") -> 0 | L26: =IF(+'inputs activity'!$C$3>8,+F26+J26," ") -> 0 | N26: =IF(+'inputs activity'!$C$3>0,'GHG Variance Demand'!$N26+'GHG Variance Energy'!$N26," ") -> 0 | P26: =IF(+'inputs activity'!$C$3>0,N26-N25," ") -> 0
B27: October | D27: =IF(+'inputs activity'!$C$3>0,'GHG Variance Demand'!$L27+'GHG Variance Energy'!$L27," ") -> 0 | F27: =IF(+'inputs activity'!$C$3>0,D27-D26," ") -> 0 | H27: =IF(+'inputs activity'!$C$3>0,'GHG Variance Demand'!$T27+'GHG Variance Energy'!$T27," ") -> 0 | J27: =IF(+'inputs activity'!$C$3>0,H27-H26," ") -> 0 | L27: =IF(+'inputs activity'!$C$3>9,+F27+J27," ") -> 0 | N27: =IF(+'inputs activity'!$C$3>0,'GHG Variance Demand'!$N27+'GHG Variance Energy'!$N27," ") -> 0 | P27: =IF(+'inputs activity'!$C$3>0,N27-N26," ") -> 0
B28: November | D28: =IF(+'inputs activity'!$C$3>0,'GHG Variance Demand'!$L28+'GHG Variance Energy'!$L28," ") -> 0 | F28: =IF(+'inputs activity'!$C$3>0,D28-D27," ") -> 0 | H28: =IF(+'inputs activity'!$C$3>0,'GHG Variance Demand'!$T28+'GHG Variance Energy'!$T28," ") -> 0 | J28: =IF(+'inputs activity'!$C$3>0,H28-H27," ") -> 0 | L28: =IF(+'inputs activity'!$C$3>10,+F28+J28," ") -> 0 | N28: =IF(+'inputs activity'!$C$3>0,'GHG Variance Demand'!$N28+'GHG Variance Energy'!$N28," ") -> 0 | P28: =IF(+'inputs activity'!$C$3>0,N28-N27," ") -> 0
B29: December | D29: =IF(+'inputs activity'!$C$3>0,'GHG Variance Demand'!$L29+'GHG Variance Energy'!$L29," ") -> 0 | F29: =IF(+'inputs activity'!$C$3>0,D29-D28," ") -> 0 | H29: =IF(+'inputs activity'!$C$3>0,'GHG Variance Demand'!$T29+'GHG Variance Energy'!$T29," ") -> 0 | J29: =IF(+'inputs activity'!$C$3>0,H29-H28," ") -> 0 | L29: =IF(+'inputs activity'!$C$3>11,+F29+J29," ") -> 0 | N29: =IF(+'inputs activity'!$C$3>0,'GHG Variance Demand'!$N29+'GHG Variance Energy'!$N29," ") -> 0 | P29: =IF(+'inputs activity'!$C$3>0,N29-N28," ") -> 0
F31: =SUM(F17:F29) -> 0 | J31: =SUM(J17:J29) -> 0 | L31: =SUM(L17:L29) -> 0 | P31: =SUM(P17:P29) -> 0

Sheet monthly Mitigation Alloc
B1: =+'Load IND'!B1 -> Newfoundland and Labrador Hydro | S1: Pg 15a
B4: =+'Load IND'!B4 -> Long Term Supply Cost Deferral Account
B5: Allocation of Rate Mitigation - Monthly
B6: =+'inputs activity'!C1 -> 2027-12-31
D8: A | F8: B | H8: C | J8: D | L8: E | N8: F | P8: G
D10: Utility | N10: Industrial
L11: Total Mitigation
D12: Rate Mitigation Variance | H12: Rural Allocation | L12: Variance | N12: Rate Mitigation Variance
D13: Year-to-Date | F13: Current Month | H13: Year-to-Date | J13: Current Month | L13: Activity for | N13: Year-to-Date | P13: Current Month
D14: Activity | F14: Activity | H14: Activity | J14: Activity | L14: the month | N14: Activity | P14: Activity
D15: ($) | F15: ($) | H15: ($) | J15: ($) | L15: ($) | N15: ($) | P15: ($)
L16: (B + D)
D17: (from page 15b + 15c) | H17: (from page 15b + 15c) | L17: (to page 4) | N17: (from page 15b + 15c) | P17: (to page 5)
B18: January | D18: =IF(+'inputs activity'!$C$3>0,'Rate Mitigation Variance Demand'!$L18+'Rate Mitigation Variance Energy'!$L18," ") -> 0 | F18: =IF(+'inputs activity'!$C$3>0,D18-0," ") -> 0 | H18: =IF(+'inputs activity'!$C$3>0,'Rate Mitigation Variance Demand'!$T18+'Rate Mitigation Variance Energy'!$T18," ") -> 0 | J18: =IF(+'inputs activity'!$C$3>0,H18-0," ") -> 0 | L18: =IF(+'inputs activity'!$C$3>0,+F18+J18," ") -> 0 | N18: =IF(+'inputs activity'!$C$3>0,'Rate Mitigation Variance Demand'!$N18+'Rate Mitigation Variance Energy'!$N18," ") -> 0 | P18: =IF(+'inputs activity'!$C$3>0,N18-0," ") -> 0
B19: February | D19: =IF(+'inputs activity'!$C$3>0,'Rate Mitigation Variance Demand'!$L19+'Rate Mitigation Variance Energy'!$L19," ") -> 0 | F19: =IF(+'inputs activity'!$C$3>0,D19-D18," ") -> 0 | H19: =IF(+'inputs activity'!$C$3>0,'Rate Mitigation Variance Demand'!$T19+'Rate Mitigation Variance Energy'!$T19," ") -> 0 | J19: =IF(+'inputs activity'!$C$3>0,H19-H18," ") -> 0 | L19: =IF(+'inputs activity'!$C$3>1,+F19+J19," ") -> 0 | N19: =IF(+'inputs activity'!$C$3>0,'Rate Mitigation Variance Demand'!$N19+'Rate Mitigation Variance Energy'!$N19," ") -> 0 | P19: =IF(+'inputs activity'!$C$3>0,N19-N18," ") -> 0
B20: March | D20: =IF(+'inputs activity'!$C$3>0,'Rate Mitigation Variance Demand'!$L20+'Rate Mitigation Variance Energy'!$L20," ") -> 0 | F20: =IF(+'inputs activity'!$C$3>0,D20-D19," ") -> 0 | H20: =IF(+'inputs activity'!$C$3>0,'Rate Mitigation Variance Demand'!$T20+'Rate Mitigation Variance Energy'!$T20," ") -> 0 | J20: =IF(+'inputs activity'!$C$3>0,H20-H19," ") -> 0 | L20: =IF(+'inputs activity'!$C$3>2,+F20+J20," ") -> 0 | N20: =IF(+'inputs activity'!$C$3>0,'Rate Mitigation Variance Demand'!$N20+'Rate Mitigation Variance Energy'!$N20," ") -> 0 | P20: =IF(+'inputs activity'!$C$3>0,N20-N19," ") -> 0
B21: April | D21: =IF(+'inputs activity'!$C$3>0,'Rate Mitigation Variance Demand'!$L21+'Rate Mitigation Variance Energy'!$L21," ") -> 0 | F21: =IF(+'inputs activity'!$C$3>0,D21-D20," ") -> 0 | H21: =IF(+'inputs activity'!$C$3>0,'Rate Mitigation Variance Demand'!$T21+'Rate Mitigation Variance Energy'!$T21," ") -> 0 | J21: =IF(+'inputs activity'!$C$3>0,H21-H20," ") -> 0 | L21: =IF(+'inputs activity'!$C$3>3,+F21+J21," ") -> 0 | N21: =IF(+'inputs activity'!$C$3>0,'Rate Mitigation Variance Demand'!$N21+'Rate Mitigation Variance Energy'!$N21," ") -> 0 | P21: =IF(+'inputs activity'!$C$3>0,N21-N20," ") -> 0
B22: May | D22: =IF(+'inputs activity'!$C$3>0,'Rate Mitigation Variance Demand'!$L22+'Rate Mitigation Variance Energy'!$L22," ") -> 0 | F22: =IF(+'inputs activity'!$C$3>0,D22-D21," ") -> 0 | H22: =IF(+'inputs activity'!$C$3>0,'Rate Mitigation Variance Demand'!$T22+'Rate Mitigation Variance Energy'!$T22," ") -> 0 | J22: =IF(+'inputs activity'!$C$3>0,H22-H21," ") -> 0 | L22: =IF(+'inputs activity'!$C$3>4,+F22+J22," ") -> 0 | N22: =IF(+'inputs activity'!$C$3>0,'Rate Mitigation Variance Demand'!$N22+'Rate Mitigation Variance Energy'!$N22," ") -> 0 | P22: =IF(+'inputs activity'!$C$3>0,N22-N21," ") -> 0
B23: June | D23: =IF(+'inputs activity'!$C$3>0,'Rate Mitigation Variance Demand'!$L23+'Rate Mitigation Variance Energy'!$L23," ") -> 0 | F23: =IF(+'inputs activity'!$C$3>0,D23-D22," ") -> 0 | H23: =IF(+'inputs activity'!$C$3>0,'Rate Mitigation Variance Demand'!$T23+'Rate Mitigation Variance Energy'!$T23," ") -> 0 | J23: =IF(+'inputs activity'!$C$3>0,H23-H22," ") -> 0 | L23: =IF(+'inputs activity'!$C$3>5,+F23+J23," ") -> 0 | N23: =IF(+'inputs activity'!$C$3>0,'Rate Mitigation Variance Demand'!$N23+'Rate Mitigation Variance Energy'!$N23," ") -> 0 | P23: =IF(+'inputs activity'!$C$3>0,N23-N22," ") -> 0
B24: July | D24: =IF(+'inputs activity'!$C$3>0,'Rate Mitigation Variance Demand'!$L24+'Rate Mitigation Variance Energy'!$L24," ") -> 0 | F24: =IF(+'inputs activity'!$C$3>0,D24-D23," ") -> 0 | H24: =IF(+'inputs activity'!$C$3>0,'Rate Mitigation Variance Demand'!$T24+'Rate Mitigation Variance Energy'!$T24," ") -> 0 | J24: =IF(+'inputs activity'!$C$3>0,H24-H23," ") -> 0 | L24: =IF(+'inputs activity'!$C$3>6,+F24+J24," ") -> 0 | N24: =IF(+'inputs activity'!$C$3>0,'Rate Mitigation Variance Demand'!$N24+'Rate Mitigation Variance Energy'!$N24," ") -> 0 | P24: =IF(+'inputs activity'!$C$3>0,N24-N23," ") -> 0
B25: August | D25: =IF(+'inputs activity'!$C$3>0,'Rate Mitigation Variance Demand'!$L25+'Rate Mitigation Variance Energy'!$L25," ") -> 0 | F25: =IF(+'inputs activity'!$C$3>0,D25-D24," ") -> 0 | H25: =IF(+'inputs activity'!$C$3>0,'Rate Mitigation Variance Demand'!$T25+'Rate Mitigation Variance Energy'!$T25," ") -> 0 | J25: =IF(+'inputs activity'!$C$3>0,H25-H24," ") -> 0 | L25: =IF(+'inputs activity'!$C$3>7,+F25+J25," ") -> 0 | N25: =IF(+'inputs activity'!$C$3>0,'Rate Mitigation Variance Demand'!$N25+'Rate Mitigation Variance Energy'!$N25," ") -> 0 | P25: =IF(+'inputs activity'!$C$3>0,N25-N24," ") -> 0
B26: September | D26: =IF(+'inputs activity'!$C$3>0,'Rate Mitigation Variance Demand'!$L26+'Rate Mitigation Variance Energy'!$L26," ") -> 0 | F26: =IF(+'inputs activity'!$C$3>0,D26-D25," ") -> 0 | H26: =IF(+'inputs activity'!$C$3>0,'Rate Mitigation Variance Demand'!$T26+'Rate Mitigation Variance Energy'!$T26," ") -> 0 | J26: =IF(+'inputs activity'!$C$3>0,H26-H25," ") -> 0 | L26: =IF(+'inputs activity'!$C$3>8,+F26+J26," ") -> 0 | N26: =IF(+'inputs activity'!$C$3>0,'Rate Mitigation Variance Demand'!$N26+'Rate Mitigation Variance Energy'!$N26," ") -> 0 | P26: =IF(+'inputs activity'!$C$3>0,N26-N25," ") -> 0
B27: October | D27: =IF(+'inputs activity'!$C$3>0,'Rate Mitigation Variance Demand'!$L27+'Rate Mitigation Variance Energy'!$L27," ") -> 0 | F27: =IF(+'inputs activity'!$C$3>0,D27-D26," ") -> 0 | H27: =IF(+'inputs activity'!$C$3>0,'Rate Mitigation Variance Demand'!$T27+'Rate Mitigation Variance Energy'!$T27," ") -> 0 | J27: =IF(+'inputs activity'!$C$3>0,H27-H26," ") -> 0 | L27: =IF(+'inputs activity'!$C$3>9,+F27+J27," ") -> 0 | N27: =IF(+'inputs activity'!$C$3>0,'Rate Mitigation Variance Demand'!$N27+'Rate Mitigation Variance Energy'!$N27," ") -> 0 | P27: =IF(+'inputs activity'!$C$3>0,N27-N26," ") -> 0
B28: November | D28: =IF(+'inputs activity'!$C$3>0,'Rate Mitigation Variance Demand'!$L28+'Rate Mitigation Variance Energy'!$L28," ") -> 0 | F28: =IF(+'inputs activity'!$C$3>0,D28-D27," ") -> 0 | H28: =IF(+'inputs activity'!$C$3>0,'Rate Mitigation Variance Demand'!$T28+'Rate Mitigation Variance Energy'!$T28," ") -> 0 | J28: =IF(+'inputs activity'!$C$3>0,H28-H27," ") -> 0 | L28: =IF(+'inputs activity'!$C$3>10,+F28+J28," ") -> 0 | N28: =IF(+'inputs activity'!$C$3>0,'Rate Mitigation Variance Demand'!$N28+'Rate Mitigation Variance Energy'!$N28," ") -> 0 | P28: =IF(+'inputs activity'!$C$3>0,N28-N27," ") -> 0
B29: December | D29: =IF(+'inputs activity'!$C$3>0,'Rate Mitigation Variance Demand'!$L29+'Rate Mitigation Variance Energy'!$L29," ") -> 0 | F29: =IF(+'inputs activity'!$C$3>0,D29-D28," ") -> 0 | H29: =IF(+'inputs activity'!$C$3>0,'Rate Mitigation Variance Demand'!$T29+'Rate Mitigation Variance Energy'!$T29," ") -> 0 | J29: =IF(+'inputs activity'!$C$3>0,H29-H28," ") -> 0 | L29: =IF(+'inputs activity'!$C$3>11,+F29+J29," ") -> 0 | N29: =IF(+'inputs activity'!$C$3>0,'Rate Mitigation Variance Demand'!$N29+'Rate Mitigation Variance Energy'!$N29," ") -> 0 | P29: =IF(+'inputs activity'!$C$3>0,N29-N28," ") -> 0
F31: =SUM(F17:F29) -> 0 | J31: =SUM(J17:J29) -> 0 | L31: =SUM(L17:L29) -> 0 | P31: =SUM(P17:P29) -> 0

Sheet >>> Energy Allocators

Sheet MF Variance Energy
B1: =+'Load IND'!B1 -> Newfoundland and Labrador Hydro | Y1: Pg 6b
B4: Rate Stabilization Plan
B5: Allocation of MF Supply Variances (Energy)
B6: =+'inputs activity'!C1 -> 2027-12-31
D9: A | F9: B | H9: C | J9: D | L9: E | N9: F | P9: G | R9: H | T9: I | V9: J
T10: Reallocate Rural
D11: Twelve Months-to-Date | L11: MF Supply Cost Variance | T11: Island Customers (1)
F12: Industrial | H12: Rural Island | N12: Industrial | P12: Rural Island | V12: Labrador
D13: Utility | F13: Customers | H13: Customers | J13: Total | L13: Utility | N13: Customers | P13: Interconnected | R13: Total | T13: Utility | V13: Interconnected
D14: (kWh) | F14: (kWh) | H14: (kWh) | J14: (kWh) | L14: ($) | N14: ($) | P14: ($) | R14: ($) | T14: ($) | V14: ($)
J15: (A+B+C) | L15: (A/D X H) | N15: (B/D X H) | P15: (C/D X H)
L16: (to page 6a) | N16: (to page 6a) | R16: (from page 6) | T16: (to page 6a)
B18: January | D18: =IF(+'inputs activity'!$C$3>0,+'Actual kWh'!B$93," ") -> 6029962041 | F18: =IF(+'inputs activity'!$C$3>0,+'Actual kWh'!B$94," ") -> 484416420 | H18: =IF(+'inputs activity'!$C$3>0,+'Actual kWh'!B$95," ") -> 463791386 | J18: =IF(+'inputs activity'!$C$3>0,+H18+F18+D18," ") -> 6978169847 | L18: =IF(+'inputs activity'!$C$3>0,ROUND(+D18/$J18*$R18,3)," ") -> 0 | N18: =IF(+'inputs activity'!$C$3>0,ROUND(+F18/$J18*$R18,3)," ") -> 0 | P18: =IF(+'inputs activity'!$C$3>0,ROUND(+R18-L18-N18,3)," ") -> 0 | R18: =IF(+'inputs activity'!$C$3>0,SUM('MF Supply Variances'!$J$18:'MF Supply Variances'!J18)," ") -> 0 | T18: =IF('inputs activity'!$C$3>0,ROUND(+P18*'inputs activity'!C$34,0)," ") -> 0 | V18: =IF(+'inputs activity'!$C$3>0,+P18-T18," ") -> 0 | Z18: =D18/$J18 -> 0.8641179813 | AB18: =F18/$J18 -> 0.06941883482 | AD18: 0.06646318392
B19: February | D19: =IF(+'inputs activity'!$C$3>1,+'Actual kWh'!C$93," ") -> 6027782085 | F19: =IF(+'inputs activity'!$C$3>1,+'Actual kWh'!C$94," ") -> 495656020 | H19: =IF(+'inputs activity'!$C$3>1,+'Actual kWh'!C$95," ") -> 463539054.2 | J19: =IF(+'inputs activity'!$C$3>1,+H19+F19+D19," ") -> 6986977159 | L19: =IF(+'inputs activity'!$C$3>0,ROUND(+D19/$J19*$R19,3)," ") -> 0 | N19: =IF(+'inputs activity'!$C$3>0,ROUND(+F19/$J19*$R19,3)," ") -> 0 | P19: =IF(+'inputs activity'!$C$3>0,ROUND(+R19-L19-N19,3)," ") -> 0 | R19: =IF(+'inputs activity'!$C$3>0,SUM('MF Supply Variances'!$J$18:'MF Supply Variances'!J19)," ") -> 0 | T19: =IF('inputs activity'!$C$3>1,ROUND(+P19*'inputs activity'!D$34,0)," ") -> 0 | V19: =IF(+'inputs activity'!$C$3>1,+P19-T19," ") -> 0 | Z19: =D19/$J19 -> 0.8627167297 | AB19: =F19/$J19 -> 0.07093998001 | AD19: =H19/$J19 -> 0.06634329033
B20: March | D20: =IF(+'inputs activity'!$C$3>2,+'Actual kWh'!D$93," ") -> 6025701213 | F20: =IF(+'inputs activity'!$C$3>2,+'Actual kWh'!D$94," ") -> 508018050 | H20: =IF(+'inputs activity'!$C$3>2,+'Actual kWh'!D$95," ") -> 463286899 | J20: =IF(+'inputs activity'!$C$3>2,+H20+F20+D20," ") -> 6997006162 | L20: =IF(+'inputs activity'!$C$3>0,ROUND(+D20/$J20*$R20,3)," ") -> 0 | N20: =IF(+'inputs activity'!$C$3>0,ROUND(+F20/$J20*$R20,3)," ") -> 0 | P20: =IF(+'inputs activity'!$C$3>0,ROUND(+R20-L20-N20,3)," ") -> 0 | R20: =IF(+'inputs activity'!$C$3>0,SUM('MF Supply Variances'!$J$18:'MF Supply Variances'!J20)," ") -> 0 | T20: =IF('inputs activity'!$C$3>2,ROUND(+P20*'inputs activity'!E$34,0)," ") -> 0 | V20: =IF(+'inputs activity'!$C$3>2,+P20-T20," ") -> 0 | Z20: 0.8611827793 | AB20: 0.07260505968 | AD20: 0.06621216107
B21: April | D21: =IF(+'inputs activity'!$C$3>3,+'Actual kWh'!E$93," ") -> 6024255831 | F21: =IF(+'inputs activity'!$C$3>3,+'Actual kWh'!E$94," ") -> 520152850 | H21: =IF(+'inputs activity'!$C$3>3,+'Actual kWh'!E$95," ") -> 463074128.4 | J21: =IF(+'inputs activity'!$C$3>3,+H21+F21+D21," ") -> 7007482809 | L21: =IF(+'inputs activity'!$C$3>0,ROUND(+D21/$J21*$R21,3)," ") -> 0 | N21: =IF(+'inputs activity'!$C$3>0,ROUND(+F21/$J21*$R21,3)," ") -> 0 | P21: =IF(+'inputs activity'!$C$3>0,ROUND(+R21-L21-N21,3)," ") -> 0 | R21: =IF(+'inputs activity'!$C$3>0,SUM('MF Supply Variances'!$J$18:'MF Supply Variances'!J21)," ") -> 0 | T21: =IF('inputs activity'!$C$3>3,ROUND(+P21*'inputs activity'!F$34,0)," ") -> 0 | V21: =IF(+'inputs activity'!$C$3>3,+P21-T21," ") -> 0 | Z21: 0.8596889917 | AB21: 0.07422820208 | AD21: 0.0660828062
B22: May | D22: =IF(+'inputs activity'!$C$3>4,+'Actual kWh'!F$93," ") -> 6023443776 | F22: =IF(+'inputs activity'!$C$3>4,+'Actual kWh'!F$94," ") -> 532355390 | H22: =IF(+'inputs activity'!$C$3>4,+'Actual kWh'!F$95," ") -> 462879212.3 | J22: =IF(+'inputs activity'!$C$3>4,+H22+F22+D22," ") -> 7018678379 | L22: =IF(+'inputs activity'!$C$3>0,ROUND(+D22/$J22*$R22,3)," ") -> 0 | N22: =IF(+'inputs activity'!$C$3>0,ROUND(+F22/$J22*$R22,3)," ") -> 0 | P22: =IF(+'inputs activity'!$C$3>0,ROUND(+R22-L22-N22,3)," ") -> 0 | R22: =IF(+'inputs activity'!$C$3>0,SUM('MF Supply Variances'!$J$18:'MF Supply Variances'!J22)," ") -> 0 | T22: =IF('inputs activity'!$C$3>4,ROUND(+P22*'inputs activity'!G$34,0)," ") -> 0 | V22: =IF(+'inputs activity'!$C$3>4,+P22-T22," ") -> 0 | Z22: 0.8582019935 | AB22: 0.07584838075 | AD22: 0.06594962574
B23: June | D23: =IF(+'inputs activity'!$C$3>5,+'Actual kWh'!G$93," ") -> 6022235076 | F23: =IF(+'inputs activity'!$C$3>5,+'Actual kWh'!G$94," ") -> 544157370 | H23: =IF(+'inputs activity'!$C$3>5,+'Actual kWh'!G$95," ") -> 462716961.2 | J23: =IF(+'inputs activity'!$C$3>5,+H23+F23+D23," ") -> 7029109408 | L23: =IF(+'inputs activity'!$C$3>0,ROUND(+D23/$J23*$R23,3)," ") -> 0 | N23: =IF(+'inputs activity'!$C$3>0,ROUND(+F23/$J23*$R23,3)," ") -> 0 | P23: =IF(+'inputs activity'!$C$3>0,ROUND(+R23-L23-N23,3)," ") -> 0 | R23: =IF(+'inputs activity'!$C$3>0,SUM('MF Supply Variances'!$J$18:'MF Supply Variances'!J23)," ") -> 0 | T23: =IF('inputs activity'!$C$3>5,ROUND(+P23*'inputs activity'!H$34,0)," ") -> 0 | V23: =IF(+'inputs activity'!$C$3>5,+P23-T23," ") -> 0 | Z23: 0.8567564861 | AB23: 0.07741483856 | AD23: 0.06582867536
B24: July | D24: =IF(+'inputs activity'!$C$3>6,+'Actual kWh'!H$93," ") -> 6021532526 | F24: =IF(+'inputs activity'!$C$3>6,+'Actual kWh'!H$94," ") -> 555923240 | H24: =IF(+'inputs activity'!$C$3>6,+'Actual kWh'!H$95," ") -> 462564980.6 | J24: =IF(+'inputs activity'!$C$3>6,+H24+F24+D24," ") -> 7040020747 | L24: =IF(+'inputs activity'!$C$3>0,ROUND(+D24/$J24*$R24,3)," ") -> 0 | N24: =IF(+'inputs activity'!$C$3>0,ROUND(+F24/$J24*$R24,3)," ") -> 0 | P24: =IF(+'inputs activity'!$C$3>0,ROUND(+R24-L24-N24,3)," ") -> 0 | R24: =IF(+'inputs activity'!$C$3>0,SUM('MF Supply Variances'!$J$18:'MF Supply Variances'!J24)," ") -> 0 | T24: =IF('inputs activity'!$C$3>6,ROUND(+P24*'inputs activity'!I$34,0)," ") -> 0 | V24: =IF(+'inputs activity'!$C$3>6,+P24-T24," ") -> 0 | Z24: 0.8553288041 | AB24: 0.07896613661 | AD24: 0.06570505929
B25: August | D25: =IF(+'inputs activity'!$C$3>7,+'Actual kWh'!I$93," ") -> 6020850402 | F25: =IF(+'inputs activity'!$C$3>7,+'Actual kWh'!I$94," ") -> 567450990 | H25: =IF(+'inputs activity'!$C$3>7,+'Actual kWh'!I$95," ") -> 462416024 | J25: =IF(+'inputs activity'!$C$3>7,+H25+F25+D25," ") -> 7050717416 | L25: =IF(+'inputs activity'!$C$3>0,ROUND(+D25/$J25*$R25,3)," ") -> 0 | N25: =IF(+'inputs activity'!$C$3>0,ROUND(+F25/$J25*$R25,3)," ") -> 0 | P25: =IF(+'inputs activity'!$C$3>0,ROUND(+R25-L25-N25,3)," ") -> 0 | R25: =IF(+'inputs activity'!$C$3>0,SUM('MF Supply Variances'!$J$18:'MF Supply Variances'!J25)," ") -> 0 | T25: =IF('inputs activity'!$C$3>7,ROUND(+P25*'inputs activity'!J$34,0)," ") -> 0 | V25: =IF(+'inputs activity'!$C$3>7,+P25-T25," ") -> 0 | Z25: 0.8539344363 | AB25: 0.08048131226 | AD25: 0.06558425147
B26: September | D26: =IF(+'inputs activity'!$C$3>8,+'Actual kWh'!J$93," ") -> 6020046084 | F26: =IF(+'inputs activity'!$C$3>8,+'Actual kWh'!J$94," ") -> 577025700 | H26: =IF(+'inputs activity'!$C$3>8,+'Actual kWh'!J$95," ") -> 434669256.1 | J26: =IF(+'inputs activity'!$C$3>8,+H26+F26+D26," ") -> 7031741040 | L26: =IF(+'inputs activity'!$C$3>0,ROUND(+D26/$J26*$R26,3)," ") -> 0 | N26: =IF(+'inputs activity'!$C$3>0,ROUND(+F26/$J26*$R26,3)," ") -> 0 | P26: =IF(+'inputs activity'!$C$3>0,ROUND(+R26-L26-N26,3)," ") -> 0 | R26: =IF(+'inputs activity'!$C$3>0,SUM('MF Supply Variances'!$J$18:'MF Supply Variances'!J26)," ") -> 0 | T26: =IF('inputs activity'!$C$3>8,ROUND(+P26*'inputs activity'!K$34,0)," ") -> 0 | V26: =IF(+'inputs activity'!$C$3>8,+P26-T26," ") -> 0 | Z26: 0.8561245429 | AB26: 0.08206014652 | AD26: 0.06181531056
B27: October | D27: =IF(+'inputs activity'!$C$3>9,+'Actual kWh'!K$93," ") -> 6018948322 | F27: =IF(+'inputs activity'!$C$3>9,+'Actual kWh'!K$94," ") -> 588132070 | H27: =IF(+'inputs activity'!$C$3>9,+'Actual kWh'!K$95," ") -> 462094225.4 | J27: =IF(+'inputs activity'!$C$3>9,+H27+F27+D27," ") -> 7069174617 | L27: =IF(+'inputs activity'!$C$3>0,ROUND(+D27/$J27*$R27,3)," ") -> 0 | N27: =IF(+'inputs activity'!$C$3>0,ROUND(+F27/$J27*$R27,3)," ") -> 0 | P27: =IF(+'inputs activity'!$C$3>0,ROUND(+R27-L27-N27,3)," ") -> 0 | R27: =IF(+'inputs activity'!$C$3>0,SUM('MF Supply Variances'!$J$18:'MF Supply Variances'!J27)," ") -> 0 | T27: =IF('inputs activity'!$C$3>9,ROUND(+P27*'inputs activity'!L$34,0)," ") -> 0 | V27: =IF(+'inputs activity'!$C$3>9,+P27-T27," ") -> 0 | Z27: 0.8514357966 | AB27: 0.08319670992 | AD27: 0.06536749344
B28: November | D28: =IF(+'inputs activity'!$C$3>10,+'Actual kWh'!L$93," ") -> 6017333733 | F28: =IF(+'inputs activity'!$C$3>10,+'Actual kWh'!L$94," ") -> 600482460 | H28: =IF(+'inputs activity'!$C$3>10,+'Actual kWh'!L$95," ") -> 461883914 | J28: =IF(+'inputs activity'!$C$3>10,+H28+F28+D28," ") -> 7079700107 | L28: =IF(+'inputs activity'!$C$3>0,ROUND(+D28/$J28*$R28,3)," ") -> 0 | N28: =IF(+'inputs activity'!$C$3>0,ROUND(+F28/$J28*$R28,3)," ") -> 0 | P28: =IF(+'inputs activity'!$C$3>0,ROUND(+R28-L28-N28,3)," ") -> 0 | R28: =IF(+'inputs activity'!$C$3>0,SUM('MF Supply Variances'!$J$18:'MF Supply Variances'!J28)," ") -> 0 | T28: =IF('inputs activity'!$C$3>10,ROUND(+P28*'inputs activity'!M$34,0)," ") -> 0 | V28: =IF(+'inputs activity'!$C$3>10,+P28-T28," ") -> 0 | Z28: 0.8499418961 | AB28: 0.08481749946 | AD28: 0.0652406044
B29: December | D29: =IF(+'inputs activity'!$C$3>11,+'Actual kWh'!M$93," ") -> 6014582000 | F29: =IF(+'inputs activity'!$C$3>11,+'Actual kWh'!M$94," ") -> 613371340 | H29: =IF(+'inputs activity'!$C$3>11,+'Actual kWh'!M$95," ") -> 461625100 | J29: =IF(+'inputs activity'!$C$3>11,+H29+F29+D29," ") -> 7089578440 | L29: =IF(+'inputs activity'!$C$3>0,ROUND(+D29/$J29*$R29,3)," ") -> 0 | N29: =IF(+'inputs activity'!$C$3>0,ROUND(+F29/$J29*$R29,3)," ") -> 0 | P29: =IF(+'inputs activity'!$C$3>0,ROUND(+R29-L29-N29,3)," ") -> 0 | R29: =IF(+'inputs activity'!$C$3>0,SUM('MF Supply Variances'!$J$18:'MF Supply Variances'!J29)," ") -> 0 | T29: =IF('inputs activity'!$C$3>11,ROUND(+P29*'inputs activity'!N$34,0)," ") -> 0 | V29: =IF(+'inputs activity'!$C$3>11,+P29-T29," ") -> 0 | Z29: 0.8483694836 | AB29: 0.0865173219 | AD29: 0.06511319452
B32: (1) The portion of the energy costs which is initially allocated to Rural Island Interconnected will be re-allocated between Newfoundland Power and regulated Labrador Interconnected customers in the same proportion as the Rural Deficit is allocated in the most recently approved Test Year Cost of Service

Sheet Fuel Variance Energy
B1: =+'Load IND'!B1 -> Newfoundland and Labrador Hydro | Y1: Pg 7b
B4: Rate Stabilization Plan
B5: Fuel Variances (Energy)
B6: =+'inputs activity'!C1 -> 2027-12-31
D9: A | F9: B | H9: C | J9: D | L9: E | N9: F | P9: G | R9: H | T9: I | V9: J
T10: Reallocate Rural
D11: Twelve Months-to-Date | L11: Fuel Variance | T11: Island Customers (1)
F12: Industrial | H12: Rural Island | N12: Industrial | P12: Rural Island | V12: Labrador
D13: Utility | F13: Customers | H13: Customers | J13: Total | L13: Utility | N13: Customers | P13: Interconnected | R13: Total | T13: Utility | V13: Interconnected
D14: (kWh) | F14: (kWh) | H14: (kWh) | J14: (kWh) | L14: ($) | N14: ($) | P14: ($) | R14: ($) | T14: ($) | V14: ($)
J15: (A+B+C) | L15: (A/D X H) | N15: (B/D X H) | P15: (C/D X H)
L16: (to page 7a) | N16: (to page 7a) | R16: (from page 7) | T16: (to page 7a)
B18: January | D18: =IF(+'inputs activity'!$C$3>0,+'Actual kWh'!B$93," ") -> 6029962041 | F18: =IF(+'inputs activity'!$C$3>0,+'Actual kWh'!B$94," ") -> 484416420 | H18: =IF(+'inputs activity'!$C$3>0,+'Actual kWh'!B$95," ") -> 463791386 | J18: =IF(+'inputs activity'!$C$3>0,+H18+F18+D18," ") -> 6978169847 | L18: =IF(+'inputs activity'!$C$3>0,ROUND(+D18/$J18*$R18,3)," ") -> 0 | N18: =IF(+'inputs activity'!$C$3>0,ROUND(+F18/$J18*$R18,3)," ") -> 0 | P18: =IF(+'inputs activity'!$C$3>0,ROUND(+R18-L18-N18,3)," ") -> 0 | R18: =IF(+'inputs activity'!$C$3>0,+SUM('Fuel Variance'!$P$18:'Fuel Variance'!P18)," ") -> 0 | T18: =IF('inputs activity'!$C$3>0,ROUND(+P18*'inputs activity'!C$34,0)," ") -> 0 | V18: =IF(+'inputs activity'!$C$3>0,+P18-T18," ") -> 0 | Z18: =D18/$J18 -> 0.8641179813 | AB18: =F18/$J18 -> 0.06941883482 | AD18: 0.06646318392
B19: February | D19: =IF(+'inputs activity'!$C$3>1,+'Actual kWh'!C$93," ") -> 6027782085 | F19: =IF(+'inputs activity'!$C$3>1,+'Actual kWh'!C$94," ") -> 495656020 | H19: =IF(+'inputs activity'!$C$3>1,+'Actual kWh'!C$95," ") -> 463539054.2 | J19: =IF(+'inputs activity'!$C$3>1,+H19+F19+D19," ") -> 6986977159 | L19: =IF(+'inputs activity'!$C$3>0,ROUND(+D19/$J19*$R19,3)," ") -> 0 | N19: =IF(+'inputs activity'!$C$3>0,ROUND(+F19/$J19*$R19,3)," ") -> 0 | P19: =IF(+'inputs activity'!$C$3>0,ROUND(+R19-L19-N19,3)," ") -> 0 | R19: =IF(+'inputs activity'!$C$3>0,+SUM('Fuel Variance'!$P$18:'Fuel Variance'!P19)," ") -> 0 | T19: =IF('inputs activity'!$C$3>1,ROUND(+P19*'inputs activity'!D$34,0)," ") -> 0 | V19: =IF(+'inputs activity'!$C$3>1,+P19-T19," ") -> 0 | Z19: =D19/$J19 -> 0.8627167297 | AB19: 0.07093998001 | AD19: 0.06634329033
B20: March | D20: =IF(+'inputs activity'!$C$3>2,+'Actual kWh'!D$93," ") -> 6025701213 | F20: =IF(+'inputs activity'!$C$3>2,+'Actual kWh'!D$94," ") -> 508018050 | H20: =IF(+'inputs activity'!$C$3>2,+'Actual kWh'!D$95," ") -> 463286899 | J20: =IF(+'inputs activity'!$C$3>2,+H20+F20+D20," ") -> 6997006162 | L20: =IF(+'inputs activity'!$C$3>0,ROUND(+D20/$J20*$R20,3)," ") -> 0 | N20: =IF(+'inputs activity'!$C$3>0,ROUND(+F20/$J20*$R20,3)," ") -> 0 | P20: =IF(+'inputs activity'!$C$3>0,ROUND(+R20-L20-N20,3)," ") -> 0 | R20: =IF(+'inputs activity'!$C$3>0,+SUM('Fuel Variance'!$P$18:'Fuel Variance'!P20)," ") -> 0 | T20: =IF('inputs activity'!$C$3>2,ROUND(+P20*'inputs activity'!E$34,0)," ") -> 0 | V20: =IF(+'inputs activity'!$C$3>2,+P20-T20," ") -> 0 | Z20: 0.8611827793 | AB20: 0.07260505968 | AD20: 0.06621216107
B21: April | D21: =IF(+'inputs activity'!$C$3>3,+'Actual kWh'!E$93," ") -> 6024255831 | F21: =IF(+'inputs activity'!$C$3>3,+'Actual kWh'!E$94," ") -> 520152850 | H21: =IF(+'inputs activity'!$C$3>3,+'Actual kWh'!E$95," ") -> 463074128.4 | J21: =IF(+'inputs activity'!$C$3>3,+H21+F21+D21," ") -> 7007482809 | L21: =IF(+'inputs activity'!$C$3>0,ROUND(+D21/$J21*$R21,3)," ") -> 0 | N21: =IF(+'inputs activity'!$C$3>0,ROUND(+F21/$J21*$R21,3)," ") -> 0 | P21: =IF(+'inputs activity'!$C$3>0,ROUND(+R21-L21-N21,3)," ") -> 0 | R21: =IF(+'inputs activity'!$C$3>0,+SUM('Fuel Variance'!$P$18:'Fuel Variance'!P21)," ") -> 0 | T21: =IF('inputs activity'!$C$3>3,ROUND(+P21*'inputs activity'!F$34,0)," ") -> 0 | V21: =IF(+'inputs activity'!$C$3>3,+P21-T21," ") -> 0 | Z21: 0.8596889917 | AB21: 0.07422820208 | AD21: 0.0660828062
B22: May | D22: =IF(+'inputs activity'!$C$3>4,+'Actual kWh'!F$93," ") -> 6023443776 | F22: =IF(+'inputs activity'!$C$3>4,+'Actual kWh'!F$94," ") -> 532355390 | H22: =IF(+'inputs activity'!$C$3>4,+'Actual kWh'!F$95," ") -> 462879212.3 | J22: =IF(+'inputs activity'!$C$3>4,+H22+F22+D22," ") -> 7018678379 | L22: =IF(+'inputs activity'!$C$3>0,ROUND(+D22/$J22*$R22,3)," ") -> 0 | N22: =IF(+'inputs activity'!$C$3>0,ROUND(+F22/$J22*$R22,3)," ") -> 0 | P22: =IF(+'inputs activity'!$C$3>0,ROUND(+R22-L22-N22,3)," ") -> 0 | R22: =IF(+'inputs activity'!$C$3>0,+SUM('Fuel Variance'!$P$18:'Fuel Variance'!P22)," ") -> 0 | T22: =IF('inputs activity'!$C$3>4,ROUND(+P22*'inputs activity'!G$34,0)," ") -> 0 | V22: =IF(+'inputs activity'!$C$3>4,+P22-T22," ") -> 0 | Z22: 0.8582019935 | AB22: 0.07584838075 | AD22: 0.06594962574
B23: June | D23: =IF(+'inputs activity'!$C$3>5,+'Actual kWh'!G$93," ") -> 6022235076 | F23: =IF(+'inputs activity'!$C$3>5,+'Actual kWh'!G$94," ") -> 544157370 | H23: =IF(+'inputs activity'!$C$3>5,+'Actual kWh'!G$95," ") -> 462716961.2 | J23: =IF(+'inputs activity'!$C$3>5,+H23+F23+D23," ") -> 7029109408 | L23: =IF(+'inputs activity'!$C$3>0,ROUND(+D23/$J23*$R23,3)," ") -> 0 | N23: =IF(+'inputs activity'!$C$3>0,ROUND(+F23/$J23*$R23,3)," ") -> 0 | P23: =IF(+'inputs activity'!$C$3>0,ROUND(+R23-L23-N23,3)," ") -> 0 | R23: =IF(+'inputs activity'!$C$3>0,+SUM('Fuel Variance'!$P$18:'Fuel Variance'!P23)," ") -> 0 | T23: =IF('inputs activity'!$C$3>5,ROUND(+P23*'inputs activity'!H$34,0)," ") -> 0 | V23: =IF(+'inputs activity'!$C$3>5,+P23-T23," ") -> 0 | Z23: 0.8567564861 | AB23: 0.07741483856 | AD23: 0.06582867536
B24: July | D24: =IF(+'inputs activity'!$C$3>6,+'Actual kWh'!H$93," ") -> 6021532526 | F24: =IF(+'inputs activity'!$C$3>6,+'Actual kWh'!H$94," ") -> 555923240 | H24: =IF(+'inputs activity'!$C$3>6,+'Actual kWh'!H$95," ") -> 462564980.6 | J24: =IF(+'inputs activity'!$C$3>6,+H24+F24+D24," ") -> 7040020747 | L24: =IF(+'inputs activity'!$C$3>0,ROUND(+D24/$J24*$R24,3)," ") -> 0 | N24: =IF(+'inputs activity'!$C$3>0,ROUND(+F24/$J24*$R24,3)," ") -> 0 | P24: =IF(+'inputs activity'!$C$3>0,ROUND(+R24-L24-N24,3)," ") -> 0 | R24: =IF(+'inputs activity'!$C$3>0,+SUM('Fuel Variance'!$P$18:'Fuel Variance'!P24)," ") -> 0 | T24: =IF('inputs activity'!$C$3>6,ROUND(+P24*'inputs activity'!I$34,0)," ") -> 0 | V24: =IF(+'inputs activity'!$C$3>6,+P24-T24," ") -> 0 | Z24: 0.8553288041 | AB24: 0.07896613661 | AD24: 0.06570505929
B25: August | D25: =IF(+'inputs activity'!$C$3>7,+'Actual kWh'!I$93," ") -> 6020850402 | F25: =IF(+'inputs activity'!$C$3>7,+'Actual kWh'!I$94," ") -> 567450990 | H25: =IF(+'inputs activity'!$C$3>7,+'Actual kWh'!I$95," ") -> 462416024 | J25: =IF(+'inputs activity'!$C$3>7,+H25+F25+D25," ") -> 7050717416 | L25: =IF(+'inputs activity'!$C$3>0,ROUND(+D25/$J25*$R25,3)," ") -> 0 | N25: =IF(+'inputs activity'!$C$3>0,ROUND(+F25/$J25*$R25,3)," ") -> 0 | P25: =IF(+'inputs activity'!$C$3>0,ROUND(+R25-L25-N25,3)," ") -> 0 | R25: =IF(+'inputs activity'!$C$3>0,+SUM('Fuel Variance'!$P$18:'Fuel Variance'!P25)," ") -> 0 | T25: =IF('inputs activity'!$C$3>7,ROUND(+P25*'inputs activity'!J$34,0)," ") -> 0 | V25: =IF(+'inputs activity'!$C$3>7,+P25-T25," ") -> 0 | Z25: 0.8539344363 | AB25: 0.08048131226 | AD25: 0.06558425147
B26: September | D26: =IF(+'inputs activity'!$C$3>8,+'Actual kWh'!J$93," ") -> 6020046084 | F26: =IF(+'inputs activity'!$C$3>8,+'Actual kWh'!J$94," ") -> 577025700 | H26: =IF(+'inputs activity'!$C$3>8,+'Actual kWh'!J$95," ") -> 434669256.1 | J26: =IF(+'inputs activity'!$C$3>8,+H26+F26+D26," ") -> 7031741040 | L26: =IF(+'inputs activity'!$C$3>0,ROUND(+D26/$J26*$R26,3)," ") -> 0 | N26: =IF(+'inputs activity'!$C$3>0,ROUND(+F26/$J26*$R26,3)," ") -> 0 | P26: =IF(+'inputs activity'!$C$3>0,ROUND(+R26-L26-N26,3)," ") -> 0 | R26: =IF(+'inputs activity'!$C$3>0,+SUM('Fuel Variance'!$P$18:'Fuel Variance'!P26)," ") -> 0 | T26: =IF('inputs activity'!$C$3>8,ROUND(+P26*'inputs activity'!K$34,0)," ") -> 0 | V26: =IF(+'inputs activity'!$C$3>8,+P26-T26," ") -> 0 | Z26: 0.8561245429 | AB26: 0.08206014652 | AD26: 0.06181531056
B27: October | D27: =IF(+'inputs activity'!$C$3>9,+'Actual kWh'!K$93," ") -> 6018948322 | F27: =IF(+'inputs activity'!$C$3>9,+'Actual kWh'!K$94," ") -> 588132070 | H27: =IF(+'inputs activity'!$C$3>9,+'Actual kWh'!K$95," ") -> 462094225.4 | J27: =IF(+'inputs activity'!$C$3>9,+H27+F27+D27," ") -> 7069174617 | L27: =IF(+'inputs activity'!$C$3>0,ROUND(+D27/$J27*$R27,3)," ") -> 0 | N27: =IF(+'inputs activity'!$C$3>0,ROUND(+F27/$J27*$R27,3)," ") -> 0 | P27: =IF(+'inputs activity'!$C$3>0,ROUND(+R27-L27-N27,3)," ") -> 0 | R27: =IF(+'inputs activity'!$C$3>0,+SUM('Fuel Variance'!$P$18:'Fuel Variance'!P27)," ") -> 0 | T27: =IF('inputs activity'!$C$3>9,ROUND(+P27*'inputs activity'!L$34,0)," ") -> 0 | V27: =IF(+'inputs activity'!$C$3>9,+P27-T27," ") -> 0 | Z27: 0.8514357966 | AB27: 0.08319670992 | AD27: 0.06536749344
B28: November | D28: =IF(+'inputs activity'!$C$3>10,+'Actual kWh'!L$93," ") -> 6017333733 | F28: =IF(+'inputs activity'!$C$3>10,+'Actual kWh'!L$94," ") -> 600482460 | H28: =IF(+'inputs activity'!$C$3>10,+'Actual kWh'!L$95," ") -> 461883914 | J28: =IF(+'inputs activity'!$C$3>10,+H28+F28+D28," ") -> 7079700107 | L28: =IF(+'inputs activity'!$C$3>0,ROUND(+D28/$J28*$R28,3)," ") -> 0 | N28: =IF(+'inputs activity'!$C$3>0,ROUND(+F28/$J28*$R28,3)," ") -> 0 | P28: =IF(+'inputs activity'!$C$3>0,ROUND(+R28-L28-N28,3)," ") -> 0 | R28: =IF(+'inputs activity'!$C$3>0,+SUM('Fuel Variance'!$P$18:'Fuel Variance'!P28)," ") -> 0 | T28: =IF('inputs activity'!$C$3>10,ROUND(+P28*'inputs activity'!M$34,0)," ") -> 0 | V28: =IF(+'inputs activity'!$C$3>10,+P28-T28," ") -> 0 | Z28: 0.8499418961 | AB28: 0.08481749946 | AD28: 0.0652406044
B29: December | D29: =IF(+'inputs activity'!$C$3>11,+'Actual kWh'!M$93," ") -> 6014582000 | F29: =IF(+'inputs activity'!$C$3>11,+'Actual kWh'!M$94," ") -> 613371340 | H29: =IF(+'inputs activity'!$C$3>11,+'Actual kWh'!M$95," ") -> 461625100 | J29: =IF(+'inputs activity'!$C$3>11,+H29+F29+D29," ") -> 7089578440 | L29: =IF(+'inputs activity'!$C$3>0,ROUND(+D29/$J29*$R29,3)," ") -> 0 | N29: =IF(+'inputs activity'!$C$3>0,ROUND(+F29/$J29*$R29,3)," ") -> 0 | P29: =IF(+'inputs activity'!$C$3>0,ROUND(+R29-L29-N29,3)," ") -> 0 | R29: =IF(+'inputs activity'!$C$3>0,+SUM('Fuel Variance'!$P$18:'Fuel Variance'!P29)," ") -> 0 | T29: =IF('inputs activity'!$C$3>11,ROUND(+P29*'inputs activity'!N$34,0)," ") -> 0 | V29: =IF(+'inputs activity'!$C$3>11,+P29-T29," ") -> 0 | Z29: 0.8483694836 | AB29: 0.0865173219 | AD29: 0.06511319452
B32: (1) The portion of the energy costs which is initially allocated to Rural Island Interconnected will be re-allocated between Newfoundland Power and regulated Labrador Interconnected customers in the same proportion as the Rural Deficit is allocated in the most recently approved Test Year Cost of Service

Sheet Other IIS Variance Energy
B1: =+'Load IND'!B1 -> Newfoundland and Labrador Hydro | Y1: Pg 8b
B4: Rate Stabilization Plan
B5: Other IIS Supply Cost Variances (Energy)
B6: =+'inputs activity'!C1 -> 2027-12-31
D9: A | F9: B | H9: C | J9: D | L9: E | N9: F | P9: G | R9: H | T9: I | V9: J
T10: Reallocate Rural
D11: Twelve Months-to-Date | L11: Other IIS Supply Cost Variance | T11: Island Customers (1)
F12: Industrial | H12: Rural Island | N12: Industrial | P12: Rural Island | V12: Labrador
D13: Utility | F13: Customers | H13: Customers | J13: Total | L13: Utility | N13: Customers | P13: Interconnected | R13: Total | T13: Utility | V13: Interconnected
D14: (kWh) | F14: (kWh) | H14: (kWh) | J14: (kWh) | L14: ($) | N14: ($) | P14: ($) | R14: ($) | T14: ($) | V14: ($)
J15: (A+B+C) | L15: (A/D X H) | N15: (B/D X H) | P15: (C/D X H)
L16: (to page 8a) | N16: (to page 8a) | R16: (from page 8) | T16: (to page 8a)
B18: January | D18: =IF(+'inputs activity'!$C$3>0,+'Actual kWh'!B$93," ") -> 6029962041 | F18: =IF(+'inputs activity'!$C$3>0,+'Actual kWh'!B$94," ") -> 484416420 | H18: =IF(+'inputs activity'!$C$3>0,+'Actual kWh'!B$95," ") -> 463791386 | J18: =IF(+'inputs activity'!$C$3>0,+H18+F18+D18," ") -> 6978169847 | L18: =IF(+'inputs activity'!$C$3>0,ROUND(+D18/$J18*$R18,3)," ") -> 0 | N18: =IF(+'inputs activity'!$C$3>0,ROUND(+F18/$J18*$R18,3)," ") -> 0 | P18: =IF(+'inputs activity'!$C$3>0,ROUND(+R18-L18-N18,3)," ") -> 0 | R18: =IF(+'inputs activity'!$C$3>0,+SUM('Other IIS Variance'!$Q$18:'Other IIS Variance'!Q18)," ") -> 0 | T18: =IF('inputs activity'!$C$3>0,ROUND(+P18*'inputs activity'!C$34,0)," ") -> 0 | V18: =IF(+'inputs activity'!$C$3>0,+P18-T18," ") -> 0 | Z18: =D18/$J18 -> 0.8641179813 | AB18: =F18/$J18 -> 0.06941883482 | AD18: 0.06646318392
B19: February | D19: =IF(+'inputs activity'!$C$3>1,+'Actual kWh'!C$93," ") -> 6027782085 | F19: =IF(+'inputs activity'!$C$3>1,+'Actual kWh'!C$94," ") -> 495656020 | H19: =IF(+'inputs activity'!$C$3>1,+'Actual kWh'!C$95," ") -> 463539054.2 | J19: =IF(+'inputs activity'!$C$3>1,+H19+F19+D19," ") -> 6986977159 | L19: =IF(+'inputs activity'!$C$3>0,ROUND(+D19/$J19*$R19,3)," ") -> 0 | N19: =IF(+'inputs activity'!$C$3>0,ROUND(+F19/$J19*$R19,3)," ") -> 0 | P19: =IF(+'inputs activity'!$C$3>0,ROUND(+R19-L19-N19,3)," ") -> 0 | R19: =IF(+'inputs activity'!$C$3>0,+SUM('Other IIS Variance'!$Q$18:'Other IIS Variance'!Q19)," ") -> 0 | T19: =IF('inputs activity'!$C$3>1,ROUND(+P19*'inputs activity'!D$34,0)," ") -> 0 | V19: =IF(+'inputs activity'!$C$3>1,+P19-T19," ") -> 0 | Z19: =D19/$J19 -> 0.8627167297 | AB19: 0.07093998001 | AD19: 0.06634329033
B20: March | D20: =IF(+'inputs activity'!$C$3>2,+'Actual kWh'!D$93," ") -> 6025701213 | F20: =IF(+'inputs activity'!$C$3>2,+'Actual kWh'!D$94," ") -> 508018050 | H20: =IF(+'inputs activity'!$C$3>2,+'Actual kWh'!D$95," ") -> 463286899 | J20: =IF(+'inputs activity'!$C$3>2,+H20+F20+D20," ") -> 6997006162 | L20: =IF(+'inputs activity'!$C$3>0,ROUND(+D20/$J20*$R20,3)," ") -> 0 | N20: =IF(+'inputs activity'!$C$3>0,ROUND(+F20/$J20*$R20,3)," ") -> 0 | P20: =IF(+'inputs activity'!$C$3>0,ROUND(+R20-L20-N20,3)," ") -> 0 | R20: =IF(+'inputs activity'!$C$3>0,+SUM('Other IIS Variance'!$Q$18:'Other IIS Variance'!Q20)," ") -> 0 | T20: =IF('inputs activity'!$C$3>2,ROUND(+P20*'inputs activity'!E$34,0)," ") -> 0 | V20: =IF(+'inputs activity'!$C$3>2,+P20-T20," ") -> 0 | Z20: 0.8611827793 | AB20: 0.07260505968 | AD20: 0.06621216107
B21: April | D21: =IF(+'inputs activity'!$C$3>3,+'Actual kWh'!E$93," ") -> 6024255831 | F21: =IF(+'inputs activity'!$C$3>3,+'Actual kWh'!E$94," ") -> 520152850 | H21: =IF(+'inputs activity'!$C$3>3,+'Actual kWh'!E$95," ") -> 463074128.4 | J21: =IF(+'inputs activity'!$C$3>3,+H21+F21+D21," ") -> 7007482809 | L21: =IF(+'inputs activity'!$C$3>0,ROUND(+D21/$J21*$R21,3)," ") -> 0 | N21: =IF(+'inputs activity'!$C$3>0,ROUND(+F21/$J21*$R21,3)," ") -> 0 | P21: =IF(+'inputs activity'!$C$3>0,ROUND(+R21-L21-N21,3)," ") -> 0 | R21: =IF(+'inputs activity'!$C$3>0,+SUM('Other IIS Variance'!$Q$18:'Other IIS Variance'!Q21)," ") -> 0 | T21: =IF('inputs activity'!$C$3>3,ROUND(+P21*'inputs activity'!F$34,0)," ") -> 0 | V21: =IF(+'inputs activity'!$C$3>3,+P21-T21," ") -> 0 | Z21: 0.8596889917 | AB21: 0.07422820208 | AD21: 0.0660828062
B22: May | D22: =IF(+'inputs activity'!$C$3>4,+'Actual kWh'!F$93," ") -> 6023443776 | F22: =IF(+'inputs activity'!$C$3>4,+'Actual kWh'!F$94," ") -> 532355390 | H22: =IF(+'inputs activity'!$C$3>4,+'Actual kWh'!F$95," ") -> 462879212.3 | J22: =IF(+'inputs activity'!$C$3>4,+H22+F22+D22," ") -> 7018678379 | L22: =IF(+'inputs activity'!$C$3>0,ROUND(+D22/$J22*$R22,3)," ") -> 0 | N22: =IF(+'inputs activity'!$C$3>0,ROUND(+F22/$J22*$R22,3)," ") -> 0 | P22: =IF(+'inputs activity'!$C$3>0,ROUND(+R22-L22-N22,3)," ") -> 0 | R22: =IF(+'inputs activity'!$C$3>0,+SUM('Other IIS Variance'!$Q$18:'Other IIS Variance'!Q22)," ") -> 0 | T22: =IF('inputs activity'!$C$3>4,ROUND(+P22*'inputs activity'!G$34,0)," ") -> 0 | V22: =IF(+'inputs activity'!$C$3>4,+P22-T22," ") -> 0 | Z22: 0.8582019935 | AB22: 0.07584838075 | AD22: 0.06594962574
B23: June | D23: =IF(+'inputs activity'!$C$3>5,+'Actual kWh'!G$93," ") -> 6022235076 | F23: =IF(+'inputs activity'!$C$3>5,+'Actual kWh'!G$94," ") -> 544157370 | H23: =IF(+'inputs activity'!$C$3>5,+'Actual kWh'!G$95," ") -> 462716961.2 | J23: =IF(+'inputs activity'!$C$3>5,+H23+F23+D23," ") -> 7029109408 | L23: =IF(+'inputs activity'!$C$3>0,ROUND(+D23/$J23*$R23,3)," ") -> 0 | N23: =IF(+'inputs activity'!$C$3>0,ROUND(+F23/$J23*$R23,3)," ") -> 0 | P23: =IF(+'inputs activity'!$C$3>0,ROUND(+R23-L23-N23,3)," ") -> 0 | R23: =IF(+'inputs activity'!$C$3>0,+SUM('Other IIS Variance'!$Q$18:'Other IIS Variance'!Q23)," ") -> 0 | T23: =IF('inputs activity'!$C$3>5,ROUND(+P23*'inputs activity'!H$34,0)," ") -> 0 | V23: =IF(+'inputs activity'!$C$3>5,+P23-T23," ") -> 0 | Z23: 0.8567564861 | AB23: 0.07741483856 | AD23: 0.06582867536
B24: July | D24: =IF(+'inputs activity'!$C$3>6,+'Actual kWh'!H$93," ") -> 6021532526 | F24: =IF(+'inputs activity'!$C$3>6,+'Actual kWh'!H$94," ") -> 555923240 | H24: =IF(+'inputs activity'!$C$3>6,+'Actual kWh'!H$95," ") -> 462564980.6 | J24: =IF(+'inputs activity'!$C$3>6,+H24+F24+D24," ") -> 7040020747 | L24: =IF(+'inputs activity'!$C$3>0,ROUND(+D24/$J24*$R24,3)," ") -> 0 | N24: =IF(+'inputs activity'!$C$3>0,ROUND(+F24/$J24*$R24,3)," ") -> 0 | P24: =IF(+'inputs activity'!$C$3>0,ROUND(+R24-L24-N24,3)," ") -> 0 | R24: =IF(+'inputs activity'!$C$3>0,+SUM('Other IIS Variance'!$Q$18:'Other IIS Variance'!Q24)," ") -> 0 | T24: =IF('inputs activity'!$C$3>6,ROUND(+P24*'inputs activity'!I$34,0)," ") -> 0 | V24: =IF(+'inputs activity'!$C$3>6,+P24-T24," ") -> 0 | Z24: 0.8553288041 | AB24: 0.07896613661 | AD24: 0.06570505929
B25: August | D25: =IF(+'inputs activity'!$C$3>7,+'Actual kWh'!I$93," ") -> 6020850402 | F25: =IF(+'inputs activity'!$C$3>7,+'Actual kWh'!I$94," ") -> 567450990 | H25: =IF(+'inputs activity'!$C$3>7,+'Actual kWh'!I$95," ") -> 462416024 | J25: =IF(+'inputs activity'!$C$3>7,+H25+F25+D25," ") -> 7050717416 | L25: =IF(+'inputs activity'!$C$3>0,ROUND(+D25/$J25*$R25,3)," ") -> 0 | N25: =IF(+'inputs activity'!$C$3>0,ROUND(+F25/$J25*$R25,3)," ") -> 0 | P25: =IF(+'inputs activity'!$C$3>0,ROUND(+R25-L25-N25,3)," ") -> 0 | R25: =IF(+'inputs activity'!$C$3>0,+SUM('Other IIS Variance'!$Q$18:'Other IIS Variance'!Q25)," ") -> 0 | T25: =IF('inputs activity'!$C$3>7,ROUND(+P25*'inputs activity'!J$34,0)," ") -> 0 | V25: =IF(+'inputs activity'!$C$3>7,+P25-T25," ") -> 0 | Z25: 0.8539344363 | AB25: 0.08048131226 | AD25: 0.06558425147
B26: September | D26: =IF(+'inputs activity'!$C$3>8,+'Actual kWh'!J$93," ") -> 6020046084 | F26: =IF(+'inputs activity'!$C$3>8,+'Actual kWh'!J$94," ") -> 577025700 | H26: =IF(+'inputs activity'!$C$3>8,+'Actual kWh'!J$95," ") -> 434669256.1 | J26: =IF(+'inputs activity'!$C$3>8,+H26+F26+D26," ") -> 7031741040 | L26: =IF(+'inputs activity'!$C$3>0,ROUND(+D26/$J26*$R26,3)," ") -> 0 | N26: =IF(+'inputs activity'!$C$3>0,ROUND(+F26/$J26*$R26,3)," ") -> 0 | P26: =IF(+'inputs activity'!$C$3>0,ROUND(+R26-L26-N26,3)," ") -> 0 | R26: =IF(+'inputs activity'!$C$3>0,+SUM('Other IIS Variance'!$Q$18:'Other IIS Variance'!Q26)," ") -> 0 | T26: =IF('inputs activity'!$C$3>8,ROUND(+P26*'inputs activity'!K$34,0)," ") -> 0 | V26: =IF(+'inputs activity'!$C$3>8,+P26-T26," ") -> 0 | Z26: 0.8561245429 | AB26: 0.08206014652 | AD26: 0.06181531056
B27: October | D27: =IF(+'inputs activity'!$C$3>9,+'Actual kWh'!K$93," ") -> 6018948322 | F27: =IF(+'inputs activity'!$C$3>9,+'Actual kWh'!K$94," ") -> 588132070 | H27: =IF(+'inputs activity'!$C$3>9,+'Actual kWh'!K$95," ") -> 462094225.4 | J27: =IF(+'inputs activity'!$C$3>9,+H27+F27+D27," ") -> 7069174617 | L27: =IF(+'inputs activity'!$C$3>0,ROUND(+D27/$J27*$R27,3)," ") -> 0 | N27: =IF(+'inputs activity'!$C$3>0,ROUND(+F27/$J27*$R27,3)," ") -> 0 | P27: =IF(+'inputs activity'!$C$3>0,ROUND(+R27-L27-N27,3)," ") -> 0 | R27: =IF(+'inputs activity'!$C$3>0,+SUM('Other IIS Variance'!$Q$18:'Other IIS Variance'!Q27)," ") -> 0 | T27: =IF('inputs activity'!$C$3>9,ROUND(+P27*'inputs activity'!L$34,0)," ") -> 0 | V27: =IF(+'inputs activity'!$C$3>9,+P27-T27," ") -> 0 | Z27: 0.8514357966 | AB27: 0.08319670992 | AD27: 0.06536749344
B28: November | D28: =IF(+'inputs activity'!$C$3>10,+'Actual kWh'!L$93," ") -> 6017333733 | F28: =IF(+'inputs activity'!$C$3>10,+'Actual kWh'!L$94," ") -> 600482460 | H28: =IF(+'inputs activity'!$C$3>10,+'Actual kWh'!L$95," ") -> 461883914 | J28: =IF(+'inputs activity'!$C$3>10,+H28+F28+D28," ") -> 7079700107 | L28: =IF(+'inputs activity'!$C$3>0,ROUND(+D28/$J28*$R28,3)," ") -> 0 | N28: =IF(+'inputs activity'!$C$3>0,ROUND(+F28/$J28*$R28,3)," ") -> 0 | P28: =IF(+'inputs activity'!$C$3>0,ROUND(+R28-L28-N28,3)," ") -> 0 | R28: =IF(+'inputs activity'!$C$3>0,+SUM('Other IIS Variance'!$Q$18:'Other IIS Variance'!Q28)," ") -> 0 | T28: =IF('inputs activity'!$C$3>10,ROUND(+P28*'inputs activity'!M$34,0)," ") -> 0 | V28: =IF(+'inputs activity'!$C$3>10,+P28-T28," ") -> 0 | Z28: 0.8499418961 | AB28: 0.08481749946 | AD28: 0.0652406044
B29: December | D29: =IF(+'inputs activity'!$C$3>11,+'Actual kWh'!M$93," ") -> 6014582000 | F29: =IF(+'inputs activity'!$C$3>11,+'Actual kWh'!M$94," ") -> 613371340 | H29: =IF(+'inputs activity'!$C$3>11,+'Actual kWh'!M$95," ") -> 461625100 | J29: =IF(+'inputs activity'!$C$3>11,+H29+F29+D29," ") -> 7089578440 | L29: =IF(+'inputs activity'!$C$3>0,ROUND(+D29/$J29*$R29,3)," ") -> 0 | N29: =IF(+'inputs activity'!$C$3>0,ROUND(+F29/$J29*$R29,3)," ") -> 0 | P29: =IF(+'inputs activity'!$C$3>0,ROUND(+R29-L29-N29,3)," ") -> 0 | R29: =IF(+'inputs activity'!$C$3>0,+SUM('Other IIS Variance'!$Q$18:'Other IIS Variance'!Q29)," ") -> 0 | T29: =IF('inputs activity'!$C$3>11,ROUND(+P29*'inputs activity'!N$34,0)," ") -> 0 | V29: =IF(+'inputs activity'!$C$3>11,+P29-T29," ") -> 0 | Z29: 0.8483694836 | AB29: 0.0865173219 | AD29: 0.06511319452
B32: (1) The portion of the energy costs which is initially allocated to Rural Island Interconnected will be re-allocated between Newfoundland Power and regulated Labrador Interconnected customers in the same proportion as the Rural Deficit is allocated in the most recently approved Test Year Cost of Service

Sheet Exports Variance Energy
B1: =+'Load IND'!B1 -> Newfoundland and Labrador Hydro | Y1: Pg 9b
B4: Rate Stabilization Plan
B5: Net Revenue From Exports Variances (Energy)
B6: =+'inputs activity'!C1 -> 2027-12-31
D9: A | F9: B | H9: C | J9: D | L9: E | N9: F | P9: G | R9: H | T9: I | V9: J
T10: Reallocate Rural
D11: Twelve Months-to-Date | L11: Net Exports Variance | T11: Island Customers (1)
F12: Industrial | H12: Rural Island | N12: Industrial | P12: Rural Island | V12: Labrador
D13: Utility | F13: Customers | H13: Customers | J13: Total | L13: Utility | N13: Customers | P13: Interconnected | R13: Total | T13: Utility | V13: Interconnected
D14: (kWh) | F14: (kWh) | H14: (kWh) | J14: (kWh) | L14: ($) | N14: ($) | P14: ($) | R14: ($) | T14: ($) | V14: ($)
J15: (A+B+C) | L15: (A/D X H) | N15: (B/D X H) | P15: (C/D X H)
L16: (to page 9a) | N16: (to page 9a) | R16: (from page 9) | T16: (to page 9a)
B18: January | D18: =IF(+'inputs activity'!$C$3>0,+'Actual kWh'!B$93," ") -> 6029962041 | F18: =IF(+'inputs activity'!$C$3>0,+'Actual kWh'!B$94," ") -> 484416420 | H18: =IF(+'inputs activity'!$C$3>0,+'Actual kWh'!B$95," ") -> 463791386 | J18: =IF(+'inputs activity'!$C$3>0,+H18+F18+D18," ") -> 6978169847 | L18: =IF(+'inputs activity'!$C$3>0,ROUND(+D18/$J18*$R18,3)," ") -> 0 | N18: =IF(+'inputs activity'!$C$3>0,ROUND(+F18/$J18*$R18,3)," ") -> 0 | P18: =IF(+'inputs activity'!$C$3>0,ROUND(+R18-L18-N18,3)," ") -> 0 | R18: =IF(+'inputs activity'!$C$3>0,+SUM('Exports Variance'!$O$18:'Exports Variance'!O18)," ") -> 0 | T18: =IF('inputs activity'!$C$3>0,ROUND(+P18*'inputs activity'!C$34,0)," ") -> 0 | V18: =IF(+'inputs activity'!$C$3>0,+P18-T18," ") -> 0 | Z18: =D18/$J18 -> 0.8641179813 | AB18: =F18/$J18 -> 0.06941883482 | AD18: 0.06646318392
B19: February | D19: =IF(+'inputs activity'!$C$3>1,+'Actual kWh'!C$93," ") -> 6027782085 | F19: =IF(+'inputs activity'!$C$3>1,+'Actual kWh'!C$94," ") -> 495656020 | H19: =IF(+'inputs activity'!$C$3>1,+'Actual kWh'!C$95," ") -> 463539054.2 | J19: =IF(+'inputs activity'!$C$3>1,+H19+F19+D19," ") -> 6986977159 | L19: =IF(+'inputs activity'!$C$3>0,ROUND(+D19/$J19*$R19,3)," ") -> 0 | N19: =IF(+'inputs activity'!$C$3>0,ROUND(+F19/$J19*$R19,3)," ") -> 0 | P19: =IF(+'inputs activity'!$C$3>0,ROUND(+R19-L19-N19,3)," ") -> 0 | R19: =IF(+'inputs activity'!$C$3>0,+SUM('Exports Variance'!$O$18:'Exports Variance'!O19)," ") -> 0 | T19: =IF('inputs activity'!$C$3>1,ROUND(+P19*'inputs activity'!D$34,0)," ") -> 0 | V19: =IF(+'inputs activity'!$C$3>1,+P19-T19," ") -> 0 | Z19: =D19/$J19 -> 0.8627167297 | AB19: 0.07093998001 | AD19: 0.06634329033
B20: March | D20: =IF(+'inputs activity'!$C$3>2,+'Actual kWh'!D$93," ") -> 6025701213 | F20: =IF(+'inputs activity'!$C$3>2,+'Actual kWh'!D$94," ") -> 508018050 | H20: =IF(+'inputs activity'!$C$3>2,+'Actual kWh'!D$95," ") -> 463286899 | J20: =IF(+'inputs activity'!$C$3>2,+H20+F20+D20," ") -> 6997006162 | L20: =IF(+'inputs activity'!$C$3>0,ROUND(+D20/$J20*$R20,3)," ") -> 0 | N20: =IF(+'inputs activity'!$C$3>0,ROUND(+F20/$J20*$R20,3)," ") -> 0 | P20: =IF(+'inputs activity'!$C$3>0,ROUND(+R20-L20-N20,3)," ") -> 0 | R20: =IF(+'inputs activity'!$C$3>0,+SUM('Exports Variance'!$O$18:'Exports Variance'!O20)," ") -> 0 | T20: =IF('inputs activity'!$C$3>2,ROUND(+P20*'inputs activity'!E$34,0)," ") -> 0 | V20: =IF(+'inputs activity'!$C$3>2,+P20-T20," ") -> 0 | Z20: 0.8611827793 | AB20: 0.07260505968 | AD20: 0.06621216107
B21: April | D21: =IF(+'inputs activity'!$C$3>3,+'Actual kWh'!E$93," ") -> 6024255831 | F21: =IF(+'inputs activity'!$C$3>3,+'Actual kWh'!E$94," ") -> 520152850 | H21: =IF(+'inputs activity'!$C$3>3,+'Actual kWh'!E$95," ") -> 463074128.4 | J21: =IF(+'inputs activity'!$C$3>3,+H21+F21+D21," ") -> 7007482809 | L21: =IF(+'inputs activity'!$C$3>0,ROUND(+D21/$J21*$R21,3)," ") -> 0 | N21: =IF(+'inputs activity'!$C$3>0,ROUND(+F21/$J21*$R21,3)," ") -> 0 | P21: =IF(+'inputs activity'!$C$3>0,ROUND(+R21-L21-N21,3)," ") -> 0 | R21: =IF(+'inputs activity'!$C$3>0,+SUM('Exports Variance'!$O$18:'Exports Variance'!O21)," ") -> 0 | T21: =IF('inputs activity'!$C$3>3,ROUND(+P21*'inputs activity'!F$34,0)," ") -> 0 | V21: =IF(+'inputs activity'!$C$3>3,+P21-T21," ") -> 0 | Z21: 0.8596889917 | AB21: 0.07422820208 | AD21: 0.0660828062
B22: May | D22: =IF(+'inputs activity'!$C$3>4,+'Actual kWh'!F$93," ") -> 6023443776 | F22: =IF(+'inputs activity'!$C$3>4,+'Actual kWh'!F$94," ") -> 532355390 | H22: =IF(+'inputs activity'!$C$3>4,+'Actual kWh'!F$95," ") -> 462879212.3 | J22: =IF(+'inputs activity'!$C$3>4,+H22+F22+D22," ") -> 7018678379 | L22: =IF(+'inputs activity'!$C$3>0,ROUND(+D22/$J22*$R22,3)," ") -> 0 | N22: =IF(+'inputs activity'!$C$3>0,ROUND(+F22/$J22*$R22,3)," ") -> 0 | P22: =IF(+'inputs activity'!$C$3>0,ROUND(+R22-L22-N22,3)," ") -> 0 | R22: =IF(+'inputs activity'!$C$3>0,+SUM('Exports Variance'!$O$18:'Exports Variance'!O22)," ") -> 0 | T22: =IF('inputs activity'!$C$3>4,ROUND(+P22*'inputs activity'!G$34,0)," ") -> 0 | V22: =IF(+'inputs activity'!$C$3>4,+P22-T22," ") -> 0 | Z22: 0.8582019935 | AB22: 0.07584838075 | AD22: 0.06594962574
B23: June | D23: =IF(+'inputs activity'!$C$3>5,+'Actual kWh'!G$93," ") -> 6022235076 | F23: =IF(+'inputs activity'!$C$3>5,+'Actual kWh'!G$94," ") -> 544157370 | H23: =IF(+'inputs activity'!$C$3>5,+'Actual kWh'!G$95," ") -> 462716961.2 | J23: =IF(+'inputs activity'!$C$3>5,+H23+F23+D23," ") -> 7029109408 | L23: =IF(+'inputs activity'!$C$3>0,ROUND(+D23/$J23*$R23,3)," ") -> 0 | N23: =IF(+'inputs activity'!$C$3>0,ROUND(+F23/$J23*$R23,3)," ") -> 0 | P23: =IF(+'inputs activity'!$C$3>0,ROUND(+R23-L23-N23,3)," ") -> 0 | R23: =IF(+'inputs activity'!$C$3>0,+SUM('Exports Variance'!$O$18:'Exports Variance'!O23)," ") -> 0 | T23: =IF('inputs activity'!$C$3>5,ROUND(+P23*'inputs activity'!H$34,0)," ") -> 0 | V23: =IF(+'inputs activity'!$C$3>5,+P23-T23," ") -> 0 | Z23: 0.8567564861 | AB23: 0.07741483856 | AD23: 0.06582867536
B24: July | D24: =IF(+'inputs activity'!$C$3>6,+'Actual kWh'!H$93," ") -> 6021532526 | F24: =IF(+'inputs activity'!$C$3>6,+'Actual kWh'!H$94," ") -> 555923240 | H24: =IF(+'inputs activity'!$C$3>6,+'Actual kWh'!H$95," ") -> 462564980.6 | J24: =IF(+'inputs activity'!$C$3>6,+H24+F24+D24," ") -> 7040020747 | L24: =IF(+'inputs activity'!$C$3>0,ROUND(+D24/$J24*$R24,3)," ") -> 0 | N24: =IF(+'inputs activity'!$C$3>0,ROUND(+F24/$J24*$R24,3)," ") -> 0 | P24: =IF(+'inputs activity'!$C$3>0,ROUND(+R24-L24-N24,3)," ") -> 0 | R24: =IF(+'inputs activity'!$C$3>0,+SUM('Exports Variance'!$O$18:'Exports Variance'!O24)," ") -> 0 | T24: =IF('inputs activity'!$C$3>6,ROUND(+P24*'inputs activity'!I$34,0)," ") -> 0 | V24: =IF(+'inputs activity'!$C$3>6,+P24-T24," ") -> 0 | Z24: 0.8553288041 | AB24: 0.07896613661 | AD24: 0.06570505929
B25: August | D25: =IF(+'inputs activity'!$C$3>7,+'Actual kWh'!I$93," ") -> 6020850402 | F25: =IF(+'inputs activity'!$C$3>7,+'Actual kWh'!I$94," ") -> 567450990 | H25: =IF(+'inputs activity'!$C$3>7,+'Actual kWh'!I$95," ") -> 462416024 | J25: =IF(+'inputs activity'!$C$3>7,+H25+F25+D25," ") -> 7050717416 | L25: =IF(+'inputs activity'!$C$3>0,ROUND(+D25/$J25*$R25,3)," ") -> 0 | N25: =IF(+'inputs activity'!$C$3>0,ROUND(+F25/$J25*$R25,3)," ") -> 0 | P25: =IF(+'inputs activity'!$C$3>0,ROUND(+R25-L25-N25,3)," ") -> 0 | R25: =IF(+'inputs activity'!$C$3>0,+SUM('Exports Variance'!$O$18:'Exports Variance'!O25)," ") -> 0 | T25: =IF('inputs activity'!$C$3>7,ROUND(+P25*'inputs activity'!J$34,0)," ") -> 0 | V25: =IF(+'inputs activity'!$C$3>7,+P25-T25," ") -> 0 | Z25: 0.8539344363 | AB25: 0.08048131226 | AD25: 0.06558425147
B26: September | D26: =IF(+'inputs activity'!$C$3>8,+'Actual kWh'!J$93," ") -> 6020046084 | F26: =IF(+'inputs activity'!$C$3>8,+'Actual kWh'!J$94," ") -> 577025700 | H26: =IF(+'inputs activity'!$C$3>8,+'Actual kWh'!J$95," ") -> 434669256.1 | J26: =IF(+'inputs activity'!$C$3>8,+H26+F26+D26," ") -> 7031741040 | L26: =IF(+'inputs activity'!$C$3>0,ROUND(+D26/$J26*$R26,3)," ") -> 0 | N26: =IF(+'inputs activity'!$C$3>0,ROUND(+F26/$J26*$R26,3)," ") -> 0 | P26: =IF(+'inputs activity'!$C$3>0,ROUND(+R26-L26-N26,3)," ") -> 0 | R26: =IF(+'inputs activity'!$C$3>0,+SUM('Exports Variance'!$O$18:'Exports Variance'!O26)," ") -> 0 | T26: =IF('inputs activity'!$C$3>8,ROUND(+P26*'inputs activity'!K$34,0)," ") -> 0 | V26: =IF(+'inputs activity'!$C$3>8,+P26-T26," ") -> 0 | Z26: 0.8561245429 | AB26: 0.08206014652 | AD26: 0.06181531056
B27: October | D27: =IF(+'inputs activity'!$C$3>9,+'Actual kWh'!K$93," ") -> 6018948322 | F27: =IF(+'inputs activity'!$C$3>9,+'Actual kWh'!K$94," ") -> 588132070 | H27: =IF(+'inputs activity'!$C$3>9,+'Actual kWh'!K$95," ") -> 462094225.4 | J27: =IF(+'inputs activity'!$C$3>9,+H27+F27+D27," ") -> 7069174617 | L27: =IF(+'inputs activity'!$C$3>0,ROUND(+D27/$J27*$R27,3)," ") -> 0 | N27: =IF(+'inputs activity'!$C$3>0,ROUND(+F27/$J27*$R27,3)," ") -> 0 | P27: =IF(+'inputs activity'!$C$3>0,ROUND(+R27-L27-N27,3)," ") -> 0 | R27: =IF(+'inputs activity'!$C$3>0,+SUM('Exports Variance'!$O$18:'Exports Variance'!O27)," ") -> 0 | T27: =IF('inputs activity'!$C$3>9,ROUND(+P27*'inputs activity'!L$34,0)," ") -> 0 | V27: =IF(+'inputs activity'!$C$3>9,+P27-T27," ") -> 0 | Z27: 0.8514357966 | AB27: 0.08319670992 | AD27: 0.06536749344
B28: November | D28: =IF(+'inputs activity'!$C$3>10,+'Actual kWh'!L$93," ") -> 6017333733 | F28: =IF(+'inputs activity'!$C$3>10,+'Actual kWh'!L$94," ") -> 600482460 | H28: =IF(+'inputs activity'!$C$3>10,+'Actual kWh'!L$95," ") -> 461883914 | J28: =IF(+'inputs activity'!$C$3>10,+H28+F28+D28," ") -> 7079700107 | L28: =IF(+'inputs activity'!$C$3>0,ROUND(+D28/$J28*$R28,3)," ") -> 0 | N28: =IF(+'inputs activity'!$C$3>0,ROUND(+F28/$J28*$R28,3)," ") -> 0 | P28: =IF(+'inputs activity'!$C$3>0,ROUND(+R28-L28-N28,3)," ") -> 0 | R28: =IF(+'inputs activity'!$C$3>0,+SUM('Exports Variance'!$O$18:'Exports Variance'!O28)," ") -> 0 | T28: =IF('inputs activity'!$C$3>10,ROUND(+P28*'inputs activity'!M$34,0)," ") -> 0 | V28: =IF(+'inputs activity'!$C$3>10,+P28-T28," ") -> 0 | Z28: 0.8499418961 | AB28: 0.08481749946 | AD28: 0.0652406044
B29: December | D29: =IF(+'inputs activity'!$C$3>11,+'Actual kWh'!M$93," ") -> 6014582000 | F29: =IF(+'inputs activity'!$C$3>11,+'Actual kWh'!M$94," ") -> 613371340 | H29: =IF(+'inputs activity'!$C$3>11,+'Actual kWh'!M$95," ") -> 461625100 | J29: =IF(+'inputs activity'!$C$3>11,+H29+F29+D29," ") -> 7089578440 | L29: =IF(+'inputs activity'!$C$3>0,ROUND(+D29/$J29*$R29,3)," ") -> 0 | N29: =IF(+'inputs activity'!$C$3>0,ROUND(+F29/$J29*$R29,3)," ") -> 0 | P29: =IF(+'inputs activity'!$C$3>0,ROUND(+R29-L29-N29,3)," ") -> 0 | R29: =IF(+'inputs activity'!$C$3>0,+SUM('Exports Variance'!$O$18:'Exports Variance'!O29)," ") -> 0 | T29: =IF('inputs activity'!$C$3>11,ROUND(+P29*'inputs activity'!N$34,0)," ") -> 0 | V29: =IF(+'inputs activity'!$C$3>11,+P29-T29," ") -> 0 | Z29: 0.8483694836 | AB29: 0.0865173219 | AD29: 0.06511319452
B32: (1) The portion of the energy costs which is initially allocated to Rural Island Interconnected will be re-allocated between Newfoundland Power and regulated Labrador Interconnected customers in the same proportion as the Rural Deficit is allocated in the most recently approved Test Year Cost of Service

Sheet Tariff Variance Energy
B1: =+'Load IND'!B1 -> Newfoundland and Labrador Hydro | Y1: Pg 10b
B4: Rate Stabilization Plan
B5: Transmission Tariff Revenue Variances (Energy)
B6: =+'inputs activity'!C1 -> 2027-12-31
D9: A | F9: B | H9: C | J9: D | L9: E | N9: F | P9: G | R9: H | T9: I | V9: J
T10: Reallocate Rural
D11: Twelve Months-to-Date | L11: Tariff Variance | T11: Island Customers (1)
F12: Industrial | H12: Rural Island | N12: Industrial | P12: Rural Island | V12: Labrador
D13: Utility | F13: Customers | H13: Customers | J13: Total | L13: Utility | N13: Customers | P13: Interconnected | R13: Total | T13: Utility | V13: Interconnected
D14: (kWh) | F14: (kWh) | H14: (kWh) | J14: (kWh) | L14: ($) | N14: ($) | P14: ($) | R14: ($) | T14: ($) | V14: ($)
J15: (A+B+C) | L15: (A/D X H) | N15: (B/D X H) | P15: (C/D X H)
L16: (to page 10a) | N16: (to page 10a) | R16: (from page 10) | T16: (to page 10a)
B18: January | D18: =IF(+'inputs activity'!$C$3>0,+'Actual kWh'!B$93," ") -> 6029962041 | F18: =IF(+'inputs activity'!$C$3>0,+'Actual kWh'!B$94," ") -> 484416420 | H18: =IF(+'inputs activity'!$C$3>0,+'Actual kWh'!B$95," ") -> 463791386 | J18: =IF(+'inputs activity'!$C$3>0,+H18+F18+D18," ") -> 6978169847 | L18: =IF(+'inputs activity'!$C$3>0,ROUND(+D18/$J18*$R18,3)," ") -> 0 | N18: =IF(+'inputs activity'!$C$3>0,ROUND(+F18/$J18*$R18,3)," ") -> 0 | P18: =IF(+'inputs activity'!$C$3>0,ROUND(+R18-L18-N18,3)," ") -> 0 | R18: =IF(+'inputs activity'!$C$3>0,+SUM('Tariff Variance'!$I$18:'Tariff Variance'!I18)," ") -> 0 | T18: =IF('inputs activity'!$C$3>0,ROUND(+P18*'inputs activity'!C$34,0)," ") -> 0 | V18: =IF(+'inputs activity'!$C$3>0,+P18-T18," ") -> 0 | Z18: =D18/$J18 -> 0.8641179813 | AB18: =F18/$J18 -> 0.06941883482 | AD18: 0.06646318392
B19: February | D19: =IF(+'inputs activity'!$C$3>1,+'Actual kWh'!C$93," ") -> 6027782085 | F19: =IF(+'inputs activity'!$C$3>1,+'Actual kWh'!C$94," ") -> 495656020 | H19: =IF(+'inputs activity'!$C$3>1,+'Actual kWh'!C$95," ") -> 463539054.2 | J19: =IF(+'inputs activity'!$C$3>1,+H19+F19+D19," ") -> 6986977159 | L19: =IF(+'inputs activity'!$C$3>0,ROUND(+D19/$J19*$R19,3)," ") -> 0 | N19: =IF(+'inputs activity'!$C$3>0,ROUND(+F19/$J19*$R19,3)," ") -> 0 | P19: =IF(+'inputs activity'!$C$3>0,ROUND(+R19-L19-N19,3)," ") -> 0 | R19: =IF(+'inputs activity'!$C$3>0,+SUM('Tariff Variance'!$I$18:'Tariff Variance'!I19)," ") -> 0 | T19: =IF('inputs activity'!$C$3>1,ROUND(+P19*'inputs activity'!D$34,0)," ") -> 0 | V19: =IF(+'inputs activity'!$C$3>1,+P19-T19," ") -> 0 | Z19: =D19/$J19 -> 0.8627167297 | AB19: 0.07093998001 | AD19: 0.06634329033
B20: March | D20: =IF(+'inputs activity'!$C$3>2,+'Actual kWh'!D$93," ") -> 6025701213 | F20: =IF(+'inputs activity'!$C$3>2,+'Actual kWh'!D$94," ") -> 508018050 | H20: =IF(+'inputs activity'!$C$3>2,+'Actual kWh'!D$95," ") -> 463286899 | J20: =IF(+'inputs activity'!$C$3>2,+H20+F20+D20," ") -> 6997006162 | L20: =IF(+'inputs activity'!$C$3>0,ROUND(+D20/$J20*$R20,3)," ") -> 0 | N20: =IF(+'inputs activity'!$C$3>0,ROUND(+F20/$J20*$R20,3)," ") -> 0 | P20: =IF(+'inputs activity'!$C$3>0,ROUND(+R20-L20-N20,3)," ") -> 0 | R20: =IF(+'inputs activity'!$C$3>0,+SUM('Tariff Variance'!$I$18:'Tariff Variance'!I20)," ") -> 0 | T20: =IF('inputs activity'!$C$3>2,ROUND(+P20*'inputs activity'!E$34,0)," ") -> 0 | V20: =IF(+'inputs activity'!$C$3>2,+P20-T20," ") -> 0 | Z20: 0.8611827793 | AB20: 0.07260505968 | AD20: 0.06621216107
B21: April | D21: =IF(+'inputs activity'!$C$3>3,+'Actual kWh'!E$93," ") -> 6024255831 | F21: =IF(+'inputs activity'!$C$3>3,+'Actual kWh'!E$94," ") -> 520152850 | H21: =IF(+'inputs activity'!$C$3>3,+'Actual kWh'!E$95," ") -> 463074128.4 | J21: =IF(+'inputs activity'!$C$3>3,+H21+F21+D21," ") -> 7007482809 | L21: =IF(+'inputs activity'!$C$3>0,ROUND(+D21/$J21*$R21,3)," ") -> 0 | N21: =IF(+'inputs activity'!$C$3>0,ROUND(+F21/$J21*$R21,3)," ") -> 0 | P21: =IF(+'inputs activity'!$C$3>0,ROUND(+R21-L21-N21,3)," ") -> 0 | R21: =IF(+'inputs activity'!$C$3>0,+SUM('Tariff Variance'!$I$18:'Tariff Variance'!I21)," ") -> 0 | T21: =IF('inputs activity'!$C$3>3,ROUND(+P21*'inputs activity'!F$34,0)," ") -> 0 | V21: =IF(+'inputs activity'!$C$3>3,+P21-T21," ") -> 0 | Z21: 0.8596889917 | AB21: 0.07422820208 | AD21: 0.0660828062
B22: May | D22: =IF(+'inputs activity'!$C$3>4,+'Actual kWh'!F$93," ") -> 6023443776 | F22: =IF(+'inputs activity'!$C$3>4,+'Actual kWh'!F$94," ") -> 532355390 | H22: =IF(+'inputs activity'!$C$3>4,+'Actual kWh'!F$95," ") -> 462879212.3 | J22: =IF(+'inputs activity'!$C$3>4,+H22+F22+D22," ") -> 7018678379 | L22: =IF(+'inputs activity'!$C$3>0,ROUND(+D22/$J22*$R22,3)," ") -> 0 | N22: =IF(+'inputs activity'!$C$3>0,ROUND(+F22/$J22*$R22,3)," ") -> 0 | P22: =IF(+'inputs activity'!$C$3>0,ROUND(+R22-L22-N22,3)," ") -> 0 | R22: =IF(+'inputs activity'!$C$3>0,+SUM('Tariff Variance'!$I$18:'Tariff Variance'!I22)," ") -> 0 | T22: =IF('inputs activity'!$C$3>4,ROUND(+P22*'inputs activity'!G$34,0)," ") -> 0 | V22: =IF(+'inputs activity'!$C$3>4,+P22-T22," ") -> 0 | Z22: 0.8582019935 | AB22: 0.07584838075 | AD22: 0.06594962574
B23: June | D23: =IF(+'inputs activity'!$C$3>5,+'Actual kWh'!G$93," ") -> 6022235076 | F23: =IF(+'inputs activity'!$C$3>5,+'Actual kWh'!G$94," ") -> 544157370 | H23: =IF(+'inputs activity'!$C$3>5,+'Actual kWh'!G$95," ") -> 462716961.2 | J23: =IF(+'inputs activity'!$C$3>5,+H23+F23+D23," ") -> 7029109408 | L23: =IF(+'inputs activity'!$C$3>0,ROUND(+D23/$J23*$R23,3)," ") -> 0 | N23: =IF(+'inputs activity'!$C$3>0,ROUND(+F23/$J23*$R23,3)," ") -> 0 | P23: =IF(+'inputs activity'!$C$3>0,ROUND(+R23-L23-N23,3)," ") -> 0 | R23: =IF(+'inputs activity'!$C$3>0,+SUM('Tariff Variance'!$I$18:'Tariff Variance'!I23)," ") -> 0 | T23: =IF('inputs activity'!$C$3>5,ROUND(+P23*'inputs activity'!H$34,0)," ") -> 0 | V23: =IF(+'inputs activity'!$C$3>5,+P23-T23," ") -> 0 | Z23: 0.8567564861 | AB23: 0.07741483856 | AD23: 0.06582867536
B24: July | D24: =IF(+'inputs activity'!$C$3>6,+'Actual kWh'!H$93," ") -> 6021532526 | F24: =IF(+'inputs activity'!$C$3>6,+'Actual kWh'!H$94," ") -> 555923240 | H24: =IF(+'inputs activity'!$C$3>6,+'Actual kWh'!H$95," ") -> 462564980.6 | J24: =IF(+'inputs activity'!$C$3>6,+H24+F24+D24," ") -> 7040020747 | L24: =IF(+'inputs activity'!$C$3>0,ROUND(+D24/$J24*$R24,3)," ") -> 0 | N24: =IF(+'inputs activity'!$C$3>0,ROUND(+F24/$J24*$R24,3)," ") -> 0 | P24: =IF(+'inputs activity'!$C$3>0,ROUND(+R24-L24-N24,3)," ") -> 0 | R24: =IF(+'inputs activity'!$C$3>0,+SUM('Tariff Variance'!$I$18:'Tariff Variance'!I24)," ") -> 0 | T24: =IF('inputs activity'!$C$3>6,ROUND(+P24*'inputs activity'!I$34,0)," ") -> 0 | V24: =IF(+'inputs activity'!$C$3>6,+P24-T24," ") -> 0 | Z24: 0.8553288041 | AB24: 0.07896613661 | AD24: 0.06570505929
B25: August | D25: =IF(+'inputs activity'!$C$3>7,+'Actual kWh'!I$93," ") -> 6020850402 | F25: =IF(+'inputs activity'!$C$3>7,+'Actual kWh'!I$94," ") -> 567450990 | H25: =IF(+'inputs activity'!$C$3>7,+'Actual kWh'!I$95," ") -> 462416024 | J25: =IF(+'inputs activity'!$C$3>7,+H25+F25+D25," ") -> 7050717416 | L25: =IF(+'inputs activity'!$C$3>0,ROUND(+D25/$J25*$R25,3)," ") -> 0 | N25: =IF(+'inputs activity'!$C$3>0,ROUND(+F25/$J25*$R25,3)," ") -> 0 | P25: =IF(+'inputs activity'!$C$3>0,ROUND(+R25-L25-N25,3)," ") -> 0 | R25: =IF(+'inputs activity'!$C$3>0,+SUM('Tariff Variance'!$I$18:'Tariff Variance'!I25)," ") -> 0 | T25: =IF('inputs activity'!$C$3>7,ROUND(+P25*'inputs activity'!J$34,0)," ") -> 0 | V25: =IF(+'inputs activity'!$C$3>7,+P25-T25," ") -> 0 | Z25: 0.8539344363 | AB25: 0.08048131226 | AD25: 0.06558425147
B26: September | D26: =IF(+'inputs activity'!$C$3>8,+'Actual kWh'!J$93," ") -> 6020046084 | F26: =IF(+'inputs activity'!$C$3>8,+'Actual kWh'!J$94," ") -> 577025700 | H26: =IF(+'inputs activity'!$C$3>8,+'Actual kWh'!J$95," ") -> 434669256.1 | J26: =IF(+'inputs activity'!$C$3>8,+H26+F26+D26," ") -> 7031741040 | L26: =IF(+'inputs activity'!$C$3>0,ROUND(+D26/$J26*$R26,3)," ") -> 0 | N26: =IF(+'inputs activity'!$C$3>0,ROUND(+F26/$J26*$R26,3)," ") -> 0 | P26: =IF(+'inputs activity'!$C$3>0,ROUND(+R26-L26-N26,3)," ") -> 0 | R26: =IF(+'inputs activity'!$C$3>0,+SUM('Tariff Variance'!$I$18:'Tariff Variance'!I26)," ") -> 0 | T26: =IF('inputs activity'!$C$3>8,ROUND(+P26*'inputs activity'!K$34,0)," ") -> 0 | V26: =IF(+'inputs activity'!$C$3>8,+P26-T26," ") -> 0 | Z26: 0.8561245429 | AB26: 0.08206014652 | AD26: 0.06181531056
B27: October | D27: =IF(+'inputs activity'!$C$3>9,+'Actual kWh'!K$93," ") -> 6018948322 | F27: =IF(+'inputs activity'!$C$3>9,+'Actual kWh'!K$94," ") -> 588132070 | H27: =IF(+'inputs activity'!$C$3>9,+'Actual kWh'!K$95," ") -> 462094225.4 | J27: =IF(+'inputs activity'!$C$3>9,+H27+F27+D27," ") -> 7069174617 | L27: =IF(+'inputs activity'!$C$3>0,ROUND(+D27/$J27*$R27,3)," ") -> 0 | N27: =IF(+'inputs activity'!$C$3>0,ROUND(+F27/$J27*$R27,3)," ") -> 0 | P27: =IF(+'inputs activity'!$C$3>0,ROUND(+R27-L27-N27,3)," ") -> 0 | R27: =IF(+'inputs activity'!$C$3>0,+SUM('Tariff Variance'!$I$18:'Tariff Variance'!I27)," ") -> 0 | T27: =IF('inputs activity'!$C$3>9,ROUND(+P27*'inputs activity'!L$34,0)," ") -> 0 | V27: =IF(+'inputs activity'!$C$3>9,+P27-T27," ") -> 0 | Z27: 0.8514357966 | AB27: 0.08319670992 | AD27: 0.06536749344
B28: November | D28: =IF(+'inputs activity'!$C$3>10,+'Actual kWh'!L$93," ") -> 6017333733 | F28: =IF(+'inputs activity'!$C$3>10,+'Actual kWh'!L$94," ") -> 600482460 | H28: =IF(+'inputs activity'!$C$3>10,+'Actual kWh'!L$95," ") -> 461883914 | J28: =IF(+'inputs activity'!$C$3>10,+H28+F28+D28," ") -> 7079700107 | L28: =IF(+'inputs activity'!$C$3>0,ROUND(+D28/$J28*$R28,3)," ") -> 0 | N28: =IF(+'inputs activity'!$C$3>0,ROUND(+F28/$J28*$R28,3)," ") -> 0 | P28: =IF(+'inputs activity'!$C$3>0,ROUND(+R28-L28-N28,3)," ") -> 0 | R28: =IF(+'inputs activity'!$C$3>0,+SUM('Tariff Variance'!$I$18:'Tariff Variance'!I28)," ") -> 0 | T28: =IF('inputs activity'!$C$3>10,ROUND(+P28*'inputs activity'!M$34,0)," ") -> 0 | V28: =IF(+'inputs activity'!$C$3>10,+P28-T28," ") -> 0 | Z28: 0.8499418961 | AB28: 0.08481749946 | AD28: 0.0652406044
B29: December | D29: =IF(+'inputs activity'!$C$3>11,+'Actual kWh'!M$93," ") -> 6014582000 | F29: =IF(+'inputs activity'!$C$3>11,+'Actual kWh'!M$94," ") -> 613371340 | H29: =IF(+'inputs activity'!$C$3>11,+'Actual kWh'!M$95," ") -> 461625100 | J29: =IF(+'inputs activity'!$C$3>11,+H29+F29+D29," ") -> 7089578440 | L29: =IF(+'inputs activity'!$C$3>0,ROUND(+D29/$J29*$R29,3)," ") -> 0 | N29: =IF(+'inputs activity'!$C$3>0,ROUND(+F29/$J29*$R29,3)," ") -> 0 | P29: =IF(+'inputs activity'!$C$3>0,ROUND(+R29-L29-N29,3)," ") -> 0 | R29: =IF(+'inputs activity'!$C$3>0,+SUM('Tariff Variance'!$I$18:'Tariff Variance'!I29)," ") -> 0 | T29: =IF('inputs activity'!$C$3>11,ROUND(+P29*'inputs activity'!N$34,0)," ") -> 0 | V29: =IF(+'inputs activity'!$C$3>11,+P29-T29," ") -> 0 | Z29: 0.8483694836 | AB29: 0.0865173219 | AD29: 0.06511319452
